Workbook

Sheet シートの見方
A2: シートの色 | C2: 内容
A3: 青シート | C3: シート位置区切り用
A4: 赤シート | C4: シートの見方、算定全体の条件
A5: 緑シート | C5: 排出量の分析-全体排出量
A6: 黄色シート | C6: 各カテゴリ毎のデータ入力シート
A7: 黒色シート | C7: 排出原単位の参照元データシート

Sheet データ入力方法
A1: データ入力シートの使用方法
A3: 黄色シート | C3: セルの色分け | D3: デフォルトで固定の値が入力されているセルです。
D4: 選択肢から選択するセルです。
D5: 数式で自動入力されるセルです。
D6: 排出量が自動で計算されるセルです。

Sheet シート一覧
A1: シート名称かページ番号をクリックすると該当のシートに飛びます。
A3: ページ番号 | B3: シート名称 | C3: シート内容
A4: 1 | B4: シートの見方 | C4: シート全体の見方の説明
A5: 2 | B5: データ入力方法 | C5: データ入力シートの入力方法
A6: 3 | B6: シート一覧 | C6: 各シート内容の一覧
A7: 4 | B7: 算定の前提条件 | C7: 算定の前提条件について
A8: 5 | B8: ←全体情報シート｜分析結果シート→ | C8: シートの区切り
A9: 6 | B9: 排出量まとめ_マーケット基準 | C9: スコープ1+2+3のサプライチェーン排出量のまとめとその分析結果を示しています（マーケット基準）
A10: 7 | B10: ←分析結果シート｜データ入力シート→ | C10: シートの区切り
A11: 8 | B11: SCOPE1 | C11: SCOPE1のデータ入力用シートです。
A12: 9 | B12: SCOPE2_マーケット基準 | C12: SCOPE2のデータ入力用シートです。（マーケット基準）
A13: 10 | B13: カテゴリ1_製品 | C13: カテゴリ1のデータ入力用シートです。 | D13: *ロックされていて入力できません。
A14: 11 | B14: カテゴリ2_資本財 | C14: カテゴリ2のデータ入力用シートです。 | D14: *ロックされていて入力できません。
A15: 12 | B15: カテゴリ3_エネルギー等の上流 | C15: カテゴリ3のデータ入力用シートです。 | D15: *ロックされていて入力できません。
A16: 13 | B16: カテゴリ4_輸送上流 | C16: カテゴリ4のデータ入力用シートです。 | D16: *ロックされていて入力できません。
A17: 14 | B17: カテゴリ5_廃棄（事業） | C17: カテゴリ5のデータ入力用シートです。 | D17: *ロックされていて入力できません。
A18: 15 | B18: カテゴリ6_出張 | C18: カテゴリ6のデータ入力用シートです。 | D18: *ロックされていて入力できません。
A19: 16 | B19: カテゴリ7_通勤 | C19: カテゴリ7のデータ入力用シートです。 | D19: *ロックされていて入力できません。
A20: 17 | B20: カテゴリ8_リース資産上流 | C20: カテゴリ8のデータ入力用シートです。 | D20: *ロックされていて入力できません。
A21: 18 | B21: カテゴリ9_輸送下流 | C21: カテゴリ9のデータ入力用シートです。 | D21: *ロックされていて入力できません。
A22: 19 | B22: カテゴリ10_製品の加工 | C22: カテゴリ10のデータ入力用シートです。 | D22: *ロックされていて入力できません。
A23: 20 | B23: カテゴリ11_製品の使用 | C23: カテゴリ11のデータ入力用シートです。 | D23: *ロックされていて入力できません。
A24: 21 | B24: カテゴリ12_廃棄（使用） | C24: カテゴリ12のデータ入力用シートです。 | D24: *ロックされていて入力できません。
A25: 22 | B25: カテゴリ13_リース資産下流 | C25: カテゴリ13のデータ入力用シートです。 | D25: *ロックされていて入力できません。
A26: 23 | B26: カテゴリ14_フランチャイズ | C26: カテゴリ14のデータ入力用シートです。 | D26: *ロックされていて入力できません。
A27: 24 | B27: カテゴリ15_投資 | C27: カテゴリ15のデータ入力用シートです。 | D27: *ロックされていて入力できません。
A28: 25 | B28: ←データ入力シート｜原単位等データシート→ | C28: シートの区切り
A29: 26 | B29: カテゴリ1計算用_原単位DB | C29: カテゴリ1計算時の参照用のデータベースです。
A30: 27 | B30: カテゴリ２計算用_原単位DB | C30: カテゴリ2計算時の参照用のデータベースです。
A31: 28 | B31: カテゴリ4&9計算用_国間距離DB | C31: カテゴリ4,9計算時の参照用のデータベースです。

Sheet 算定の前提条件
A1: 算定条件等の概要
A3: スコープ・カテゴリ | C3: 対象活動 | D3: 対象活動がある組織範囲 | E3: 排出量算出
E4: 算出方法 | F4: 活動量 | G4: 活動量のデータ範囲（期間） | H4: 原単位 | I4: 備考
A5: スコープ1 | B5: 自社の直接排出 | C5: 燃料の使用による排出 | D5: 本社 | E5: 燃料の使用量を直接把握して、原単位をかける。 | F5: ・ガソリン、都市ガス、LPGなどのガスの使用量 ・その他該当する工業プロセスに夜排出の活動量 | G5: 2021.4~2022.3 | H5: 算定・報告・公表制度における算定方法・排出係数
A6: スコープ2 | B6: 自社の間接排出（電気・熱） | C6: 電気の使用による排出 | D6: 本社 | E6: 電気・熱の使用量を直接把握して、原単位をかける。 | F6: ・電気の使用量 ・熱の使用量 | G6: 2021.4~2022.3 | H6: 電気：電気事業者別排出係数 熱：算定・報告・公表制度における算定方法・排出係数
A7: カテゴリ1 | B7: 購入した製品・サービス | C7: 購入した製品の上流の排出 | D7: 本社 | E7: 産業連関表の項目毎に分けて、合計金額を記入。購入者価格と生産者価格に分ける。 | F7: ・購入した項目とその項目の合計金額のリスト、購入者価格or生産者価格の選択も必要。 | G7: 2021.4~2022.3 | H7: 環境省SC-DB 産業連関表の金額ベースの原単位（生産者or購入者）
A8: カテゴリ2 | B8: 資本財 | C8: 購入した資本財の上流の排出 | D8: 本社 | E8: 固定資産台帳の合計金額（業態毎に分ける） | F8: ・固定資産台帳の合計金額（業態毎） | G8: 2021.4~2022.3 | H8: 環境省SC-DB。業態が複数の場合は、業態ごとに分ける。
A9: カテゴリ3 | B9: Scope1,2 に含まれない燃料及びエネルギー関連活動 | C9: 購入した燃料・電力・熱量の上流の排出 | D9: 本社 | E9: SCOPE1, 2のデータを元に計算 | F9: SCOPE1,2のデータ | G9: 2021.4~2022.3 | H9: 環境省SC-DB(電力・蒸気） IDEA v2.3（燃料）
A10: カテゴリ4 | B10: 輸送、配送（上流） | C10: 国内車両輸送部分の排出 海外輸送部分の排出 | D10: 本社 | E10: 輸送重量を元に計算。 | F10: ・国内輸送重量、輸送距離 ・海外輸送重量（国、輸送手段ごと） | G10: 2021.4~2022.3 | H10: 環境省SC-DB
A11: カテゴリ5 | B11: 事業から出る廃棄物 | C11: 廃棄物処理時の排出（廃棄物輸送段階の排出は除く） | D11: 本社 | E11: 廃棄物種類と重量を元に計算 | F11: ・一般廃棄物種類と重量 ・産業廃棄物種類と重量 | G11: 2021.4~2022.3 | H11: 環境省SC-DB ー廃棄物（処理方法不明）
A12: カテゴリ6 | B12: 出張 | C12: 従業員の出張時（鉄道・タクシー・バス・自家用車・国内航空・国際航空）の排出 | D12: 本社 | E12: 移動手段別金額を元に計算。 | F12: ・移動手段別の費用 | G12: 2021.4~2022.3 | H12: 環境省SC-DB
A13: カテゴリ7 | B13: 雇用者の通勤 | C13: 従業員の通勤時（鉄道・タクシー・バス・自家用車）の排出 | D13: 本社 | E13: 移動手段別金額を元に計算。 | F13: ・移動手段別の費用 | G13: 2021.4~2022.3 | H13: 環境省SC-DB
A14: カテゴリ8 | B14: リース資産（上流） | C14: データセンター・貸倉庫利用に関する排出 | D14: 本社 | E14: 該当の項目あれば自分で入力 | G14: 2021.4~2022.3
A15: カテゴリ9 | B15: 輸送、配送（下流） | C15: 国内外の販売時の輸送に関する排出 | D15: 本社 | E15: 輸送重量を元に計算。 | F15: ・国内輸送重量、輸送距離 ・海外輸送重量（国、輸送手段ごと） | G15: 2021.4~2022.3 | H15: 環境省SC-DB
A16: カテゴリ10 | B16: 販売した製品の加工 | C16: 製品の加工時のエネルギー消費に関する排出 | D16: 本社 | E16: 該当の項目あれば自分で入力 | F16: ・対象製品の販売数量 ・加工時の想定シナリオ | G16: 2021.4~2022.3 | H16: 燃料：算定・報告・公表制度における算定方法・排出係数 電気：電気事業者別排出係数
A17: カテゴリ11 | B17: 販売した製品の使用 | C17: 製品の使用時のエネルギー消費に関する排出 | D17: 本社 | E17: 該当の項目あれば自分で入力 | F17: ・対象製品の販売数量 ・使用時の想定シナリオ | G17: 2021.4~2022.3 | H17: 燃料：算定・報告・公表制度における算定方法・排出係数 電気：電気事業者別排出係数
A18: カテゴリ12 | B18: 販売した製品の廃棄 | C18: 販売した製品の廃棄時の排出（廃棄物輸送段階の排出は除く） | D18: 本社 | E18: 廃棄物種類と重量を元に計算 | F18: ・一般廃棄物種類と重量 ・産業廃棄物種類と重量 | G18: 2021.4~2022.3 | H18: 環境省SC-DB ー廃棄物（処理方法不明）
A19: カテゴリ13 | B19: リース資産（下流） | C19: 貸し出したリース資産の排出 | D19: 本社 | E19: 該当の項目あれば自分で入力 | G19: 2021.4~2022.3
A20: カテゴリ14 | B20: フランチャイズ | C20: フランチャイズ店の排出（SCOPE1, 2に計上していないもの） | D20: 本社 | E20: 該当の項目あれば自分で入力 | G20: 2021.4~2022.3
A21: カテゴリ15 | B21: 投資 | C21: 投資に関する排出 | D21: 本社 | E21: 該当の項目あれば自分で入力 | G21: 2021.4~2022.3
A25: v

Sheet ←全体情報シート｜分析結果シート→
A1: シート名称かページ番号をクリックすると該当のシートに飛びます。
A3: ページ番号 | B3: シート名称 | C3: シート内容
A4: 1 | B4: シートの見方 | C4: シート全体の見方の説明
A5: 2 | B5: データ入力方法 | C5: データ入力シートの入力方法
A6: 3 | B6: シート一覧 | C6: 各シート内容の一覧
A7: 4 | B7: 算定の前提条件 | C7: 算定の前提条件について
A8: 5 | B8: ←全体情報シート｜分析結果シート→ | C8: シートの区切り
A9: 6 | B9: 排出量まとめ_マーケット基準 | C9: スコープ1+2+3のサプライチェーン排出量のまとめとその分析結果を示しています（マーケット基準）
A10: 7 | B10: ←分析結果シート｜データ入力シート→ | C10: シートの区切り
A11: 8 | B11: SCOPE1 | C11: SCOPE1のデータ入力用シートです。
A12: 9 | B12: SCOPE2_マーケット基準 | C12: SCOPE2のデータ入力用シートです。（マーケット基準）
A13: 10 | B13: カテゴリ1_製品 | C13: カテゴリ1のデータ入力用シートです。 | D13: *ロックされていて入力できません。
A14: 11 | B14: カテゴリ2_資本財 | C14: カテゴリ2のデータ入力用シートです。 | D14: *ロックされていて入力できません。
A15: 12 | B15: カテゴリ3_エネルギー等の上流 | C15: カテゴリ3のデータ入力用シートです。 | D15: *ロックされていて入力できません。
A16: 13 | B16: カテゴリ4_輸送上流 | C16: カテゴリ4のデータ入力用シートです。 | D16: *ロックされていて入力できません。
A17: 14 | B17: カテゴリ5_廃棄（事業） | C17: カテゴリ5のデータ入力用シートです。 | D17: *ロックされていて入力できません。
A18: 15 | B18: カテゴリ6_出張 | C18: カテゴリ6のデータ入力用シートです。 | D18: *ロックされていて入力できません。
A19: 16 | B19: カテゴリ7_通勤 | C19: カテゴリ7のデータ入力用シートです。 | D19: *ロックされていて入力できません。
A20: 17 | B20: カテゴリ8_リース資産上流 | C20: カテゴリ8のデータ入力用シートです。 | D20: *ロックされていて入力できません。
A21: 18 | B21: カテゴリ9_輸送下流 | C21: カテゴリ9のデータ入力用シートです。 | D21: *ロックされていて入力できません。
A22: 19 | B22: カテゴリ10_製品の加工 | C22: カテゴリ10のデータ入力用シートです。 | D22: *ロックされていて入力できません。
A23: 20 | B23: カテゴリ11_製品の使用 | C23: カテゴリ11のデータ入力用シートです。 | D23: *ロックされていて入力できません。
A24: 21 | B24: カテゴリ12_廃棄（使用） | C24: カテゴリ12のデータ入力用シートです。 | D24: *ロックされていて入力できません。
A25: 22 | B25: カテゴリ13_リース資産下流 | C25: カテゴリ13のデータ入力用シートです。 | D25: *ロックされていて入力できません。
A26: 23 | B26: カテゴリ14_フランチャイズ | C26: カテゴリ14のデータ入力用シートです。 | D26: *ロックされていて入力できません。
A27: 24 | B27: カテゴリ15_投資 | C27: カテゴリ15のデータ入力用シートです。 | D27: *ロックされていて入力できません。
A28: 25 | B28: ←データ入力シート｜原単位等データシート→ | C28: シートの区切り
A29: 26 | B29: カテゴリ1計算用_原単位DB | C29: カテゴリ1計算時の参照用のデータベースです。
A30: 27 | B30: カテゴリ２計算用_原単位DB | C30: カテゴリ2計算時の参照用のデータベースです。
A31: 28 | B31: カテゴリ4&9計算用_国間距離DB | C31: カテゴリ4,9計算時の参照用のデータベースです。

Sheet 排出量まとめ_マーケット基準
W14: =TRANSPOSE(IF(B74:U602="","",B74:U602)) -> スコープ | X14: カテゴリ | Y14: カテゴリ毎排出量[t-CO2] | Z14: スコープ毎排出量[t-CO2] | AA14: 全体に対する排出割合 | AB14: スコープ3の中での排出割合 | AX14: スコープ | AY14: カテゴリ | AZ14: 0 | BA14: (空白) | BB14: Believe T-1 | BC14: Believe T-1 MARKET | BD14: Believe T-2 | BE14: Believe T-2 MARKET | BF14: Believe T-3 | BG14: Believe T-3 MARKET | BH14: Believe T-4 | BI14: Believe T-4 MARKET | BJ14: Believe T-5 | BK14: Believe T-5 MARKET | BM14: 0
W15: 全体 | X15: サプライチェーン排出量全体 | Y15: 1552.3 | Z15: 1552.3 | AA15: 1 | AB15: - | AX15: 全体 | AY15: サプライチェーン排出量全体 | AZ15: 0 | BA15: 0 | BB15: 74.8 | BC15: 239.7 | BD15: 84.8 | BE15: 235 | BF15: 85.8 | BG15: 235 | BH15: 84.8 | BI15: 235 | BJ15: 42.4 | BK15: 235 | BM15: 0
W16: スコープ1 | X16: スコープ1 | Y16: 292.6 | Z16: 292.6 | AA16: 0.188494492 | AB16: - | AX16: スコープ1 | AY16: スコープ1 | BA16: 0 | BB16: 64.8 | BD16: 64.8 | BF16: 65.8 | BH16: 64.8 | BJ16: 32.4
W17: スコープ2 | X17: スコープ2 | Y17: 1259.7 | Z17: 1259.7 | AA17: 0.811505508 | AB17: - | AX17: スコープ2 | AY17: スコープ2 | BA17: 0 | BB17: 10 | BC17: 239.7 | BD17: 20 | BE17: 235 | BF17: 20 | BG17: 235 | BH17: 20 | BI17: 235 | BJ17: 10 | BK17: 235
W18: スコープ3 | X18: カテゴリ1 | Y18: 0 | Z18: - | AA18: 0 | AX18: スコープ3 | AY18: カテゴリ1 | BA18: 0
X19: カテゴリ2 | Y19: 0 | Z19: - | AA19: 0 | AY19: カテゴリ2 | BA19: 0
X20: カテゴリ3 | Y20: 0 | Z20: - | AA20: 0 | AY20: カテゴリ3 | BA20: 0
X21: カテゴリ4 | Y21: 0 | Z21: - | AA21: 0 | AY21: カテゴリ4 | BA21: 0
X22: カテゴリ5 | Y22: 0 | Z22: - | AA22: 0 | AY22: カテゴリ5 | BA22: 0
X23: カテゴリ6 | Y23: 0 | Z23: - | AA23: 0 | AY23: カテゴリ6 | BA23: 0
X24: カテゴリ7 | Y24: 0 | Z24: - | AA24: 0 | AY24: カテゴリ7 | BA24: 0
X25: カテゴリ8 | Y25: 0 | Z25: - | AA25: 0 | AY25: カテゴリ8 | BA25: 0
X26: カテゴリ9 | Y26: 0 | Z26: - | AA26: 0 | AY26: カテゴリ9 | BA26: 0
X27: カテゴリ10 | Y27: 0 | Z27: - | AA27: 0 | AY27: カテゴリ10 | BA27: 0
X28: カテゴリ11 | Y28: 0 | Z28: - | AA28: 0 | AY28: カテゴリ11 | BA28: 0
X29: カテゴリ12 | Y29: 0 | Z29: - | AA29: 0 | AY29: カテゴリ12 | BA29: 0
X30: カテゴリ13 | Y30: 0 | Z30: - | AA30: 0 | AY30: カテゴリ13 | BA30: 0
X31: カテゴリ14 | Y31: 0 | Z31: - | AA31: 0 | AY31: カテゴリ14 | BA31: 0
X32: カテゴリ15 | Y32: 0 | Z32: - | AA32: 0 | AY32: カテゴリ15 | BA32: 0
W33: スコープ3 | X33: スコープ3合計 | Y33: - | Z33: 0 | AA33: 0 | AX33: スコープ3 | AY33: スコープ3合計 | AZ33: 0 | BA33: 0 | BB33: 0 | BC33: 0 | BD33: 0 | BE33: 0 | BF33: 0 | BG33: 0 | BH33: 0 | BI33: 0 | BJ33: 0 | BK33: 0 | BL33: 0 | BM33: 0 | BN33: 0 | BO33: 0 | BP33: 0 | BQ33: 0 | BR33: 0 | BS33: 0 | BT33: 0 | BU33: 0 | BV33: 0 | BW33: 0 | BX33: 0 | BY33: 0 | BZ33: 0 | CA33: 0 | CB33: 0 | CC33: 0 | CD33: 0 | CE33: 0 | CF33: 0 | CG33: 0 | CH33: 0 | CI33: 0 | CJ33: 0 | CK33: 0 | CL33: 0 | CM33: 0 | CN33: 0 | CO33: 0 | CP33: 0 | CQ33: 0 | CR33: 0 | CS33: 0 | CT33: 0 | CU33: 0 | CV33: 0 | CW33: 0 | CX33: 0 | CY33: 0 | CZ33: 0 | DA33: 0 | DB33: 0 | DC33: 0 | DD33: 0 | DE33: 0 | DF33: 0 | DG33: 0 | DH33: 0 | DI33: 0 | DJ33: 0 | DK33: 0 | DL33: 0 | DM33: 0 | DN33: 0 | DO33: 0 | DP33: 0 | DQ33: 0 | DR33: 0 | DS33: 0 | DT33: 0 | DU33: 0 | DV33: 0 | DW33: 0 | DX33: 0 | DY33: 0 | DZ33: 0 | EA33: 0 | EB33: 0 | EC33: 0 | ED33: 0 | EE33: 0 | EF33: 0 | EG33: 0 | EH33: 0 | EI33: 0 | EJ33: 0 | EK33: 0 | EL33: 0 | EM33: 0 | EN33: 0 | EO33: 0 | EP33: 0 | EQ33: 0 | ER33: 0 | ES33: 0 | ET33: 0 | EU33: 0 | EV33: 0 | EW33: 0 | EX33: 0 | EY33: 0 | EZ33: 0 | FA33: 0 | FB33: 0 | FC33: 0 | FD33: 0 | FE33: 0 | FF33: 0 | FG33: 0 | FH33: 0 | FI33: 0 | FJ33: 0 | FK33: 0 | FL33: 0 | FM33: 0 | FN33: 0 | FO33: 0 | FP33: 0 | FQ33: 0 | FR33: 0 | FS33: 0 | FT33: 0 | FU33: 0 | FV33: 0 | FW33: 0 | FX33: 0 | FY33: 0 | FZ33: 0 | GA33: 0 | GB33: 0 | GC33: 0 | GD33: 0 | GE33: 0 | GF33: 0 | GG33: 0 | GH33: 0 | GI33: 0 | GJ33: 0 | GK33: 0 | GL33: 0 | GM33: 0 | GN33: 0 | GO33: 0 | GP33: 0 | GQ33: 0 | GR33: 0 | GS33: 0 | GT33: 0 | GU33: 0 | GV33: 0 | GW33: 0 | GX33: 0 | GY33: 0 | GZ33: 0 | HA33: 0 | HB33: 0 | HC33: 0 | HD33: 0 | HE33: 0 | HF33: 0 | HG33: 0 | HH33: 0 | HI33: 0 | HJ33: 0 | HK33: 0 | HL33: 0 | HM33: 0 | HN33: 0 | HO33: 0 | HP33: 0 | HQ33: 0 | HR33: 0 | HS33: 0 | HT33: 0 | HU33: 0 | HV33: 0 | HW33: 0 | HX33: 0 | HY33: 0 | HZ33: 0 | IA33: 0 | IB33: 0 | IC33: 0 | ID33: 0 | IE33: 0 | IF33: 0 | IG33: 0 | IH33: 0 | II33: 0 | IJ33: 0 | IK33: 0 | IL33: 0 | IM33: 0 | IN33: 0 | IO33: 0 | IP33: 0 | IQ33: 0 | IR33: 0 | IS33: 0 | IT33: 0 | IU33: 0 | IV33: 0 | IW33: 0 | IX33: 0 | IY33: 0 | IZ33: 0 | JA33: 0 | JB33: 0 | JC33: 0 | JD33: 0 | JE33: 0 | JF33: 0 | JG33: 0 | JH33: 0 | JI33: 0 | JJ33: 0 | JK33: 0 | JL33: 0 | JM33: 0 | JN33: 0 | JO33: 0 | JP33: 0 | JQ33: 0 | JR33: 0 | JS33: 0 | JT33: 0 | JU33: 0 | JV33: 0 | JW33: 0 | JX33: 0 | JY33: 0 | JZ33: 0 | KA33: 0 | KB33: 0 | KC33: 0 | KD33: 0 | KE33: 0 | KF33: 0 | KG33: 0 | KH33: 0 | KI33: 0 | KJ33: 0 | KK33: 0 | KL33: 0 | KM33: 0 | KN33: 0 | KO33: 0 | KP33: 0 | KQ33: 0 | KR33: 0 | KS33: 0 | KT33: 0 | KU33: 0 | KV33: 0 | KW33: 0 | KX33: 0 | KY33: 0 | KZ33: 0 | LA33: 0 | LB33: 0 | LC33: 0 | LD33: 0 | LE33: 0 | LF33: 0 | LG33: 0 | LH33: 0 | LI33: 0 | LJ33: 0 | LK33: 0 | LL33: 0 | LM33: 0 | LN33: 0 | LO33: 0 | LP33: 0 | LQ33: 0 | LR33: 0 | LS33: 0 | LT33: 0 | LU33: 0 | LV33: 0 | LW33: 0 | LX33: 0 | LY33: 0 | LZ33: 0 | MA33: 0 | MB33: 0 | MC33: 0 | MD33: 0 | ME33: 0 | MF33: 0 | MG33: 0 | MH33: 0 | MI33: 0 | MJ33: 0 | MK33: 0 | ML33: 0 | MM33: 0 | MN33: 0 | MO33: 0 | MP33: 0 | MQ33: 0 | MR33: 0 | MS33: 0 | MT33: 0 | MU33: 0 | MV33: 0 | MW33: 0 | MX33: 0 | MY33: 0 | MZ33: 0 | NA33: 0 | NB33: 0 | NC33: 0 | ND33: 0 | NE33: 0 | NF33: 0 | NG33: 0 | NH33: 0 | NI33: 0 | NJ33: 0 | NK33: 0 | NL33: 0 | NM33: 0 | NN33: 0 | NO33: 0 | NP33: 0 | NQ33: 0 | NR33: 0 | NS33: 0 | NT33: 0 | NU33: 0 | NV33: 0 | NW33: 0 | NX33: 0 | NY33: 0 | NZ33: 0 | OA33: 0 | OB33: 0 | OC33: 0 | OD33: 0 | OE33: 0 | OF33: 0 | OG33: 0 | OH33: 0 | OI33: 0 | OJ33: 0 | OK33: 0 | OL33: 0 | OM33: 0 | ON33: 0 | OO33: 0 | OP33: 0 | OQ33: 0 | OR33: 0 | OS33: 0 | OT33: 0 | OU33: 0 | OV33: 0 | OW33: 0 | OX33: 0 | OY33: 0 | OZ33: 0 | PA33: 0 | PB33: 0 | PC33: 0 | PD33: 0 | PE33: 0 | PF33: 0 | PG33: 0 | PH33: 0 | PI33: 0 | PJ33: 0 | PK33: 0 | PL33: 0 | PM33: 0 | PN33: 0 | PO33: 0 | PP33: 0 | PQ33: 0 | PR33: 0 | PS33: 0 | PT33: 0 | PU33: 0 | PV33: 0 | PW33: 0 | PX33: 0 | PY33: 0 | PZ33: 0 | QA33: 0 | QB33: 0 | QC33: 0 | QD33: 0 | QE33: 0 | QF33: 0 | QG33: 0 | QH33: 0 | QI33: 0 | QJ33: 0 | QK33: 0 | QL33: 0 | QM33: 0 | QN33: 0 | QO33: 0 | QP33: 0 | QQ33: 0 | QR33: 0 | QS33: 0 | QT33: 0 | QU33: 0 | QV33: 0 | QW33: 0 | QX33: 0 | QY33: 0 | QZ33: 0 | RA33: 0 | RB33: 0 | RC33: 0 | RD33: 0 | RE33: 0 | RF33: 0 | RG33: 0 | RH33: 0 | RI33: 0 | RJ33: 0 | RK33: 0 | RL33: 0 | RM33: 0 | RN33: 0 | RO33: 0 | RP33: 0 | RQ33: 0 | RR33: 0 | RS33: 0 | RT33: 0 | RU33: 0 | RV33: 0 | RW33: 0 | RX33: 0 | RY33: 0 | RZ33: 0 | SA33: 0 | SB33: 0 | SC33: 0 | SD33: 0 | SE33: 0 | SF33: 0 | SG33: 0 | SH33: 0 | SI33: 0 | SJ33: 0 | SK33: 0 | SL33: 0 | SM33: 0 | SN33: 0 | SO33: 0 | SP33: 0 | SQ33: 0 | SR33: 0 | SS33: 0 | ST33: 0 | SU33: 0 | SV33: 0 | SW33: 0 | SX33: 0 | SY33: 0 | SZ33: 0 | TA33: 0 | TB33: 0 | TC33: 0 | TD33: 0 | TE33: 0 | TF33: 0 | TG33: 0 | TH33: 0 | TI33: 0 | TJ33: 0 | TK33: 0 | TL33: 0 | TM33: 0 | TN33: 0 | TO33: 0 | TP33: 0 | TQ33: 0 | TR33: 0 | TS33: 0 | TT33: 0 | TU33: 0 | TV33: 0 | TW33: 0 | TX33: 0 | TY33: 0 | TZ33: 0 | UA33: 0 | UB33: 0 | UC33: 0 | UD33: 0 | UE33: 0
W72: ="総排出量"&CHAR(10)&TEXT($C$77,"#,##0")&" t-CO2e" -> 総排出量 1,552 t-CO2e
B74: スコープ | C74: 全体 | D74: スコープ1 | E74: スコープ2 | F74: スコープ3 | U74: スコープ3
B75: カテゴリ | C75: サプライチェーン排出量全体 | D75: スコープ1 | E75: スコープ2 | F75: カテゴリ1 | G75: カテゴリ2 | H75: カテゴリ3 | I75: カテゴリ4 | J75: カテゴリ5 | K75: カテゴリ6 | L75: カテゴリ7 | M75: カテゴリ8 | N75: カテゴリ9 | O75: カテゴリ10 | P75: カテゴリ11 | Q75: カテゴリ12 | R75: カテゴリ13 | S75: カテゴリ14 | T75: カテゴリ15 | U75: スコープ3合計 | W75: 合計 / サプライチェーン排出量全体 | X75: 合計 / スコープ1 | Y75: 合計 / スコープ2 | Z75: 合計 / カテゴリ1 | AA75: 合計 / カテゴリ2 | AB75: 合計 / カテゴリ3 | AC75: 合計 / カテゴリ4 | AD75: 合計 / カテゴリ5 | AE75: 合計 / カテゴリ6 | AF75: 合計 / カテゴリ7 | AG75: 合計 / カテゴリ8 | AH75: 合計 / カテゴリ9 | AI75: 合計 / カテゴリ10 | AJ75: 合計 / カテゴリ11 | AK75: 合計 / カテゴリ12 | AL75: 合計 / カテゴリ13 | AM75: 合計 / カテゴリ14 | AN75: 合計 / カテゴリ15
B76: カテゴリ毎排出量[t-CO2] | C76: =W76 -> 1552.3 | D76: =X76 -> 292.6 | E76: 1259.7 | F76: 0 | G76: 0 | H76: 0 | I76: 0 | J76: 0 | K76: 0 | L76: 0 | M76: 0 | N76: 0 | O76: 0 | P76: 0 | Q76: 0 | R76: 0 | S76: 0 | T76: 0 | U76: - | W76: 1552.3 | X76: 292.6 | Y76: 1259.7 | Z76: 0 | AA76: 0 | AB76: 0 | AC76: 0 | AD76: 0 | AE76: 0 | AF76: 0 | AG76: 0 | AH76: 0 | AI76: 0 | AJ76: 0 | AK76: 0 | AL76: 0 | AM76: 0 | AN76: 0
B77: スコープ毎排出量[t-CO2] | C77: =C76 -> 1552.3 | D77: =D76 -> 292.6 | E77: =E76 -> 1259.7 | F77: - | G77: - | H77: - | I77: - | J77: - | K77: - | L77: - | M77: - | N77: - | O77: - | P77: - | Q77: - | R77: - | S77: - | T77: - | U77: =SUM(F76:T76) -> 0
B78: 全体に対する排出割合 | C78: =C76/$C$77 -> 1 | D78: =D76/$C$77 -> 0.188494492 | E78: 0.811505508 | F78: 0 | G78: 0 | H78: 0 | I78: 0 | J78: 0 | K78: 0 | L78: 0 | M78: 0 | N78: 0 | O78: 0 | P78: 0 | Q78: 0 | R78: 0 | S78: 0 | T78: 0 | U78: =U77/$C$77 -> 0
B79: スコープ3の中での排出割合 | C79: - | D79: - | E79: - | F79: =F76/$U$77 ->  | G79: =G76/$U$77 ->  | U79: =U77/$U$77 -> 
B101: スコープ | C101: 全体 | D101: スコープ1 | E101: スコープ2 | F101: スコープ3 | U101: スコープ3 | W101: スコープ1 | Z101: スコープ2-マーケット | AC101: カテゴリ1 | AW101: カテゴリ2 | AZ101: カテゴリ3 | BC101: カテゴリ4 | BF101: カテゴリ5 | BI101: カテゴリ6 | BL101: カテゴリ7 | BO101: カテゴリ8 | BR101: カテゴリ9 | BU101: カテゴリ10 | BX101: カテゴリ11 | CA101: カテゴリ12 | CD101: カテゴリ13 | CG101: カテゴリ14 | CJ101: カテゴリ15 | CM101: スコープ1 | CN101: スコープ2 | CO101: カテゴリ1 | CP101: カテゴリ2 | CQ101: カテゴリ3 | CR101: カテゴリ4 | CS101: カテゴリ5 | CT101: カテゴリ6 | CU101: カテゴリ7 | CV101: カテゴリ8 | CW101: カテゴリ9 | CX101: カテゴリ10 | CY101: カテゴリ11 | CZ101: カテゴリ12 | DA101: カテゴリ13 | DB101: カテゴリ14 | DC101: カテゴリ15 | DE101: 企業名整理用(1列化) | DF101: 企業名整理用(重複削除)
B102: カテゴリ | C102: サプライチェーン排出量全体 | D102: スコープ1 | E102: スコープ2 | F102: カテゴリ1 | G102: カテゴリ2 | H102: カテゴリ3 | I102: カテゴリ4 | J102: カテゴリ5 | K102: カテゴリ6 | L102: カテゴリ7 | M102: カテゴリ8 | N102: カテゴリ9 | O102: カテゴリ10 | P102: カテゴリ11 | Q102: カテゴリ12 | R102: カテゴリ13 | S102: カテゴリ14 | T102: カテゴリ15 | U102: スコープ3合計 | X102: 合計 / 排出量 [t-CO2] | AA102: 合計 / 排出量 [t-CO2] | AD102: 合計 / 排出量 [t-CO2] | AX102: 合計 / 排出量 [t-CO2] | BA102: 合計 / 排出量 [t-CO2] | BD102: 合計 / 総排出量 [t-CO2] | BG102: 合計 / 排出量 [t-CO2] | BJ102: 合計 / 排出量 [t-CO2] | BM102: 合計 / 排出量 [t-CO2] | BP102: 合計 / 排出量 [t-CO2] | BS102: 合計 / 総排出量 [t-CO2] | BV102: 合計 / 排出量 [t-CO2] | BY102: 合計 / 排出量 [t-CO2] | CB102: 合計 / 排出量 [t-CO2] | CE102: 合計 / 排出量 [t-CO2] | CH102: 合計 / 排出量 [t-CO2] | CK102: 合計 / 排出量 [t-CO2]
B103: =_xlfn.IFS(OR(DF103="総計",DF103=""),"",TRUE,DF103) -> 0 | C103: =IF(B103="","",SUM(D103:T103)) -> 0 | D103: =_xlfn.XLOOKUP($B103,$W$103:$W$1102,$X$103:$X$1102,"",0,1) ->  | E103: =_xlfn.XLOOKUP($B103,$Z$103:$Z$1102,$AA$103:$AA$1102,"",0,1) ->  | F103: =_xlfn.XLOOKUP($B103,$AC$103:$AC$1102,$AD$103:$AD$1102,"",0,1) ->  | G103: =_xlfn.XLOOKUP($B103,$AW$103:$AW$1102,$AX$103:$AX$1102,"",0,1) ->  | H103: =_xlfn.XLOOKUP($B103,$AZ$103:$AZ$1102,$BA$103:$BA$1102,"",0,1) ->  | I103: =_xlfn.XLOOKUP($B103,$BC$103:$BC$1102,$BD$103:$BD$1102,"",0,1) ->  | J103: =_xlfn.XLOOKUP($B103,$BF$103:$BF$1102,$BG$103:$BG$1102,"",0,1) ->  | K103: =_xlfn.XLOOKUP($B103,$BI$103:$BI$1102,$BJ$103:$BJ$1102,"",0,1) ->  | L103: =_xlfn.XLOOKUP($B103,$BL$103:$BL$1102,$BM$103:$BM$1102,"",0,1) ->  | M103: =_xlfn.XLOOKUP($B103,$BO$103:$BO$1102,$BP$103:$BP$1102,"",0,1) ->  | N103: =_xlfn.XLOOKUP($B103,$BR$103:$BR$1102,$BS$103:$BS$1102,"",0,1) ->  | O103: =_xlfn.XLOOKUP($B103,$BU$103:$BU$1102,$BV$103:$BV$1102,"",0,1) ->  | P103: =_xlfn.XLOOKUP($B103,$BX$103:$BX$1102,$BY$103:$BY$1102,"",0,1) ->  | Q103: =_xlfn.XLOOKUP($B103,$CA$103:$CA$1102,$CB$103:$CB$1102,"",0,1) ->  | R103: =_xlfn.XLOOKUP($B103,$CD$103:$CD$1102,$CE$103:$CE$1102,"",0,1) ->  | S103: =_xlfn.XLOOKUP($B103,$CG$103:$CG$1102,$CH$103:$CH$1102,"",0,1) ->  | T103: =_xlfn.XLOOKUP($B103,$CJ$103:$CJ$1102,$CK$103:$CK$1102,"",0,1) ->  | U103: =SUM(F103:T103) -> 0 | W103: Believe T-1 | X103: 64.8 | Z103: Believe T-1 | AA103: 10 | AC103: (空白) | AD103: 0 | AW103: (空白) | AX103: 0 | AZ103: (空白) | BA103: 0 | BC103: (空白) | BD103: 0 | BF103: (空白) | BG103: 0 | BI103: (空白) | BJ103: 0 | BL103: (空白) | BM103: 0 | BO103: (空白) | BP103: 0 | BR103: (空白) | BS103: 0 | BU103: (空白) | BV103: 0 | BX103: (空白) | BY103: 0 | CA103: (空白) | CB103: 0 | CD103: (空白) | CE103: 0 | CG103: (空白) | CH103: 0 | CJ103: (空白) | CK103: 0 | CM103: =W$103:W$602 -> Believe T-1 | CN103: =Z$103:Z$602 -> Believe T-1 | CO103: =AC$103:AC$602 -> (空白) | CP103: =AW$103:AW$602 -> (空白) | CQ103: =AZ$103:AZ$602 -> (空白) | CR103: =BC$103:BC$602 -> (空白) | CS103: =BF$103:BF$602 -> (空白) | CT103: =BI$103:BI$602 -> (空白) | CU103: =BL$103:BL$602 -> (空白) | CV103: =BO$103:BO$602 -> (空白) | CW103: =BR$103:BR$602 -> (空白) | CX103: =BU$103:BU$602 -> (空白) | CY103: =BX$103:BX$602 -> (空白) | CZ103: =CA$103:CA$602 -> (空白) | DA103: =CD$103:CD$602 -> (空白) | DB103: =CG$103:CG$602 -> (空白) | DC103: =CJ$103:CJ$602 -> (空白) | DE103: =INDEX($CM$103:$DC$602,CEILING(_xlfn.SEQUENCE(ROWS($CM$103:$DC$602)*COLUMNS($CM$103:$DC$602))/COLUMNS($CM$103:$DC$602),1),MOD(_xlfn.SEQUENCE(ROWS($CM$103:$DC$602)*COLUMNS($CM$103:$DC$602))-1,COLUMNS($CM$103:$DC$602))+1) -> Believe T-1 | DF103: =_xlfn._xlws.SORT(_xlfn.UNIQUE($DE$103:$DE$17102)) -> 0
B104: =_xlfn.IFS(OR(DF104="総計",DF104=""),"",TRUE,DF104) -> (空白) | C104: =IF(B104="","",SUM(D104:T104)) -> 0 | D104: 0 | E104: 0 | F104: 0 | G104: 0 | H104: 0 | I104: 0 | J104: 0 | K104: 0 | L104: 0 | M104: 0 | N104: 0 | O104: 0 | P104: 0 | Q104: 0 | R104: 0 | S104: 0 | T104: 0 | U104: =SUM(F104:T104) -> 0 | W104: Believe T-2 | X104: 64.8 | Z104: Believe T-2 | AA104: 20 | AC104: 総計 | AD104: 0 | AW104: 総計 | AX104: 0 | AZ104: 総計 | BA104: 0 | BC104: 総計 | BD104: 0 | BF104: 総計 | BG104: 0 | BI104: 総計 | BJ104: 0 | BL104: 総計 | BM104: 0 | BO104: 総計 | BP104: 0 | BR104: 総計 | BS104: 0 | BU104: 総計 | BV104: 0 | BX104: 総計 | BY104: 0 | CA104: 総計 | CB104: 0 | CD104: 総計 | CE104: 0 | CG104: 総計 | CH104: 0 | CJ104: 総計 | CK104: 0 | CM104: Believe T-2 | CN104: Believe T-2 | CO104: 総計 | CP104: 総計 | CQ104: 総計 | CR104: 総計 | CS104: 総計 | CT104: 総計 | CU104: 総計 | CV104: 総計 | CW104: 総計 | CX104: 総計 | CY104: 総計 | CZ104: 総計 | DA104: 総計 | DB104: 総計 | DC104: 総計 | DE104: Believe T-1 | DF104: (空白)
B105: =_xlfn.IFS(OR(DF105="総計",DF105=""),"",TRUE,DF105) -> Believe T-1 | C105: 74.8 | D105: 64.8 | E105: =_xlfn.XLOOKUP($B105,$Z$103:$Z$1102,$AA$103:$AA$1102,"",0,1) -> 10 | U105: =SUM(F105:T105) -> 0 | W105: Believe T-3 | X105: 65.8 | Z105: Believe T-3 | AA105: 20 | CM105: Believe T-3 | CN105: Believe T-3 | CO105: 0 | CP105: 0 | CQ105: 0 | CR105: 0 | CS105: 0 | CT105: 0 | CU105: 0 | CV105: 0 | CW105: 0 | CX105: 0 | CY105: 0 | CZ105: 0 | DA105: 0 | DB105: 0 | DC105: 0 | DE105: (空白) | DF105: Believe T-1
B106: =_xlfn.IFS(OR(DF106="総計",DF106=""),"",TRUE,DF106) -> Believe T-1 MARKET | C106: 239.7 | E106: 239.7 | U106: =SUM(F106:T106) -> 0 | W106: Believe T-4 | X106: 64.8 | Z106: Believe T-4 | AA106: 20 | CM106: Believe T-4 | CN106: Believe T-4 | CO106: 0 | CP106: 0 | CQ106: 0 | CR106: 0 | CS106: 0 | CT106: 0 | CU106: 0 | CV106: 0 | CW106: 0 | CX106: 0 | CY106: 0 | CZ106: 0 | DA106: 0 | DB106: 0 | DC106: 0 | DE106: (空白) | DF106: Believe T-1 MARKET
B107: =_xlfn.IFS(OR(DF107="総計",DF107=""),"",TRUE,DF107) -> Believe T-2 | C107: 84.8 | D107: 64.8 | E107: 20 | U107: 0 | W107: Believe T-5 | X107: 32.4 | Z107: Believe T-5 | AA107: 10 | CM107: Believe T-5 | CN107: Believe T-5 | CO107: 0 | CP107: 0 | CQ107: 0 | CR107: 0 | CS107: 0 | CT107: 0 | CU107: 0 | CV107: 0 | CW107: 0 | CX107: 0 | CY107: 0 | CZ107: 0 | DA107: 0 | DB107: 0 | DC107: 0 | DE107: (空白) | DF107: Believe T-2
B108: =_xlfn.IFS(OR(DF108="総計",DF108=""),"",TRUE,DF108) -> Believe T-2 MARKET | C108: 235 | E108: 235 | U108: 0 | W108: (空白) | X108: 0 | Z108: (空白) | AA108: 0 | CM108: (空白) | CN108: (空白) | CO108: 0 | CP108: 0 | CQ108: 0 | CR108: 0 | CS108: 0 | CT108: 0 | CU108: 0 | CV108: 0 | CW108: 0 | CX108: 0 | CY108: 0 | CZ108: 0 | DA108: 0 | DB108: 0 | DC108: 0 | DE108: (空白) | DF108: Believe T-2 MARKET
B109: =_xlfn.IFS(OR(DF109="総計",DF109=""),"",TRUE,DF109) -> Believe T-3 | C109: 85.8 | D109: 65.8 | E109: 20 | U109: 0 | W109: 総計 | X109: 292.6 | Z109: Believe T-1 MARKET | AA109: 239.7 | CM109: 総計 | CN109: Believe T-1 MARKET | CO109: 0 | CP109: 0 | CQ109: 0 | CR109: 0 | CS109: 0 | CT109: 0 | CU109: 0 | CV109: 0 | CW109: 0 | CX109: 0 | CY109: 0 | CZ109: 0 | DA109: 0 | DB109: 0 | DC109: 0 | DE109: (空白) | DF109: Believe T-3
B110: =_xlfn.IFS(OR(DF110="総計",DF110=""),"",TRUE,DF110) -> Believe T-3 MARKET | C110: 235 | E110: 235 | U110: 0 | Z110: Believe T-2 MARKET | AA110: 235 | CM110: 0 | CN110: Believe T-2 MARKET | CO110: 0 | CP110: 0 | CQ110: 0 | CR110: 0 | CS110: 0 | CT110: 0 | CU110: 0 | CV110: 0 | CW110: 0 | CX110: 0 | CY110: 0 | CZ110: 0 | DA110: 0 | DB110: 0 | DC110: 0 | DE110: (空白) | DF110: Believe T-3 MARKET
B111: =_xlfn.IFS(OR(DF111="総計",DF111=""),"",TRUE,DF111) -> Believe T-4 | C111: 84.8 | D111: 64.8 | E111: 20 | U111: 0 | Z111: Believe T-3 MARKET | AA111: 235 | CM111: 0 | CN111: Believe T-3 MARKET | CO111: 0 | CP111: 0 | CQ111: 0 | CR111: 0 | CS111: 0 | CT111: 0 | CU111: 0 | CV111: 0 | CW111: 0 | CX111: 0 | CY111: 0 | CZ111: 0 | DA111: 0 | DB111: 0 | DC111: 0 | DE111: (空白) | DF111: Believe T-4
B112: =_xlfn.IFS(OR(DF112="総計",DF112=""),"",TRUE,DF112) -> Believe T-4 MARKET | C112: 235 | E112: 235 | U112: 0 | Z112: Believe T-4 MARKET | AA112: 235 | CM112: 0 | CN112: Believe T-4 MARKET | CO112: 0 | CP112: 0 | CQ112: 0 | CR112: 0 | CS112: 0 | CT112: 0 | CU112: 0 | CV112: 0 | CW112: 0 | CX112: 0 | CY112: 0 | CZ112: 0 | DA112: 0 | DB112: 0 | DC112: 0 | DE112: (空白) | DF112: Believe T-4 MARKET
B113: =_xlfn.IFS(OR(DF113="総計",DF113=""),"",TRUE,DF113) -> Believe T-5 | C113: 42.4 | D113: 32.4 | E113: 10 | U113: 0 | Z113: Believe T-5 MARKET | AA113: 235 | CM113: 0 | CN113: Believe T-5 MARKET | CO113: 0 | CP113: 0 | CQ113: 0 | CR113: 0 | CS113: 0 | CT113: 0 | CU113: 0 | CV113: 0 | CW113: 0 | CX113: 0 | CY113: 0 | CZ113: 0 | DA113: 0 | DB113: 0 | DC113: 0 | DE113: (空白) | DF113: Believe T-5
B114: =_xlfn.IFS(OR(DF114="総計",DF114=""),"",TRUE,DF114) -> Believe T-5 MARKET | C114: 235 | E114: 235 | U114: 0 | Z114: 総計 | AA114: 1259.7 | CM114: 0 | CN114: 総計 | CO114: 0 | CP114: 0 | CQ114: 0 | CR114: 0 | CS114: 0 | CT114: 0 | CU114: 0 | CV114: 0 | CW114: 0 | CX114: 0 | CY114: 0 | CZ114: 0 | DA114: 0 | DB114: 0 | DC114: 0 | DE114: (空白) | DF114: Believe T-5 MARKET
B115: =_xlfn.IFS(OR(DF115="総計",DF115=""),"",TRUE,DF115) ->  | U115: 0 | CM115: 0 | CN115: 0 | CO115: 0 | CP115: 0 | CQ115: 0 | CR115: 0 | CS115: 0 | CT115: 0 | CU115: 0 | CV115: 0 | CW115: 0 | CX115: 0 | CY115: 0 | CZ115: 0 | DA115: 0 | DB115: 0 | DC115: 0 | DE115: (空白) | DF115: 総計
B116: =_xlfn.IFS(OR(DF116="総計",DF116=""),"",TRUE,DF116) -> 0 | C116: 0 | U116: 0 | CM116: 0 | CN116: 0 | CO116: 0 | CP116: 0 | CQ116: 0 | CR116: 0 | CS116: 0 | CT116: 0 | CU116: 0 | CV116: 0 | CW116: 0 | CX116: 0 | CY116: 0 | CZ116: 0 | DA116: 0 | DB116: 0 | DC116: 0 | DE116: (空白) | DF116: 0
B117: =_xlfn.IFS(OR(DF117="総計",DF117=""),"",TRUE,DF117) ->  | U117: 0 | CM117: 0 | CN117: 0 | CO117: 0 | CP117: 0 | CQ117: 0 | CR117: 0 | CS117: 0 | CT117: 0 | CU117: 0 | CV117: 0 | CW117: 0 | CX117: 0 | CY117: 0 | CZ117: 0 | DA117: 0 | DB117: 0 | DC117: 0 | DE117: (空白)
B118: =_xlfn.IFS(OR(DF118="総計",DF118=""),"",TRUE,DF118) ->  | U118: 0 | CM118: 0 | CN118: 0 | CO118: 0 | CP118: 0 | CQ118: 0 | CR118: 0 | CS118: 0 | CT118: 0 | CU118: 0 | CV118: 0 | CW118: 0 | CX118: 0 | CY118: 0 | CZ118: 0 | DA118: 0 | DB118: 0 | DC118: 0 | DE118: (空白)
B119: =_xlfn.IFS(OR(DF119="総計",DF119=""),"",TRUE,DF119) ->  | U119: 0 | CM119: 0 | CN119: 0 | CO119: 0 | CP119: 0 | CQ119: 0 | CR119: 0 | CS119: 0 | CT119: 0 | CU119: 0 | CV119: 0 | CW119: 0 | CX119: 0 | CY119: 0 | CZ119: 0 | DA119: 0 | DB119: 0 | DC119: 0 | DE119: (空白)
B120: =_xlfn.IFS(OR(DF120="総計",DF120=""),"",TRUE,DF120) ->  | U120: 0 | CM120: 0 | CN120: 0 | CO120: 0 | CP120: 0 | CQ120: 0 | CR120: 0 | CS120: 0 | CT120: 0 | CU120: 0 | CV120: 0 | CW120: 0 | CX120: 0 | CY120: 0 | CZ120: 0 | DA120: 0 | DB120: 0 | DC120: 0 | DE120: Believe T-2
B121: =_xlfn.IFS(OR(DF121="総計",DF121=""),"",TRUE,DF121) ->  | U121: 0 | CM121: 0 | CN121: 0 | CO121: 0 | CP121: 0 | CQ121: 0 | CR121: 0 | CS121: 0 | CT121: 0 | CU121: 0 | CV121: 0 | CW121: 0 | CX121: 0 | CY121: 0 | CZ121: 0 | DA121: 0 | DB121: 0 | DC121: 0 | DE121: Believe T-2
B122: =_xlfn.IFS(OR(DF122="総計",DF122=""),"",TRUE,DF122) ->  | U122: 0 | CM122: 0 | CN122: 0 | CO122: 0 | CP122: 0 | CQ122: 0 | CR122: 0 | CS122: 0 | CT122: 0 | CU122: 0 | CV122: 0 | CW122: 0 | CX122: 0 | CY122: 0 | CZ122: 0 | DA122: 0 | DB122: 0 | DC122: 0 | DE122: 総計
B123: =_xlfn.IFS(OR(DF123="総計",DF123=""),"",TRUE,DF123) ->  | U123: 0 | CM123: 0 | CN123: 0 | CO123: 0 | CP123: 0 | CQ123: 0 | CR123: 0 | CS123: 0 | CT123: 0 | CU123: 0 | CV123: 0 | CW123: 0 | CX123: 0 | CY123: 0 | CZ123: 0 | DA123: 0 | DB123: 0 | DC123: 0 | DE123: 総計
B124: =_xlfn.IFS(OR(DF124="総計",DF124=""),"",TRUE,DF124) ->  | U124: 0 | CM124: 0 | CN124: 0 | CO124: 0 | CP124: 0 | CQ124: 0 | CR124: 0 | CS124: 0 | CT124: 0 | CU124: 0 | CV124: 0 | CW124: 0 | CX124: 0 | CY124: 0 | CZ124: 0 | DA124: 0 | DB124: 0 | DC124: 0 | DE124: 総計
B125: =_xlfn.IFS(OR(DF125="総計",DF125=""),"",TRUE,DF125) ->  | U125: 0 | CM125: 0 | CN125: 0 | CO125: 0 | CP125: 0 | CQ125: 0 | CR125: 0 | CS125: 0 | CT125: 0 | CU125: 0 | CV125: 0 | CW125: 0 | CX125: 0 | CY125: 0 | CZ125: 0 | DA125: 0 | DB125: 0 | DC125: 0 | DE125: 総計
B126: =_xlfn.IFS(OR(DF126="総計",DF126=""),"",TRUE,DF126) ->  | U126: 0 | CM126: 0 | CN126: 0 | CO126: 0 | CP126: 0 | CQ126: 0 | CR126: 0 | CS126: 0 | CT126: 0 | CU126: 0 | CV126: 0 | CW126: 0 | CX126: 0 | CY126: 0 | CZ126: 0 | DA126: 0 | DB126: 0 | DC126: 0 | DE126: 総計
B127: =_xlfn.IFS(OR(DF127="総計",DF127=""),"",TRUE,DF127) ->  | U127: 0 | CM127: 0 | CN127: 0 | CO127: 0 | CP127: 0 | CQ127: 0 | CR127: 0 | CS127: 0 | CT127: 0 | CU127: 0 | CV127: 0 | CW127: 0 | CX127: 0 | CY127: 0 | CZ127: 0 | DA127: 0 | DB127: 0 | DC127: 0 | DE127: 総計
B128: =_xlfn.IFS(OR(DF128="総計",DF128=""),"",TRUE,DF128) ->  | U128: 0 | CM128: 0 | CN128: 0 | CO128: 0 | CP128: 0 | CQ128: 0 | CR128: 0 | CS128: 0 | CT128: 0 | CU128: 0 | CV128: 0 | CW128: 0 | CX128: 0 | CY128: 0 | CZ128: 0 | DA128: 0 | DB128: 0 | DC128: 0 | DE128: 総計
B129: =_xlfn.IFS(OR(DF129="総計",DF129=""),"",TRUE,DF129) ->  | U129: 0 | CM129: 0 | CN129: 0 | CO129: 0 | CP129: 0 | CQ129: 0 | CR129: 0 | CS129: 0 | CT129: 0 | CU129: 0 | CV129: 0 | CW129: 0 | CX129: 0 | CY129: 0 | CZ129: 0 | DA129: 0 | DB129: 0 | DC129: 0 | DE129: 総計
B130: =_xlfn.IFS(OR(DF130="総計",DF130=""),"",TRUE,DF130) ->  | U130: 0 | CM130: 0 | CN130: 0 | CO130: 0 | CP130: 0 | CQ130: 0 | CR130: 0 | CS130: 0 | CT130: 0 | CU130: 0 | CV130: 0 | CW130: 0 | CX130: 0 | CY130: 0 | CZ130: 0 | DA130: 0 | DB130: 0 | DC130: 0 | DE130: 総計
B131: =_xlfn.IFS(OR(DF131="総計",DF131=""),"",TRUE,DF131) ->  | U131: 0 | CM131: 0 | CN131: 0 | CO131: 0 | CP131: 0 | CQ131: 0 | CR131: 0 | CS131: 0 | CT131: 0 | CU131: 0 | CV131: 0 | CW131: 0 | CX131: 0 | CY131: 0 | CZ131: 0 | DA131: 0 | DB131: 0 | DC131: 0 | DE131: 総計
B132: =_xlfn.IFS(OR(DF132="総計",DF132=""),"",TRUE,DF132) ->  | U132: 0 | CM132: 0 | CN132: 0 | CO132: 0 | CP132: 0 | CQ132: 0 | CR132: 0 | CS132: 0 | CT132: 0 | CU132: 0 | CV132: 0 | CW132: 0 | CX132: 0 | CY132: 0 | CZ132: 0 | DA132: 0 | DB132: 0 | DC132: 0 | DE132: 総計
B133: =_xlfn.IFS(OR(DF133="総計",DF133=""),"",TRUE,DF133) ->  | U133: 0 | CM133: 0 | CN133: 0 | CO133: 0 | CP133: 0 | CQ133: 0 | CR133: 0 | CS133: 0 | CT133: 0 | CU133: 0 | CV133: 0 | CW133: 0 | CX133: 0 | CY133: 0 | CZ133: 0 | DA133: 0 | DB133: 0 | DC133: 0 | DE133: 総計
B134: =_xlfn.IFS(OR(DF134="総計",DF134=""),"",TRUE,DF134) ->  | U134: 0 | CM134: 0 | CN134: 0 | CO134: 0 | CP134: 0 | CQ134: 0 | CR134: 0 | CS134: 0 | CT134: 0 | CU134: 0 | CV134: 0 | CW134: 0 | CX134: 0 | CY134: 0 | CZ134: 0 | DA134: 0 | DB134: 0 | DC134: 0 | DE134: 総計
B135: =_xlfn.IFS(OR(DF135="総計",DF135=""),"",TRUE,DF135) ->  | U135: 0 | CM135: 0 | CN135: 0 | CO135: 0 | CP135: 0 | CQ135: 0 | CR135: 0 | CS135: 0 | CT135: 0 | CU135: 0 | CV135: 0 | CW135: 0 | CX135: 0 | CY135: 0 | CZ135: 0 | DA135: 0 | DB135: 0 | DC135: 0 | DE135: 総計
B136: =_xlfn.IFS(OR(DF136="総計",DF136=""),"",TRUE,DF136) ->  | U136: 0 | CM136: 0 | CN136: 0 | CO136: 0 | CP136: 0 | CQ136: 0 | CR136: 0 | CS136: 0 | CT136: 0 | CU136: 0 | CV136: 0 | CW136: 0 | CX136: 0 | CY136: 0 | CZ136: 0 | DA136: 0 | DB136: 0 | DC136: 0 | DE136: 総計
B137: =_xlfn.IFS(OR(DF137="総計",DF137=""),"",TRUE,DF137) ->  | U137: 0 | CM137: 0 | CN137: 0 | CO137: 0 | CP137: 0 | CQ137: 0 | CR137: 0 | CS137: 0 | CT137: 0 | CU137: 0 | CV137: 0 | CW137: 0 | CX137: 0 | CY137: 0 | CZ137: 0 | DA137: 0 | DB137: 0 | DC137: 0 | DE137: Believe T-3
B138: =_xlfn.IFS(OR(DF138="総計",DF138=""),"",TRUE,DF138) ->  | U138: 0 | CM138: 0 | CN138: 0 | CO138: 0 | CP138: 0 | CQ138: 0 | CR138: 0 | CS138: 0 | CT138: 0 | CU138: 0 | CV138: 0 | CW138: 0 | CX138: 0 | CY138: 0 | CZ138: 0 | DA138: 0 | DB138: 0 | DC138: 0 | DE138: Believe T-3
B139: =_xlfn.IFS(OR(DF139="総計",DF139=""),"",TRUE,DF139) ->  | U139: 0 | CM139: 0 | CN139: 0 | CO139: 0 | CP139: 0 | CQ139: 0 | CR139: 0 | CS139: 0 | CT139: 0 | CU139: 0 | CV139: 0 | CW139: 0 | CX139: 0 | CY139: 0 | CZ139: 0 | DA139: 0 | DB139: 0 | DC139: 0 | DE139: 0
B140: =_xlfn.IFS(OR(DF140="総計",DF140=""),"",TRUE,DF140) ->  | U140: 0 | CM140: 0 | CN140: 0 | CO140: 0 | CP140: 0 | CQ140: 0 | CR140: 0 | CS140: 0 | CT140: 0 | CU140: 0 | CV140: 0 | CW140: 0 | CX140: 0 | CY140: 0 | CZ140: 0 | DA140: 0 | DB140: 0 | DC140: 0 | DE140: 0
B141: =_xlfn.IFS(OR(DF141="総計",DF141=""),"",TRUE,DF141) ->  | U141: 0 | CM141: 0 | CN141: 0 | CO141: 0 | CP141: 0 | CQ141: 0 | CR141: 0 | CS141: 0 | CT141: 0 | CU141: 0 | CV141: 0 | CW141: 0 | CX141: 0 | CY141: 0 | CZ141: 0 | DA141: 0 | DB141: 0 | DC141: 0 | DE141: 0
B142: =_xlfn.IFS(OR(DF142="総計",DF142=""),"",TRUE,DF142) ->  | U142: 0 | CM142: 0 | CN142: 0 | CO142: 0 | CP142: 0 | CQ142: 0 | CR142: 0 | CS142: 0 | CT142: 0 | CU142: 0 | CV142: 0 | CW142: 0 | CX142: 0 | CY142: 0 | CZ142: 0 | DA142: 0 | DB142: 0 | DC142: 0 | DE142: 0
B143: =_xlfn.IFS(OR(DF143="総計",DF143=""),"",TRUE,DF143) ->  | U143: 0 | CM143: 0 | CN143: 0 | CO143: 0 | CP143: 0 | CQ143: 0 | CR143: 0 | CS143: 0 | CT143: 0 | CU143: 0 | CV143: 0 | CW143: 0 | CX143: 0 | CY143: 0 | CZ143: 0 | DA143: 0 | DB143: 0 | DC143: 0 | DE143: 0
B144: =_xlfn.IFS(OR(DF144="総計",DF144=""),"",TRUE,DF144) ->  | U144: 0 | CM144: 0 | CN144: 0 | CO144: 0 | CP144: 0 | CQ144: 0 | CR144: 0 | CS144: 0 | CT144: 0 | CU144: 0 | CV144: 0 | CW144: 0 | CX144: 0 | CY144: 0 | CZ144: 0 | DA144: 0 | DB144: 0 | DC144: 0 | DE144: 0
B145: =_xlfn.IFS(OR(DF145="総計",DF145=""),"",TRUE,DF145) ->  | U145: 0 | CM145: 0 | CN145: 0 | CO145: 0 | CP145: 0 | CQ145: 0 | CR145: 0 | CS145: 0 | CT145: 0 | CU145: 0 | CV145: 0 | CW145: 0 | CX145: 0 | CY145: 0 | CZ145: 0 | DA145: 0 | DB145: 0 | DC145: 0 | DE145: 0
B146: =_xlfn.IFS(OR(DF146="総計",DF146=""),"",TRUE,DF146) ->  | U146: 0 | CM146: 0 | CN146: 0 | CO146: 0 | CP146: 0 | CQ146: 0 | CR146: 0 | CS146: 0 | CT146: 0 | CU146: 0 | CV146: 0 | CW146: 0 | CX146: 0 | CY146: 0 | CZ146: 0 | DA146: 0 | DB146: 0 | DC146: 0 | DE146: 0
B147: =_xlfn.IFS(OR(DF147="総計",DF147=""),"",TRUE,DF147) ->  | U147: 0 | CM147: 0 | CN147: 0 | CO147: 0 | CP147: 0 | CQ147: 0 | CR147: 0 | CS147: 0 | CT147: 0 | CU147: 0 | CV147: 0 | CW147: 0 | CX147: 0 | CY147: 0 | CZ147: 0 | DA147: 0 | DB147: 0 | DC147: 0 | DE147: 0
B148: =_xlfn.IFS(OR(DF148="総計",DF148=""),"",TRUE,DF148) ->  | U148: 0 | CM148: 0 | CN148: 0 | CO148: 0 | CP148: 0 | CQ148: 0 | CR148: 0 | CS148: 0 | CT148: 0 | CU148: 0 | CV148: 0 | CW148: 0 | CX148: 0 | CY148: 0 | CZ148: 0 | DA148: 0 | DB148: 0 | DC148: 0 | DE148: 0
B149: =_xlfn.IFS(OR(DF149="総計",DF149=""),"",TRUE,DF149) ->  | U149: 0 | CM149: 0 | CN149: 0 | CO149: 0 | CP149: 0 | CQ149: 0 | CR149: 0 | CS149: 0 | CT149: 0 | CU149: 0 | CV149: 0 | CW149: 0 | CX149: 0 | CY149: 0 | CZ149: 0 | DA149: 0 | DB149: 0 | DC149: 0 | DE149: 0
B150: =_xlfn.IFS(OR(DF150="総計",DF150=""),"",TRUE,DF150) ->  | U150: 0 | CM150: 0 | CN150: 0 | CO150: 0 | CP150: 0 | CQ150: 0 | CR150: 0 | CS150: 0 | CT150: 0 | CU150: 0 | CV150: 0 | CW150: 0 | CX150: 0 | CY150: 0 | CZ150: 0 | DA150: 0 | DB150: 0 | DC150: 0 | DE150: 0
B151: =_xlfn.IFS(OR(DF151="総計",DF151=""),"",TRUE,DF151) ->  | U151: 0 | CM151: 0 | CN151: 0 | CO151: 0 | CP151: 0 | CQ151: 0 | CR151: 0 | CS151: 0 | CT151: 0 | CU151: 0 | CV151: 0 | CW151: 0 | CX151: 0 | CY151: 0 | CZ151: 0 | DA151: 0 | DB151: 0 | DC151: 0 | DE151: 0
B152: =_xlfn.IFS(OR(DF152="総計",DF152=""),"",TRUE,DF152) ->  | U152: 0 | CM152: 0 | CN152: 0 | CO152: 0 | CP152: 0 | CQ152: 0 | CR152: 0 | CS152: 0 | CT152: 0 | CU152: 0 | CV152: 0 | CW152: 0 | CX152: 0 | CY152: 0 | CZ152: 0 | DA152: 0 | DB152: 0 | DC152: 0 | DE152: 0
B153: =_xlfn.IFS(OR(DF153="総計",DF153=""),"",TRUE,DF153) ->  | U153: 0 | CM153: 0 | CN153: 0 | CO153: 0 | CP153: 0 | CQ153: 0 | CR153: 0 | CS153: 0 | CT153: 0 | CU153: 0 | CV153: 0 | CW153: 0 | CX153: 0 | CY153: 0 | CZ153: 0 | DA153: 0 | DB153: 0 | DC153: 0 | DE153: 0
B154: =_xlfn.IFS(OR(DF154="総計",DF154=""),"",TRUE,DF154) ->  | U154: 0 | CM154: 0 | CN154: 0 | CO154: 0 | CP154: 0 | CQ154: 0 | CR154: 0 | CS154: 0 | CT154: 0 | CU154: 0 | CV154: 0 | CW154: 0 | CX154: 0 | CY154: 0 | CZ154: 0 | DA154: 0 | DB154: 0 | DC154: 0 | DE154: Believe T-4
B155: =_xlfn.IFS(OR(DF155="総計",DF155=""),"",TRUE,DF155) ->  | U155: 0 | CM155: 0 | CN155: 0 | CO155: 0 | CP155: 0 | CQ155: 0 | CR155: 0 | CS155: 0 | CT155: 0 | CU155: 0 | CV155: 0 | CW155: 0 | CX155: 0 | CY155: 0 | CZ155: 0 | DA155: 0 | DB155: 0 | DC155: 0 | DE155: Believe T-4
B156: =_xlfn.IFS(OR(DF156="総計",DF156=""),"",TRUE,DF156) ->  | U156: 0 | CM156: 0 | CN156: 0 | CO156: 0 | CP156: 0 | CQ156: 0 | CR156: 0 | CS156: 0 | CT156: 0 | CU156: 0 | CV156: 0 | CW156: 0 | CX156: 0 | CY156: 0 | CZ156: 0 | DA156: 0 | DB156: 0 | DC156: 0 | DE156: 0
B157: =_xlfn.IFS(OR(DF157="総計",DF157=""),"",TRUE,DF157) ->  | U157: 0 | CM157: 0 | CN157: 0 | CO157: 0 | CP157: 0 | CQ157: 0 | CR157: 0 | CS157: 0 | CT157: 0 | CU157: 0 | CV157: 0 | CW157: 0 | CX157: 0 | CY157: 0 | CZ157: 0 | DA157: 0 | DB157: 0 | DC157: 0 | DE157: 0
B158: =_xlfn.IFS(OR(DF158="総計",DF158=""),"",TRUE,DF158) ->  | U158: 0 | CM158: 0 | CN158: 0 | CO158: 0 | CP158: 0 | CQ158: 0 | CR158: 0 | CS158: 0 | CT158: 0 | CU158: 0 | CV158: 0 | CW158: 0 | CX158: 0 | CY158: 0 | CZ158: 0 | DA158: 0 | DB158: 0 | DC158: 0 | DE158: 0
B159: =_xlfn.IFS(OR(DF159="総計",DF159=""),"",TRUE,DF159) ->  | U159: 0 | CM159: 0 | CN159: 0 | CO159: 0 | CP159: 0 | CQ159: 0 | CR159: 0 | CS159: 0 | CT159: 0 | CU159: 0 | CV159: 0 | CW159: 0 | CX159: 0 | CY159: 0 | CZ159: 0 | DA159: 0 | DB159: 0 | DC159: 0 | DE159: 0
B160: =_xlfn.IFS(OR(DF160="総計",DF160=""),"",TRUE,DF160) ->  | U160: 0 | CM160: 0 | CN160: 0 | CO160: 0 | CP160: 0 | CQ160: 0 | CR160: 0 | CS160: 0 | CT160: 0 | CU160: 0 | CV160: 0 | CW160: 0 | CX160: 0 | CY160: 0 | CZ160: 0 | DA160: 0 | DB160: 0 | DC160: 0 | DE160: 0
B161: =_xlfn.IFS(OR(DF161="総計",DF161=""),"",TRUE,DF161) ->  | U161: 0 | CM161: 0 | CN161: 0 | CO161: 0 | CP161: 0 | CQ161: 0 | CR161: 0 | CS161: 0 | CT161: 0 | CU161: 0 | CV161: 0 | CW161: 0 | CX161: 0 | CY161: 0 | CZ161: 0 | DA161: 0 | DB161: 0 | DC161: 0 | DE161: 0
B162: =_xlfn.IFS(OR(DF162="総計",DF162=""),"",TRUE,DF162) ->  | U162: 0 | CM162: 0 | CN162: 0 | CO162: 0 | CP162: 0 | CQ162: 0 | CR162: 0 | CS162: 0 | CT162: 0 | CU162: 0 | CV162: 0 | CW162: 0 | CX162: 0 | CY162: 0 | CZ162: 0 | DA162: 0 | DB162: 0 | DC162: 0 | DE162: 0
B163: =_xlfn.IFS(OR(DF163="総計",DF163=""),"",TRUE,DF163) ->  | U163: 0 | CM163: 0 | CN163: 0 | CO163: 0 | CP163: 0 | CQ163: 0 | CR163: 0 | CS163: 0 | CT163: 0 | CU163: 0 | CV163: 0 | CW163: 0 | CX163: 0 | CY163: 0 | CZ163: 0 | DA163: 0 | DB163: 0 | DC163: 0 | DE163: 0
B164: =_xlfn.IFS(OR(DF164="総計",DF164=""),"",TRUE,DF164) ->  | U164: 0 | CM164: 0 | CN164: 0 | CO164: 0 | CP164: 0 | CQ164: 0 | CR164: 0 | CS164: 0 | CT164: 0 | CU164: 0 | CV164: 0 | CW164: 0 | CX164: 0 | CY164: 0 | CZ164: 0 | DA164: 0 | DB164: 0 | DC164: 0 | DE164: 0
B165: =_xlfn.IFS(OR(DF165="総計",DF165=""),"",TRUE,DF165) ->  | U165: 0 | CM165: 0 | CN165: 0 | CO165: 0 | CP165: 0 | CQ165: 0 | CR165: 0 | CS165: 0 | CT165: 0 | CU165: 0 | CV165: 0 | CW165: 0 | CX165: 0 | CY165: 0 | CZ165: 0 | DA165: 0 | DB165: 0 | DC165: 0 | DE165: 0
B166: =_xlfn.IFS(OR(DF166="総計",DF166=""),"",TRUE,DF166) ->  | U166: 0 | CM166: 0 | CN166: 0 | CO166: 0 | CP166: 0 | CQ166: 0 | CR166: 0 | CS166: 0 | CT166: 0 | CU166: 0 | CV166: 0 | CW166: 0 | CX166: 0 | CY166: 0 | CZ166: 0 | DA166: 0 | DB166: 0 | DC166: 0 | DE166: 0
B167: =_xlfn.IFS(OR(DF167="総計",DF167=""),"",TRUE,DF167) ->  | D167: =_xlfn.XLOOKUP($B167,$W$103:$W$1102,$X$103:$X$1102,"",0,1) ->  | E167: =_xlfn.XLOOKUP($B167,$Z$103:$Z$1102,$AA$103:$AA$1102,"",0,1) ->  | F167: =_xlfn.XLOOKUP($B167,$AC$103:$AC$1102,$AD$103:$AD$1102,"",0,1) ->  | G167: =_xlfn.XLOOKUP($B167,$AW$103:$AW$1102,$AX$103:$AX$1102,"",0,1) ->  | H167: =_xlfn.XLOOKUP($B167,$AZ$103:$AZ$1102,$BA$103:$BA$1102,"",0,1) ->  | I167: =_xlfn.XLOOKUP($B167,$BC$103:$BC$1102,$BD$103:$BD$1102,"",0,1) ->  | J167: =_xlfn.XLOOKUP($B167,$BF$103:$BF$1102,$BG$103:$BG$1102,"",0,1) ->  | K167: =_xlfn.XLOOKUP($B167,$BI$103:$BI$1102,$BJ$103:$BJ$1102,"",0,1) ->  | L167: =_xlfn.XLOOKUP($B167,$BL$103:$BL$1102,$BM$103:$BM$1102,"",0,1) ->  | M167: =_xlfn.XLOOKUP($B167,$BO$103:$BO$1102,$BP$103:$BP$1102,"",0,1) ->  | N167: =_xlfn.XLOOKUP($B167,$BR$103:$BR$1102,$BS$103:$BS$1102,"",0,1) ->  | O167: =_xlfn.XLOOKUP($B167,$BU$103:$BU$1102,$BV$103:$BV$1102,"",0,1) ->  | P167: =_xlfn.XLOOKUP($B167,$BX$103:$BX$1102,$BY$103:$BY$1102,"",0,1) ->  | Q167: =_xlfn.XLOOKUP($B167,$CA$103:$CA$1102,$CB$103:$CB$1102,"",0,1) ->  | R167: =_xlfn.XLOOKUP($B167,$CD$103:$CD$1102,$CE$103:$CE$1102,"",0,1) ->  | S167: =_xlfn.XLOOKUP($B167,$CG$103:$CG$1102,$CH$103:$CH$1102,"",0,1) ->  | T167: =_xlfn.XLOOKUP($B167,$CJ$103:$CJ$1102,$CK$103:$CK$1102,"",0,1) ->  | U167: 0 | CM167: 0 | CN167: 0 | CO167: 0 | CP167: 0 | CQ167: 0 | CR167: 0 | CS167: 0 | CT167: 0 | CU167: 0 | CV167: 0 | CW167: 0 | CX167: 0 | CY167: 0 | CZ167: 0 | DA167: 0 | DB167: 0 | DC167: 0 | DE167: 0
B168: =_xlfn.IFS(OR(DF168="総計",DF168=""),"",TRUE,DF168) ->  | C168: =IF(B168="","",SUM(D168:T168)) ->  | U168: 0 | CM168: 0 | CN168: 0 | CO168: 0 | CP168: 0 | CQ168: 0 | CR168: 0 | CS168: 0 | CT168: 0 | CU168: 0 | CV168: 0 | CW168: 0 | CX168: 0 | CY168: 0 | CZ168: 0 | DA168: 0 | DB168: 0 | DC168: 0 | DE168: 0
B169: =_xlfn.IFS(OR(DF169="総計",DF169=""),"",TRUE,DF169) ->  | U169: 0 | CM169: 0 | CN169: 0 | CO169: 0 | CP169: 0 | CQ169: 0 | CR169: 0 | CS169: 0 | CT169: 0 | CU169: 0 | CV169: 0 | CW169: 0 | CX169: 0 | CY169: 0 | CZ169: 0 | DA169: 0 | DB169: 0 | DC169: 0 | DE169: 0
B170: =_xlfn.IFS(OR(DF170="総計",DF170=""),"",TRUE,DF170) ->  | U170: =SUM(F170:T170) -> 0 | CM170: 0 | CN170: 0 | CO170: 0 | CP170: 0 | CQ170: 0 | CR170: 0 | CS170: 0 | CT170: 0 | CU170: 0 | CV170: 0 | CW170: 0 | CX170: 0 | CY170: 0 | CZ170: 0 | DA170: 0 | DB170: 0 | DC170: 0 | DE170: 0
B171: =_xlfn.IFS(OR(DF171="総計",DF171=""),"",TRUE,DF171) ->  | U171: 0 | CM171: 0 | CN171: 0 | CO171: 0 | CP171: 0 | CQ171: 0 | CR171: 0 | CS171: 0 | CT171: 0 | CU171: 0 | CV171: 0 | CW171: 0 | CX171: 0 | CY171: 0 | CZ171: 0 | DA171: 0 | DB171: 0 | DC171: 0 | DE171: Believe T-5
B172: =_xlfn.IFS(OR(DF172="総計",DF172=""),"",TRUE,DF172) ->  | U172: 0 | CM172: 0 | CN172: 0 | CO172: 0 | CP172: 0 | CQ172: 0 | CR172: 0 | CS172: 0 | CT172: 0 | CU172: 0 | CV172: 0 | CW172: 0 | CX172: 0 | CY172: 0 | CZ172: 0 | DA172: 0 | DB172: 0 | DC172: 0 | DE172: Believe T-5
B173: =_xlfn.IFS(OR(DF173="総計",DF173=""),"",TRUE,DF173) ->  | U173: 0 | CM173: 0 | CN173: 0 | CO173: 0 | CP173: 0 | CQ173: 0 | CR173: 0 | CS173: 0 | CT173: 0 | CU173: 0 | CV173: 0 | CW173: 0 | CX173: 0 | CY173: 0 | CZ173: 0 | DA173: 0 | DB173: 0 | DC173: 0 | DE173: 0
B174: =_xlfn.IFS(OR(DF174="総計",DF174=""),"",TRUE,DF174) ->  | U174: 0 | CM174: 0 | CN174: 0 | CO174: 0 | CP174: 0 | CQ174: 0 | CR174: 0 | CS174: 0 | CT174: 0 | CU174: 0 | CV174: 0 | CW174: 0 | CX174: 0 | CY174: 0 | CZ174: 0 | DA174: 0 | DB174: 0 | DC174: 0 | DE174: 0
B175: =_xlfn.IFS(OR(DF175="総計",DF175=""),"",TRUE,DF175) ->  | U175: 0 | CM175: 0 | CN175: 0 | CO175: 0 | CP175: 0 | CQ175: 0 | CR175: 0 | CS175: 0 | CT175: 0 | CU175: 0 | CV175: 0 | CW175: 0 | CX175: 0 | CY175: 0 | CZ175: 0 | DA175: 0 | DB175: 0 | DC175: 0 | DE175: 0
B176: =_xlfn.IFS(OR(DF176="総計",DF176=""),"",TRUE,DF176) ->  | U176: 0 | CM176: 0 | CN176: 0 | CO176: 0 | CP176: 0 | CQ176: 0 | CR176: 0 | CS176: 0 | CT176: 0 | CU176: 0 | CV176: 0 | CW176: 0 | CX176: 0 | CY176: 0 | CZ176: 0 | DA176: 0 | DB176: 0 | DC176: 0 | DE176: 0
B177: =_xlfn.IFS(OR(DF177="総計",DF177=""),"",TRUE,DF177) ->  | U177: 0 | CM177: 0 | CN177: 0 | CO177: 0 | CP177: 0 | CQ177: 0 | CR177: 0 | CS177: 0 | CT177: 0 | CU177: 0 | CV177: 0 | CW177: 0 | CX177: 0 | CY177: 0 | CZ177: 0 | DA177: 0 | DB177: 0 | DC177: 0 | DE177: 0
B178: =_xlfn.IFS(OR(DF178="総計",DF178=""),"",TRUE,DF178) ->  | U178: 0 | CM178: 0 | CN178: 0 | CO178: 0 | CP178: 0 | CQ178: 0 | CR178: 0 | CS178: 0 | CT178: 0 | CU178: 0 | CV178: 0 | CW178: 0 | CX178: 0 | CY178: 0 | CZ178: 0 | DA178: 0 | DB178: 0 | DC178: 0 | DE178: 0
B179: =_xlfn.IFS(OR(DF179="総計",DF179=""),"",TRUE,DF179) ->  | U179: 0 | CM179: 0 | CN179: 0 | CO179: 0 | CP179: 0 | CQ179: 0 | CR179: 0 | CS179: 0 | CT179: 0 | CU179: 0 | CV179: 0 | CW179: 0 | CX179: 0 | CY179: 0 | CZ179: 0 | DA179: 0 | DB179: 0 | DC179: 0 | DE179: 0
B180: =_xlfn.IFS(OR(DF180="総計",DF180=""),"",TRUE,DF180) ->  | U180: 0 | CM180: 0 | CN180: 0 | CO180: 0 | CP180: 0 | CQ180: 0 | CR180: 0 | CS180: 0 | CT180: 0 | CU180: 0 | CV180: 0 | CW180: 0 | CX180: 0 | CY180: 0 | CZ180: 0 | DA180: 0 | DB180: 0 | DC180: 0 | DE180: 0
B181: =_xlfn.IFS(OR(DF181="総計",DF181=""),"",TRUE,DF181) ->  | U181: 0 | CM181: 0 | CN181: 0 | CO181: 0 | CP181: 0 | CQ181: 0 | CR181: 0 | CS181: 0 | CT181: 0 | CU181: 0 | CV181: 0 | CW181: 0 | CX181: 0 | CY181: 0 | CZ181: 0 | DA181: 0 | DB181: 0 | DC181: 0 | DE181: 0
B182: =_xlfn.IFS(OR(DF182="総計",DF182=""),"",TRUE,DF182) ->  | U182: 0 | CM182: 0 | CN182: 0 | CO182: 0 | CP182: 0 | CQ182: 0 | CR182: 0 | CS182: 0 | CT182: 0 | CU182: 0 | CV182: 0 | CW182: 0 | CX182: 0 | CY182: 0 | CZ182: 0 | DA182: 0 | DB182: 0 | DC182: 0 | DE182: 0
B183: =_xlfn.IFS(OR(DF183="総計",DF183=""),"",TRUE,DF183) ->  | U183: 0 | CM183: 0 | CN183: 0 | CO183: 0 | CP183: 0 | CQ183: 0 | CR183: 0 | CS183: 0 | CT183: 0 | CU183: 0 | CV183: 0 | CW183: 0 | CX183: 0 | CY183: 0 | CZ183: 0 | DA183: 0 | DB183: 0 | DC183: 0 | DE183: 0
B184: =_xlfn.IFS(OR(DF184="総計",DF184=""),"",TRUE,DF184) ->  | U184: 0 | CM184: 0 | CN184: 0 | CO184: 0 | CP184: 0 | CQ184: 0 | CR184: 0 | CS184: 0 | CT184: 0 | CU184: 0 | CV184: 0 | CW184: 0 | CX184: 0 | CY184: 0 | CZ184: 0 | DA184: 0 | DB184: 0 | DC184: 0 | DE184: 0
B185: =_xlfn.IFS(OR(DF185="総計",DF185=""),"",TRUE,DF185) ->  | U185: 0 | CM185: 0 | CN185: 0 | CO185: 0 | CP185: 0 | CQ185: 0 | CR185: 0 | CS185: 0 | CT185: 0 | CU185: 0 | CV185: 0 | CW185: 0 | CX185: 0 | CY185: 0 | CZ185: 0 | DA185: 0 | DB185: 0 | DC185: 0 | DE185: 0
B186: =_xlfn.IFS(OR(DF186="総計",DF186=""),"",TRUE,DF186) ->  | U186: 0 | CM186: 0 | CN186: 0 | CO186: 0 | CP186: 0 | CQ186: 0 | CR186: 0 | CS186: 0 | CT186: 0 | CU186: 0 | CV186: 0 | CW186: 0 | CX186: 0 | CY186: 0 | CZ186: 0 | DA186: 0 | DB186: 0 | DC186: 0 | DE186: 0
B187: =_xlfn.IFS(OR(DF187="総計",DF187=""),"",TRUE,DF187) ->  | U187: 0 | CM187: 0 | CN187: 0 | CO187: 0 | CP187: 0 | CQ187: 0 | CR187: 0 | CS187: 0 | CT187: 0 | CU187: 0 | CV187: 0 | CW187: 0 | CX187: 0 | CY187: 0 | CZ187: 0 | DA187: 0 | DB187: 0 | DC187: 0 | DE187: 0
B188: =_xlfn.IFS(OR(DF188="総計",DF188=""),"",TRUE,DF188) ->  | U188: 0 | CM188: 0 | CN188: 0 | CO188: 0 | CP188: 0 | CQ188: 0 | CR188: 0 | CS188: 0 | CT188: 0 | CU188: 0 | CV188: 0 | CW188: 0 | CX188: 0 | CY188: 0 | CZ188: 0 | DA188: 0 | DB188: 0 | DC188: 0 | DE188: (空白)
B189: =_xlfn.IFS(OR(DF189="総計",DF189=""),"",TRUE,DF189) ->  | U189: 0 | CM189: 0 | CN189: 0 | CO189: 0 | CP189: 0 | CQ189: 0 | CR189: 0 | CS189: 0 | CT189: 0 | CU189: 0 | CV189: 0 | CW189: 0 | CX189: 0 | CY189: 0 | CZ189: 0 | DA189: 0 | DB189: 0 | DC189: 0 | DE189: (空白)
B190: =_xlfn.IFS(OR(DF190="総計",DF190=""),"",TRUE,DF190) ->  | U190: 0 | CM190: 0 | CN190: 0 | CO190: 0 | CP190: 0 | CQ190: 0 | CR190: 0 | CS190: 0 | CT190: 0 | CU190: 0 | CV190: 0 | CW190: 0 | CX190: 0 | CY190: 0 | CZ190: 0 | DA190: 0 | DB190: 0 | DC190: 0 | DE190: 0
B191: =_xlfn.IFS(OR(DF191="総計",DF191=""),"",TRUE,DF191) ->  | U191: 0 | CM191: 0 | CN191: 0 | CO191: 0 | CP191: 0 | CQ191: 0 | CR191: 0 | CS191: 0 | CT191: 0 | CU191: 0 | CV191: 0 | CW191: 0 | CX191: 0 | CY191: 0 | CZ191: 0 | DA191: 0 | DB191: 0 | DC191: 0 | DE191: 0
B192: =_xlfn.IFS(OR(DF192="総計",DF192=""),"",TRUE,DF192) ->  | U192: 0 | CM192: 0 | CN192: 0 | CO192: 0 | CP192: 0 | CQ192: 0 | CR192: 0 | CS192: 0 | CT192: 0 | CU192: 0 | CV192: 0 | CW192: 0 | CX192: 0 | CY192: 0 | CZ192: 0 | DA192: 0 | DB192: 0 | DC192: 0 | DE192: 0
B193: =_xlfn.IFS(OR(DF193="総計",DF193=""),"",TRUE,DF193) ->  | U193: 0 | CM193: 0 | CN193: 0 | CO193: 0 | CP193: 0 | CQ193: 0 | CR193: 0 | CS193: 0 | CT193: 0 | CU193: 0 | CV193: 0 | CW193: 0 | CX193: 0 | CY193: 0 | CZ193: 0 | DA193: 0 | DB193: 0 | DC193: 0 | DE193: 0
B194: =_xlfn.IFS(OR(DF194="総計",DF194=""),"",TRUE,DF194) ->  | U194: 0 | CM194: 0 | CN194: 0 | CO194: 0 | CP194: 0 | CQ194: 0 | CR194: 0 | CS194: 0 | CT194: 0 | CU194: 0 | CV194: 0 | CW194: 0 | CX194: 0 | CY194: 0 | CZ194: 0 | DA194: 0 | DB194: 0 | DC194: 0 | DE194: 0
B195: =_xlfn.IFS(OR(DF195="総計",DF195=""),"",TRUE,DF195) ->  | U195: 0 | CM195: 0 | CN195: 0 | CO195: 0 | CP195: 0 | CQ195: 0 | CR195: 0 | CS195: 0 | CT195: 0 | CU195: 0 | CV195: 0 | CW195: 0 | CX195: 0 | CY195: 0 | CZ195: 0 | DA195: 0 | DB195: 0 | DC195: 0 | DE195: 0
B196: =_xlfn.IFS(OR(DF196="総計",DF196=""),"",TRUE,DF196) ->  | U196: 0 | CM196: 0 | CN196: 0 | CO196: 0 | CP196: 0 | CQ196: 0 | CR196: 0 | CS196: 0 | CT196: 0 | CU196: 0 | CV196: 0 | CW196: 0 | CX196: 0 | CY196: 0 | CZ196: 0 | DA196: 0 | DB196: 0 | DC196: 0 | DE196: 0
B197: =_xlfn.IFS(OR(DF197="総計",DF197=""),"",TRUE,DF197) ->  | U197: 0 | CM197: 0 | CN197: 0 | CO197: 0 | CP197: 0 | CQ197: 0 | CR197: 0 | CS197: 0 | CT197: 0 | CU197: 0 | CV197: 0 | CW197: 0 | CX197: 0 | CY197: 0 | CZ197: 0 | DA197: 0 | DB197: 0 | DC197: 0 | DE197: 0
B198: =_xlfn.IFS(OR(DF198="総計",DF198=""),"",TRUE,DF198) ->  | U198: 0 | CM198: 0 | CN198: 0 | CO198: 0 | CP198: 0 | CQ198: 0 | CR198: 0 | CS198: 0 | CT198: 0 | CU198: 0 | CV198: 0 | CW198: 0 | CX198: 0 | CY198: 0 | CZ198: 0 | DA198: 0 | DB198: 0 | DC198: 0 | DE198: 0
B199: =_xlfn.IFS(OR(DF199="総計",DF199=""),"",TRUE,DF199) ->  | U199: 0 | CM199: 0 | CN199: 0 | CO199: 0 | CP199: 0 | CQ199: 0 | CR199: 0 | CS199: 0 | CT199: 0 | CU199: 0 | CV199: 0 | CW199: 0 | CX199: 0 | CY199: 0 | CZ199: 0 | DA199: 0 | DB199: 0 | DC199: 0 | DE199: 0
B200: =_xlfn.IFS(OR(DF200="総計",DF200=""),"",TRUE,DF200) ->  | U200: 0 | CM200: 0 | CN200: 0 | CO200: 0 | CP200: 0 | CQ200: 0 | CR200: 0 | CS200: 0 | CT200: 0 | CU200: 0 | CV200: 0 | CW200: 0 | CX200: 0 | CY200: 0 | CZ200: 0 | DA200: 0 | DB200: 0 | DC200: 0 | DE200: 0
B201: =_xlfn.IFS(OR(DF201="総計",DF201=""),"",TRUE,DF201) ->  | U201: 0 | CM201: 0 | CN201: 0 | CO201: 0 | CP201: 0 | CQ201: 0 | CR201: 0 | CS201: 0 | CT201: 0 | CU201: 0 | CV201: 0 | CW201: 0 | CX201: 0 | CY201: 0 | CZ201: 0 | DA201: 0 | DB201: 0 | DC201: 0 | DE201: 0
B202: =_xlfn.IFS(OR(DF202="総計",DF202=""),"",TRUE,DF202) ->  | U202: 0 | CM202: 0 | CN202: 0 | CO202: 0 | CP202: 0 | CQ202: 0 | CR202: 0 | CS202: 0 | CT202: 0 | CU202: 0 | CV202: 0 | CW202: 0 | CX202: 0 | CY202: 0 | CZ202: 0 | DA202: 0 | DB202: 0 | DC202: 0 | DE202: 0
B203: =_xlfn.IFS(OR(DF203="総計",DF203=""),"",TRUE,DF203) ->  | U203: 0 | CM203: 0 | CN203: 0 | CO203: 0 | CP203: 0 | CQ203: 0 | CR203: 0 | CS203: 0 | CT203: 0 | CU203: 0 | CV203: 0 | CW203: 0 | CX203: 0 | CY203: 0 | CZ203: 0 | DA203: 0 | DB203: 0 | DC203: 0 | DE203: 0
B204: =_xlfn.IFS(OR(DF204="総計",DF204=""),"",TRUE,DF204) ->  | U204: 0 | CM204: 0 | CN204: 0 | CO204: 0 | CP204: 0 | CQ204: 0 | CR204: 0 | CS204: 0 | CT204: 0 | CU204: 0 | CV204: 0 | CW204: 0 | CX204: 0 | CY204: 0 | CZ204: 0 | DA204: 0 | DB204: 0 | DC204: 0 | DE204: 0
B205: =_xlfn.IFS(OR(DF205="総計",DF205=""),"",TRUE,DF205) ->  | U205: 0 | CM205: 0 | CN205: 0 | CO205: 0 | CP205: 0 | CQ205: 0 | CR205: 0 | CS205: 0 | CT205: 0 | CU205: 0 | CV205: 0 | CW205: 0 | CX205: 0 | CY205: 0 | CZ205: 0 | DA205: 0 | DB205: 0 | DC205: 0 | DE205: 総計
B206: =_xlfn.IFS(OR(DF206="総計",DF206=""),"",TRUE,DF206) ->  | U206: 0 | CM206: 0 | CN206: 0 | CO206: 0 | CP206: 0 | CQ206: 0 | CR206: 0 | CS206: 0 | CT206: 0 | CU206: 0 | CV206: 0 | CW206: 0 | CX206: 0 | CY206: 0 | CZ206: 0 | DA206: 0 | DB206: 0 | DC206: 0 | DE206: Believe T-1 MARKET
B207: =_xlfn.IFS(OR(DF207="総計",DF207=""),"",TRUE,DF207) ->  | U207: 0 | CM207: 0 | CN207: 0 | CO207: 0 | CP207: 0 | CQ207: 0 | CR207: 0 | CS207: 0 | CT207: 0 | CU207: 0 | CV207: 0 | CW207: 0 | CX207: 0 | CY207: 0 | CZ207: 0 | DA207: 0 | DB207: 0 | DC207: 0 | DE207: 0
B208: =_xlfn.IFS(OR(DF208="総計",DF208=""),"",TRUE,DF208) ->  | U208: 0 | CM208: 0 | CN208: 0 | CO208: 0 | CP208: 0 | CQ208: 0 | CR208: 0 | CS208: 0 | CT208: 0 | CU208: 0 | CV208: 0 | CW208: 0 | CX208: 0 | CY208: 0 | CZ208: 0 | DA208: 0 | DB208: 0 | DC208: 0 | DE208: 0
B209: =_xlfn.IFS(OR(DF209="総計",DF209=""),"",TRUE,DF209) ->  | U209: 0 | CM209: 0 | CN209: 0 | CO209: 0 | CP209: 0 | CQ209: 0 | CR209: 0 | CS209: 0 | CT209: 0 | CU209: 0 | CV209: 0 | CW209: 0 | CX209: 0 | CY209: 0 | CZ209: 0 | DA209: 0 | DB209: 0 | DC209: 0 | DE209: 0
B210: =_xlfn.IFS(OR(DF210="総計",DF210=""),"",TRUE,DF210) ->  | U210: 0 | CM210: 0 | CN210: 0 | CO210: 0 | CP210: 0 | CQ210: 0 | CR210: 0 | CS210: 0 | CT210: 0 | CU210: 0 | CV210: 0 | CW210: 0 | CX210: 0 | CY210: 0 | CZ210: 0 | DA210: 0 | DB210: 0 | DC210: 0 | DE210: 0
B211: =_xlfn.IFS(OR(DF211="総計",DF211=""),"",TRUE,DF211) ->  | U211: 0 | CM211: 0 | CN211: 0 | CO211: 0 | CP211: 0 | CQ211: 0 | CR211: 0 | CS211: 0 | CT211: 0 | CU211: 0 | CV211: 0 | CW211: 0 | CX211: 0 | CY211: 0 | CZ211: 0 | DA211: 0 | DB211: 0 | DC211: 0 | DE211: 0
B212: =_xlfn.IFS(OR(DF212="総計",DF212=""),"",TRUE,DF212) ->  | U212: 0 | CM212: 0 | CN212: 0 | CO212: 0 | CP212: 0 | CQ212: 0 | CR212: 0 | CS212: 0 | CT212: 0 | CU212: 0 | CV212: 0 | CW212: 0 | CX212: 0 | CY212: 0 | CZ212: 0 | DA212: 0 | DB212: 0 | DC212: 0 | DE212: 0
B213: =_xlfn.IFS(OR(DF213="総計",DF213=""),"",TRUE,DF213) ->  | U213: 0 | CM213: 0 | CN213: 0 | CO213: 0 | CP213: 0 | CQ213: 0 | CR213: 0 | CS213: 0 | CT213: 0 | CU213: 0 | CV213: 0 | CW213: 0 | CX213: 0 | CY213: 0 | CZ213: 0 | DA213: 0 | DB213: 0 | DC213: 0 | DE213: 0
B214: =_xlfn.IFS(OR(DF214="総計",DF214=""),"",TRUE,DF214) ->  | U214: 0 | CM214: 0 | CN214: 0 | CO214: 0 | CP214: 0 | CQ214: 0 | CR214: 0 | CS214: 0 | CT214: 0 | CU214: 0 | CV214: 0 | CW214: 0 | CX214: 0 | CY214: 0 | CZ214: 0 | DA214: 0 | DB214: 0 | DC214: 0 | DE214: 0
B215: =_xlfn.IFS(OR(DF215="総計",DF215=""),"",TRUE,DF215) ->  | U215: 0 | CM215: 0 | CN215: 0 | CO215: 0 | CP215: 0 | CQ215: 0 | CR215: 0 | CS215: 0 | CT215: 0 | CU215: 0 | CV215: 0 | CW215: 0 | CX215: 0 | CY215: 0 | CZ215: 0 | DA215: 0 | DB215: 0 | DC215: 0 | DE215: 0
B216: =_xlfn.IFS(OR(DF216="総計",DF216=""),"",TRUE,DF216) ->  | U216: 0 | CM216: 0 | CN216: 0 | CO216: 0 | CP216: 0 | CQ216: 0 | CR216: 0 | CS216: 0 | CT216: 0 | CU216: 0 | CV216: 0 | CW216: 0 | CX216: 0 | CY216: 0 | CZ216: 0 | DA216: 0 | DB216: 0 | DC216: 0 | DE216: 0
B217: =_xlfn.IFS(OR(DF217="総計",DF217=""),"",TRUE,DF217) ->  | U217: 0 | CM217: 0 | CN217: 0 | CO217: 0 | CP217: 0 | CQ217: 0 | CR217: 0 | CS217: 0 | CT217: 0 | CU217: 0 | CV217: 0 | CW217: 0 | CX217: 0 | CY217: 0 | CZ217: 0 | DA217: 0 | DB217: 0 | DC217: 0 | DE217: 0
B218: =_xlfn.IFS(OR(DF218="総計",DF218=""),"",TRUE,DF218) ->  | U218: 0 | CM218: 0 | CN218: 0 | CO218: 0 | CP218: 0 | CQ218: 0 | CR218: 0 | CS218: 0 | CT218: 0 | CU218: 0 | CV218: 0 | CW218: 0 | CX218: 0 | CY218: 0 | CZ218: 0 | DA218: 0 | DB218: 0 | DC218: 0 | DE218: 0
B219: =_xlfn.IFS(OR(DF219="総計",DF219=""),"",TRUE,DF219) ->  | U219: 0 | CM219: 0 | CN219: 0 | CO219: 0 | CP219: 0 | CQ219: 0 | CR219: 0 | CS219: 0 | CT219: 0 | CU219: 0 | CV219: 0 | CW219: 0 | CX219: 0 | CY219: 0 | CZ219: 0 | DA219: 0 | DB219: 0 | DC219: 0 | DE219: 0
B220: =_xlfn.IFS(OR(DF220="総計",DF220=""),"",TRUE,DF220) ->  | U220: 0 | CM220: 0 | CN220: 0 | CO220: 0 | CP220: 0 | CQ220: 0 | CR220: 0 | CS220: 0 | CT220: 0 | CU220: 0 | CV220: 0 | CW220: 0 | CX220: 0 | CY220: 0 | CZ220: 0 | DA220: 0 | DB220: 0 | DC220: 0 | DE220: 0
B221: =_xlfn.IFS(OR(DF221="総計",DF221=""),"",TRUE,DF221) ->  | U221: 0 | CM221: 0 | CN221: 0 | CO221: 0 | CP221: 0 | CQ221: 0 | CR221: 0 | CS221: 0 | CT221: 0 | CU221: 0 | CV221: 0 | CW221: 0 | CX221: 0 | CY221: 0 | CZ221: 0 | DA221: 0 | DB221: 0 | DC221: 0 | DE221: 0
B222: =_xlfn.IFS(OR(DF222="総計",DF222=""),"",TRUE,DF222) ->  | U222: 0 | CM222: 0 | CN222: 0 | CO222: 0 | CP222: 0 | CQ222: 0 | CR222: 0 | CS222: 0 | CT222: 0 | CU222: 0 | CV222: 0 | CW222: 0 | CX222: 0 | CY222: 0 | CZ222: 0 | DA222: 0 | DB222: 0 | DC222: 0 | DE222: 0
B223: =_xlfn.IFS(OR(DF223="総計",DF223=""),"",TRUE,DF223) ->  | U223: 0 | CM223: 0 | CN223: 0 | CO223: 0 | CP223: 0 | CQ223: 0 | CR223: 0 | CS223: 0 | CT223: 0 | CU223: 0 | CV223: 0 | CW223: 0 | CX223: 0 | CY223: 0 | CZ223: 0 | DA223: 0 | DB223: 0 | DC223: 0 | DE223: Believe T-2 MARKET
B224: =_xlfn.IFS(OR(DF224="総計",DF224=""),"",TRUE,DF224) ->  | U224: 0 | CM224: 0 | CN224: 0 | CO224: 0 | CP224: 0 | CQ224: 0 | CR224: 0 | CS224: 0 | CT224: 0 | CU224: 0 | CV224: 0 | CW224: 0 | CX224: 0 | CY224: 0 | CZ224: 0 | DA224: 0 | DB224: 0 | DC224: 0 | DE224: 0
B225: =_xlfn.IFS(OR(DF225="総計",DF225=""),"",TRUE,DF225) ->  | U225: 0 | CM225: 0 | CN225: 0 | CO225: 0 | CP225: 0 | CQ225: 0 | CR225: 0 | CS225: 0 | CT225: 0 | CU225: 0 | CV225: 0 | CW225: 0 | CX225: 0 | CY225: 0 | CZ225: 0 | DA225: 0 | DB225: 0 | DC225: 0 | DE225: 0
B226: =_xlfn.IFS(OR(DF226="総計",DF226=""),"",TRUE,DF226) ->  | U226: 0 | CM226: 0 | CN226: 0 | CO226: 0 | CP226: 0 | CQ226: 0 | CR226: 0 | CS226: 0 | CT226: 0 | CU226: 0 | CV226: 0 | CW226: 0 | CX226: 0 | CY226: 0 | CZ226: 0 | DA226: 0 | DB226: 0 | DC226: 0 | DE226: 0
B227: =_xlfn.IFS(OR(DF227="総計",DF227=""),"",TRUE,DF227) ->  | U227: 0 | CM227: 0 | CN227: 0 | CO227: 0 | CP227: 0 | CQ227: 0 | CR227: 0 | CS227: 0 | CT227: 0 | CU227: 0 | CV227: 0 | CW227: 0 | CX227: 0 | CY227: 0 | CZ227: 0 | DA227: 0 | DB227: 0 | DC227: 0 | DE227: 0
B228: =_xlfn.IFS(OR(DF228="総計",DF228=""),"",TRUE,DF228) ->  | U228: 0 | CM228: 0 | CN228: 0 | CO228: 0 | CP228: 0 | CQ228: 0 | CR228: 0 | CS228: 0 | CT228: 0 | CU228: 0 | CV228: 0 | CW228: 0 | CX228: 0 | CY228: 0 | CZ228: 0 | DA228: 0 | DB228: 0 | DC228: 0 | DE228: 0
B229: =_xlfn.IFS(OR(DF229="総計",DF229=""),"",TRUE,DF229) ->  | U229: 0 | CM229: 0 | CN229: 0 | CO229: 0 | CP229: 0 | CQ229: 0 | CR229: 0 | CS229: 0 | CT229: 0 | CU229: 0 | CV229: 0 | CW229: 0 | CX229: 0 | CY229: 0 | CZ229: 0 | DA229: 0 | DB229: 0 | DC229: 0 | DE229: 0
B230: =_xlfn.IFS(OR(DF230="総計",DF230=""),"",TRUE,DF230) ->  | U230: 0 | CM230: 0 | CN230: 0 | CO230: 0 | CP230: 0 | CQ230: 0 | CR230: 0 | CS230: 0 | CT230: 0 | CU230: 0 | CV230: 0 | CW230: 0 | CX230: 0 | CY230: 0 | CZ230: 0 | DA230: 0 | DB230: 0 | DC230: 0 | DE230: 0
B231: =_xlfn.IFS(OR(DF231="総計",DF231=""),"",TRUE,DF231) ->  | D231: =_xlfn.XLOOKUP($B231,$W$103:$W$1102,$X$103:$X$1102,"",0,1) ->  | E231: =_xlfn.XLOOKUP($B231,$Z$103:$Z$1102,$AA$103:$AA$1102,"",0,1) ->  | F231: =_xlfn.XLOOKUP($B231,$AC$103:$AC$1102,$AD$103:$AD$1102,"",0,1) ->  | G231: =_xlfn.XLOOKUP($B231,$AW$103:$AW$1102,$AX$103:$AX$1102,"",0,1) ->  | H231: =_xlfn.XLOOKUP($B231,$AZ$103:$AZ$1102,$BA$103:$BA$1102,"",0,1) ->  | I231: =_xlfn.XLOOKUP($B231,$BC$103:$BC$1102,$BD$103:$BD$1102,"",0,1) ->  | J231: =_xlfn.XLOOKUP($B231,$BF$103:$BF$1102,$BG$103:$BG$1102,"",0,1) ->  | K231: =_xlfn.XLOOKUP($B231,$BI$103:$BI$1102,$BJ$103:$BJ$1102,"",0,1) ->  | L231: =_xlfn.XLOOKUP($B231,$BL$103:$BL$1102,$BM$103:$BM$1102,"",0,1) ->  | M231: =_xlfn.XLOOKUP($B231,$BO$103:$BO$1102,$BP$103:$BP$1102,"",0,1) ->  | N231: =_xlfn.XLOOKUP($B231,$BR$103:$BR$1102,$BS$103:$BS$1102,"",0,1) ->  | O231: =_xlfn.XLOOKUP($B231,$BU$103:$BU$1102,$BV$103:$BV$1102,"",0,1) ->  | P231: =_xlfn.XLOOKUP($B231,$BX$103:$BX$1102,$BY$103:$BY$1102,"",0,1) ->  | Q231: =_xlfn.XLOOKUP($B231,$CA$103:$CA$1102,$CB$103:$CB$1102,"",0,1) ->  | R231: =_xlfn.XLOOKUP($B231,$CD$103:$CD$1102,$CE$103:$CE$1102,"",0,1) ->  | S231: =_xlfn.XLOOKUP($B231,$CG$103:$CG$1102,$CH$103:$CH$1102,"",0,1) ->  | T231: =_xlfn.XLOOKUP($B231,$CJ$103:$CJ$1102,$CK$103:$CK$1102,"",0,1) ->  | U231: 0 | CM231: 0 | CN231: 0 | CO231: 0 | CP231: 0 | CQ231: 0 | CR231: 0 | CS231: 0 | CT231: 0 | CU231: 0 | CV231: 0 | CW231: 0 | CX231: 0 | CY231: 0 | CZ231: 0 | DA231: 0 | DB231: 0 | DC231: 0 | DE231: 0
B232: =_xlfn.IFS(OR(DF232="総計",DF232=""),"",TRUE,DF232) ->  | C232: =IF(B232="","",SUM(D232:T232)) ->  | U232: 0 | CM232: 0 | CN232: 0 | CO232: 0 | CP232: 0 | CQ232: 0 | CR232: 0 | CS232: 0 | CT232: 0 | CU232: 0 | CV232: 0 | CW232: 0 | CX232: 0 | CY232: 0 | CZ232: 0 | DA232: 0 | DB232: 0 | DC232: 0 | DE232: 0
B233: =_xlfn.IFS(OR(DF233="総計",DF233=""),"",TRUE,DF233) ->  | U233: 0 | CM233: 0 | CN233: 0 | CO233: 0 | CP233: 0 | CQ233: 0 | CR233: 0 | CS233: 0 | CT233: 0 | CU233: 0 | CV233: 0 | CW233: 0 | CX233: 0 | CY233: 0 | CZ233: 0 | DA233: 0 | DB233: 0 | DC233: 0 | DE233: 0
B234: =_xlfn.IFS(OR(DF234="総計",DF234=""),"",TRUE,DF234) ->  | U234: =SUM(F234:T234) -> 0 | CM234: 0 | CN234: 0 | CO234: 0 | CP234: 0 | CQ234: 0 | CR234: 0 | CS234: 0 | CT234: 0 | CU234: 0 | CV234: 0 | CW234: 0 | CX234: 0 | CY234: 0 | CZ234: 0 | DA234: 0 | DB234: 0 | DC234: 0 | DE234: 0
B235: =_xlfn.IFS(OR(DF235="総計",DF235=""),"",TRUE,DF235) ->  | U235: 0 | CM235: 0 | CN235: 0 | CO235: 0 | CP235: 0 | CQ235: 0 | CR235: 0 | CS235: 0 | CT235: 0 | CU235: 0 | CV235: 0 | CW235: 0 | CX235: 0 | CY235: 0 | CZ235: 0 | DA235: 0 | DB235: 0 | DC235: 0 | DE235: 0
B236: =_xlfn.IFS(OR(DF236="総計",DF236=""),"",TRUE,DF236) ->  | U236: 0 | CM236: 0 | CN236: 0 | CO236: 0 | CP236: 0 | CQ236: 0 | CR236: 0 | CS236: 0 | CT236: 0 | CU236: 0 | CV236: 0 | CW236: 0 | CX236: 0 | CY236: 0 | CZ236: 0 | DA236: 0 | DB236: 0 | DC236: 0 | DE236: 0
B237: =_xlfn.IFS(OR(DF237="総計",DF237=""),"",TRUE,DF237) ->  | U237: 0 | CM237: 0 | CN237: 0 | CO237: 0 | CP237: 0 | CQ237: 0 | CR237: 0 | CS237: 0 | CT237: 0 | CU237: 0 | CV237: 0 | CW237: 0 | CX237: 0 | CY237: 0 | CZ237: 0 | DA237: 0 | DB237: 0 | DC237: 0 | DE237: 0
B238: =_xlfn.IFS(OR(DF238="総計",DF238=""),"",TRUE,DF238) ->  | U238: 0 | CM238: 0 | CN238: 0 | CO238: 0 | CP238: 0 | CQ238: 0 | CR238: 0 | CS238: 0 | CT238: 0 | CU238: 0 | CV238: 0 | CW238: 0 | CX238: 0 | CY238: 0 | CZ238: 0 | DA238: 0 | DB238: 0 | DC238: 0 | DE238: 0
B239: =_xlfn.IFS(OR(DF239="総計",DF239=""),"",TRUE,DF239) ->  | U239: 0 | CM239: 0 | CN239: 0 | CO239: 0 | CP239: 0 | CQ239: 0 | CR239: 0 | CS239: 0 | CT239: 0 | CU239: 0 | CV239: 0 | CW239: 0 | CX239: 0 | CY239: 0 | CZ239: 0 | DA239: 0 | DB239: 0 | DC239: 0 | DE239: 0
B240: =_xlfn.IFS(OR(DF240="総計",DF240=""),"",TRUE,DF240) ->  | U240: 0 | CM240: 0 | CN240: 0 | CO240: 0 | CP240: 0 | CQ240: 0 | CR240: 0 | CS240: 0 | CT240: 0 | CU240: 0 | CV240: 0 | CW240: 0 | CX240: 0 | CY240: 0 | CZ240: 0 | DA240: 0 | DB240: 0 | DC240: 0 | DE240: Believe T-3 MARKET
B241: =_xlfn.IFS(OR(DF241="総計",DF241=""),"",TRUE,DF241) ->  | U241: 0 | CM241: 0 | CN241: 0 | CO241: 0 | CP241: 0 | CQ241: 0 | CR241: 0 | CS241: 0 | CT241: 0 | CU241: 0 | CV241: 0 | CW241: 0 | CX241: 0 | CY241: 0 | CZ241: 0 | DA241: 0 | DB241: 0 | DC241: 0 | DE241: 0
B242: =_xlfn.IFS(OR(DF242="総計",DF242=""),"",TRUE,DF242) ->  | U242: 0 | CM242: 0 | CN242: 0 | CO242: 0 | CP242: 0 | CQ242: 0 | CR242: 0 | CS242: 0 | CT242: 0 | CU242: 0 | CV242: 0 | CW242: 0 | CX242: 0 | CY242: 0 | CZ242: 0 | DA242: 0 | DB242: 0 | DC242: 0 | DE242: 0
B243: =_xlfn.IFS(OR(DF243="総計",DF243=""),"",TRUE,DF243) ->  | U243: 0 | CM243: 0 | CN243: 0 | CO243: 0 | CP243: 0 | CQ243: 0 | CR243: 0 | CS243: 0 | CT243: 0 | CU243: 0 | CV243: 0 | CW243: 0 | CX243: 0 | CY243: 0 | CZ243: 0 | DA243: 0 | DB243: 0 | DC243: 0 | DE243: 0
B244: =_xlfn.IFS(OR(DF244="総計",DF244=""),"",TRUE,DF244) ->  | U244: 0 | CM244: 0 | CN244: 0 | CO244: 0 | CP244: 0 | CQ244: 0 | CR244: 0 | CS244: 0 | CT244: 0 | CU244: 0 | CV244: 0 | CW244: 0 | CX244: 0 | CY244: 0 | CZ244: 0 | DA244: 0 | DB244: 0 | DC244: 0 | DE244: 0
B245: =_xlfn.IFS(OR(DF245="総計",DF245=""),"",TRUE,DF245) ->  | U245: 0 | CM245: 0 | CN245: 0 | CO245: 0 | CP245: 0 | CQ245: 0 | CR245: 0 | CS245: 0 | CT245: 0 | CU245: 0 | CV245: 0 | CW245: 0 | CX245: 0 | CY245: 0 | CZ245: 0 | DA245: 0 | DB245: 0 | DC245: 0 | DE245: 0
B246: =_xlfn.IFS(OR(DF246="総計",DF246=""),"",TRUE,DF246) ->  | U246: 0 | CM246: 0 | CN246: 0 | CO246: 0 | CP246: 0 | CQ246: 0 | CR246: 0 | CS246: 0 | CT246: 0 | CU246: 0 | CV246: 0 | CW246: 0 | CX246: 0 | CY246: 0 | CZ246: 0 | DA246: 0 | DB246: 0 | DC246: 0 | DE246: 0
B247: =_xlfn.IFS(OR(DF247="総計",DF247=""),"",TRUE,DF247) ->  | U247: 0 | CM247: 0 | CN247: 0 | CO247: 0 | CP247: 0 | CQ247: 0 | CR247: 0 | CS247: 0 | CT247: 0 | CU247: 0 | CV247: 0 | CW247: 0 | CX247: 0 | CY247: 0 | CZ247: 0 | DA247: 0 | DB247: 0 | DC247: 0 | DE247: 0
B248: =_xlfn.IFS(OR(DF248="総計",DF248=""),"",TRUE,DF248) ->  | U248: 0 | CM248: 0 | CN248: 0 | CO248: 0 | CP248: 0 | CQ248: 0 | CR248: 0 | CS248: 0 | CT248: 0 | CU248: 0 | CV248: 0 | CW248: 0 | CX248: 0 | CY248: 0 | CZ248: 0 | DA248: 0 | DB248: 0 | DC248: 0 | DE248: 0
B249: =_xlfn.IFS(OR(DF249="総計",DF249=""),"",TRUE,DF249) ->  | U249: 0 | CM249: 0 | CN249: 0 | CO249: 0 | CP249: 0 | CQ249: 0 | CR249: 0 | CS249: 0 | CT249: 0 | CU249: 0 | CV249: 0 | CW249: 0 | CX249: 0 | CY249: 0 | CZ249: 0 | DA249: 0 | DB249: 0 | DC249: 0 | DE249: 0
B250: =_xlfn.IFS(OR(DF250="総計",DF250=""),"",TRUE,DF250) ->  | U250: 0 | CM250: 0 | CN250: 0 | CO250: 0 | CP250: 0 | CQ250: 0 | CR250: 0 | CS250: 0 | CT250: 0 | CU250: 0 | CV250: 0 | CW250: 0 | CX250: 0 | CY250: 0 | CZ250: 0 | DA250: 0 | DB250: 0 | DC250: 0 | DE250: 0
... 312 more rows

Sheet ←分析結果シート｜データ入力シート→
A1: シート名称かページ番号をクリックすると該当のシートに飛びます。
A3: ページ番号 | B3: シート名称 | C3: シート内容
A4: 1 | B4: シートの見方 | C4: シート全体の見方の説明
A5: 2 | B5: データ入力方法 | C5: データ入力シートの入力方法
A6: 3 | B6: シート一覧 | C6: 各シート内容の一覧
A7: 4 | B7: 算定の前提条件 | C7: 算定の前提条件について
A8: 5 | B8: ←全体情報シート｜分析結果シート→ | C8: シートの区切り
A9: 6 | B9: 排出量まとめ_マーケット基準 | C9: スコープ1+2+3のサプライチェーン排出量のまとめとその分析結果を示しています（マーケット基準）
A10: 7 | B10: ←分析結果シート｜データ入力シート→ | C10: シートの区切り
A11: 8 | B11: SCOPE1 | C11: SCOPE1のデータ入力用シートです。
A12: 9 | B12: SCOPE2_マーケット基準 | C12: SCOPE2のデータ入力用シートです。（マーケット基準）
A13: 10 | B13: カテゴリ1_製品 | C13: カテゴリ1のデータ入力用シートです。 | D13: *ロックされていて入力できません。
A14: 11 | B14: カテゴリ2_資本財 | C14: カテゴリ2のデータ入力用シートです。 | D14: *ロックされていて入力できません。
A15: 12 | B15: カテゴリ3_エネルギー等の上流 | C15: カテゴリ3のデータ入力用シートです。 | D15: *ロックされていて入力できません。
A16: 13 | B16: カテゴリ4_輸送上流 | C16: カテゴリ4のデータ入力用シートです。 | D16: *ロックされていて入力できません。
A17: 14 | B17: カテゴリ5_廃棄（事業） | C17: カテゴリ5のデータ入力用シートです。 | D17: *ロックされていて入力できません。
A18: 15 | B18: カテゴリ6_出張 | C18: カテゴリ6のデータ入力用シートです。 | D18: *ロックされていて入力できません。
A19: 16 | B19: カテゴリ7_通勤 | C19: カテゴリ7のデータ入力用シートです。 | D19: *ロックされていて入力できません。
A20: 17 | B20: カテゴリ8_リース資産上流 | C20: カテゴリ8のデータ入力用シートです。 | D20: *ロックされていて入力できません。
A21: 18 | B21: カテゴリ9_輸送下流 | C21: カテゴリ9のデータ入力用シートです。 | D21: *ロックされていて入力できません。
A22: 19 | B22: カテゴリ10_製品の加工 | C22: カテゴリ10のデータ入力用シートです。 | D22: *ロックされていて入力できません。
A23: 20 | B23: カテゴリ11_製品の使用 | C23: カテゴリ11のデータ入力用シートです。 | D23: *ロックされていて入力できません。
A24: 21 | B24: カテゴリ12_廃棄（使用） | C24: カテゴリ12のデータ入力用シートです。 | D24: *ロックされていて入力できません。
A25: 22 | B25: カテゴリ13_リース資産下流 | C25: カテゴリ13のデータ入力用シートです。 | D25: *ロックされていて入力できません。
A26: 23 | B26: カテゴリ14_フランチャイズ | C26: カテゴリ14のデータ入力用シートです。 | D26: *ロックされていて入力できません。
A27: 24 | B27: カテゴリ15_投資 | C27: カテゴリ15のデータ入力用シートです。 | D27: *ロックされていて入力できません。
A28: 25 | B28: ←データ入力シート｜原単位等データシート→ | C28: シートの区切り
A29: 26 | B29: カテゴリ1計算用_原単位DB | C29: カテゴリ1計算時の参照用のデータベースです。
A30: 27 | B30: カテゴリ２計算用_原単位DB | C30: カテゴリ2計算時の参照用のデータベースです。
A31: 28 | B31: カテゴリ4&9計算用_国間距離DB | C31: カテゴリ4,9計算時の参照用のデータベースです。

Sheet SCOPE1
A1: Scope1．自社の排出
A2: ■購入した燃料の燃焼に伴う排出
A5: 項目データ | G5: エネルギーの物量データ | I5: 排出原単位 | P5: 排出原単位DB | R5: 備考 | T5: 排出量 | W5: 排出量合計 [t-CO2]
A6: 項目番号 | B6: 社名/事業名 | C6: 分類用1 | D6: 分類用2 | E6: 温室効果ガス区分 | F6: 燃料種 | G6: 数値 | H6: 単位 | I6: 計算排出原単位[CO2換算] | J6: 発熱量数値[GJ/分母単位] | K6: 排出係数[温室効果ガス/GJ] | L6: 温室効果ガス排出係数 | M6: 単位 | N6: CO2単位 (t, kg, gのいずれかを入力) | O6: 分母単位 | P6: 出典 | Q6: 項目 | R6: 推測・シナリオの前提条件 | S6: その他備考 | T6: 排出量 [t-CO2] | U6: 排出量 [kg-CO2]
A7: 1 | B7: Believe T-1 | C7: Tag1 | D7: tag1 | E7: エネルギー起源CO2 | F7: 一般炭 | G7: 0.1 | H7: t | I7: =J7*K7*L7 -> 1 | J7: 1 | K7: 1 | L7: 1 | M7: =N7&"-CO2/"&O7 -> t-CO2/t | N7: t | O7: t | P7: 算定・報告・公表制度における算定方法・排出係数一覧 | Q7: 都市ガス | T7: =_xlfn.IFS(AND(H7="",O7=""), "", H7=O7, _xlfn.IFS(N7="t", G7*I7, N7="kg", G7*I7/1000, N7="g", G7*I7/1000000, TRUE, "CO2の単位が間違っています"), TRUE, "単位があっていません") -> 0.1 | U7: =T7*1000 -> 100 | W7: =SUM(T7:T36) -> 292.6
A8: 2 | B8: Believe T-2 | C8: Tag2 | D8: tag2 | E8: エネルギー起源CO2 | F8: コークス | G8: 0.1 | H8: t | I8: =J8*K8*L8 -> 1 | J8: 1 | K8: 1 | L8: 1 | M8: =N8&"-CO2/"&O8 -> t-CO2/t | N8: t | O8: t | T8: =_xlfn.IFS(AND(H8="",O8=""), "", H8=O8, _xlfn.IFS(N8="t", G8*I8, N8="kg", G8*I8/1000, N8="g", G8*I8/1000000, TRUE, "CO2の単位が間違っています"), TRUE, "単位があっていません") -> 0.1 | U8: =T8*1000 -> 100
A9: 3 | B9: Believe T-3 | C9: Tag3 | D9: tag1 | E9: エネルギー起源CO2 | F9: 原油（コンデンセート（NGL）を除く。） | G9: 0.1 | H9: t | I9: 1 | J9: 1 | K9: 1 | L9: 1 | M9: t-CO2/t | N9: t | O9: t | T9: =_xlfn.IFS(AND(H9="",O9=""), "", H9=O9, _xlfn.IFS(N9="t", G9*I9, N9="kg", G9*I9/1000, N9="g", G9*I9/1000000, TRUE, "CO2の単位が間違っています"), TRUE, "単位があっていません") -> 0.1 | U9: 100
A10: 4 | B10: Believe T-4 | C10: Tag4 | D10: tag2 | E10: エネルギー起源CO2 | F10: ガソリン | G10: 0.1 | H10: t | I10: 1 | J10: 1 | K10: 1 | L10: 1 | M10: t-CO2/t | N10: t | O10: t | T10: =_xlfn.IFS(AND(H10="",O10=""), "", H10=O10, _xlfn.IFS(N10="t", G10*I10, N10="kg", G10*I10/1000, N10="g", G10*I10/1000000, TRUE, "CO2の単位が間違っています"), TRUE, "単位があっていません") -> 0.1 | U10: 100
A11: 5 | B11: Believe T-5 | C11: Tag1 | D11: tag1 | E11: エネルギー起源CO2 | F11: B・C重油 | G11: 0.1 | H11: t | I11: 1 | J11: 1 | K11: 1 | L11: 1 | M11: t-CO2/t | N11: t | O11: t | T11: =_xlfn.IFS(AND(H11="",O11=""), "", H11=O11, _xlfn.IFS(N11="t", G11*I11, N11="kg", G11*I11/1000, N11="g", G11*I11/1000000, TRUE, "CO2の単位が間違っています"), TRUE, "単位があっていません") -> 0.1 | U11: 100
A12: 6 | B12: Believe T-1 | C12: Tag2 | D12: tag2 | E12: エネルギー起源CO2 | F12: ガソリン | G12: 0.1 | H12: t | I12: =J12*K12*L12 -> 1 | J12: 1 | K12: 1 | L12: 1 | M12: =N12&"-CO2/"&O12 -> t-CO2/t | N12: t | O12: t | T12: =_xlfn.IFS(AND(H12="",O12=""), "", H12=O12, _xlfn.IFS(N12="t", G12*I12, N12="kg", G12*I12/1000, N12="g", G12*I12/1000000, TRUE, "CO2の単位が間違っています"), TRUE, "単位があっていません") -> 0.1 | U12: =T12*1000 -> 100
A13: 7 | B13: Believe T-2 | C13: Tag3 | D13: tag1 | E13: エネルギー起源CO2 | F13: 高炉ガス | G13: 0.1 | H13: t | I13: =J13*K13*L13 -> 1 | J13: 1 | K13: 1 | L13: 1 | M13: =N13&"-CO2/"&O13 -> t-CO2/t | N13: t | O13: t | T13: =_xlfn.IFS(AND(H13="",O13=""), "", H13=O13, _xlfn.IFS(N13="t", G13*I13, N13="kg", G13*I13/1000, N13="g", G13*I13/1000000, TRUE, "CO2の単位が間違っています"), TRUE, "単位があっていません") -> 0.1 | U13: =T13*1000 -> 100
A14: 8 | B14: Believe T-3 | C14: Tag4 | D14: tag2 | E14: エネルギー起源CO2 | F14: ガソリン | G14: 0.1 | H14: t | I14: 1 | J14: 1 | K14: 1 | L14: 1 | M14: t-CO2/t | N14: t | O14: t | T14: =_xlfn.IFS(AND(H14="",O14=""), "", H14=O14, _xlfn.IFS(N14="t", G14*I14, N14="kg", G14*I14/1000, N14="g", G14*I14/1000000, TRUE, "CO2の単位が間違っています"), TRUE, "単位があっていません") -> 0.1 | U14: 100
A15: 9 | B15: Believe T-4 | C15: Tag1 | D15: tag1 | E15: エネルギー起源CO2 | F15: A重油 | G15: 0.1 | H15: t | I15: 1 | J15: 1 | K15: 1 | L15: 1 | M15: t-CO2/t | N15: t | O15: t | T15: =_xlfn.IFS(AND(H15="",O15=""), "", H15=O15, _xlfn.IFS(N15="t", G15*I15, N15="kg", G15*I15/1000, N15="g", G15*I15/1000000, TRUE, "CO2の単位が間違っています"), TRUE, "単位があっていません") -> 0.1 | U15: 100
A16: 6 | B16: Believe T-1 | C16: Tag2 | D16: tag2 | E16: メタン(CH4) | F16: 一般炭 | G16: 0.1 | H16: t | I16: =J16*K16*L16 -> 25 | J16: 1 | K16: 1 | L16: 25 | M16: =N16&"-CO2/"&O16 -> t-CO2/t | N16: t | O16: t | T16: =_xlfn.IFS(AND(H16="",O16=""), "", H16=O16, _xlfn.IFS(N16="t", G16*I16, N16="kg", G16*I16/1000, N16="g", G16*I16/1000000, TRUE, "CO2の単位が間違っています"), TRUE, "単位があっていません") -> 2.5 | U16: =T16*1000 -> 2500
A17: 7 | B17: Believe T-2 | C17: Tag3 | D17: tag1 | E17: メタン(CH4) | F17: コークス | G17: 0.1 | H17: t | I17: =J17*K17*L17 -> 25 | J17: 1 | K17: 1 | L17: 25 | M17: =N17&"-CO2/"&O17 -> t-CO2/t | N17: t | O17: t | T17: =_xlfn.IFS(AND(H17="",O17=""), "", H17=O17, _xlfn.IFS(N17="t", G17*I17, N17="kg", G17*I17/1000, N17="g", G17*I17/1000000, TRUE, "CO2の単位が間違っています"), TRUE, "単位があっていません") -> 2.5 | U17: =T17*1000 -> 2500
A18: 8 | B18: Believe T-3 | C18: Tag4 | D18: tag2 | E18: メタン(CH4) | F18: 原油（コンデンセート（NGL）を除く。） | G18: 0.1 | H18: t | I18: 25 | J18: 1 | K18: 1 | L18: 25 | M18: t-CO2/t | N18: t | O18: t | T18: =_xlfn.IFS(AND(H18="",O18=""), "", H18=O18, _xlfn.IFS(N18="t", G18*I18, N18="kg", G18*I18/1000, N18="g", G18*I18/1000000, TRUE, "CO2の単位が間違っています"), TRUE, "単位があっていません") -> 2.5 | U18: 2500
A19: 9 | B19: Believe T-4 | C19: Tag1 | D19: tag1 | E19: メタン(CH4) | F19: ガソリン | G19: 0.1 | H19: t | I19: 25 | J19: 1 | K19: 1 | L19: 25 | M19: t-CO2/t | N19: t | O19: t | T19: =_xlfn.IFS(AND(H19="",O19=""), "", H19=O19, _xlfn.IFS(N19="t", G19*I19, N19="kg", G19*I19/1000, N19="g", G19*I19/1000000, TRUE, "CO2の単位が間違っています"), TRUE, "単位があっていません") -> 2.5 | U19: 2500
A20: 6 | B20: Believe T-5 | C20: Tag2 | D20: tag2 | E20: メタン(CH4) | F20: B・C重油 | G20: 0.1 | H20: t | I20: =J20*K20*L20 -> 25 | J20: 1 | K20: 1 | L20: 25 | M20: =N20&"-CO2/"&O20 -> t-CO2/t | N20: t | O20: t | T20: =_xlfn.IFS(AND(H20="",O20=""), "", H20=O20, _xlfn.IFS(N20="t", G20*I20, N20="kg", G20*I20/1000, N20="g", G20*I20/1000000, TRUE, "CO2の単位が間違っています"), TRUE, "単位があっていません") -> 2.5 | U20: =T20*1000 -> 2500
A21: 7 | B21: Believe T-1 | C21: Tag3 | D21: tag1 | E21: メタン(CH4) | F21: ガソリン | G21: 0.1 | H21: t | I21: =J21*K21*L21 -> 25 | J21: 1 | K21: 1 | L21: 25 | M21: =N21&"-CO2/"&O21 -> t-CO2/t | N21: t | O21: t | T21: =_xlfn.IFS(AND(H21="",O21=""), "", H21=O21, _xlfn.IFS(N21="t", G21*I21, N21="kg", G21*I21/1000, N21="g", G21*I21/1000000, TRUE, "CO2の単位が間違っています"), TRUE, "単位があっていません") -> 2.5 | U21: =T21*1000 -> 2500
A22: 8 | B22: Believe T-2 | C22: Tag4 | D22: tag2 | E22: メタン(CH4) | F22: 高炉ガス | G22: 0.1 | H22: t | I22: 25 | J22: 1 | K22: 1 | L22: 25 | M22: t-CO2/t | N22: t | O22: t | T22: =_xlfn.IFS(AND(H22="",O22=""), "", H22=O22, _xlfn.IFS(N22="t", G22*I22, N22="kg", G22*I22/1000, N22="g", G22*I22/1000000, TRUE, "CO2の単位が間違っています"), TRUE, "単位があっていません") -> 2.5 | U22: 2500
A23: 9 | B23: Believe T-3 | C23: Tag1 | D23: tag1 | E23: メタン(CH4) | F23: ガソリン | G23: 0.1 | H23: t | I23: 25 | J23: 1 | K23: 1 | L23: 25 | M23: t-CO2/t | N23: t | O23: t | T23: =_xlfn.IFS(AND(H23="",O23=""), "", H23=O23, _xlfn.IFS(N23="t", G23*I23, N23="kg", G23*I23/1000, N23="g", G23*I23/1000000, TRUE, "CO2の単位が間違っています"), TRUE, "単位があっていません") -> 2.5 | U23: 2500
A24: 6 | B24: Believe T-4 | C24: Tag2 | D24: tag1 | E24: メタン(CH4) | F24: A重油 | G24: 0.1 | H24: t | I24: =J24*K24*L24 -> 25 | J24: 1 | K24: 1 | L24: 25 | M24: =N24&"-CO2/"&O24 -> t-CO2/t | N24: t | O24: t | T24: =_xlfn.IFS(AND(H24="",O24=""), "", H24=O24, _xlfn.IFS(N24="t", G24*I24, N24="kg", G24*I24/1000, N24="g", G24*I24/1000000, TRUE, "CO2の単位が間違っています"), TRUE, "単位があっていません") -> 2.5 | U24: =T24*1000 -> 2500
A25: 7 | B25: Believe T-1 | C25: Tag3 | D25: tag2 | E25: 一酸化二窒素(N2O) | F25: 一般炭 | G25: 0.1 | H25: t | I25: =J25*K25*L25 -> 298 | J25: 1 | K25: 1 | L25: 298 | M25: =N25&"-CO2/"&O25 -> t-CO2/t | N25: t | O25: t | T25: =_xlfn.IFS(AND(H25="",O25=""), "", H25=O25, _xlfn.IFS(N25="t", G25*I25, N25="kg", G25*I25/1000, N25="g", G25*I25/1000000, TRUE, "CO2の単位が間違っています"), TRUE, "単位があっていません") -> 29.8 | U25: =T25*1000 -> 29800
A26: 8 | B26: Believe T-2 | C26: Tag4 | D26: tag1 | E26: 一酸化二窒素(N2O) | F26: コークス | G26: 0.1 | H26: t | I26: 298 | J26: 1 | K26: 1 | L26: 298 | M26: t-CO2/t | N26: t | O26: t | T26: =_xlfn.IFS(AND(H26="",O26=""), "", H26=O26, _xlfn.IFS(N26="t", G26*I26, N26="kg", G26*I26/1000, N26="g", G26*I26/1000000, TRUE, "CO2の単位が間違っています"), TRUE, "単位があっていません") -> 29.8 | U26: 29800
A27: 9 | B27: Believe T-3 | C27: Tag1 | D27: tag2 | E27: 一酸化二窒素(N2O) | F27: 原油（コンデンセート（NGL）を除く。） | G27: 0.1 | H27: t | I27: 298 | J27: 1 | K27: 1 | L27: 298 | M27: t-CO2/t | N27: t | O27: t | T27: =_xlfn.IFS(AND(H27="",O27=""), "", H27=O27, _xlfn.IFS(N27="t", G27*I27, N27="kg", G27*I27/1000, N27="g", G27*I27/1000000, TRUE, "CO2の単位が間違っています"), TRUE, "単位があっていません") -> 29.8 | U27: 29800
A28: 6 | B28: Believe T-4 | C28: Tag2 | D28: tag1 | E28: 一酸化二窒素(N2O) | F28: ガソリン | G28: 0.1 | H28: t | I28: =J28*K28*L28 -> 298 | J28: 1 | K28: 1 | L28: 298 | M28: =N28&"-CO2/"&O28 -> t-CO2/t | N28: t | O28: t | T28: =_xlfn.IFS(AND(H28="",O28=""), "", H28=O28, _xlfn.IFS(N28="t", G28*I28, N28="kg", G28*I28/1000, N28="g", G28*I28/1000000, TRUE, "CO2の単位が間違っています"), TRUE, "単位があっていません") -> 29.8 | U28: =T28*1000 -> 29800
A29: 7 | B29: Believe T-5 | C29: Tag3 | D29: tag2 | E29: 一酸化二窒素(N2O) | F29: B・C重油 | G29: 0.1 | H29: t | I29: =J29*K29*L29 -> 298 | J29: 1 | K29: 1 | L29: 298 | M29: =N29&"-CO2/"&O29 -> t-CO2/t | N29: t | O29: t | T29: =_xlfn.IFS(AND(H29="",O29=""), "", H29=O29, _xlfn.IFS(N29="t", G29*I29, N29="kg", G29*I29/1000, N29="g", G29*I29/1000000, TRUE, "CO2の単位が間違っています"), TRUE, "単位があっていません") -> 29.8 | U29: =T29*1000 -> 29800
A30: 8 | B30: Believe T-1 | C30: Tag4 | D30: tag1 | E30: 一酸化二窒素(N2O) | F30: ガソリン | G30: 0.1 | H30: t | I30: 298 | J30: 1 | K30: 1 | L30: 298 | M30: t-CO2/t | N30: t | O30: t | T30: =_xlfn.IFS(AND(H30="",O30=""), "", H30=O30, _xlfn.IFS(N30="t", G30*I30, N30="kg", G30*I30/1000, N30="g", G30*I30/1000000, TRUE, "CO2の単位が間違っています"), TRUE, "単位があっていません") -> 29.8 | U30: 29800
A31: 9 | B31: Believe T-2 | C31: Tag1 | D31: tag2 | E31: 一酸化二窒素(N2O) | F31: 高炉ガス | G31: 0.1 | H31: t | I31: 298 | J31: 1 | K31: 1 | L31: 298 | M31: t-CO2/t | N31: t | O31: t | T31: =_xlfn.IFS(AND(H31="",O31=""), "", H31=O31, _xlfn.IFS(N31="t", G31*I31, N31="kg", G31*I31/1000, N31="g", G31*I31/1000000, TRUE, "CO2の単位が間違っています"), TRUE, "単位があっていません") -> 29.8 | U31: 29800
A32: 6 | B32: Believe T-3 | C32: Tag2 | D32: tag1 | E32: 一酸化二窒素(N2O) | F32: ガソリン | G32: 0.1 | H32: t | I32: =J32*K32*L32 -> 298 | J32: 1 | K32: 1 | L32: 298 | M32: =N32&"-CO2/"&O32 -> t-CO2/t | N32: t | O32: t | T32: =_xlfn.IFS(AND(H32="",O32=""), "", H32=O32, _xlfn.IFS(N32="t", G32*I32, N32="kg", G32*I32/1000, N32="g", G32*I32/1000000, TRUE, "CO2の単位が間違っています"), TRUE, "単位があっていません") -> 29.8 | U32: =T32*1000 -> 29800
A33: 7 | B33: Believe T-4 | C33: Tag3 | D33: tag2 | E33: 一酸化二窒素(N2O) | F33: A重油 | G33: 0.1 | H33: t | I33: =J33*K33*L33 -> 298 | J33: 1 | K33: 1 | L33: 298 | M33: =N33&"-CO2/"&O33 -> t-CO2/t | N33: t | O33: t | T33: =_xlfn.IFS(AND(H33="",O33=""), "", H33=O33, _xlfn.IFS(N33="t", G33*I33, N33="kg", G33*I33/1000, N33="g", G33*I33/1000000, TRUE, "CO2の単位が間違っています"), TRUE, "単位があっていません") -> 29.8 | U33: =T33*1000 -> 29800
A34: 8 | B34: Believe T-3 | C34: Tag4 | D34: tag1 | E34: パーフルオロカーボン(PFC) | F34: その他 | G34: 0.0001 | H34: t | I34: 10000 | J34: 1 | K34: 1 | L34: 10000 | M34: t-CO2/t | N34: t | O34: t | T34: =_xlfn.IFS(AND(H34="",O34=""), "", H34=O34, _xlfn.IFS(N34="t", G34*I34, N34="kg", G34*I34/1000, N34="g", G34*I34/1000000, TRUE, "CO2の単位が間違っています"), TRUE, "単位があっていません") -> 1 | U34: 1000
A35: 9 | I35: 0 | M35: -CO2/ | T35: =_xlfn.IFS(AND(H35="",O35=""), "", H35=O35, _xlfn.IFS(N35="t", G35*I35, N35="kg", G35*I35/1000, N35="g", G35*I35/1000000, TRUE, "CO2の単位が間違っています"), TRUE, "単位があっていません") -> 
A36: 10 | I36: 0 | M36: -CO2/ | T36: =_xlfn.IFS(AND(H36="",O36=""), "", H36=O36, _xlfn.IFS(N36="t", G36*I36, N36="kg", G36*I36/1000, N36="g", G36*I36/1000000, TRUE, "CO2の単位が間違っています"), TRUE, "単位があっていません") -> 
T38: ※活動量の単位と原単位の単位があっていない場合は「単位があっていません」と表示されます。また、CO2の単位にt, kg, g以外の文字を入力した場合は「CO2の単位があっていません」が表示されます。

Sheet SCOPE2_マーケット基準
A1: Scope2．エネルギー起源の間接排出
A2: ■購入した電力、熱の使用に伴う間接排出
A5: 項目データ | H5: エネルギーの物量データ | J5: 排出原単位 | N5: 排出原単位DB | P5: 備考 | R5: 排出量 | U5: 排出量合計 [t-CO2]
A6: 項目番号 | B6: 社名/事業名 | C6: 分類用1 | D6: 分類用2 | E6: エネルギー区分 | F6: 電気事業者名 | G6: 電力メニュー名 | H6: 数値 | I6: 単位 | J6: 数値 | K6: 単位 | L6: CO2単位 (t, kg, gのいずれかを入力) | M6: 分母単位 | N6: 出典 | O6: 項目 | P6: 推測・シナリオの前提条件 | Q6: その他備考 | R6: 排出量 [t-CO2] | S6: 排出量 [kg-CO2]
A7: 1 | B7: Believe T-1 MARKET | C7: Tag1 | D7: tag1 | E7: 電気 | F7: 電力会社A | G7: 通常メニュー | H7: 10000 | I7: =_xlfn.IFS(E7="電気","kWh",OR(E7="産業用蒸気", E7="蒸気(産業用以外)", E7="温水", E7="冷水"),"GJ",TRUE, "エネルギー区分を選択") -> kWh | J7: 0.00047 | K7: =L7&"-CO2/"&M7 -> t-CO2/kWh | L7: t | M7: =_xlfn.IFS(E7="電気","kWh",OR(E7="産業用蒸気", E7="蒸気(産業用以外)", E7="温水", E7="冷水"),"GJ",TRUE, "") -> kWh | N7: 電力会社別排出係数 －R1年実績－R3年1.7環境省、経済産業省 | O7: 全国代替値 | R7: =_xlfn.IFS(AND(I7="",M7=""), "", I7=M7, _xlfn.IFS(L7="t", H7*J7, L7="kg", H7*J7/1000, L7="g", H7*J7/1000000, TRUE, "CO2の単位が間違っています"), TRUE, "単位があっていません") -> 4.7 | S7: =R7*1000 -> 4700 | U7: =IFERROR(SUM(R7:R30),"エラーが発生しています") -> 1259.7
A8: 2 | B8: Believe T-2 MARKET | C8: Tag2 | D8: tag2 | E8: 電気 | F8: 電力会社B | G8: 通常メニュー | H8: 500000 | I8: =_xlfn.IFS(E8="電気","kWh",OR(E8="産業用蒸気", E8="蒸気(産業用以外)", E8="温水", E8="冷水"),"GJ",TRUE, "エネルギー区分を選択") -> kWh | J8: 0.00047 | K8: =L8&"-CO2/"&M8 -> t-CO2/kWh | L8: t | M8: =_xlfn.IFS(E8="電気","kWh",OR(E8="産業用蒸気", E8="蒸気(産業用以外)", E8="温水", E8="冷水"),"GJ",TRUE, "") -> kWh | R8: =_xlfn.IFS(AND(I8="",M8=""), "", I8=M8, _xlfn.IFS(L8="t", H8*J8, L8="kg", H8*J8/1000, L8="g", H8*J8/1000000, TRUE, "CO2の単位が間違っています"), TRUE, "単位があっていません") -> 235 | S8: =R8*1000 -> 235000
A9: 3 | B9: Believe T-3 MARKET | C9: Tag3 | D9: tag1 | E9: 電気 | F9: 電力会社C | G9: 通常メニュー | H9: 500000 | I9: =_xlfn.IFS(E9="電気","kWh",OR(E9="産業用蒸気", E9="蒸気(産業用以外)", E9="温水", E9="冷水"),"GJ",TRUE, "エネルギー区分を選択") -> kWh | J9: 0.00047 | K9: t-CO2/kWh | L9: t | M9: =_xlfn.IFS(E9="電気","kWh",OR(E9="産業用蒸気", E9="蒸気(産業用以外)", E9="温水", E9="冷水"),"GJ",TRUE, "") -> kWh | R9: =_xlfn.IFS(AND(I9="",M9=""), "", I9=M9, _xlfn.IFS(L9="t", H9*J9, L9="kg", H9*J9/1000, L9="g", H9*J9/1000000, TRUE, "CO2の単位が間違っています"), TRUE, "単位があっていません") -> 235 | S9: 235000
A10: 4 | B10: Believe T-4 MARKET | C10: Tag4 | D10: tag2 | E10: 電気 | F10: 電力会社A | G10: 通常メニュー | H10: 500000 | I10: =_xlfn.IFS(E10="電気","kWh",OR(E10="産業用蒸気", E10="蒸気(産業用以外)", E10="温水", E10="冷水"),"GJ",TRUE, "エネルギー区分を選択") -> kWh | J10: 0.00047 | K10: t-CO2/kWh | L10: t | M10: =_xlfn.IFS(E10="電気","kWh",OR(E10="産業用蒸気", E10="蒸気(産業用以外)", E10="温水", E10="冷水"),"GJ",TRUE, "") -> kWh | R10: =_xlfn.IFS(AND(I10="",M10=""), "", I10=M10, _xlfn.IFS(L10="t", H10*J10, L10="kg", H10*J10/1000, L10="g", H10*J10/1000000, TRUE, "CO2の単位が間違っています"), TRUE, "単位があっていません") -> 235 | S10: 235000
A11: 5 | B11: Believe T-5 MARKET | C11: Tag1 | D11: tag1 | E11: 電気 | F11: 電力会社B | G11: 通常メニュー | H11: 500000 | I11: =_xlfn.IFS(E11="電気","kWh",OR(E11="産業用蒸気", E11="蒸気(産業用以外)", E11="温水", E11="冷水"),"GJ",TRUE, "エネルギー区分を選択") -> kWh | J11: 0.00047 | K11: =L11&"-CO2/"&M11 -> t-CO2/kWh | L11: t | M11: =_xlfn.IFS(E11="電気","kWh",OR(E11="産業用蒸気", E11="蒸気(産業用以外)", E11="温水", E11="冷水"),"GJ",TRUE, "") -> kWh | R11: =_xlfn.IFS(AND(I11="",M11=""), "", I11=M11, _xlfn.IFS(L11="t", H11*J11, L11="kg", H11*J11/1000, L11="g", H11*J11/1000000, TRUE, "CO2の単位が間違っています"), TRUE, "単位があっていません") -> 235 | S11: =R11*1000 -> 235000
A12: 6 | B12: Believe T-1 MARKET | C12: Tag2 | D12: tag2 | E12: 電気 | F12: 電力会社C | G12: 通常メニュー | H12: 500000 | I12: =_xlfn.IFS(E12="電気","kWh",OR(E12="産業用蒸気", E12="蒸気(産業用以外)", E12="温水", E12="冷水"),"GJ",TRUE, "エネルギー区分を選択") -> kWh | J12: 0.00047 | K12: t-CO2/kWh | L12: t | M12: =_xlfn.IFS(E12="電気","kWh",OR(E12="産業用蒸気", E12="蒸気(産業用以外)", E12="温水", E12="冷水"),"GJ",TRUE, "") -> kWh | R12: =_xlfn.IFS(AND(I12="",M12=""), "", I12=M12, _xlfn.IFS(L12="t", H12*J12, L12="kg", H12*J12/1000, L12="g", H12*J12/1000000, TRUE, "CO2の単位が間違っています"), TRUE, "単位があっていません") -> 235 | S12: 235000
A13: 7 | B13: Believe T-2 | C13: Tag3 | D13: tag1 | E13: 産業用蒸気 | H13: 100000 | I13: =_xlfn.IFS(E13="電気","kWh",OR(E13="産業用蒸気", E13="蒸気(産業用以外)", E13="温水", E13="冷水"),"GJ",TRUE, "エネルギー区分を選択") -> GJ | J13: 0.0001 | K13: t-CO2/GJ | L13: t | M13: =_xlfn.IFS(E13="電気","kWh",OR(E13="産業用蒸気", E13="蒸気(産業用以外)", E13="温水", E13="冷水"),"GJ",TRUE, "") -> GJ | R13: =_xlfn.IFS(AND(I13="",M13=""), "", I13=M13, _xlfn.IFS(L13="t", H13*J13, L13="kg", H13*J13/1000, L13="g", H13*J13/1000000, TRUE, "CO2の単位が間違っています"), TRUE, "単位があっていません") -> 10 | S13: 10000
A14: 8 | B14: Believe T-3 | C14: Tag4 | D14: tag2 | E14: 産業用蒸気 | H14: 100000 | I14: =_xlfn.IFS(E14="電気","kWh",OR(E14="産業用蒸気", E14="蒸気(産業用以外)", E14="温水", E14="冷水"),"GJ",TRUE, "エネルギー区分を選択") -> GJ | J14: 0.0001 | K14: t-CO2/GJ | L14: t | M14: =_xlfn.IFS(E14="電気","kWh",OR(E14="産業用蒸気", E14="蒸気(産業用以外)", E14="温水", E14="冷水"),"GJ",TRUE, "") -> GJ | R14: =_xlfn.IFS(AND(I14="",M14=""), "", I14=M14, _xlfn.IFS(L14="t", H14*J14, L14="kg", H14*J14/1000, L14="g", H14*J14/1000000, TRUE, "CO2の単位が間違っています"), TRUE, "単位があっていません") -> 10 | S14: 10000
A15: 9 | B15: Believe T-4 | C15: Tag1 | D15: tag1 | E15: 蒸気(産業用以外) | H15: 100000 | I15: =_xlfn.IFS(E15="電気","kWh",OR(E15="産業用蒸気", E15="蒸気(産業用以外)", E15="温水", E15="冷水"),"GJ",TRUE, "エネルギー区分を選択") -> GJ | J15: 0.0001 | K15: t-CO2/GJ | L15: t | M15: =_xlfn.IFS(E15="電気","kWh",OR(E15="産業用蒸気", E15="蒸気(産業用以外)", E15="温水", E15="冷水"),"GJ",TRUE, "") -> GJ | R15: =_xlfn.IFS(AND(I15="",M15=""), "", I15=M15, _xlfn.IFS(L15="t", H15*J15, L15="kg", H15*J15/1000, L15="g", H15*J15/1000000, TRUE, "CO2の単位が間違っています"), TRUE, "単位があっていません") -> 10 | S15: 10000
A16: 10 | B16: Believe T-1 | C16: Tag2 | D16: tag2 | E16: 蒸気(産業用以外) | H16: 100000 | I16: =_xlfn.IFS(E16="電気","kWh",OR(E16="産業用蒸気", E16="蒸気(産業用以外)", E16="温水", E16="冷水"),"GJ",TRUE, "エネルギー区分を選択") -> GJ | J16: 0.0001 | K16: t-CO2/GJ | L16: t | M16: =_xlfn.IFS(E16="電気","kWh",OR(E16="産業用蒸気", E16="蒸気(産業用以外)", E16="温水", E16="冷水"),"GJ",TRUE, "") -> GJ | R16: =_xlfn.IFS(AND(I16="",M16=""), "", I16=M16, _xlfn.IFS(L16="t", H16*J16, L16="kg", H16*J16/1000, L16="g", H16*J16/1000000, TRUE, "CO2の単位が間違っています"), TRUE, "単位があっていません") -> 10 | S16: 10000
A17: 11 | B17: Believe T-2 | C17: Tag3 | D17: tag1 | E17: 温水 | H17: 100000 | I17: =_xlfn.IFS(E17="電気","kWh",OR(E17="産業用蒸気", E17="蒸気(産業用以外)", E17="温水", E17="冷水"),"GJ",TRUE, "エネルギー区分を選択") -> GJ | J17: 0.0001 | K17: t-CO2/GJ | L17: t | M17: =_xlfn.IFS(E17="電気","kWh",OR(E17="産業用蒸気", E17="蒸気(産業用以外)", E17="温水", E17="冷水"),"GJ",TRUE, "") -> GJ | R17: =_xlfn.IFS(AND(I17="",M17=""), "", I17=M17, _xlfn.IFS(L17="t", H17*J17, L17="kg", H17*J17/1000, L17="g", H17*J17/1000000, TRUE, "CO2の単位が間違っています"), TRUE, "単位があっていません") -> 10 | S17: 10000
A18: 12 | B18: Believe T-3 | C18: Tag4 | D18: tag2 | E18: 温水 | H18: 100000 | I18: =_xlfn.IFS(E18="電気","kWh",OR(E18="産業用蒸気", E18="蒸気(産業用以外)", E18="温水", E18="冷水"),"GJ",TRUE, "エネルギー区分を選択") -> GJ | J18: 0.0001 | K18: t-CO2/GJ | L18: t | M18: =_xlfn.IFS(E18="電気","kWh",OR(E18="産業用蒸気", E18="蒸気(産業用以外)", E18="温水", E18="冷水"),"GJ",TRUE, "") -> GJ | R18: =_xlfn.IFS(AND(I18="",M18=""), "", I18=M18, _xlfn.IFS(L18="t", H18*J18, L18="kg", H18*J18/1000, L18="g", H18*J18/1000000, TRUE, "CO2の単位が間違っています"), TRUE, "単位があっていません") -> 10 | S18: 10000
A19: 13 | B19: Believe T-4 | C19: Tag1 | D19: tag1 | E19: 冷水 | H19: 100000 | I19: =_xlfn.IFS(E19="電気","kWh",OR(E19="産業用蒸気", E19="蒸気(産業用以外)", E19="温水", E19="冷水"),"GJ",TRUE, "エネルギー区分を選択") -> GJ | J19: 0.0001 | K19: t-CO2/GJ | L19: t | M19: =_xlfn.IFS(E19="電気","kWh",OR(E19="産業用蒸気", E19="蒸気(産業用以外)", E19="温水", E19="冷水"),"GJ",TRUE, "") -> GJ | R19: =_xlfn.IFS(AND(I19="",M19=""), "", I19=M19, _xlfn.IFS(L19="t", H19*J19, L19="kg", H19*J19/1000, L19="g", H19*J19/1000000, TRUE, "CO2の単位が間違っています"), TRUE, "単位があっていません") -> 10 | S19: 10000
A20: 14 | B20: Believe T-5 | C20: Tag2 | D20: tag2 | E20: 冷水 | H20: 100000 | I20: =_xlfn.IFS(E20="電気","kWh",OR(E20="産業用蒸気", E20="蒸気(産業用以外)", E20="温水", E20="冷水"),"GJ",TRUE, "エネルギー区分を選択") -> GJ | J20: 0.0001 | K20: t-CO2/GJ | L20: t | M20: =_xlfn.IFS(E20="電気","kWh",OR(E20="産業用蒸気", E20="蒸気(産業用以外)", E20="温水", E20="冷水"),"GJ",TRUE, "") -> GJ | R20: =_xlfn.IFS(AND(I20="",M20=""), "", I20=M20, _xlfn.IFS(L20="t", H20*J20, L20="kg", H20*J20/1000, L20="g", H20*J20/1000000, TRUE, "CO2の単位が間違っています"), TRUE, "単位があっていません") -> 10 | S20: 10000
I21: =_xlfn.IFS(E21="電気","kWh",OR(E21="産業用蒸気", E21="蒸気(産業用以外)", E21="温水", E21="冷水"),"GJ",TRUE, "エネルギー区分を選択") -> エネルギー区分を選択 | K21: =L21&"-CO2/"&M21 -> t-CO2/ | L21: t | M21: =_xlfn.IFS(E21="電気","kWh",OR(E21="産業用蒸気", E21="蒸気(産業用以外)", E21="温水", E21="冷水"),"GJ",TRUE, "") ->  | R21: =_xlfn.IFS(AND(I21="",M21=""), "", I21=M21, _xlfn.IFS(L21="t", H21*J21, L21="kg", H21*J21/1000, L21="g", H21*J21/1000000, TRUE, "CO2の単位が間違っています"), TRUE, "単位があっていません") -> 単位があっていません | S21: =R21*1000 -> 
I22: =_xlfn.IFS(E22="電気","kWh",OR(E22="産業用蒸気", E22="蒸気(産業用以外)", E22="温水", E22="冷水"),"GJ",TRUE, "エネルギー区分を選択") -> エネルギー区分を選択 | K22: t-CO2/ | L22: t | M22: =_xlfn.IFS(E22="電気","kWh",OR(E22="産業用蒸気", E22="蒸気(産業用以外)", E22="温水", E22="冷水"),"GJ",TRUE, "") ->  | R22: =_xlfn.IFS(AND(I22="",M22=""), "", I22=M22, _xlfn.IFS(L22="t", H22*J22, L22="kg", H22*J22/1000, L22="g", H22*J22/1000000, TRUE, "CO2の単位が間違っています"), TRUE, "単位があっていません") -> 単位があっていません
I23: =_xlfn.IFS(E23="電気","kWh",OR(E23="産業用蒸気", E23="蒸気(産業用以外)", E23="温水", E23="冷水"),"GJ",TRUE, "エネルギー区分を選択") -> エネルギー区分を選択 | K23: t-CO2/ | L23: t | M23: =_xlfn.IFS(E23="電気","kWh",OR(E23="産業用蒸気", E23="蒸気(産業用以外)", E23="温水", E23="冷水"),"GJ",TRUE, "") ->  | R23: =_xlfn.IFS(AND(I23="",M23=""), "", I23=M23, _xlfn.IFS(L23="t", H23*J23, L23="kg", H23*J23/1000, L23="g", H23*J23/1000000, TRUE, "CO2の単位が間違っています"), TRUE, "単位があっていません") -> 単位があっていません
I24: =_xlfn.IFS(E24="電気","kWh",OR(E24="産業用蒸気", E24="蒸気(産業用以外)", E24="温水", E24="冷水"),"GJ",TRUE, "エネルギー区分を選択") -> エネルギー区分を選択 | K24: t-CO2/ | L24: t | M24: =_xlfn.IFS(E24="電気","kWh",OR(E24="産業用蒸気", E24="蒸気(産業用以外)", E24="温水", E24="冷水"),"GJ",TRUE, "") ->  | R24: =_xlfn.IFS(AND(I24="",M24=""), "", I24=M24, _xlfn.IFS(L24="t", H24*J24, L24="kg", H24*J24/1000, L24="g", H24*J24/1000000, TRUE, "CO2の単位が間違っています"), TRUE, "単位があっていません") -> 単位があっていません
I25: =_xlfn.IFS(E25="電気","kWh",OR(E25="産業用蒸気", E25="蒸気(産業用以外)", E25="温水", E25="冷水"),"GJ",TRUE, "エネルギー区分を選択") -> エネルギー区分を選択 | K25: t-CO2/ | L25: t | M25: =_xlfn.IFS(E25="電気","kWh",OR(E25="産業用蒸気", E25="蒸気(産業用以外)", E25="温水", E25="冷水"),"GJ",TRUE, "") ->  | R25: =_xlfn.IFS(AND(I25="",M25=""), "", I25=M25, _xlfn.IFS(L25="t", H25*J25, L25="kg", H25*J25/1000, L25="g", H25*J25/1000000, TRUE, "CO2の単位が間違っています"), TRUE, "単位があっていません") -> 単位があっていません
I26: =_xlfn.IFS(E26="電気","kWh",OR(E26="産業用蒸気", E26="蒸気(産業用以外)", E26="温水", E26="冷水"),"GJ",TRUE, "エネルギー区分を選択") -> エネルギー区分を選択 | K26: t-CO2/ | L26: t | M26: =_xlfn.IFS(E26="電気","kWh",OR(E26="産業用蒸気", E26="蒸気(産業用以外)", E26="温水", E26="冷水"),"GJ",TRUE, "") ->  | R26: =_xlfn.IFS(AND(I26="",M26=""), "", I26=M26, _xlfn.IFS(L26="t", H26*J26, L26="kg", H26*J26/1000, L26="g", H26*J26/1000000, TRUE, "CO2の単位が間違っています"), TRUE, "単位があっていません") -> 単位があっていません
I27: =_xlfn.IFS(E27="電気","kWh",OR(E27="産業用蒸気", E27="蒸気(産業用以外)", E27="温水", E27="冷水"),"GJ",TRUE, "エネルギー区分を選択") -> エネルギー区分を選択 | K27: t-CO2/ | L27: t | M27: =_xlfn.IFS(E27="電気","kWh",OR(E27="産業用蒸気", E27="蒸気(産業用以外)", E27="温水", E27="冷水"),"GJ",TRUE, "") ->  | R27: =_xlfn.IFS(AND(I27="",M27=""), "", I27=M27, _xlfn.IFS(L27="t", H27*J27, L27="kg", H27*J27/1000, L27="g", H27*J27/1000000, TRUE, "CO2の単位が間違っています"), TRUE, "単位があっていません") -> 単位があっていません
I28: =_xlfn.IFS(E28="電気","kWh",OR(E28="産業用蒸気", E28="蒸気(産業用以外)", E28="温水", E28="冷水"),"GJ",TRUE, "エネルギー区分を選択") -> エネルギー区分を選択 | K28: t-CO2/ | L28: t | M28: =_xlfn.IFS(E28="電気","kWh",OR(E28="産業用蒸気", E28="蒸気(産業用以外)", E28="温水", E28="冷水"),"GJ",TRUE, "") ->  | R28: =_xlfn.IFS(AND(I28="",M28=""), "", I28=M28, _xlfn.IFS(L28="t", H28*J28, L28="kg", H28*J28/1000, L28="g", H28*J28/1000000, TRUE, "CO2の単位が間違っています"), TRUE, "単位があっていません") -> 単位があっていません
I29: =_xlfn.IFS(E29="電気","kWh",OR(E29="産業用蒸気", E29="蒸気(産業用以外)", E29="温水", E29="冷水"),"GJ",TRUE, "エネルギー区分を選択") -> エネルギー区分を選択 | K29: t-CO2/ | L29: t | M29: =_xlfn.IFS(E29="電気","kWh",OR(E29="産業用蒸気", E29="蒸気(産業用以外)", E29="温水", E29="冷水"),"GJ",TRUE, "") ->  | R29: =_xlfn.IFS(AND(I29="",M29=""), "", I29=M29, _xlfn.IFS(L29="t", H29*J29, L29="kg", H29*J29/1000, L29="g", H29*J29/1000000, TRUE, "CO2の単位が間違っています"), TRUE, "単位があっていません") -> 単位があっていません
I30: =_xlfn.IFS(E30="電気","kWh",OR(E30="産業用蒸気", E30="蒸気(産業用以外)", E30="温水", E30="冷水"),"GJ",TRUE, "エネルギー区分を選択") -> エネルギー区分を選択 | K30: t-CO2/ | L30: t | M30: =_xlfn.IFS(E30="電気","kWh",OR(E30="産業用蒸気", E30="蒸気(産業用以外)", E30="温水", E30="冷水"),"GJ",TRUE, "") ->  | R30: =_xlfn.IFS(AND(I30="",M30=""), "", I30=M30, _xlfn.IFS(L30="t", H30*J30, L30="kg", H30*J30/1000, L30="g", H30*J30/1000000, TRUE, "CO2の単位が間違っています"), TRUE, "単位があっていません") -> 単位があっていません
R32: ※活動量の単位と原単位の単位があっていない場合は「単位があっていません」と表示されます。また、CO2の単位にt, kg, g以外の文字を入力した場合は「CO2の単位があっていません」が表示されます。

Sheet カテゴリ1_製品
A1: カテゴリ１．購入した製品・サービス
A2: ■調達した製品の上流におけるCO2排出量
A5: 項目データ | G5: 物量・金額データ | I5: 排出原単位 | M5: 排出原単位DB | R5: 備考 | T5: 排出量 | W5: 排出量合計 [t-CO2]
A6: 項目番号 | B6: 社名/事業名 | C6: 分類用1 | D6: 分類用2 | E6: 製品カテゴリ | F6: 購入した製品名 | G6: 数値 | H6: 単位 | I6: 数値 | J6: 単位 | K6: CO2単位 (t, kg, gのいずれかを入力) | L6: 分母単位 | M6: 出典 | N6: 原単位コード選択 (コードか項目どちらか入力して下さい) | O6: 原単位項目選択 (コードか項目どちらか入力して下さい) | P6: 項目 （原単位DBから入力） | Q6: 購入者価格or生産者価格or物量orその他 （いずれかを選択） | R6: 推測・シナリオの前提条件 | S6: その他備考 | T6: 排出量 [t-CO2] | U6: 排出量 [kg-CO2]
I7: =_xlfn.IFS(Q7="物量", VLOOKUP(TRIM(P7),カテゴリ1計算用_原単位DB!D$68:H$528,2,FALSE),Q7="購入者価格", VLOOKUP(TRIM(P7),カテゴリ1計算用_原単位DB!D$68:H$528,5,FALSE), Q7="生産者価格", VLOOKUP(TRIM(P7),カテゴリ1計算用_原単位DB!D$68:H$528,4,FALSE)) ->  | J7: =K7&"-CO2/"&L7 ->  | K7: t | L7: =_xlfn.IFS(Q7="物量", VLOOKUP(TRIM(P7),カテゴリ1計算用_原単位DB!D$68:H$528,3,FALSE),Q7="購入者価格", "百万円", Q7="生産者価格", "百万円") ->  | M7: 環境省 SC-DB v3.2-『5産連表DB』 | P7: =_xlfn.IFS(AND(N7="",O7=""),"",N7="",O7, TRUE, _xlfn.XLOOKUP(N7,カテゴリ1計算用_原単位DB!$B$68:$B$528,カテゴリ1計算用_原単位DB!$D$68:$D$528,"エラー")) ->  | T7: =IF(G7="",0,_xlfn.IFS(AND(H7="",L7=""), "", H7=L7, _xlfn.IFS(K7="t", G7*I7, K7="kg", G7*I7/1000, K7="g", G7*I7/1000000, TRUE, "CO2の単位が間違っています"), TRUE, "単位があっていません")) -> 0 | U7: =T7*1000 -> 0 | W7: =IFERROR(SUM(T7:T35),"エラーが発生しています") -> 0
I8: =_xlfn.IFS(Q8="物量", VLOOKUP(TRIM(P8),カテゴリ1計算用_原単位DB!D$68:H$528,2,FALSE),Q8="購入者価格", VLOOKUP(TRIM(P8),カテゴリ1計算用_原単位DB!D$68:H$528,5,FALSE), Q8="生産者価格", VLOOKUP(TRIM(P8),カテゴリ1計算用_原単位DB!D$68:H$528,4,FALSE)) ->  | J8: =K8&"-CO2/"&L8 ->  | K8: t | L8: =_xlfn.IFS(Q8="物量", VLOOKUP(TRIM(P8),カテゴリ1計算用_原単位DB!D$68:H$528,3,FALSE),Q8="購入者価格", "百万円", Q8="生産者価格", "百万円") ->  | M8: 環境省 SC-DB v3.2-『5産連表DB』 | P8: =_xlfn.IFS(AND(N8="",O8=""),"",N8="",O8, TRUE, _xlfn.XLOOKUP(N8,カテゴリ1計算用_原単位DB!$B$68:$B$528,カテゴリ1計算用_原単位DB!$D$68:$D$528,"エラー")) ->  | T8: =IF(G8="",0,_xlfn.IFS(AND(H8="",L8=""), "", H8=L8, _xlfn.IFS(K8="t", G8*I8, K8="kg", G8*I8/1000, K8="g", G8*I8/1000000, TRUE, "CO2の単位が間違っています"), TRUE, "単位があっていません")) -> 0 | U8: =T8*1000 -> 0
I9: =_xlfn.IFS(Q9="物量", VLOOKUP(TRIM(P9),カテゴリ1計算用_原単位DB!D$68:H$528,2,FALSE),Q9="購入者価格", VLOOKUP(TRIM(P9),カテゴリ1計算用_原単位DB!D$68:H$528,5,FALSE), Q9="生産者価格", VLOOKUP(TRIM(P9),カテゴリ1計算用_原単位DB!D$68:H$528,4,FALSE)) ->  | K9: t | L9: =_xlfn.IFS(Q9="物量", VLOOKUP(TRIM(P9),カテゴリ1計算用_原単位DB!D$68:H$528,3,FALSE),Q9="購入者価格", "百万円", Q9="生産者価格", "百万円") ->  | M9: 環境省 SC-DB v3.2-『5産連表DB』 | P9: =_xlfn.IFS(AND(N9="",O9=""),"",N9="",O9, TRUE, _xlfn.XLOOKUP(N9,カテゴリ1計算用_原単位DB!$B$68:$B$528,カテゴリ1計算用_原単位DB!$D$68:$D$528,"エラー")) ->  | T9: =IF(G9="",0,_xlfn.IFS(AND(H9="",L9=""), "", H9=L9, _xlfn.IFS(K9="t", G9*I9, K9="kg", G9*I9/1000, K9="g", G9*I9/1000000, TRUE, "CO2の単位が間違っています"), TRUE, "単位があっていません")) -> 0 | U9: 0
I10: =_xlfn.IFS(Q10="物量", VLOOKUP(TRIM(P10),カテゴリ1計算用_原単位DB!D$68:H$528,2,FALSE),Q10="購入者価格", VLOOKUP(TRIM(P10),カテゴリ1計算用_原単位DB!D$68:H$528,5,FALSE), Q10="生産者価格", VLOOKUP(TRIM(P10),カテゴリ1計算用_原単位DB!D$68:H$528,4,FALSE)) ->  | K10: t | L10: =_xlfn.IFS(Q10="物量", VLOOKUP(TRIM(P10),カテゴリ1計算用_原単位DB!D$68:H$528,3,FALSE),Q10="購入者価格", "百万円", Q10="生産者価格", "百万円") ->  | M10: 環境省 SC-DB v3.2-『5産連表DB』 | P10: =_xlfn.IFS(AND(N10="",O10=""),"",N10="",O10, TRUE, _xlfn.XLOOKUP(N10,カテゴリ1計算用_原単位DB!$B$68:$B$528,カテゴリ1計算用_原単位DB!$D$68:$D$528,"エラー")) ->  | T10: =IF(G10="",0,_xlfn.IFS(AND(H10="",L10=""), "", H10=L10, _xlfn.IFS(K10="t", G10*I10, K10="kg", G10*I10/1000, K10="g", G10*I10/1000000, TRUE, "CO2の単位が間違っています"), TRUE, "単位があっていません")) -> 0 | U10: 0
I11: =_xlfn.IFS(Q11="物量", VLOOKUP(TRIM(P11),カテゴリ1計算用_原単位DB!D$68:H$528,2,FALSE),Q11="購入者価格", VLOOKUP(TRIM(P11),カテゴリ1計算用_原単位DB!D$68:H$528,5,FALSE), Q11="生産者価格", VLOOKUP(TRIM(P11),カテゴリ1計算用_原単位DB!D$68:H$528,4,FALSE)) ->  | J11: =K11&"-CO2/"&L11 ->  | K11: t | L11: =_xlfn.IFS(Q11="物量", VLOOKUP(TRIM(P11),カテゴリ1計算用_原単位DB!D$68:H$528,3,FALSE),Q11="購入者価格", "百万円", Q11="生産者価格", "百万円") ->  | M11: 環境省 SC-DB v3.2-『5産連表DB』 | P11: =_xlfn.IFS(AND(N11="",O11=""),"",N11="",O11, TRUE, _xlfn.XLOOKUP(N11,カテゴリ1計算用_原単位DB!$B$68:$B$528,カテゴリ1計算用_原単位DB!$D$68:$D$528,"エラー")) ->  | T11: =IF(G11="",0,_xlfn.IFS(AND(H11="",L11=""), "", H11=L11, _xlfn.IFS(K11="t", G11*I11, K11="kg", G11*I11/1000, K11="g", G11*I11/1000000, TRUE, "CO2の単位が間違っています"), TRUE, "単位があっていません")) -> 0 | U11: =T11*1000 -> 0
I12: =_xlfn.IFS(Q12="物量", VLOOKUP(TRIM(P12),カテゴリ1計算用_原単位DB!D$68:H$528,2,FALSE),Q12="購入者価格", VLOOKUP(TRIM(P12),カテゴリ1計算用_原単位DB!D$68:H$528,5,FALSE), Q12="生産者価格", VLOOKUP(TRIM(P12),カテゴリ1計算用_原単位DB!D$68:H$528,4,FALSE)) ->  | K12: t | L12: =_xlfn.IFS(Q12="物量", VLOOKUP(TRIM(P12),カテゴリ1計算用_原単位DB!D$68:H$528,3,FALSE),Q12="購入者価格", "百万円", Q12="生産者価格", "百万円") ->  | M12: 環境省 SC-DB v3.2-『5産連表DB』 | P12: =_xlfn.IFS(AND(N12="",O12=""),"",N12="",O12, TRUE, _xlfn.XLOOKUP(N12,カテゴリ1計算用_原単位DB!$B$68:$B$528,カテゴリ1計算用_原単位DB!$D$68:$D$528,"エラー")) ->  | T12: =IF(G12="",0,_xlfn.IFS(AND(H12="",L12=""), "", H12=L12, _xlfn.IFS(K12="t", G12*I12, K12="kg", G12*I12/1000, K12="g", G12*I12/1000000, TRUE, "CO2の単位が間違っています"), TRUE, "単位があっていません")) -> 0 | U12: 0
I13: =_xlfn.IFS(Q13="物量", VLOOKUP(TRIM(P13),カテゴリ1計算用_原単位DB!D$68:H$528,2,FALSE),Q13="購入者価格", VLOOKUP(TRIM(P13),カテゴリ1計算用_原単位DB!D$68:H$528,5,FALSE), Q13="生産者価格", VLOOKUP(TRIM(P13),カテゴリ1計算用_原単位DB!D$68:H$528,4,FALSE)) ->  | K13: t | L13: =_xlfn.IFS(Q13="物量", VLOOKUP(TRIM(P13),カテゴリ1計算用_原単位DB!D$68:H$528,3,FALSE),Q13="購入者価格", "百万円", Q13="生産者価格", "百万円") ->  | M13: 環境省 SC-DB v3.2-『5産連表DB』 | P13: =_xlfn.IFS(AND(N13="",O13=""),"",N13="",O13, TRUE, _xlfn.XLOOKUP(N13,カテゴリ1計算用_原単位DB!$B$68:$B$528,カテゴリ1計算用_原単位DB!$D$68:$D$528,"エラー")) ->  | T13: =IF(G13="",0,_xlfn.IFS(AND(H13="",L13=""), "", H13=L13, _xlfn.IFS(K13="t", G13*I13, K13="kg", G13*I13/1000, K13="g", G13*I13/1000000, TRUE, "CO2の単位が間違っています"), TRUE, "単位があっていません")) -> 0 | U13: 0
I14: =_xlfn.IFS(Q14="物量", VLOOKUP(TRIM(P14),カテゴリ1計算用_原単位DB!D$68:H$528,2,FALSE),Q14="購入者価格", VLOOKUP(TRIM(P14),カテゴリ1計算用_原単位DB!D$68:H$528,5,FALSE), Q14="生産者価格", VLOOKUP(TRIM(P14),カテゴリ1計算用_原単位DB!D$68:H$528,4,FALSE)) ->  | K14: t | L14: =_xlfn.IFS(Q14="物量", VLOOKUP(TRIM(P14),カテゴリ1計算用_原単位DB!D$68:H$528,3,FALSE),Q14="購入者価格", "百万円", Q14="生産者価格", "百万円") ->  | M14: 環境省 SC-DB v3.2-『5産連表DB』 | P14: =_xlfn.IFS(AND(N14="",O14=""),"",N14="",O14, TRUE, _xlfn.XLOOKUP(N14,カテゴリ1計算用_原単位DB!$B$68:$B$528,カテゴリ1計算用_原単位DB!$D$68:$D$528,"エラー")) ->  | T14: =IF(G14="",0,_xlfn.IFS(AND(H14="",L14=""), "", H14=L14, _xlfn.IFS(K14="t", G14*I14, K14="kg", G14*I14/1000, K14="g", G14*I14/1000000, TRUE, "CO2の単位が間違っています"), TRUE, "単位があっていません")) -> 0 | U14: 0
I15: =_xlfn.IFS(Q15="物量", VLOOKUP(TRIM(P15),カテゴリ1計算用_原単位DB!D$68:H$528,2,FALSE),Q15="購入者価格", VLOOKUP(TRIM(P15),カテゴリ1計算用_原単位DB!D$68:H$528,5,FALSE), Q15="生産者価格", VLOOKUP(TRIM(P15),カテゴリ1計算用_原単位DB!D$68:H$528,4,FALSE)) ->  | K15: t | L15: =_xlfn.IFS(Q15="物量", VLOOKUP(TRIM(P15),カテゴリ1計算用_原単位DB!D$68:H$528,3,FALSE),Q15="購入者価格", "百万円", Q15="生産者価格", "百万円") ->  | M15: 環境省 SC-DB v3.2-『5産連表DB』 | P15: =_xlfn.IFS(AND(N15="",O15=""),"",N15="",O15, TRUE, _xlfn.XLOOKUP(N15,カテゴリ1計算用_原単位DB!$B$68:$B$528,カテゴリ1計算用_原単位DB!$D$68:$D$528,"エラー")) ->  | T15: =IF(G15="",0,_xlfn.IFS(AND(H15="",L15=""), "", H15=L15, _xlfn.IFS(K15="t", G15*I15, K15="kg", G15*I15/1000, K15="g", G15*I15/1000000, TRUE, "CO2の単位が間違っています"), TRUE, "単位があっていません")) -> 0 | U15: 0
I16: =_xlfn.IFS(Q16="物量", VLOOKUP(TRIM(P16),カテゴリ1計算用_原単位DB!D$68:H$528,2,FALSE),Q16="購入者価格", VLOOKUP(TRIM(P16),カテゴリ1計算用_原単位DB!D$68:H$528,5,FALSE), Q16="生産者価格", VLOOKUP(TRIM(P16),カテゴリ1計算用_原単位DB!D$68:H$528,4,FALSE)) ->  | K16: t | L16: =_xlfn.IFS(Q16="物量", VLOOKUP(TRIM(P16),カテゴリ1計算用_原単位DB!D$68:H$528,3,FALSE),Q16="購入者価格", "百万円", Q16="生産者価格", "百万円") ->  | M16: 環境省 SC-DB v3.2-『5産連表DB』 | P16: =_xlfn.IFS(AND(N16="",O16=""),"",N16="",O16, TRUE, _xlfn.XLOOKUP(N16,カテゴリ1計算用_原単位DB!$B$68:$B$528,カテゴリ1計算用_原単位DB!$D$68:$D$528,"エラー")) ->  | T16: =IF(G16="",0,_xlfn.IFS(AND(H16="",L16=""), "", H16=L16, _xlfn.IFS(K16="t", G16*I16, K16="kg", G16*I16/1000, K16="g", G16*I16/1000000, TRUE, "CO2の単位が間違っています"), TRUE, "単位があっていません")) -> 0 | U16: 0
I17: =_xlfn.IFS(Q17="物量", VLOOKUP(TRIM(P17),カテゴリ1計算用_原単位DB!D$68:H$528,2,FALSE),Q17="購入者価格", VLOOKUP(TRIM(P17),カテゴリ1計算用_原単位DB!D$68:H$528,5,FALSE), Q17="生産者価格", VLOOKUP(TRIM(P17),カテゴリ1計算用_原単位DB!D$68:H$528,4,FALSE)) ->  | K17: t | L17: =_xlfn.IFS(Q17="物量", VLOOKUP(TRIM(P17),カテゴリ1計算用_原単位DB!D$68:H$528,3,FALSE),Q17="購入者価格", "百万円", Q17="生産者価格", "百万円") ->  | M17: 環境省 SC-DB v3.2-『5産連表DB』 | P17: =_xlfn.IFS(AND(N17="",O17=""),"",N17="",O17, TRUE, _xlfn.XLOOKUP(N17,カテゴリ1計算用_原単位DB!$B$68:$B$528,カテゴリ1計算用_原単位DB!$D$68:$D$528,"エラー")) ->  | T17: =IF(G17="",0,_xlfn.IFS(AND(H17="",L17=""), "", H17=L17, _xlfn.IFS(K17="t", G17*I17, K17="kg", G17*I17/1000, K17="g", G17*I17/1000000, TRUE, "CO2の単位が間違っています"), TRUE, "単位があっていません")) -> 0 | U17: 0
I18: =_xlfn.IFS(Q18="物量", VLOOKUP(TRIM(P18),カテゴリ1計算用_原単位DB!D$68:H$528,2,FALSE),Q18="購入者価格", VLOOKUP(TRIM(P18),カテゴリ1計算用_原単位DB!D$68:H$528,5,FALSE), Q18="生産者価格", VLOOKUP(TRIM(P18),カテゴリ1計算用_原単位DB!D$68:H$528,4,FALSE)) ->  | K18: t | L18: =_xlfn.IFS(Q18="物量", VLOOKUP(TRIM(P18),カテゴリ1計算用_原単位DB!D$68:H$528,3,FALSE),Q18="購入者価格", "百万円", Q18="生産者価格", "百万円") ->  | M18: 環境省 SC-DB v3.2-『5産連表DB』 | P18: =_xlfn.IFS(AND(N18="",O18=""),"",N18="",O18, TRUE, _xlfn.XLOOKUP(N18,カテゴリ1計算用_原単位DB!$B$68:$B$528,カテゴリ1計算用_原単位DB!$D$68:$D$528,"エラー")) ->  | T18: =IF(G18="",0,_xlfn.IFS(AND(H18="",L18=""), "", H18=L18, _xlfn.IFS(K18="t", G18*I18, K18="kg", G18*I18/1000, K18="g", G18*I18/1000000, TRUE, "CO2の単位が間違っています"), TRUE, "単位があっていません")) -> 0 | U18: 0
I19: =_xlfn.IFS(Q19="物量", VLOOKUP(TRIM(P19),カテゴリ1計算用_原単位DB!D$68:H$528,2,FALSE),Q19="購入者価格", VLOOKUP(TRIM(P19),カテゴリ1計算用_原単位DB!D$68:H$528,5,FALSE), Q19="生産者価格", VLOOKUP(TRIM(P19),カテゴリ1計算用_原単位DB!D$68:H$528,4,FALSE)) ->  | K19: t | L19: =_xlfn.IFS(Q19="物量", VLOOKUP(TRIM(P19),カテゴリ1計算用_原単位DB!D$68:H$528,3,FALSE),Q19="購入者価格", "百万円", Q19="生産者価格", "百万円") ->  | M19: 環境省 SC-DB v3.2-『5産連表DB』 | P19: =_xlfn.IFS(AND(N19="",O19=""),"",N19="",O19, TRUE, _xlfn.XLOOKUP(N19,カテゴリ1計算用_原単位DB!$B$68:$B$528,カテゴリ1計算用_原単位DB!$D$68:$D$528,"エラー")) ->  | T19: =IF(G19="",0,_xlfn.IFS(AND(H19="",L19=""), "", H19=L19, _xlfn.IFS(K19="t", G19*I19, K19="kg", G19*I19/1000, K19="g", G19*I19/1000000, TRUE, "CO2の単位が間違っています"), TRUE, "単位があっていません")) -> 0 | U19: 0
I20: =_xlfn.IFS(Q20="物量", VLOOKUP(TRIM(P20),カテゴリ1計算用_原単位DB!D$68:H$528,2,FALSE),Q20="購入者価格", VLOOKUP(TRIM(P20),カテゴリ1計算用_原単位DB!D$68:H$528,5,FALSE), Q20="生産者価格", VLOOKUP(TRIM(P20),カテゴリ1計算用_原単位DB!D$68:H$528,4,FALSE)) ->  | K20: t | L20: =_xlfn.IFS(Q20="物量", VLOOKUP(TRIM(P20),カテゴリ1計算用_原単位DB!D$68:H$528,3,FALSE),Q20="購入者価格", "百万円", Q20="生産者価格", "百万円") ->  | M20: 環境省 SC-DB v3.2-『5産連表DB』 | P20: =_xlfn.IFS(AND(N20="",O20=""),"",N20="",O20, TRUE, _xlfn.XLOOKUP(N20,カテゴリ1計算用_原単位DB!$B$68:$B$528,カテゴリ1計算用_原単位DB!$D$68:$D$528,"エラー")) ->  | T20: =IF(G20="",0,_xlfn.IFS(AND(H20="",L20=""), "", H20=L20, _xlfn.IFS(K20="t", G20*I20, K20="kg", G20*I20/1000, K20="g", G20*I20/1000000, TRUE, "CO2の単位が間違っています"), TRUE, "単位があっていません")) -> 0 | U20: 0
I21: =_xlfn.IFS(Q21="物量", VLOOKUP(TRIM(P21),カテゴリ1計算用_原単位DB!D$68:H$528,2,FALSE),Q21="購入者価格", VLOOKUP(TRIM(P21),カテゴリ1計算用_原単位DB!D$68:H$528,5,FALSE), Q21="生産者価格", VLOOKUP(TRIM(P21),カテゴリ1計算用_原単位DB!D$68:H$528,4,FALSE)) ->  | K21: t | L21: =_xlfn.IFS(Q21="物量", VLOOKUP(TRIM(P21),カテゴリ1計算用_原単位DB!D$68:H$528,3,FALSE),Q21="購入者価格", "百万円", Q21="生産者価格", "百万円") ->  | M21: 環境省 SC-DB v3.2-『5産連表DB』 | P21: =_xlfn.IFS(AND(N21="",O21=""),"",N21="",O21, TRUE, _xlfn.XLOOKUP(N21,カテゴリ1計算用_原単位DB!$B$68:$B$528,カテゴリ1計算用_原単位DB!$D$68:$D$528,"エラー")) ->  | T21: =IF(G21="",0,_xlfn.IFS(AND(H21="",L21=""), "", H21=L21, _xlfn.IFS(K21="t", G21*I21, K21="kg", G21*I21/1000, K21="g", G21*I21/1000000, TRUE, "CO2の単位が間違っています"), TRUE, "単位があっていません")) -> 0 | U21: 0
I22: =_xlfn.IFS(Q22="物量", VLOOKUP(TRIM(P22),カテゴリ1計算用_原単位DB!D$68:H$528,2,FALSE),Q22="購入者価格", VLOOKUP(TRIM(P22),カテゴリ1計算用_原単位DB!D$68:H$528,5,FALSE), Q22="生産者価格", VLOOKUP(TRIM(P22),カテゴリ1計算用_原単位DB!D$68:H$528,4,FALSE)) ->  | K22: t | L22: =_xlfn.IFS(Q22="物量", VLOOKUP(TRIM(P22),カテゴリ1計算用_原単位DB!D$68:H$528,3,FALSE),Q22="購入者価格", "百万円", Q22="生産者価格", "百万円") ->  | M22: 環境省 SC-DB v3.2-『5産連表DB』 | P22: =_xlfn.IFS(AND(N22="",O22=""),"",N22="",O22, TRUE, _xlfn.XLOOKUP(N22,カテゴリ1計算用_原単位DB!$B$68:$B$528,カテゴリ1計算用_原単位DB!$D$68:$D$528,"エラー")) ->  | T22: =IF(G22="",0,_xlfn.IFS(AND(H22="",L22=""), "", H22=L22, _xlfn.IFS(K22="t", G22*I22, K22="kg", G22*I22/1000, K22="g", G22*I22/1000000, TRUE, "CO2の単位が間違っています"), TRUE, "単位があっていません")) -> 0 | U22: 0
I23: =_xlfn.IFS(Q23="物量", VLOOKUP(TRIM(P23),カテゴリ1計算用_原単位DB!D$68:H$528,2,FALSE),Q23="購入者価格", VLOOKUP(TRIM(P23),カテゴリ1計算用_原単位DB!D$68:H$528,5,FALSE), Q23="生産者価格", VLOOKUP(TRIM(P23),カテゴリ1計算用_原単位DB!D$68:H$528,4,FALSE)) ->  | J23: =K23&"-CO2/"&L23 ->  | K23: t | L23: =_xlfn.IFS(Q23="物量", VLOOKUP(TRIM(P23),カテゴリ1計算用_原単位DB!D$68:H$528,3,FALSE),Q23="購入者価格", "百万円", Q23="生産者価格", "百万円") ->  | M23: 環境省 SC-DB v3.2-『5産連表DB』 | P23: =_xlfn.IFS(AND(N23="",O23=""),"",N23="",O23, TRUE, _xlfn.XLOOKUP(N23,カテゴリ1計算用_原単位DB!$B$68:$B$528,カテゴリ1計算用_原単位DB!$D$68:$D$528,"エラー")) ->  | T23: =IF(G23="",0,_xlfn.IFS(AND(H23="",L23=""), "", H23=L23, _xlfn.IFS(K23="t", G23*I23, K23="kg", G23*I23/1000, K23="g", G23*I23/1000000, TRUE, "CO2の単位が間違っています"), TRUE, "単位があっていません")) -> 0 | U23: =T23*1000 -> 0
I24: =_xlfn.IFS(Q24="物量", VLOOKUP(TRIM(P24),カテゴリ1計算用_原単位DB!D$68:H$528,2,FALSE),Q24="購入者価格", VLOOKUP(TRIM(P24),カテゴリ1計算用_原単位DB!D$68:H$528,5,FALSE), Q24="生産者価格", VLOOKUP(TRIM(P24),カテゴリ1計算用_原単位DB!D$68:H$528,4,FALSE)) ->  | K24: t | L24: =_xlfn.IFS(Q24="物量", VLOOKUP(TRIM(P24),カテゴリ1計算用_原単位DB!D$68:H$528,3,FALSE),Q24="購入者価格", "百万円", Q24="生産者価格", "百万円") ->  | M24: 環境省 SC-DB v3.2-『5産連表DB』 | P24: =_xlfn.IFS(AND(N24="",O24=""),"",N24="",O24, TRUE, _xlfn.XLOOKUP(N24,カテゴリ1計算用_原単位DB!$B$68:$B$528,カテゴリ1計算用_原単位DB!$D$68:$D$528,"エラー")) ->  | T24: =IF(G24="",0,_xlfn.IFS(AND(H24="",L24=""), "", H24=L24, _xlfn.IFS(K24="t", G24*I24, K24="kg", G24*I24/1000, K24="g", G24*I24/1000000, TRUE, "CO2の単位が間違っています"), TRUE, "単位があっていません")) -> 0 | U24: 0
I25: =_xlfn.IFS(Q25="物量", VLOOKUP(TRIM(P25),カテゴリ1計算用_原単位DB!D$68:H$528,2,FALSE),Q25="購入者価格", VLOOKUP(TRIM(P25),カテゴリ1計算用_原単位DB!D$68:H$528,5,FALSE), Q25="生産者価格", VLOOKUP(TRIM(P25),カテゴリ1計算用_原単位DB!D$68:H$528,4,FALSE)) ->  | K25: t | L25: =_xlfn.IFS(Q25="物量", VLOOKUP(TRIM(P25),カテゴリ1計算用_原単位DB!D$68:H$528,3,FALSE),Q25="購入者価格", "百万円", Q25="生産者価格", "百万円") ->  | M25: 環境省 SC-DB v3.2-『5産連表DB』 | P25: =_xlfn.IFS(AND(N25="",O25=""),"",N25="",O25, TRUE, _xlfn.XLOOKUP(N25,カテゴリ1計算用_原単位DB!$B$68:$B$528,カテゴリ1計算用_原単位DB!$D$68:$D$528,"エラー")) ->  | T25: =IF(G25="",0,_xlfn.IFS(AND(H25="",L25=""), "", H25=L25, _xlfn.IFS(K25="t", G25*I25, K25="kg", G25*I25/1000, K25="g", G25*I25/1000000, TRUE, "CO2の単位が間違っています"), TRUE, "単位があっていません")) -> 0 | U25: 0
I26: =_xlfn.IFS(Q26="物量", VLOOKUP(TRIM(P26),カテゴリ1計算用_原単位DB!D$68:H$528,2,FALSE),Q26="購入者価格", VLOOKUP(TRIM(P26),カテゴリ1計算用_原単位DB!D$68:H$528,5,FALSE), Q26="生産者価格", VLOOKUP(TRIM(P26),カテゴリ1計算用_原単位DB!D$68:H$528,4,FALSE)) ->  | K26: t | L26: =_xlfn.IFS(Q26="物量", VLOOKUP(TRIM(P26),カテゴリ1計算用_原単位DB!D$68:H$528,3,FALSE),Q26="購入者価格", "百万円", Q26="生産者価格", "百万円") ->  | M26: 環境省 SC-DB v3.2-『5産連表DB』 | P26: =_xlfn.IFS(AND(N26="",O26=""),"",N26="",O26, TRUE, _xlfn.XLOOKUP(N26,カテゴリ1計算用_原単位DB!$B$68:$B$528,カテゴリ1計算用_原単位DB!$D$68:$D$528,"エラー")) ->  | T26: =IF(G26="",0,_xlfn.IFS(AND(H26="",L26=""), "", H26=L26, _xlfn.IFS(K26="t", G26*I26, K26="kg", G26*I26/1000, K26="g", G26*I26/1000000, TRUE, "CO2の単位が間違っています"), TRUE, "単位があっていません")) -> 0 | U26: 0
I27: =_xlfn.IFS(Q27="物量", VLOOKUP(TRIM(P27),カテゴリ1計算用_原単位DB!D$68:H$528,2,FALSE),Q27="購入者価格", VLOOKUP(TRIM(P27),カテゴリ1計算用_原単位DB!D$68:H$528,5,FALSE), Q27="生産者価格", VLOOKUP(TRIM(P27),カテゴリ1計算用_原単位DB!D$68:H$528,4,FALSE)) ->  | K27: t | L27: =_xlfn.IFS(Q27="物量", VLOOKUP(TRIM(P27),カテゴリ1計算用_原単位DB!D$68:H$528,3,FALSE),Q27="購入者価格", "百万円", Q27="生産者価格", "百万円") ->  | M27: 環境省 SC-DB v3.2-『5産連表DB』 | P27: =_xlfn.IFS(AND(N27="",O27=""),"",N27="",O27, TRUE, _xlfn.XLOOKUP(N27,カテゴリ1計算用_原単位DB!$B$68:$B$528,カテゴリ1計算用_原単位DB!$D$68:$D$528,"エラー")) ->  | T27: =IF(G27="",0,_xlfn.IFS(AND(H27="",L27=""), "", H27=L27, _xlfn.IFS(K27="t", G27*I27, K27="kg", G27*I27/1000, K27="g", G27*I27/1000000, TRUE, "CO2の単位が間違っています"), TRUE, "単位があっていません")) -> 0 | U27: 0
I28: =_xlfn.IFS(Q28="物量", VLOOKUP(TRIM(P28),カテゴリ1計算用_原単位DB!D$68:H$528,2,FALSE),Q28="購入者価格", VLOOKUP(TRIM(P28),カテゴリ1計算用_原単位DB!D$68:H$528,5,FALSE), Q28="生産者価格", VLOOKUP(TRIM(P28),カテゴリ1計算用_原単位DB!D$68:H$528,4,FALSE)) ->  | K28: t | L28: =_xlfn.IFS(Q28="物量", VLOOKUP(TRIM(P28),カテゴリ1計算用_原単位DB!D$68:H$528,3,FALSE),Q28="購入者価格", "百万円", Q28="生産者価格", "百万円") ->  | M28: 環境省 SC-DB v3.2-『5産連表DB』 | P28: =_xlfn.IFS(AND(N28="",O28=""),"",N28="",O28, TRUE, _xlfn.XLOOKUP(N28,カテゴリ1計算用_原単位DB!$B$68:$B$528,カテゴリ1計算用_原単位DB!$D$68:$D$528,"エラー")) ->  | T28: =IF(G28="",0,_xlfn.IFS(AND(H28="",L28=""), "", H28=L28, _xlfn.IFS(K28="t", G28*I28, K28="kg", G28*I28/1000, K28="g", G28*I28/1000000, TRUE, "CO2の単位が間違っています"), TRUE, "単位があっていません")) -> 0 | U28: 0
I29: =_xlfn.IFS(Q29="物量", VLOOKUP(TRIM(P29),カテゴリ1計算用_原単位DB!D$68:H$528,2,FALSE),Q29="購入者価格", VLOOKUP(TRIM(P29),カテゴリ1計算用_原単位DB!D$68:H$528,5,FALSE), Q29="生産者価格", VLOOKUP(TRIM(P29),カテゴリ1計算用_原単位DB!D$68:H$528,4,FALSE)) ->  | K29: t | L29: =_xlfn.IFS(Q29="物量", VLOOKUP(TRIM(P29),カテゴリ1計算用_原単位DB!D$68:H$528,3,FALSE),Q29="購入者価格", "百万円", Q29="生産者価格", "百万円") ->  | M29: 環境省 SC-DB v3.2-『5産連表DB』 | P29: =_xlfn.IFS(AND(N29="",O29=""),"",N29="",O29, TRUE, _xlfn.XLOOKUP(N29,カテゴリ1計算用_原単位DB!$B$68:$B$528,カテゴリ1計算用_原単位DB!$D$68:$D$528,"エラー")) ->  | T29: =IF(G29="",0,_xlfn.IFS(AND(H29="",L29=""), "", H29=L29, _xlfn.IFS(K29="t", G29*I29, K29="kg", G29*I29/1000, K29="g", G29*I29/1000000, TRUE, "CO2の単位が間違っています"), TRUE, "単位があっていません")) -> 0 | U29: 0
I30: =_xlfn.IFS(Q30="物量", VLOOKUP(TRIM(P30),カテゴリ1計算用_原単位DB!D$68:H$528,2,FALSE),Q30="購入者価格", VLOOKUP(TRIM(P30),カテゴリ1計算用_原単位DB!D$68:H$528,5,FALSE), Q30="生産者価格", VLOOKUP(TRIM(P30),カテゴリ1計算用_原単位DB!D$68:H$528,4,FALSE)) ->  | K30: t | L30: =_xlfn.IFS(Q30="物量", VLOOKUP(TRIM(P30),カテゴリ1計算用_原単位DB!D$68:H$528,3,FALSE),Q30="購入者価格", "百万円", Q30="生産者価格", "百万円") ->  | M30: 環境省 SC-DB v3.2-『5産連表DB』 | P30: =_xlfn.IFS(AND(N30="",O30=""),"",N30="",O30, TRUE, _xlfn.XLOOKUP(N30,カテゴリ1計算用_原単位DB!$B$68:$B$528,カテゴリ1計算用_原単位DB!$D$68:$D$528,"エラー")) ->  | T30: =IF(G30="",0,_xlfn.IFS(AND(H30="",L30=""), "", H30=L30, _xlfn.IFS(K30="t", G30*I30, K30="kg", G30*I30/1000, K30="g", G30*I30/1000000, TRUE, "CO2の単位が間違っています"), TRUE, "単位があっていません")) -> 0 | U30: 0
I31: =_xlfn.IFS(Q31="物量", VLOOKUP(TRIM(P31),カテゴリ1計算用_原単位DB!D$68:H$528,2,FALSE),Q31="購入者価格", VLOOKUP(TRIM(P31),カテゴリ1計算用_原単位DB!D$68:H$528,5,FALSE), Q31="生産者価格", VLOOKUP(TRIM(P31),カテゴリ1計算用_原単位DB!D$68:H$528,4,FALSE)) ->  | K31: t | L31: =_xlfn.IFS(Q31="物量", VLOOKUP(TRIM(P31),カテゴリ1計算用_原単位DB!D$68:H$528,3,FALSE),Q31="購入者価格", "百万円", Q31="生産者価格", "百万円") ->  | M31: 環境省 SC-DB v3.2-『5産連表DB』 | P31: =_xlfn.IFS(AND(N31="",O31=""),"",N31="",O31, TRUE, _xlfn.XLOOKUP(N31,カテゴリ1計算用_原単位DB!$B$68:$B$528,カテゴリ1計算用_原単位DB!$D$68:$D$528,"エラー")) ->  | T31: =IF(G31="",0,_xlfn.IFS(AND(H31="",L31=""), "", H31=L31, _xlfn.IFS(K31="t", G31*I31, K31="kg", G31*I31/1000, K31="g", G31*I31/1000000, TRUE, "CO2の単位が間違っています"), TRUE, "単位があっていません")) -> 0 | U31: 0
I32: =_xlfn.IFS(Q32="物量", VLOOKUP(TRIM(P32),カテゴリ1計算用_原単位DB!D$68:H$528,2,FALSE),Q32="購入者価格", VLOOKUP(TRIM(P32),カテゴリ1計算用_原単位DB!D$68:H$528,5,FALSE), Q32="生産者価格", VLOOKUP(TRIM(P32),カテゴリ1計算用_原単位DB!D$68:H$528,4,FALSE)) ->  | K32: t | L32: =_xlfn.IFS(Q32="物量", VLOOKUP(TRIM(P32),カテゴリ1計算用_原単位DB!D$68:H$528,3,FALSE),Q32="購入者価格", "百万円", Q32="生産者価格", "百万円") ->  | M32: 環境省 SC-DB v3.2-『5産連表DB』 | P32: =_xlfn.IFS(AND(N32="",O32=""),"",N32="",O32, TRUE, _xlfn.XLOOKUP(N32,カテゴリ1計算用_原単位DB!$B$68:$B$528,カテゴリ1計算用_原単位DB!$D$68:$D$528,"エラー")) ->  | T32: =IF(G32="",0,_xlfn.IFS(AND(H32="",L32=""), "", H32=L32, _xlfn.IFS(K32="t", G32*I32, K32="kg", G32*I32/1000, K32="g", G32*I32/1000000, TRUE, "CO2の単位が間違っています"), TRUE, "単位があっていません")) -> 0 | U32: 0
I33: =_xlfn.IFS(Q33="物量", VLOOKUP(TRIM(P33),カテゴリ1計算用_原単位DB!D$68:H$528,2,FALSE),Q33="購入者価格", VLOOKUP(TRIM(P33),カテゴリ1計算用_原単位DB!D$68:H$528,5,FALSE), Q33="生産者価格", VLOOKUP(TRIM(P33),カテゴリ1計算用_原単位DB!D$68:H$528,4,FALSE)) ->  | K33: t | L33: =_xlfn.IFS(Q33="物量", VLOOKUP(TRIM(P33),カテゴリ1計算用_原単位DB!D$68:H$528,3,FALSE),Q33="購入者価格", "百万円", Q33="生産者価格", "百万円") ->  | M33: 環境省 SC-DB v3.2-『5産連表DB』 | P33: =_xlfn.IFS(AND(N33="",O33=""),"",N33="",O33, TRUE, _xlfn.XLOOKUP(N33,カテゴリ1計算用_原単位DB!$B$68:$B$528,カテゴリ1計算用_原単位DB!$D$68:$D$528,"エラー")) ->  | T33: =IF(G33="",0,_xlfn.IFS(AND(H33="",L33=""), "", H33=L33, _xlfn.IFS(K33="t", G33*I33, K33="kg", G33*I33/1000, K33="g", G33*I33/1000000, TRUE, "CO2の単位が間違っています"), TRUE, "単位があっていません")) -> 0 | U33: 0
I34: =_xlfn.IFS(Q34="物量", VLOOKUP(TRIM(P34),カテゴリ1計算用_原単位DB!D$68:H$528,2,FALSE),Q34="購入者価格", VLOOKUP(TRIM(P34),カテゴリ1計算用_原単位DB!D$68:H$528,5,FALSE), Q34="生産者価格", VLOOKUP(TRIM(P34),カテゴリ1計算用_原単位DB!D$68:H$528,4,FALSE)) ->  | K34: t | L34: =_xlfn.IFS(Q34="物量", VLOOKUP(TRIM(P34),カテゴリ1計算用_原単位DB!D$68:H$528,3,FALSE),Q34="購入者価格", "百万円", Q34="生産者価格", "百万円") ->  | M34: 環境省 SC-DB v3.2-『5産連表DB』 | P34: =_xlfn.IFS(AND(N34="",O34=""),"",N34="",O34, TRUE, _xlfn.XLOOKUP(N34,カテゴリ1計算用_原単位DB!$B$68:$B$528,カテゴリ1計算用_原単位DB!$D$68:$D$528,"エラー")) ->  | T34: =IF(G34="",0,_xlfn.IFS(AND(H34="",L34=""), "", H34=L34, _xlfn.IFS(K34="t", G34*I34, K34="kg", G34*I34/1000, K34="g", G34*I34/1000000, TRUE, "CO2の単位が間違っています"), TRUE, "単位があっていません")) -> 0 | U34: 0
I35: =_xlfn.IFS(Q35="物量", VLOOKUP(TRIM(P35),カテゴリ1計算用_原単位DB!D$68:H$528,2,FALSE),Q35="購入者価格", VLOOKUP(TRIM(P35),カテゴリ1計算用_原単位DB!D$68:H$528,5,FALSE), Q35="生産者価格", VLOOKUP(TRIM(P35),カテゴリ1計算用_原単位DB!D$68:H$528,4,FALSE)) ->  | K35: t | L35: =_xlfn.IFS(Q35="物量", VLOOKUP(TRIM(P35),カテゴリ1計算用_原単位DB!D$68:H$528,3,FALSE),Q35="購入者価格", "百万円", Q35="生産者価格", "百万円") ->  | M35: 環境省 SC-DB v3.2-『5産連表DB』 | P35: =_xlfn.IFS(AND(N35="",O35=""),"",N35="",O35, TRUE, _xlfn.XLOOKUP(N35,カテゴリ1計算用_原単位DB!$B$68:$B$528,カテゴリ1計算用_原単位DB!$D$68:$D$528,"エラー")) ->  | T35: =IF(G35="",0,_xlfn.IFS(AND(H35="",L35=""), "", H35=L35, _xlfn.IFS(K35="t", G35*I35, K35="kg", G35*I35/1000, K35="g", G35*I35/1000000, TRUE, "CO2の単位が間違っています"), TRUE, "単位があっていません")) -> 0 | U35: 0
T37: ※活動量の単位と原単位の単位があっていない場合は「単位があっていません」と表示されます。また、CO2の単位にt, kg, g以外の文字を入力した場合は「CO2の単位があっていません」が表示されます。

Sheet カテゴリ2_資本財
A1: カテゴリ２．資本財
A2: ■購入または取得した資本財の建設・製造及び輸送から発生する排出量
A5: 項目データ | F5: 資本財購入金額 | H5: 排出原単位 | L5: 排出原単位DB | N5: 備考 | P5: 排出量 | S5: 排出量合計 [t-CO2]
A6: 項目番号 | B6: 社名/事業名 | C6: 分類用1 | D6: 分類用2 | E6: 資本財形成部門 | F6: 数値 | G6: 単位 | H6: 数値 | I6: 単位 | J6: CO2単位 (t, kg, gのいずれかを入力) | K6: 分母単位 | L6: 出典 | M6: 項目 | N6: 推測・シナリオの前提条件 | O6: その他備考 | P6: 排出量 [t-CO2] | Q6: 排出量 [kg-CO2]
G7: 百万円 | H7: =VLOOKUP(TRIM(M7),カテゴリ２計算用_原単位DB!$E$43:$F$191,2,FALSE) ->  | I7: =J7&"-CO2/"&K7 -> t-CO2/百万円 | J7: t | K7: 百万円 | L7: 環境省 SC-DB v3.2-『6資本財』 | P7: =IF(F7="",0,_xlfn.IFS(AND(G7="",K7=""), "", G7=K7, _xlfn.IFS(J7="t", F7*H7, J7="kg", F7*H7/1000, J7="g", F7*H7/1000000, TRUE, "CO2の単位が間違っています"), TRUE, "単位があっていません")) -> 0 | Q7: =P7*1000 -> 0 | S7: =IFERROR(SUM(P7:P15),"エラーが発生しています") -> 0
G8: 百万円 | H8: =VLOOKUP(TRIM(M8),カテゴリ２計算用_原単位DB!$E$43:$F$191,2,FALSE) ->  | I8: =J8&"-CO2/"&K8 -> t-CO2/百万円 | J8: t | K8: 百万円 | L8: 環境省 SC-DB v3.2-『6資本財』 | P8: =IF(F8="",0,_xlfn.IFS(AND(G8="",K8=""), "", G8=K8, _xlfn.IFS(J8="t", F8*H8, J8="kg", F8*H8/1000, J8="g", F8*H8/1000000, TRUE, "CO2の単位が間違っています"), TRUE, "単位があっていません")) -> 0 | Q8: =P8*1000 -> 0
G9: 百万円 | H9: =VLOOKUP(TRIM(M9),カテゴリ２計算用_原単位DB!$E$43:$F$191,2,FALSE) ->  | I9: t-CO2/百万円 | J9: t | K9: 百万円 | L9: 環境省 SC-DB v3.2-『6資本財』 | P9: =IF(F9="",0,_xlfn.IFS(AND(G9="",K9=""), "", G9=K9, _xlfn.IFS(J9="t", F9*H9, J9="kg", F9*H9/1000, J9="g", F9*H9/1000000, TRUE, "CO2の単位が間違っています"), TRUE, "単位があっていません")) -> 0 | Q9: 0
G10: 百万円 | H10: =VLOOKUP(TRIM(M10),カテゴリ２計算用_原単位DB!$E$43:$F$191,2,FALSE) ->  | I10: t-CO2/百万円 | J10: t | K10: 百万円 | L10: 環境省 SC-DB v3.2-『6資本財』 | P10: =IF(F10="",0,_xlfn.IFS(AND(G10="",K10=""), "", G10=K10, _xlfn.IFS(J10="t", F10*H10, J10="kg", F10*H10/1000, J10="g", F10*H10/1000000, TRUE, "CO2の単位が間違っています"), TRUE, "単位があっていません")) -> 0 | Q10: 0
G11: 百万円 | H11: =VLOOKUP(TRIM(M11),カテゴリ２計算用_原単位DB!$E$43:$F$191,2,FALSE) ->  | I11: t-CO2/百万円 | J11: t | K11: 百万円 | L11: 環境省 SC-DB v3.2-『6資本財』 | P11: =IF(F11="",0,_xlfn.IFS(AND(G11="",K11=""), "", G11=K11, _xlfn.IFS(J11="t", F11*H11, J11="kg", F11*H11/1000, J11="g", F11*H11/1000000, TRUE, "CO2の単位が間違っています"), TRUE, "単位があっていません")) -> 0 | Q11: 0
G12: 百万円 | H12: =VLOOKUP(TRIM(M12),カテゴリ２計算用_原単位DB!$E$43:$F$191,2,FALSE) ->  | I12: t-CO2/百万円 | J12: t | K12: 百万円 | L12: 環境省 SC-DB v3.2-『6資本財』 | P12: =IF(F12="",0,_xlfn.IFS(AND(G12="",K12=""), "", G12=K12, _xlfn.IFS(J12="t", F12*H12, J12="kg", F12*H12/1000, J12="g", F12*H12/1000000, TRUE, "CO2の単位が間違っています"), TRUE, "単位があっていません")) -> 0 | Q12: 0
G13: 百万円 | H13: =VLOOKUP(TRIM(M13),カテゴリ２計算用_原単位DB!$E$43:$F$191,2,FALSE) ->  | I13: t-CO2/百万円 | J13: t | K13: 百万円 | L13: 環境省 SC-DB v3.2-『6資本財』 | P13: =IF(F13="",0,_xlfn.IFS(AND(G13="",K13=""), "", G13=K13, _xlfn.IFS(J13="t", F13*H13, J13="kg", F13*H13/1000, J13="g", F13*H13/1000000, TRUE, "CO2の単位が間違っています"), TRUE, "単位があっていません")) -> 0 | Q13: 0
G14: 百万円 | H14: =VLOOKUP(TRIM(M14),カテゴリ２計算用_原単位DB!$E$43:$F$191,2,FALSE) ->  | I14: t-CO2/百万円 | J14: t | K14: 百万円 | L14: 環境省 SC-DB v3.2-『6資本財』 | P14: =IF(F14="",0,_xlfn.IFS(AND(G14="",K14=""), "", G14=K14, _xlfn.IFS(J14="t", F14*H14, J14="kg", F14*H14/1000, J14="g", F14*H14/1000000, TRUE, "CO2の単位が間違っています"), TRUE, "単位があっていません")) -> 0 | Q14: 0
G15: 百万円 | H15: =VLOOKUP(TRIM(M15),カテゴリ２計算用_原単位DB!$E$43:$F$191,2,FALSE) ->  | I15: t-CO2/百万円 | J15: t | K15: 百万円 | L15: 環境省 SC-DB v3.2-『6資本財』 | P15: =IF(F15="",0,_xlfn.IFS(AND(G15="",K15=""), "", G15=K15, _xlfn.IFS(J15="t", F15*H15, J15="kg", F15*H15/1000, J15="g", F15*H15/1000000, TRUE, "CO2の単位が間違っています"), TRUE, "単位があっていません")) -> 0 | Q15: 0
P17: ※活動量の単位と原単位の単位があっていない場合は「単位があっていません」と表示されます。また、CO2の単位にt, kg, g以外の文字を入力した場合は「CO2の単位があっていません」が表示されます。

Sheet カテゴリ3_エネルギー等の上流
A1: カテゴリ３．Scope1,2に含まれない燃料及びエネルギー関連活動
A2: ■購入した燃料及びエネルギーの上流側（資源採取、製造及び輸送）の排出
A5: 項目データ | G5: エネルギーの物量データ | I5: 排出原単位 | M5: 排出原単位DB | O5: 備考 | Q5: 排出量 | T5: 排出量合計 [t-CO2]
A6: 項目番号 | B6: 社名/事業名 | C6: 分類用1 | D6: 分類用2 | E6: 区分 | F6: 燃料/エネルギー種 | G6: 数値 | H6: 単位 | I6: 数値 | J6: 単位 | K6: CO2単位 (t, kg, gのいずれかを入力) | L6: 分母単位 | M6: 出典 | N6: 項目 | O6: 推測・シナリオの前提条件 | P6: その他備考 | Q6: 排出量 [t-CO2] | R6: 排出量 [kg-CO2]
H7: =VLOOKUP($F7,$F$37:$N$51, 3, FALSE) ->  | I7: =VLOOKUP($F7,$F$37:$N$51, 4, FALSE) ->  | J7: =K7&"-CO2/"&L7 ->  | K7: =VLOOKUP($F7,$F$37:$N$51, 6, FALSE) ->  | L7: =VLOOKUP($F7,$F$37:$N$51, 7, FALSE) ->  | M7: =VLOOKUP($F7,$F$37:$N$51, 8, FALSE) ->  | N7: =VLOOKUP($F7,$F$37:$N$51, 9, FALSE) ->  | Q7: =IF(G7="",0,_xlfn.IFS(AND(H7="",L7=""), "", H7=L7, _xlfn.IFS(K7="t", G7*I7, K7="kg", G7*I7/1000, K7="g", G7*I7/1000000, TRUE, "CO2の単位が間違っています"), TRUE, "単位があっていません")) -> 0 | R7: =Q7*1000 -> 0 | T7: =IFERROR(SUM(Q7:Q27),"エラーが発生しています") -> 0
H8: =VLOOKUP($F8,$F$37:$N$51, 3, FALSE) ->  | I8: =VLOOKUP($F8,$F$37:$N$51, 4, FALSE) ->  | J8: =K8&"-CO2/"&L8 ->  | K8: =VLOOKUP($F8,$F$37:$N$51, 6, FALSE) ->  | L8: =VLOOKUP($F8,$F$37:$N$51, 7, FALSE) ->  | M8: =VLOOKUP($F8,$F$37:$N$51, 8, FALSE) ->  | Q8: =IF(G8="",0,_xlfn.IFS(AND(H8="",L8=""), "", H8=L8, _xlfn.IFS(K8="t", G8*I8, K8="kg", G8*I8/1000, K8="g", G8*I8/1000000, TRUE, "CO2の単位が間違っています"), TRUE, "単位があっていません")) -> 0 | R8: =Q8*1000 -> 0
Q9: =IF(G9="",0,_xlfn.IFS(AND(H9="",L9=""), "", H9=L9, _xlfn.IFS(K9="t", G9*I9, K9="kg", G9*I9/1000, K9="g", G9*I9/1000000, TRUE, "CO2の単位が間違っています"), TRUE, "単位があっていません")) -> 0 | R9: 0
Q10: =IF(G10="",0,_xlfn.IFS(AND(H10="",L10=""), "", H10=L10, _xlfn.IFS(K10="t", G10*I10, K10="kg", G10*I10/1000, K10="g", G10*I10/1000000, TRUE, "CO2の単位が間違っています"), TRUE, "単位があっていません")) -> 0 | R10: 0
Q11: =IF(G11="",0,_xlfn.IFS(AND(H11="",L11=""), "", H11=L11, _xlfn.IFS(K11="t", G11*I11, K11="kg", G11*I11/1000, K11="g", G11*I11/1000000, TRUE, "CO2の単位が間違っています"), TRUE, "単位があっていません")) -> 0 | R11: 0
Q12: =IF(G12="",0,_xlfn.IFS(AND(H12="",L12=""), "", H12=L12, _xlfn.IFS(K12="t", G12*I12, K12="kg", G12*I12/1000, K12="g", G12*I12/1000000, TRUE, "CO2の単位が間違っています"), TRUE, "単位があっていません")) -> 0 | R12: 0
Q13: =IF(G13="",0,_xlfn.IFS(AND(H13="",L13=""), "", H13=L13, _xlfn.IFS(K13="t", G13*I13, K13="kg", G13*I13/1000, K13="g", G13*I13/1000000, TRUE, "CO2の単位が間違っています"), TRUE, "単位があっていません")) -> 0 | R13: 0
Q14: =IF(G14="",0,_xlfn.IFS(AND(H14="",L14=""), "", H14=L14, _xlfn.IFS(K14="t", G14*I14, K14="kg", G14*I14/1000, K14="g", G14*I14/1000000, TRUE, "CO2の単位が間違っています"), TRUE, "単位があっていません")) -> 0 | R14: 0
Q15: =IF(G15="",0,_xlfn.IFS(AND(H15="",L15=""), "", H15=L15, _xlfn.IFS(K15="t", G15*I15, K15="kg", G15*I15/1000, K15="g", G15*I15/1000000, TRUE, "CO2の単位が間違っています"), TRUE, "単位があっていません")) -> 0 | R15: 0
Q16: =IF(G16="",0,_xlfn.IFS(AND(H16="",L16=""), "", H16=L16, _xlfn.IFS(K16="t", G16*I16, K16="kg", G16*I16/1000, K16="g", G16*I16/1000000, TRUE, "CO2の単位が間違っています"), TRUE, "単位があっていません")) -> 0 | R16: 0
Q17: =IF(G17="",0,_xlfn.IFS(AND(H17="",L17=""), "", H17=L17, _xlfn.IFS(K17="t", G17*I17, K17="kg", G17*I17/1000, K17="g", G17*I17/1000000, TRUE, "CO2の単位が間違っています"), TRUE, "単位があっていません")) -> 0 | R17: 0
J18: =K18&"-CO2/"&L18 ->  | Q18: =IF(G18="",0,_xlfn.IFS(AND(H18="",L18=""), "", H18=L18, _xlfn.IFS(K18="t", G18*I18, K18="kg", G18*I18/1000, K18="g", G18*I18/1000000, TRUE, "CO2の単位が間違っています"), TRUE, "単位があっていません")) -> 0 | R18: =Q18*1000 -> 0
Q19: =IF(G19="",0,_xlfn.IFS(AND(H19="",L19=""), "", H19=L19, _xlfn.IFS(K19="t", G19*I19, K19="kg", G19*I19/1000, K19="g", G19*I19/1000000, TRUE, "CO2の単位が間違っています"), TRUE, "単位があっていません")) -> 0 | R19: 0
Q20: =IF(G20="",0,_xlfn.IFS(AND(H20="",L20=""), "", H20=L20, _xlfn.IFS(K20="t", G20*I20, K20="kg", G20*I20/1000, K20="g", G20*I20/1000000, TRUE, "CO2の単位が間違っています"), TRUE, "単位があっていません")) -> 0 | R20: 0
Q21: =IF(G21="",0,_xlfn.IFS(AND(H21="",L21=""), "", H21=L21, _xlfn.IFS(K21="t", G21*I21, K21="kg", G21*I21/1000, K21="g", G21*I21/1000000, TRUE, "CO2の単位が間違っています"), TRUE, "単位があっていません")) -> 0 | R21: 0
Q22: =IF(G22="",0,_xlfn.IFS(AND(H22="",L22=""), "", H22=L22, _xlfn.IFS(K22="t", G22*I22, K22="kg", G22*I22/1000, K22="g", G22*I22/1000000, TRUE, "CO2の単位が間違っています"), TRUE, "単位があっていません")) -> 0 | R22: 0
Q23: =IF(G23="",0,_xlfn.IFS(AND(H23="",L23=""), "", H23=L23, _xlfn.IFS(K23="t", G23*I23, K23="kg", G23*I23/1000, K23="g", G23*I23/1000000, TRUE, "CO2の単位が間違っています"), TRUE, "単位があっていません")) -> 0 | R23: 0
J24: =K24&"-CO2/"&L24 ->  | Q24: =IF(G24="",0,_xlfn.IFS(AND(H24="",L24=""), "", H24=L24, _xlfn.IFS(K24="t", G24*I24, K24="kg", G24*I24/1000, K24="g", G24*I24/1000000, TRUE, "CO2の単位が間違っています"), TRUE, "単位があっていません")) -> 0 | R24: =Q24*1000 -> 0
Q25: =IF(G25="",0,_xlfn.IFS(AND(H25="",L25=""), "", H25=L25, _xlfn.IFS(K25="t", G25*I25, K25="kg", G25*I25/1000, K25="g", G25*I25/1000000, TRUE, "CO2の単位が間違っています"), TRUE, "単位があっていません")) -> 0 | R25: 0
Q26: =IF(G26="",0,_xlfn.IFS(AND(H26="",L26=""), "", H26=L26, _xlfn.IFS(K26="t", G26*I26, K26="kg", G26*I26/1000, K26="g", G26*I26/1000000, TRUE, "CO2の単位が間違っています"), TRUE, "単位があっていません")) -> 0 | R26: 0
Q27: =IF(G27="",0,_xlfn.IFS(AND(H27="",L27=""), "", H27=L27, _xlfn.IFS(K27="t", G27*I27, K27="kg", G27*I27/1000, K27="g", G27*I27/1000000, TRUE, "CO2の単位が間違っています"), TRUE, "単位があっていません")) -> 0 | R27: 0
Q29: ※活動量の単位と原単位の単位があっていない場合は「単位があっていません」と表示されます。また、CO2の単位にt, kg, g以外の文字を入力した場合は「CO2の単位があっていません」が表示されます。
F35: (計算用) | G35: 対応表
F36: エネルギー種 | H36: 単位 | I36: 数値 | K36: CO2単位 (t, kg, gのいずれかを入力) | L36: 分母単位 | M36: 出典 | N36: 項目
F37: 電力 | H37: kWh | I37: 0.06822033899 | K37: kg | L37: kWh | M37: 環境省 SC-DB v3.2-『7電気・熱』 | N37: 燃料調達時の排出原単位ー電力
F38: 蒸気 | H38: MJ | I38: 0.03275888244 | K38: kg | L38: MJ | M38: 環境省 SC-DB v3.2-『7電気・熱』 | N38: 燃料調達時の排出原単位ー蒸気
F39: 一般炭 | H39: kg | I39: 入力してください | K39: kg | L39: =H39 -> kg | M39: LCIデータベース IDEA v2.3 | N39: =F39 -> 一般炭
F40: 原油 | H40: L | I40: 入力してください | K40: kg | L40: =H40 -> L | M40: LCIデータベース IDEA v2.3 | N40: =F40 -> 原油
F41: 天然ガス | H41: m3 | I41: 入力してください | K41: kg | L41: m3 | M41: LCIデータベース IDEA v2.3 | N41: 天然ガス
F42: 液化天然ガス(LNG) | H42: kg | I42: 入力してください | K42: kg | L42: kg | M42: LCIデータベース IDEA v2.3 | N42: 液化天然ガス(LNG)
F43: ガソリン | H43: L | I43: 入力してください | K43: kg | L43: L | M43: LCIデータベース IDEA v2.3 | N43: ガソリン
F44: ナフサ | H44: L | I44: 入力してください | K44: kg | L44: L | M44: LCIデータベース IDEA v2.3 | N44: ナフサ
F45: 灯油 | H45: L | I45: 入力してください | K45: kg | L45: L | M45: LCIデータベース IDEA v2.3 | N45: 灯油
F46: 軽油 | H46: L | I46: 入力してください | K46: kg | L46: L | M46: LCIデータベース IDEA v2.3 | N46: 軽油
F47: A重油 | H47: L | I47: 入力してください | K47: kg | L47: L | M47: LCIデータベース IDEA v2.3 | N47: A重油
F48: B重油 | H48: L | I48: 入力してください | K48: kg | L48: L | M48: LCIデータベース IDEA v2.3 | N48: B重油
F49: C重油 | H49: L | I49: 入力してください | K49: kg | L49: L | M49: LCIデータベース IDEA v2.3 | N49: C重油
F50: 液化石油ガス（LPG） | H50: kg | I50: 入力してください | K50: kg | L50: kg | M50: LCIデータベース IDEA v2.3 | N50: 液化石油ガス（LPG）
F51: 都市ガス | H51: Nm3 | I51: 入力してください | K51: kg | L51: Nm3 | M51: LCIデータベース IDEA v2.3 | N51: 都市ガス

Sheet カテゴリ4_輸送上流
A1: カテゴリ４．輸送、配送（上流）
A2: ■調達輸送
A5: 項目データ | L5: 物量データ | N5: 輸送距離データ [km] | R5: 輸送トンキロデータ [t・km] | V5: 輸送排出原単位 [t-CO2/(t・km)] | Z5: 輸送排出原単位DB | AB5: 備考 | AD5: 排出量 | AK5: 排出量合計 [t-CO2]
A6: 項目番号 | B6: 社名/事業名 | C6: 分類用1 | D6: 分類用2 | E6: 輸送物品名 | F6: 輸送区分 | G6: 輸送相手先国 | H6: 自動車・トラック輸送の有無 | I6: 鉄道輸送の有無 | J6: 船舶輸送の有無 | K6: 航空輸送の有無 | L6: 数値 | M6: 単位 [t] | N6: 自動車・トラック 輸送距離 | O6: 鉄道 輸送距離 | P6: 船舶 輸送距離 | Q6: 航空 輸送距離 | R6: 自動車・トラック 輸送トンキロ | S6: 鉄道 輸送トンキロ | T6: 船舶 輸送トンキロ | U6: 航空 輸送トンキロ | V6: 自動車・トラック | W6: 鉄道 | X6: 船舶 | Y6: 航空 | Z6: 出典 | AA6: 項目 | AB6: 推測・シナリオの前提条件 | AC6: その他備考 | AD6: 自動車・トラック排出量 [t-CO2] | AE6: 鉄道排出量 [t-CO2] | AF6: 船舶排出量 [t-CO2] | AG6: 航空排出量 [t-CO2] | AH6: 総排出量 [t-CO2] | AI6: 総排出量 [kg-CO2]
M7: t | P7: =_xlfn.IFS(J7="○", VLOOKUP(TRIM(G7),'カテゴリ4&9計算用_国間距離DB'!$A$3:$I$203,8,FALSE),J7="ー", 0) ->  | Q7: =_xlfn.IFS(K7="○", VLOOKUP(TRIM(G7),'カテゴリ4&9計算用_国間距離DB'!$A$3:$I$203,6,FALSE),K7="ー", 0) ->  | R7: =$L7*N7 -> 0 | S7: =$L7*O7 -> 0 | T7: =$L7*P7 ->  | U7: =$L7*Q7 ->  | V7: 0.000130282152 | W7: 2.2e-05 | X7: 3.9e-05 | Y7: 0.00149 | AD7: =IF(H7="○",R7*V7,"") ->  | AE7: =IF(I7="○",S7*W7,"") ->  | AF7: =IF(J7="○",T7*X7,"") ->  | AG7: =IF(K7="○",U7*Y7,"") ->  | AH7: =IF(L7,SUM(AD7:AG7),"") ->  | AI7: =IF(L7,AH7*1000,"") ->  | AK7: =IFERROR(SUM(AH7:AH22),"エラーが発生しています") -> 0
M8: t | P8: =_xlfn.IFS(J8="○", VLOOKUP(TRIM(G8),'カテゴリ4&9計算用_国間距離DB'!$A$3:$I$203,8,FALSE),J8="ー", 0) ->  | Q8: =_xlfn.IFS(K8="○", VLOOKUP(TRIM(G8),'カテゴリ4&9計算用_国間距離DB'!$A$3:$I$203,6,FALSE),K8="ー", 0) ->  | R8: 0 | S8: 0 | V8: 0.000130282152 | W8: 2.2e-05 | X8: 3.9e-05 | Y8: 0.00149 | AD8: =IF(H8="○",R8*V8,"") ->  | AE8: =IF(I8="○",S8*W8,"") ->  | AF8: =IF(J8="○",T8*X8,"") ->  | AG8: =IF(K8="○",U8*Y8,"") ->  | AH8: =IF(L8,SUM(AD8:AG8),"") ->  | AI8: =IF(L8,AH8*1000,"") -> 
M9: t | P9: =_xlfn.IFS(J9="○", VLOOKUP(TRIM(G9),'カテゴリ4&9計算用_国間距離DB'!$A$3:$I$203,8,FALSE),J9="ー", 0) ->  | Q9: =_xlfn.IFS(K9="○", VLOOKUP(TRIM(G9),'カテゴリ4&9計算用_国間距離DB'!$A$3:$I$203,6,FALSE),K9="ー", 0) ->  | R9: 0 | S9: 0 | V9: 0.000130282152 | W9: 2.2e-05 | X9: 3.9e-05 | Y9: 0.00149
M10: t | P10: =_xlfn.IFS(J10="○", VLOOKUP(TRIM(G10),'カテゴリ4&9計算用_国間距離DB'!$A$3:$I$203,8,FALSE),J10="ー", 0) ->  | Q10: =_xlfn.IFS(K10="○", VLOOKUP(TRIM(G10),'カテゴリ4&9計算用_国間距離DB'!$A$3:$I$203,6,FALSE),K10="ー", 0) ->  | R10: 0 | S10: 0 | V10: 0.000130282152 | W10: 2.2e-05 | X10: 3.9e-05 | Y10: 0.00149
M11: t | P11: =_xlfn.IFS(J11="○", VLOOKUP(TRIM(G11),'カテゴリ4&9計算用_国間距離DB'!$A$3:$I$203,8,FALSE),J11="ー", 0) ->  | Q11: =_xlfn.IFS(K11="○", VLOOKUP(TRIM(G11),'カテゴリ4&9計算用_国間距離DB'!$A$3:$I$203,6,FALSE),K11="ー", 0) ->  | R11: 0 | S11: 0 | V11: 0.000130282152 | W11: 2.2e-05 | X11: 3.9e-05 | Y11: 0.00149
M12: t | P12: =_xlfn.IFS(J12="○", VLOOKUP(TRIM(G12),'カテゴリ4&9計算用_国間距離DB'!$A$3:$I$203,8,FALSE),J12="ー", 0) ->  | Q12: =_xlfn.IFS(K12="○", VLOOKUP(TRIM(G12),'カテゴリ4&9計算用_国間距離DB'!$A$3:$I$203,6,FALSE),K12="ー", 0) ->  | R12: 0 | S12: 0 | V12: 0.000130282152 | W12: 2.2e-05 | X12: 3.9e-05 | Y12: 0.00149
M13: t | P13: =_xlfn.IFS(J13="○", VLOOKUP(TRIM(G13),'カテゴリ4&9計算用_国間距離DB'!$A$3:$I$203,8,FALSE),J13="ー", 0) ->  | Q13: =_xlfn.IFS(K13="○", VLOOKUP(TRIM(G13),'カテゴリ4&9計算用_国間距離DB'!$A$3:$I$203,6,FALSE),K13="ー", 0) ->  | R13: 0 | S13: 0 | V13: 0.000130282152 | W13: 2.2e-05 | X13: 3.9e-05 | Y13: 0.00149 | AG13: =IF(K13="○",U13*Y13,"") -> 
M14: t | P14: =_xlfn.IFS(J14="○", VLOOKUP(TRIM(G14),'カテゴリ4&9計算用_国間距離DB'!$A$3:$I$203,8,FALSE),J14="ー", 0) ->  | Q14: =_xlfn.IFS(K14="○", VLOOKUP(TRIM(G14),'カテゴリ4&9計算用_国間距離DB'!$A$3:$I$203,6,FALSE),K14="ー", 0) ->  | R14: 0 | S14: 0 | V14: 0.000130282152 | W14: 2.2e-05 | X14: 3.9e-05 | Y14: 0.00149
M15: t | P15: =_xlfn.IFS(J15="○", VLOOKUP(TRIM(G15),'カテゴリ4&9計算用_国間距離DB'!$A$3:$I$203,8,FALSE),J15="ー", 0) ->  | Q15: =_xlfn.IFS(K15="○", VLOOKUP(TRIM(G15),'カテゴリ4&9計算用_国間距離DB'!$A$3:$I$203,6,FALSE),K15="ー", 0) ->  | R15: 0 | S15: 0 | V15: 0.000130282152 | W15: 2.2e-05 | X15: 3.9e-05 | Y15: 0.00149
M16: t | P16: =_xlfn.IFS(J16="○", VLOOKUP(TRIM(G16),'カテゴリ4&9計算用_国間距離DB'!$A$3:$I$203,8,FALSE),J16="ー", 0) ->  | Q16: =_xlfn.IFS(K16="○", VLOOKUP(TRIM(G16),'カテゴリ4&9計算用_国間距離DB'!$A$3:$I$203,6,FALSE),K16="ー", 0) ->  | R16: 0 | S16: 0 | V16: 0.000130282152 | W16: 2.2e-05 | X16: 3.9e-05 | Y16: 0.00149
M17: t | P17: =_xlfn.IFS(J17="○", VLOOKUP(TRIM(G17),'カテゴリ4&9計算用_国間距離DB'!$A$3:$I$203,8,FALSE),J17="ー", 0) ->  | Q17: =_xlfn.IFS(K17="○", VLOOKUP(TRIM(G17),'カテゴリ4&9計算用_国間距離DB'!$A$3:$I$203,6,FALSE),K17="ー", 0) ->  | R17: 0 | S17: 0 | V17: 0.000130282152 | W17: 2.2e-05 | X17: 3.9e-05 | Y17: 0.00149
M18: t | P18: =_xlfn.IFS(J18="○", VLOOKUP(TRIM(G18),'カテゴリ4&9計算用_国間距離DB'!$A$3:$I$203,8,FALSE),J18="ー", 0) ->  | Q18: =_xlfn.IFS(K18="○", VLOOKUP(TRIM(G18),'カテゴリ4&9計算用_国間距離DB'!$A$3:$I$203,6,FALSE),K18="ー", 0) ->  | R18: 0 | S18: 0 | V18: 0.000130282152 | W18: 2.2e-05 | X18: 3.9e-05 | Y18: 0.00149
M19: t | P19: =_xlfn.IFS(J19="○", VLOOKUP(TRIM(G19),'カテゴリ4&9計算用_国間距離DB'!$A$3:$I$203,8,FALSE),J19="ー", 0) ->  | Q19: =_xlfn.IFS(K19="○", VLOOKUP(TRIM(G19),'カテゴリ4&9計算用_国間距離DB'!$A$3:$I$203,6,FALSE),K19="ー", 0) ->  | R19: 0 | S19: 0 | V19: 0.000130282152 | W19: 2.2e-05 | X19: 3.9e-05 | Y19: 0.00149
M20: t | P20: =_xlfn.IFS(J20="○", VLOOKUP(TRIM(G20),'カテゴリ4&9計算用_国間距離DB'!$A$3:$I$203,8,FALSE),J20="ー", 0) ->  | Q20: =_xlfn.IFS(K20="○", VLOOKUP(TRIM(G20),'カテゴリ4&9計算用_国間距離DB'!$A$3:$I$203,6,FALSE),K20="ー", 0) ->  | R20: 0 | S20: 0 | V20: 0.000130282152 | W20: 2.2e-05 | X20: 3.9e-05 | Y20: 0.00149
M21: t | P21: =_xlfn.IFS(J21="○", VLOOKUP(TRIM(G21),'カテゴリ4&9計算用_国間距離DB'!$A$3:$I$203,8,FALSE),J21="ー", 0) ->  | Q21: =_xlfn.IFS(K21="○", VLOOKUP(TRIM(G21),'カテゴリ4&9計算用_国間距離DB'!$A$3:$I$203,6,FALSE),K21="ー", 0) ->  | R21: 0 | S21: 0 | V21: 0.000130282152 | W21: 2.2e-05 | X21: 3.9e-05 | Y21: 0.00149
M22: t | P22: =_xlfn.IFS(J22="○", VLOOKUP(TRIM(G22),'カテゴリ4&9計算用_国間距離DB'!$A$3:$I$203,8,FALSE),J22="ー", 0) ->  | Q22: =_xlfn.IFS(K22="○", VLOOKUP(TRIM(G22),'カテゴリ4&9計算用_国間距離DB'!$A$3:$I$203,6,FALSE),K22="ー", 0) ->  | R22: 0 | S22: 0 | V22: 0.000130282152 | W22: 2.2e-05 | X22: 3.9e-05 | Y22: 0.00149
AD24: ※活動量の単位と原単位の単位があっていない場合は「単位があっていません」と表示されます。また、CO2の単位にt, kg, g以外の文字を入力した場合は「CO2の単位があっていません」が表示されます。

Sheet カテゴリ5_廃棄（事業）
A1: カテゴリ５．事業から出る廃棄物
A4: 項目データ | H4: 物量・金額データ | J4: 排出原単位 | N4: 排出原単位DB | P4: 備考 | R4: 排出量 | U4: 排出量合計 [t-CO2]
A5: 項目番号 | B5: 社名/事業名 | C5: 分類用1 | D5: 分類用2 | E5: 廃棄物種類 | F5: 廃棄分類 （一般or産業） | G5: 処理方法 （焼却、埋立、リサイクル、不明） | H5: 数値 | I5: 単位 | J5: 数値 | K5: 単位 | L5: CO2単位 (t, kg, gのいずれかを入力) | M5: 分母単位 | N5: 出典 | O5: 項目 | P5: 推測・シナリオの前提条件 | Q5: その他備考 | R5: 排出量 [t-CO2] | S5: 排出量 [kg-CO2]
I6: t | J6: =IF(E6="","", IF(G6="リサイクル",VLOOKUP(TRIM(E6),$E$31:$G$55,3,FALSE),VLOOKUP(TRIM(E6),$E$31:$G$55,2,FALSE))) ->  | K6: =L6&"-CO2/"&M6 -> t-CO2/t | L6: t | M6: t | N6: =IF(G6="リサイクル", "環境省 SC-DB ver3.2-『8廃棄物【種類・処理方法別】』","環境省 SC-DB ver3.2-『9廃棄物【種類別】』") -> 環境省 SC-DB ver3.2-『9廃棄物【種類別】』 | O6: =E6 -> 0 | R6: =_xlfn.IFS(H6="", "", I6=M6, _xlfn.IFS(L6="t", H6*J6, L6="kg", H6*J6/1000, L6="g", H6*J6/1000000, TRUE, "CO2の単位が間違っています"), TRUE, "単位があっていません") ->  | S6: =R6*1000 ->  | U6: =IFERROR(SUM(R6:R21),"エラーが発生しています") -> 0
I7: t | K7: =L7&"-CO2/"&M7 -> t-CO2/t | L7: t | M7: t | N7: =IF(G7="リサイクル", "環境省 SC-DB ver3.2-『8廃棄物【種類・処理方法別】』","環境省 SC-DB ver3.2-『9廃棄物【種類別】』") -> 環境省 SC-DB ver3.2-『9廃棄物【種類別】』 | O7: =E7 -> 0 | R7: =_xlfn.IFS(H7="", "", I7=M7, _xlfn.IFS(L7="t", H7*J7, L7="kg", H7*J7/1000, L7="g", H7*J7/1000000, TRUE, "CO2の単位が間違っています"), TRUE, "単位があっていません") ->  | S7: =R7*1000 -> 
I8: t | K8: t-CO2/t | L8: t | M8: t | N8: =IF(G8="リサイクル", "環境省 SC-DB ver3.2-『8廃棄物【種類・処理方法別】』","環境省 SC-DB ver3.2-『9廃棄物【種類別】』") -> 環境省 SC-DB ver3.2-『9廃棄物【種類別】』 | O8: 0 | R8: =_xlfn.IFS(H8="", "", I8=M8, _xlfn.IFS(L8="t", H8*J8, L8="kg", H8*J8/1000, L8="g", H8*J8/1000000, TRUE, "CO2の単位が間違っています"), TRUE, "単位があっていません") -> 
I9: t | K9: t-CO2/t | L9: t | M9: t | N9: =IF(G9="リサイクル", "環境省 SC-DB ver3.2-『8廃棄物【種類・処理方法別】』","環境省 SC-DB ver3.2-『9廃棄物【種類別】』") -> 環境省 SC-DB ver3.2-『9廃棄物【種類別】』 | O9: 0 | R9: =_xlfn.IFS(H9="", "", I9=M9, _xlfn.IFS(L9="t", H9*J9, L9="kg", H9*J9/1000, L9="g", H9*J9/1000000, TRUE, "CO2の単位が間違っています"), TRUE, "単位があっていません") -> 
I10: t | K10: t-CO2/t | L10: t | M10: t | N10: =IF(G10="リサイクル", "環境省 SC-DB ver3.2-『8廃棄物【種類・処理方法別】』","環境省 SC-DB ver3.2-『9廃棄物【種類別】』") -> 環境省 SC-DB ver3.2-『9廃棄物【種類別】』 | O10: 0 | R10: =_xlfn.IFS(H10="", "", I10=M10, _xlfn.IFS(L10="t", H10*J10, L10="kg", H10*J10/1000, L10="g", H10*J10/1000000, TRUE, "CO2の単位が間違っています"), TRUE, "単位があっていません") -> 
I11: t | K11: t-CO2/t | L11: t | M11: t | N11: 環境省 SC-DB ver3.2-『9廃棄物【種類別】』 | O11: 0 | R11: =_xlfn.IFS(H11="", "", I11=M11, _xlfn.IFS(L11="t", H11*J11, L11="kg", H11*J11/1000, L11="g", H11*J11/1000000, TRUE, "CO2の単位が間違っています"), TRUE, "単位があっていません") -> 
I12: t | K12: t-CO2/t | L12: t | M12: t | N12: 環境省 SC-DB ver3.2-『9廃棄物【種類別】』 | O12: 0 | R12: =_xlfn.IFS(H12="", "", I12=M12, _xlfn.IFS(L12="t", H12*J12, L12="kg", H12*J12/1000, L12="g", H12*J12/1000000, TRUE, "CO2の単位が間違っています"), TRUE, "単位があっていません") -> 
I13: t | K13: t-CO2/t | L13: t | M13: t | N13: 環境省 SC-DB ver3.2-『9廃棄物【種類別】』 | O13: 0 | R13: =_xlfn.IFS(H13="", "", I13=M13, _xlfn.IFS(L13="t", H13*J13, L13="kg", H13*J13/1000, L13="g", H13*J13/1000000, TRUE, "CO2の単位が間違っています"), TRUE, "単位があっていません") -> 
I14: t | K14: t-CO2/t | L14: t | M14: t | N14: 環境省 SC-DB ver3.2-『9廃棄物【種類別】』 | O14: 0 | R14: =_xlfn.IFS(H14="", "", I14=M14, _xlfn.IFS(L14="t", H14*J14, L14="kg", H14*J14/1000, L14="g", H14*J14/1000000, TRUE, "CO2の単位が間違っています"), TRUE, "単位があっていません") -> 
I15: t | K15: =L15&"-CO2/"&M15 -> t-CO2/t | L15: t | M15: t | N15: 環境省 SC-DB ver3.2-『9廃棄物【種類別】』 | O15: 0 | R15: =_xlfn.IFS(H15="", "", I15=M15, _xlfn.IFS(L15="t", H15*J15, L15="kg", H15*J15/1000, L15="g", H15*J15/1000000, TRUE, "CO2の単位が間違っています"), TRUE, "単位があっていません") ->  | S15: =R15*1000 -> 
I16: t | K16: t-CO2/t | L16: t | M16: t | N16: 環境省 SC-DB ver3.2-『9廃棄物【種類別】』 | O16: 0 | R16: =_xlfn.IFS(H16="", "", I16=M16, _xlfn.IFS(L16="t", H16*J16, L16="kg", H16*J16/1000, L16="g", H16*J16/1000000, TRUE, "CO2の単位が間違っています"), TRUE, "単位があっていません") -> 
I17: t | K17: t-CO2/t | L17: t | M17: t | N17: 環境省 SC-DB ver3.2-『9廃棄物【種類別】』 | O17: 0 | R17: =_xlfn.IFS(H17="", "", I17=M17, _xlfn.IFS(L17="t", H17*J17, L17="kg", H17*J17/1000, L17="g", H17*J17/1000000, TRUE, "CO2の単位が間違っています"), TRUE, "単位があっていません") -> 
I18: t | K18: t-CO2/t | L18: t | M18: t | N18: 環境省 SC-DB ver3.2-『9廃棄物【種類別】』 | O18: 0 | R18: =_xlfn.IFS(H18="", "", I18=M18, _xlfn.IFS(L18="t", H18*J18, L18="kg", H18*J18/1000, L18="g", H18*J18/1000000, TRUE, "CO2の単位が間違っています"), TRUE, "単位があっていません") -> 
I19: t | K19: t-CO2/t | L19: t | M19: t | N19: 環境省 SC-DB ver3.2-『9廃棄物【種類別】』 | O19: 0 | R19: =_xlfn.IFS(H19="", "", I19=M19, _xlfn.IFS(L19="t", H19*J19, L19="kg", H19*J19/1000, L19="g", H19*J19/1000000, TRUE, "CO2の単位が間違っています"), TRUE, "単位があっていません") -> 
I20: t | K20: t-CO2/t | L20: t | M20: t | N20: 環境省 SC-DB ver3.2-『9廃棄物【種類別】』 | O20: =E20 -> 0 | R20: =_xlfn.IFS(H20="", "", I20=M20, _xlfn.IFS(L20="t", H20*J20, L20="kg", H20*J20/1000, L20="g", H20*J20/1000000, TRUE, "CO2の単位が間違っています"), TRUE, "単位があっていません") -> 
I21: t | K21: =L21&"-CO2/"&M21 -> t-CO2/t | L21: t | M21: t | N21: 環境省 SC-DB ver3.2-『9廃棄物【種類別】』 | O21: 0 | R21: =_xlfn.IFS(H21="", "", I21=M21, _xlfn.IFS(L21="t", H21*J21, L21="kg", H21*J21/1000, L21="g", H21*J21/1000000, TRUE, "CO2の単位が間違っています"), TRUE, "単位があっていません") ->  | S21: =R21*1000 -> 
R23: ※活動量の単位と原単位の単位があっていない場合は「単位があっていません」と表示されます。また、CO2の単位にt, kg, g以外の文字を入力した場合は「CO2の単位があっていません」が表示されます。
E29: (計算用) | F29: 対応表
E30: 廃棄物種類 | F30: 加重平均原単位[t-CO2/t] | G30: リサイクル原単位[t-CO2/t]
E31: 燃えがら | F31: 0.01222943357 | G31: 0
E32: 汚泥 | F32: 0.1721628052 | G32: 0
E33: 廃油 | F33: 1.781476429 | G33: 0
E34: 廃酸 | F34: 0.02541292176 | G34: 0.00638
E35: 廃アルカリ | F35: 0.02727223603 | G35: 0.00604
E36: 廃プラスチック類 | F36: 0.7927482727 | G36: 0.136
E37: 紙くず | F37: 0.1081768713 | G37: 0.011
E38: 木くず | F38: 0.09717676859 | G38: 0.008
E39: 繊維くず | F39: 0.287047895 | G39: 0
E40: 動植物性残渣（飼料化） | F40: 0.07275562901 | G40: 0.0284
E41: 動植物性残渣（肥料化） | F41: 0.07275562901 | G41: 0.134
E42: 動物系固形不要物 | F42: 0.13857867 | G42: 0.182
E43: ゴムくず | F43: 0.01487667175 | G43: 0
E44: 金属くず | F44: 0.001526487978 | G44: 0
E45: ガラス陶磁器くず | F45: 0.01173316714 | G45: 0.00107
E46: 鉱さい | F46: 0.003657484679 | G46: 0
E47: がれき類 | F47: 0.002701599676 | G47: 0.00107
E48: 動物のふん尿 | F48: 0.07760334786 | G48: 0.0795
E49: 動物の死体 | F49: 0.1165948821 | G49: 0.182
E50: ばいじん | F50: 0.01032944093 | G50: 0
E51: 液晶・プラズマテレビ | F51: 0.1458711372 | G51: 0.1458711372
E52: 冷蔵庫・冷凍庫 | F52: 0.09776266206 | G52: 0.09776266206
E53: 洗濯機・衣類乾燥機 | F53: 0.04938434929 | G53: 0.04938434929
E54: エアコン | F54: 0.05346153878 | G54: 0.05346153878
E55: パソコン・ディスプレイ | F55: 0.04762103704 | G55: 0.04762103704

Sheet カテゴリ6_出張
A1: カテゴリ６．出張
A2: ■出張に際して用いる交通機関の稼働に伴うCO2排出量
A5: 項目データ | F5: 出張旅費 | H5: 排出原単位 | L5: 排出原単位DB | N5: 備考 | P5: 排出量 | S5: 排出量合計 [t-CO2]
A6: 項目番号 | B6: 社名/事業名 | C6: 分類用1 | D6: 分類用2 | E6: 交通機関 | F6: 数値 | G6: 単位 | H6: 数値 | I6: 単位 | J6: CO2単位 (t, kg, gのいずれかを入力) | K6: 分母単位 | L6: 出典 | M6: 項目 | N6: 推測・シナリオの前提条件 | O6: その他備考 | P6: 排出量 [t-CO2] | Q6: 排出量 [kg-CO2]
G7: 千円 | H7: =IF(E7="","", VLOOKUP(TRIM(E7),$F$32:$G$38,2,FALSE)) ->  | I7: =J7&"-CO2/"&K7 -> t-CO2/千円 | J7: t | K7: 千円 | L7: 環境省 SC-DB v3.2-『11交通費』-交通区分別交通費支給額当たり排出原単位 | M7: =E7 -> 0 | P7: =_xlfn.IFS(F7="", "", G7=K7, _xlfn.IFS(J7="t", F7*H7, J7="kg", F7*H7/1000, J7="g", F7*H7/1000000, TRUE, "CO2の単位が間違っています"), TRUE, "単位があっていません") ->  | Q7: =P7*1000 ->  | S7: =IFERROR(SUM(P7:P22),"エラーが発生しています") -> 0
G8: 千円 | H8: =IF(E8="","", VLOOKUP(TRIM(E8),$F$32:$G$38,2,FALSE)) ->  | I8: =J8&"-CO2/"&K8 -> t-CO2/千円 | J8: t | K8: 千円 | L8: 環境省 SC-DB v3.2-『11交通費』-交通区分別交通費支給額当たり排出原単位 | M8: =E8 -> 0 | P8: =_xlfn.IFS(F8="", "", G8=K8, _xlfn.IFS(J8="t", F8*H8, J8="kg", F8*H8/1000, J8="g", F8*H8/1000000, TRUE, "CO2の単位が間違っています"), TRUE, "単位があっていません") ->  | Q8: =P8*1000 -> 
G9: 千円 | I9: t-CO2/千円 | J9: t | K9: 千円 | L9: 環境省 SC-DB v3.2-『11交通費』-交通区分別交通費支給額当たり排出原単位 | M9: 0 | P9: =_xlfn.IFS(F9="", "", G9=K9, _xlfn.IFS(J9="t", F9*H9, J9="kg", F9*H9/1000, J9="g", F9*H9/1000000, TRUE, "CO2の単位が間違っています"), TRUE, "単位があっていません") -> 
G10: 千円 | I10: t-CO2/千円 | J10: t | K10: 千円 | L10: 環境省 SC-DB v3.2-『11交通費』-交通区分別交通費支給額当たり排出原単位 | M10: 0 | P10: =_xlfn.IFS(F10="", "", G10=K10, _xlfn.IFS(J10="t", F10*H10, J10="kg", F10*H10/1000, J10="g", F10*H10/1000000, TRUE, "CO2の単位が間違っています"), TRUE, "単位があっていません") -> 
G11: 千円 | I11: t-CO2/千円 | J11: t | K11: 千円 | L11: 環境省 SC-DB v3.2-『11交通費』-交通区分別交通費支給額当たり排出原単位 | M11: 0 | P11: =_xlfn.IFS(F11="", "", G11=K11, _xlfn.IFS(J11="t", F11*H11, J11="kg", F11*H11/1000, J11="g", F11*H11/1000000, TRUE, "CO2の単位が間違っています"), TRUE, "単位があっていません") -> 
G12: 千円 | I12: =J12&"-CO2/"&K12 -> t-CO2/千円 | J12: t | K12: 千円 | L12: 環境省 SC-DB v3.2-『11交通費』-交通区分別交通費支給額当たり排出原単位 | M12: 0 | P12: =_xlfn.IFS(F12="", "", G12=K12, _xlfn.IFS(J12="t", F12*H12, J12="kg", F12*H12/1000, J12="g", F12*H12/1000000, TRUE, "CO2の単位が間違っています"), TRUE, "単位があっていません") ->  | Q12: =P12*1000 -> 
G13: 千円 | I13: t-CO2/千円 | J13: t | K13: 千円 | L13: 環境省 SC-DB v3.2-『11交通費』-交通区分別交通費支給額当たり排出原単位 | M13: 0 | P13: =_xlfn.IFS(F13="", "", G13=K13, _xlfn.IFS(J13="t", F13*H13, J13="kg", F13*H13/1000, J13="g", F13*H13/1000000, TRUE, "CO2の単位が間違っています"), TRUE, "単位があっていません") -> 
G14: 千円 | I14: =J14&"-CO2/"&K14 -> t-CO2/千円 | J14: t | K14: 千円 | L14: 環境省 SC-DB v3.2-『11交通費』-交通区分別交通費支給額当たり排出原単位 | M14: 0 | P14: =_xlfn.IFS(F14="", "", G14=K14, _xlfn.IFS(J14="t", F14*H14, J14="kg", F14*H14/1000, J14="g", F14*H14/1000000, TRUE, "CO2の単位が間違っています"), TRUE, "単位があっていません") ->  | Q14: =P14*1000 -> 
G15: 千円 | I15: t-CO2/千円 | J15: t | K15: 千円 | L15: 環境省 SC-DB v3.2-『11交通費』-交通区分別交通費支給額当たり排出原単位 | M15: 0 | P15: =_xlfn.IFS(F15="", "", G15=K15, _xlfn.IFS(J15="t", F15*H15, J15="kg", F15*H15/1000, J15="g", F15*H15/1000000, TRUE, "CO2の単位が間違っています"), TRUE, "単位があっていません") -> 
G16: 千円 | I16: =J16&"-CO2/"&K16 -> t-CO2/千円 | J16: t | K16: 千円 | L16: 環境省 SC-DB v3.2-『11交通費』-交通区分別交通費支給額当たり排出原単位 | M16: 0 | P16: =_xlfn.IFS(F16="", "", G16=K16, _xlfn.IFS(J16="t", F16*H16, J16="kg", F16*H16/1000, J16="g", F16*H16/1000000, TRUE, "CO2の単位が間違っています"), TRUE, "単位があっていません") ->  | Q16: =P16*1000 -> 
G17: 千円 | I17: t-CO2/千円 | J17: t | K17: 千円 | L17: 環境省 SC-DB v3.2-『11交通費』-交通区分別交通費支給額当たり排出原単位 | M17: 0 | P17: =_xlfn.IFS(F17="", "", G17=K17, _xlfn.IFS(J17="t", F17*H17, J17="kg", F17*H17/1000, J17="g", F17*H17/1000000, TRUE, "CO2の単位が間違っています"), TRUE, "単位があっていません") -> 
G18: 千円 | I18: t-CO2/千円 | J18: t | K18: 千円 | L18: 環境省 SC-DB v3.2-『11交通費』-交通区分別交通費支給額当たり排出原単位 | M18: 0 | P18: =_xlfn.IFS(F18="", "", G18=K18, _xlfn.IFS(J18="t", F18*H18, J18="kg", F18*H18/1000, J18="g", F18*H18/1000000, TRUE, "CO2の単位が間違っています"), TRUE, "単位があっていません") -> 
G19: 千円 | I19: t-CO2/千円 | J19: t | K19: 千円 | L19: 環境省 SC-DB v3.2-『11交通費』-交通区分別交通費支給額当たり排出原単位 | M19: 0 | P19: =_xlfn.IFS(F19="", "", G19=K19, _xlfn.IFS(J19="t", F19*H19, J19="kg", F19*H19/1000, J19="g", F19*H19/1000000, TRUE, "CO2の単位が間違っています"), TRUE, "単位があっていません") -> 
G20: 千円 | I20: t-CO2/千円 | J20: t | K20: 千円 | L20: 環境省 SC-DB v3.2-『11交通費』-交通区分別交通費支給額当たり排出原単位 | M20: 0 | P20: =_xlfn.IFS(F20="", "", G20=K20, _xlfn.IFS(J20="t", F20*H20, J20="kg", F20*H20/1000, J20="g", F20*H20/1000000, TRUE, "CO2の単位が間違っています"), TRUE, "単位があっていません") -> 
G21: 千円 | I21: t-CO2/千円 | J21: t | K21: 千円 | L21: 環境省 SC-DB v3.2-『11交通費』-交通区分別交通費支給額当たり排出原単位 | M21: 0 | P21: =_xlfn.IFS(F21="", "", G21=K21, _xlfn.IFS(J21="t", F21*H21, J21="kg", F21*H21/1000, J21="g", F21*H21/1000000, TRUE, "CO2の単位が間違っています"), TRUE, "単位があっていません") -> 
G22: 千円 | I22: t-CO2/千円 | J22: t | K22: 千円 | L22: 環境省 SC-DB v3.2-『11交通費』-交通区分別交通費支給額当たり排出原単位 | M22: 0 | P22: =_xlfn.IFS(F22="", "", G22=K22, _xlfn.IFS(J22="t", F22*H22, J22="kg", F22*H22/1000, J22="g", F22*H22/1000000, TRUE, "CO2の単位が間違っています"), TRUE, "単位があっていません") -> 
P24: ※活動量の単位と原単位の単位があっていない場合は「単位があっていません」と表示されます。また、CO2の単位にt, kg, g以外の文字を入力した場合は「CO2の単位があっていません」が表示されます。
F30: (計算用) | G30: 対応表
F31: 移動手段 | G31: 排出原単位[t-CO2/千円]
F32: 旅客航空機(国内線) | G32: 0.005250262489
F33: 旅客航空機(国際線) | G33: 0.007095723493
F34: 旅客鉄道 | G34: 0.001853777017
F35: 旅客船舶 | G35: 0.05019013033
F36: バス(営業用乗合) | G36: 0.004710858119
F37: タクシー・ハイヤー | G37: 0.003313009617
F38: 自家用車 | G38: 自分で入力してください。

Sheet カテゴリ7_通勤
A1: カテゴリ７．従業員の通勤
A2: ■通勤に際して用いる交通機関の稼働に伴うCO2排出量
A5: 項目データ | F5: 出張旅費 | H5: 排出原単位 | L5: 排出原単位DB | N5: 備考 | P5: 排出量 | S5: 排出量合計 [t-CO2]
A6: 項目番号 | B6: 社名/事業名 | C6: 分類用1 | D6: 分類用2 | E6: 交通機関 | F6: 数値 | G6: 単位 | H6: 数値 | I6: 単位 | J6: CO2単位 (t, kg, gのいずれかを入力) | K6: 分母単位 | L6: 出典 | M6: 項目 | N6: 推測・シナリオの前提条件 | O6: その他備考 | P6: 排出量 [t-CO2] | Q6: 排出量 [kg-CO2]
G7: 千円 | H7: =IF(E7="","", VLOOKUP(TRIM(E7),$F$32:$G$38,2,FALSE)) ->  | I7: =J7&"-CO2/"&K7 -> t-CO2/千円 | J7: t | K7: 千円 | L7: 環境省 SC-DB v3.2-『11交通費』-交通区分別交通費支給額当たり排出原単位 | M7: =E7 -> 0 | P7: =_xlfn.IFS(F7="", "", G7=K7, _xlfn.IFS(J7="t", F7*H7, J7="kg", F7*H7/1000, J7="g", F7*H7/1000000, TRUE, "CO2の単位が間違っています"), TRUE, "単位があっていません") ->  | Q7: =P7*1000 ->  | S7: =IFERROR(SUM(P7:P22),"エラーが発生しています") -> 0
G8: 千円 | H8: =IF(E8="","", VLOOKUP(TRIM(E8),$F$32:$G$38,2,FALSE)) ->  | I8: =J8&"-CO2/"&K8 -> t-CO2/千円 | J8: t | K8: 千円 | L8: 環境省 SC-DB v3.2-『11交通費』-交通区分別交通費支給額当たり排出原単位 | M8: =E8 -> 0 | P8: =_xlfn.IFS(F8="", "", G8=K8, _xlfn.IFS(J8="t", F8*H8, J8="kg", F8*H8/1000, J8="g", F8*H8/1000000, TRUE, "CO2の単位が間違っています"), TRUE, "単位があっていません") ->  | Q8: =P8*1000 -> 
G9: 千円 | I9: t-CO2/千円 | J9: t | K9: 千円 | L9: 環境省 SC-DB v3.2-『11交通費』-交通区分別交通費支給額当たり排出原単位 | M9: 0 | P9: =_xlfn.IFS(F9="", "", G9=K9, _xlfn.IFS(J9="t", F9*H9, J9="kg", F9*H9/1000, J9="g", F9*H9/1000000, TRUE, "CO2の単位が間違っています"), TRUE, "単位があっていません") -> 
G10: 千円 | I10: t-CO2/千円 | J10: t | K10: 千円 | L10: 環境省 SC-DB v3.2-『11交通費』-交通区分別交通費支給額当たり排出原単位 | M10: 0 | P10: =_xlfn.IFS(F10="", "", G10=K10, _xlfn.IFS(J10="t", F10*H10, J10="kg", F10*H10/1000, J10="g", F10*H10/1000000, TRUE, "CO2の単位が間違っています"), TRUE, "単位があっていません") -> 
G11: 千円 | I11: t-CO2/千円 | J11: t | K11: 千円 | L11: 環境省 SC-DB v3.2-『11交通費』-交通区分別交通費支給額当たり排出原単位 | M11: 0 | P11: =_xlfn.IFS(F11="", "", G11=K11, _xlfn.IFS(J11="t", F11*H11, J11="kg", F11*H11/1000, J11="g", F11*H11/1000000, TRUE, "CO2の単位が間違っています"), TRUE, "単位があっていません") -> 
G12: 千円 | I12: t-CO2/千円 | J12: t | K12: 千円 | L12: 環境省 SC-DB v3.2-『11交通費』-交通区分別交通費支給額当たり排出原単位 | M12: 0 | P12: =_xlfn.IFS(F12="", "", G12=K12, _xlfn.IFS(J12="t", F12*H12, J12="kg", F12*H12/1000, J12="g", F12*H12/1000000, TRUE, "CO2の単位が間違っています"), TRUE, "単位があっていません") -> 
G13: 千円 | I13: t-CO2/千円 | J13: t | K13: 千円 | L13: 環境省 SC-DB v3.2-『11交通費』-交通区分別交通費支給額当たり排出原単位 | M13: 0 | P13: =_xlfn.IFS(F13="", "", G13=K13, _xlfn.IFS(J13="t", F13*H13, J13="kg", F13*H13/1000, J13="g", F13*H13/1000000, TRUE, "CO2の単位が間違っています"), TRUE, "単位があっていません") -> 
G14: 千円 | I14: t-CO2/千円 | J14: t | K14: 千円 | L14: 環境省 SC-DB v3.2-『11交通費』-交通区分別交通費支給額当たり排出原単位 | M14: 0 | P14: =_xlfn.IFS(F14="", "", G14=K14, _xlfn.IFS(J14="t", F14*H14, J14="kg", F14*H14/1000, J14="g", F14*H14/1000000, TRUE, "CO2の単位が間違っています"), TRUE, "単位があっていません") -> 
G15: 千円 | I15: t-CO2/千円 | J15: t | K15: 千円 | L15: 環境省 SC-DB v3.2-『11交通費』-交通区分別交通費支給額当たり排出原単位 | M15: 0 | P15: =_xlfn.IFS(F15="", "", G15=K15, _xlfn.IFS(J15="t", F15*H15, J15="kg", F15*H15/1000, J15="g", F15*H15/1000000, TRUE, "CO2の単位が間違っています"), TRUE, "単位があっていません") -> 
G16: 千円 | I16: t-CO2/千円 | J16: t | K16: 千円 | L16: 環境省 SC-DB v3.2-『11交通費』-交通区分別交通費支給額当たり排出原単位 | M16: 0 | P16: =_xlfn.IFS(F16="", "", G16=K16, _xlfn.IFS(J16="t", F16*H16, J16="kg", F16*H16/1000, J16="g", F16*H16/1000000, TRUE, "CO2の単位が間違っています"), TRUE, "単位があっていません") -> 
G17: 千円 | I17: t-CO2/千円 | J17: t | K17: 千円 | L17: 環境省 SC-DB v3.2-『11交通費』-交通区分別交通費支給額当たり排出原単位 | M17: 0 | P17: =_xlfn.IFS(F17="", "", G17=K17, _xlfn.IFS(J17="t", F17*H17, J17="kg", F17*H17/1000, J17="g", F17*H17/1000000, TRUE, "CO2の単位が間違っています"), TRUE, "単位があっていません") -> 
G18: 千円 | I18: t-CO2/千円 | J18: t | K18: 千円 | L18: 環境省 SC-DB v3.2-『11交通費』-交通区分別交通費支給額当たり排出原単位 | M18: 0 | P18: =_xlfn.IFS(F18="", "", G18=K18, _xlfn.IFS(J18="t", F18*H18, J18="kg", F18*H18/1000, J18="g", F18*H18/1000000, TRUE, "CO2の単位が間違っています"), TRUE, "単位があっていません") -> 
G19: 千円 | I19: t-CO2/千円 | J19: t | K19: 千円 | L19: 環境省 SC-DB v3.2-『11交通費』-交通区分別交通費支給額当たり排出原単位 | M19: 0 | P19: =_xlfn.IFS(F19="", "", G19=K19, _xlfn.IFS(J19="t", F19*H19, J19="kg", F19*H19/1000, J19="g", F19*H19/1000000, TRUE, "CO2の単位が間違っています"), TRUE, "単位があっていません") -> 
G20: 千円 | I20: t-CO2/千円 | J20: t | K20: 千円 | L20: 環境省 SC-DB v3.2-『11交通費』-交通区分別交通費支給額当たり排出原単位 | M20: 0 | P20: =_xlfn.IFS(F20="", "", G20=K20, _xlfn.IFS(J20="t", F20*H20, J20="kg", F20*H20/1000, J20="g", F20*H20/1000000, TRUE, "CO2の単位が間違っています"), TRUE, "単位があっていません") -> 
G21: 千円 | I21: t-CO2/千円 | J21: t | K21: 千円 | L21: 環境省 SC-DB v3.2-『11交通費』-交通区分別交通費支給額当たり排出原単位 | M21: 0 | P21: =_xlfn.IFS(F21="", "", G21=K21, _xlfn.IFS(J21="t", F21*H21, J21="kg", F21*H21/1000, J21="g", F21*H21/1000000, TRUE, "CO2の単位が間違っています"), TRUE, "単位があっていません") -> 
G22: 千円 | I22: t-CO2/千円 | J22: t | K22: 千円 | L22: 環境省 SC-DB v3.2-『11交通費』-交通区分別交通費支給額当たり排出原単位 | M22: 0 | P22: =_xlfn.IFS(F22="", "", G22=K22, _xlfn.IFS(J22="t", F22*H22, J22="kg", F22*H22/1000, J22="g", F22*H22/1000000, TRUE, "CO2の単位が間違っています"), TRUE, "単位があっていません") -> 
P24: ※活動量の単位と原単位の単位があっていない場合は「単位があっていません」と表示されます。また、CO2の単位にt, kg, g以外の文字を入力した場合は「CO2の単位があっていません」が表示されます。
F30: (計算用) | G30: 対応表
F31: 移動手段 | G31: 排出原単位[t-CO2/千円]
F32: 旅客航空機(国内線) | G32: 0.005250262489
F33: 旅客航空機(国際線) | G33: 0.007095723493
F34: 旅客鉄道 | G34: 0.001853777017
F35: 旅客船舶 | G35: 0.05019013033
F36: バス(営業用乗合) | G36: 0.004710858119
F37: タクシー・ハイヤー | G37: 0.003313009617
F38: 自家用車 | G38: 自分で入力してください。

Sheet カテゴリ8_リース資産上流
A1: カテゴリ８．リース資産（上流）
A4: 項目データ | F4: 規模を表す指標 | H4: 排出原単位 | L4: 排出原単位DB | N4: 備考 | P4: 排出量 | S4: 排出量合計 [t-CO2]
A5: 項目番号 | B5: 社名/事業名 | C5: 分類用1 | D5: 分類用2 | E5: リース資産名 | F5: 数値 | G5: 単位 | H5: 数値 | I5: 単位 | J5: CO2単位 (t, kg, gのいずれかを入力) | K5: 分母単位 | L5: 出典 | M5: 項目 | N5: 推測・シナリオの前提条件 | O5: その他備考 | P5: 排出量 [t-CO2] | Q5: 排出量 [kg-CO2]
I6: =J6&"-CO2/"&K6 -> t-CO2/ | J6: t | P6: =_xlfn.IFS(F6="", "", G6=K6, _xlfn.IFS(J6="t", F6*H6, J6="kg", F6*H6/1000, J6="g", F6*H6/1000000, TRUE, "CO2の単位が間違っています"), TRUE, "単位があっていません") ->  | Q6: =P6*1000 ->  | S6: =IFERROR(SUM(P6:P21),"エラーが発生しています") -> 0
I7: t-CO2/ | J7: t | P7: =_xlfn.IFS(F7="", "", G7=K7, _xlfn.IFS(J7="t", F7*H7, J7="kg", F7*H7/1000, J7="g", F7*H7/1000000, TRUE, "CO2の単位が間違っています"), TRUE, "単位があっていません") -> 
I8: t-CO2/ | J8: t | P8: =_xlfn.IFS(F8="", "", G8=K8, _xlfn.IFS(J8="t", F8*H8, J8="kg", F8*H8/1000, J8="g", F8*H8/1000000, TRUE, "CO2の単位が間違っています"), TRUE, "単位があっていません") -> 
I9: t-CO2/ | J9: t | P9: =_xlfn.IFS(F9="", "", G9=K9, _xlfn.IFS(J9="t", F9*H9, J9="kg", F9*H9/1000, J9="g", F9*H9/1000000, TRUE, "CO2の単位が間違っています"), TRUE, "単位があっていません") -> 
I10: t-CO2/ | J10: t | P10: =_xlfn.IFS(F10="", "", G10=K10, _xlfn.IFS(J10="t", F10*H10, J10="kg", F10*H10/1000, J10="g", F10*H10/1000000, TRUE, "CO2の単位が間違っています"), TRUE, "単位があっていません") -> 
I11: t-CO2/ | J11: t | P11: =_xlfn.IFS(F11="", "", G11=K11, _xlfn.IFS(J11="t", F11*H11, J11="kg", F11*H11/1000, J11="g", F11*H11/1000000, TRUE, "CO2の単位が間違っています"), TRUE, "単位があっていません") -> 
I12: t-CO2/ | J12: t | P12: =_xlfn.IFS(F12="", "", G12=K12, _xlfn.IFS(J12="t", F12*H12, J12="kg", F12*H12/1000, J12="g", F12*H12/1000000, TRUE, "CO2の単位が間違っています"), TRUE, "単位があっていません") -> 
I13: t-CO2/ | J13: t | P13: =_xlfn.IFS(F13="", "", G13=K13, _xlfn.IFS(J13="t", F13*H13, J13="kg", F13*H13/1000, J13="g", F13*H13/1000000, TRUE, "CO2の単位が間違っています"), TRUE, "単位があっていません") -> 
I14: t-CO2/ | J14: t | P14: =_xlfn.IFS(F14="", "", G14=K14, _xlfn.IFS(J14="t", F14*H14, J14="kg", F14*H14/1000, J14="g", F14*H14/1000000, TRUE, "CO2の単位が間違っています"), TRUE, "単位があっていません") -> 
I15: t-CO2/ | J15: t | P15: =_xlfn.IFS(F15="", "", G15=K15, _xlfn.IFS(J15="t", F15*H15, J15="kg", F15*H15/1000, J15="g", F15*H15/1000000, TRUE, "CO2の単位が間違っています"), TRUE, "単位があっていません") -> 
I16: -CO2/ | P16: =_xlfn.IFS(F16="", "", G16=K16, _xlfn.IFS(J16="t", F16*H16, J16="kg", F16*H16/1000, J16="g", F16*H16/1000000, TRUE, "CO2の単位が間違っています"), TRUE, "単位があっていません") -> 
I17: -CO2/ | P17: =_xlfn.IFS(F17="", "", G17=K17, _xlfn.IFS(J17="t", F17*H17, J17="kg", F17*H17/1000, J17="g", F17*H17/1000000, TRUE, "CO2の単位が間違っています"), TRUE, "単位があっていません") -> 
I18: -CO2/ | P18: =_xlfn.IFS(F18="", "", G18=K18, _xlfn.IFS(J18="t", F18*H18, J18="kg", F18*H18/1000, J18="g", F18*H18/1000000, TRUE, "CO2の単位が間違っています"), TRUE, "単位があっていません") -> 
I19: -CO2/ | P19: =_xlfn.IFS(F19="", "", G19=K19, _xlfn.IFS(J19="t", F19*H19, J19="kg", F19*H19/1000, J19="g", F19*H19/1000000, TRUE, "CO2の単位が間違っています"), TRUE, "単位があっていません") -> 
I20: -CO2/ | P20: =_xlfn.IFS(F20="", "", G20=K20, _xlfn.IFS(J20="t", F20*H20, J20="kg", F20*H20/1000, J20="g", F20*H20/1000000, TRUE, "CO2の単位が間違っています"), TRUE, "単位があっていません") -> 
I21: -CO2/ | P21: =_xlfn.IFS(F21="", "", G21=K21, _xlfn.IFS(J21="t", F21*H21, J21="kg", F21*H21/1000, J21="g", F21*H21/1000000, TRUE, "CO2の単位が間違っています"), TRUE, "単位があっていません") -> 
P23: ※活動量の単位と原単位の単位があっていない場合は「単位があっていません」と表示されます。また、CO2の単位にt, kg, g以外の文字を入力した場合は「CO2の単位があっていません」が表示されます。

Sheet カテゴリ9_輸送下流
A1: カテゴリ９．輸送、配送（下流）
A4: 項目データ | L4: 物量データ | N4: 輸送距離データ [km] | R4: 輸送トンキロデータ [t・km] | V4: 輸送排出原単位 [t-CO2/(t・km)] | Z4: 輸送排出原単位DB | AB4: 備考 | AD4: 排出量 | AK4: 排出量合計 [t-CO2]
A5: 項目番号 | B5: 社名/事業名 | C5: 分類用1 | D5: 分類用2 | E5: 輸送物品名 | F5: 輸送区分 | G5: 輸送相手先国 | H5: トラック・自動車輸送の有無 | I5: 鉄道輸送の有無 | J5: 船舶輸送の有無 | K5: 航空輸送の有無 | L5: 数値 | M5: 単位 [t] | N5: 自動車・トラック 輸送距離 | O5: 鉄道 輸送距離 | P5: 船舶 輸送距離 | Q5: 航空 輸送距離 | R5: 自動車・トラック 輸送トンキロ | S5: 鉄道 輸送トンキロ | T5: 船舶 輸送トンキロ | U5: 航空 輸送トンキロ | V5: 自動車・トラック | W5: 鉄道 | X5: 船舶 | Y5: 航空 | Z5: 出典 | AA5: 項目 | AB5: 推測・シナリオの前提条件 | AC5: その他備考 | AD5: 自動車・トラック排出量 [t-CO2] | AE5: 鉄道排出量 [t-CO2] | AF5: 船舶排出量 [t-CO2] | AG5: 航空排出量 [t-CO2] | AH5: 総排出量 [t-CO2] | AI5: 総排出量 [kg-CO2]
M6: t | P6: =_xlfn.IFS(J6="○", VLOOKUP(TRIM(G6),'カテゴリ4&9計算用_国間距離DB'!$A$3:$I$203,8,FALSE),J6="ー", 0) ->  | Q6: =_xlfn.IFS(K6="○", VLOOKUP(TRIM(G6),'カテゴリ4&9計算用_国間距離DB'!$A$3:$I$203,6,FALSE),K6="ー", 0) ->  | R6: =$L6*N6 -> 0 | S6: =$L6*O6 -> 0 | T6: =$L6*P6 ->  | U6: =$L6*Q6 ->  | V6: 0.000130282152 | W6: 2.2e-05 | X6: 3.9e-05 | Y6: 0.00149 | Z6: 環境省 SC-DB v3.2-『2輸送【トンキロ法】』 | AA6: 鉄道、船舶、航空は記載の値を使用。 自動車・トラックは、「車種：小型・普通貨物車、燃料：軽油。最大積載量：10000~11999 kg。積載率：日本国内平均（62%)」を使用。 | AD6: =IF(H6="○",R6*V6,"") ->  | AE6: =IF(I6="○",S6*W6,"") ->  | AF6: =IF(J6="○",T6*X6,"") ->  | AG6: =IF(K6="○",U6*Y6,"") ->  | AH6: =IF(L6,SUM(AD6:AG6),"") ->  | AI6: =IF(L6,AH6*1000,"") ->  | AK6: =IFERROR(SUM(AH6:AH21),"エラーが発生しています") -> 0
M7: t | P7: =_xlfn.IFS(J7="○", VLOOKUP(TRIM(G7),'カテゴリ4&9計算用_国間距離DB'!$A$3:$I$203,8,FALSE),J7="ー", 0) ->  | Q7: =_xlfn.IFS(K7="○", VLOOKUP(TRIM(G7),'カテゴリ4&9計算用_国間距離DB'!$A$3:$I$203,6,FALSE),K7="ー", 0) ->  | R7: 0 | S7: 0 | V7: 0.000130282152 | W7: 2.2e-05 | X7: 3.9e-05 | Y7: 0.00149 | Z7: 環境省 SC-DB v3.2-『2輸送【トンキロ法】』 | AA7: 鉄道、船舶、航空は記載の値を使用。 自動車・トラックは、「車種：小型・普通貨物車、燃料：軽油。最大積載量：10000~11999 kg。積載率：日本国内平均（62%)」を使用。 | AD7: =IF(H7="○",R7*V7,"") ->  | AE7: =IF(I7="○",S7*W7,"") ->  | AF7: =IF(J7="○",T7*X7,"") ->  | AG7: =IF(K7="○",U7*Y7,"") ->  | AH7: =IF(L7,SUM(AD7:AG7),"") ->  | AI7: =IF(L7,AH7*1000,"") -> 
M8: t | P8: =_xlfn.IFS(J8="○", VLOOKUP(TRIM(G8),'カテゴリ4&9計算用_国間距離DB'!$A$3:$I$203,8,FALSE),J8="ー", 0) ->  | Q8: =_xlfn.IFS(K8="○", VLOOKUP(TRIM(G8),'カテゴリ4&9計算用_国間距離DB'!$A$3:$I$203,6,FALSE),K8="ー", 0) ->  | R8: 0 | S8: 0 | V8: 0.000130282152 | W8: 2.2e-05 | X8: 3.9e-05 | Y8: 0.00149 | Z8: 環境省 SC-DB v3.2-『2輸送【トンキロ法】』 | AA8: 鉄道、船舶、航空は記載の値を使用。 自動車・トラックは、「車種：小型・普通貨物車、燃料：軽油。最大積載量：10000~11999 kg。積載率：日本国内平均（62%)」を使用。 | AF8: =IF(J8="○",T8*X8,"") ->  | AG8: =IF(K8="○",U8*Y8,"") -> 
M9: t | P9: =_xlfn.IFS(J9="○", VLOOKUP(TRIM(G9),'カテゴリ4&9計算用_国間距離DB'!$A$3:$I$203,8,FALSE),J9="ー", 0) ->  | Q9: =_xlfn.IFS(K9="○", VLOOKUP(TRIM(G9),'カテゴリ4&9計算用_国間距離DB'!$A$3:$I$203,6,FALSE),K9="ー", 0) ->  | R9: 0 | S9: 0 | V9: 0.000130282152 | W9: 2.2e-05 | X9: 3.9e-05 | Y9: 0.00149 | Z9: 環境省 SC-DB v3.2-『2輸送【トンキロ法】』 | AA9: 鉄道、船舶、航空は記載の値を使用。 自動車・トラックは、「車種：小型・普通貨物車、燃料：軽油。最大積載量：10000~11999 kg。積載率：日本国内平均（62%)」を使用。
M10: t | P10: =_xlfn.IFS(J10="○", VLOOKUP(TRIM(G10),'カテゴリ4&9計算用_国間距離DB'!$A$3:$I$203,8,FALSE),J10="ー", 0) ->  | Q10: =_xlfn.IFS(K10="○", VLOOKUP(TRIM(G10),'カテゴリ4&9計算用_国間距離DB'!$A$3:$I$203,6,FALSE),K10="ー", 0) ->  | R10: 0 | S10: 0 | V10: 0.000130282152 | W10: 2.2e-05 | X10: 3.9e-05 | Y10: 0.00149 | Z10: 環境省 SC-DB v3.2-『2輸送【トンキロ法】』 | AA10: 鉄道、船舶、航空は記載の値を使用。 自動車・トラックは、「車種：小型・普通貨物車、燃料：軽油。最大積載量：10000~11999 kg。積載率：日本国内平均（62%)」を使用。
M11: t | P11: =_xlfn.IFS(J11="○", VLOOKUP(TRIM(G11),'カテゴリ4&9計算用_国間距離DB'!$A$3:$I$203,8,FALSE),J11="ー", 0) ->  | Q11: =_xlfn.IFS(K11="○", VLOOKUP(TRIM(G11),'カテゴリ4&9計算用_国間距離DB'!$A$3:$I$203,6,FALSE),K11="ー", 0) ->  | R11: 0 | S11: 0 | V11: 0.000130282152 | W11: 2.2e-05 | X11: 3.9e-05 | Y11: 0.00149 | Z11: 環境省 SC-DB v3.2-『2輸送【トンキロ法】』 | AA11: 鉄道、船舶、航空は記載の値を使用。 自動車・トラックは、「車種：小型・普通貨物車、燃料：軽油。最大積載量：10000~11999 kg。積載率：日本国内平均（62%)」を使用。
M12: t | P12: =_xlfn.IFS(J12="○", VLOOKUP(TRIM(G12),'カテゴリ4&9計算用_国間距離DB'!$A$3:$I$203,8,FALSE),J12="ー", 0) ->  | Q12: =_xlfn.IFS(K12="○", VLOOKUP(TRIM(G12),'カテゴリ4&9計算用_国間距離DB'!$A$3:$I$203,6,FALSE),K12="ー", 0) ->  | R12: 0 | S12: 0 | V12: 0.000130282152 | W12: 2.2e-05 | X12: 3.9e-05 | Y12: 0.00149 | Z12: 環境省 SC-DB v3.2-『2輸送【トンキロ法】』 | AA12: 鉄道、船舶、航空は記載の値を使用。 自動車・トラックは、「車種：小型・普通貨物車、燃料：軽油。最大積載量：10000~11999 kg。積載率：日本国内平均（62%)」を使用。
M13: t | P13: =_xlfn.IFS(J13="○", VLOOKUP(TRIM(G13),'カテゴリ4&9計算用_国間距離DB'!$A$3:$I$203,8,FALSE),J13="ー", 0) ->  | Q13: =_xlfn.IFS(K13="○", VLOOKUP(TRIM(G13),'カテゴリ4&9計算用_国間距離DB'!$A$3:$I$203,6,FALSE),K13="ー", 0) ->  | R13: 0 | S13: 0 | V13: 0.000130282152 | W13: 2.2e-05 | X13: 3.9e-05 | Y13: 0.00149 | Z13: 環境省 SC-DB v3.2-『2輸送【トンキロ法】』 | AA13: 鉄道、船舶、航空は記載の値を使用。 自動車・トラックは、「車種：小型・普通貨物車、燃料：軽油。最大積載量：10000~11999 kg。積載率：日本国内平均（62%)」を使用。
M14: t | P14: =_xlfn.IFS(J14="○", VLOOKUP(TRIM(G14),'カテゴリ4&9計算用_国間距離DB'!$A$3:$I$203,8,FALSE),J14="ー", 0) ->  | Q14: =_xlfn.IFS(K14="○", VLOOKUP(TRIM(G14),'カテゴリ4&9計算用_国間距離DB'!$A$3:$I$203,6,FALSE),K14="ー", 0) ->  | R14: 0 | S14: 0 | V14: 0.000130282152 | W14: 2.2e-05 | X14: 3.9e-05 | Y14: 0.00149 | Z14: 環境省 SC-DB v3.2-『2輸送【トンキロ法】』 | AA14: 鉄道、船舶、航空は記載の値を使用。 自動車・トラックは、「車種：小型・普通貨物車、燃料：軽油。最大積載量：10000~11999 kg。積載率：日本国内平均（62%)」を使用。
M15: t | P15: =_xlfn.IFS(J15="○", VLOOKUP(TRIM(G15),'カテゴリ4&9計算用_国間距離DB'!$A$3:$I$203,8,FALSE),J15="ー", 0) ->  | Q15: =_xlfn.IFS(K15="○", VLOOKUP(TRIM(G15),'カテゴリ4&9計算用_国間距離DB'!$A$3:$I$203,6,FALSE),K15="ー", 0) ->  | R15: 0 | S15: 0 | V15: 0.000130282152 | W15: 2.2e-05 | X15: 3.9e-05 | Y15: 0.00149 | Z15: 環境省 SC-DB v3.2-『2輸送【トンキロ法】』 | AA15: 鉄道、船舶、航空は記載の値を使用。 自動車・トラックは、「車種：小型・普通貨物車、燃料：軽油。最大積載量：10000~11999 kg。積載率：日本国内平均（62%)」を使用。
M16: t | P16: =_xlfn.IFS(J16="○", VLOOKUP(TRIM(G16),'カテゴリ4&9計算用_国間距離DB'!$A$3:$I$203,8,FALSE),J16="ー", 0) ->  | Q16: =_xlfn.IFS(K16="○", VLOOKUP(TRIM(G16),'カテゴリ4&9計算用_国間距離DB'!$A$3:$I$203,6,FALSE),K16="ー", 0) ->  | R16: 0 | S16: 0 | V16: 0.000130282152 | W16: 2.2e-05 | X16: 3.9e-05 | Y16: 0.00149 | Z16: 環境省 SC-DB v3.2-『2輸送【トンキロ法】』 | AA16: 鉄道、船舶、航空は記載の値を使用。 自動車・トラックは、「車種：小型・普通貨物車、燃料：軽油。最大積載量：10000~11999 kg。積載率：日本国内平均（62%)」を使用。
M17: t | P17: =_xlfn.IFS(J17="○", VLOOKUP(TRIM(G17),'カテゴリ4&9計算用_国間距離DB'!$A$3:$I$203,8,FALSE),J17="ー", 0) ->  | Q17: =_xlfn.IFS(K17="○", VLOOKUP(TRIM(G17),'カテゴリ4&9計算用_国間距離DB'!$A$3:$I$203,6,FALSE),K17="ー", 0) ->  | R17: 0 | S17: 0 | V17: 0.000130282152 | W17: 2.2e-05 | X17: 3.9e-05 | Y17: 0.00149 | Z17: 環境省 SC-DB v3.2-『2輸送【トンキロ法】』 | AA17: 鉄道、船舶、航空は記載の値を使用。 自動車・トラックは、「車種：小型・普通貨物車、燃料：軽油。最大積載量：10000~11999 kg。積載率：日本国内平均（62%)」を使用。
M18: t | P18: =_xlfn.IFS(J18="○", VLOOKUP(TRIM(G18),'カテゴリ4&9計算用_国間距離DB'!$A$3:$I$203,8,FALSE),J18="ー", 0) ->  | Q18: =_xlfn.IFS(K18="○", VLOOKUP(TRIM(G18),'カテゴリ4&9計算用_国間距離DB'!$A$3:$I$203,6,FALSE),K18="ー", 0) ->  | R18: 0 | S18: 0 | V18: 0.000130282152 | W18: 2.2e-05 | X18: 3.9e-05 | Y18: 0.00149 | Z18: 環境省 SC-DB v3.2-『2輸送【トンキロ法】』 | AA18: 鉄道、船舶、航空は記載の値を使用。 自動車・トラックは、「車種：小型・普通貨物車、燃料：軽油。最大積載量：10000~11999 kg。積載率：日本国内平均（62%)」を使用。
M19: t | P19: =_xlfn.IFS(J19="○", VLOOKUP(TRIM(G19),'カテゴリ4&9計算用_国間距離DB'!$A$3:$I$203,8,FALSE),J19="ー", 0) ->  | Q19: =_xlfn.IFS(K19="○", VLOOKUP(TRIM(G19),'カテゴリ4&9計算用_国間距離DB'!$A$3:$I$203,6,FALSE),K19="ー", 0) ->  | R19: 0 | S19: 0 | V19: 0.000130282152 | W19: 2.2e-05 | X19: 3.9e-05 | Y19: 0.00149 | Z19: 環境省 SC-DB v3.2-『2輸送【トンキロ法】』 | AA19: 鉄道、船舶、航空は記載の値を使用。 自動車・トラックは、「車種：小型・普通貨物車、燃料：軽油。最大積載量：10000~11999 kg。積載率：日本国内平均（62%)」を使用。
M20: t | P20: =_xlfn.IFS(J20="○", VLOOKUP(TRIM(G20),'カテゴリ4&9計算用_国間距離DB'!$A$3:$I$203,8,FALSE),J20="ー", 0) ->  | Q20: =_xlfn.IFS(K20="○", VLOOKUP(TRIM(G20),'カテゴリ4&9計算用_国間距離DB'!$A$3:$I$203,6,FALSE),K20="ー", 0) ->  | R20: 0 | S20: 0 | V20: 0.000130282152 | W20: 2.2e-05 | X20: 3.9e-05 | Y20: 0.00149 | Z20: 環境省 SC-DB v3.2-『2輸送【トンキロ法】』 | AA20: 鉄道、船舶、航空は記載の値を使用。 自動車・トラックは、「車種：小型・普通貨物車、燃料：軽油。最大積載量：10000~11999 kg。積載率：日本国内平均（62%)」を使用。
M21: t | P21: =_xlfn.IFS(J21="○", VLOOKUP(TRIM(G21),'カテゴリ4&9計算用_国間距離DB'!$A$3:$I$203,8,FALSE),J21="ー", 0) ->  | Q21: =_xlfn.IFS(K21="○", VLOOKUP(TRIM(G21),'カテゴリ4&9計算用_国間距離DB'!$A$3:$I$203,6,FALSE),K21="ー", 0) ->  | R21: 0 | S21: 0 | V21: 0.000130282152 | W21: 2.2e-05 | X21: 3.9e-05 | Y21: 0.00149 | Z21: 環境省 SC-DB v3.2-『2輸送【トンキロ法】』 | AA21: 鉄道、船舶、航空は記載の値を使用。 自動車・トラックは、「車種：小型・普通貨物車、燃料：軽油。最大積載量：10000~11999 kg。積載率：日本国内平均（62%)」を使用。
AD23: ※活動量の単位と原単位の単位があっていない場合は「単位があっていません」と表示されます。また、CO2の単位にt, kg, g以外の文字を入力した場合は「CO2の単位があっていません」が表示されます。

Sheet カテゴリ10_製品の加工
A1: カテゴリ１０．販売した製品の加工
A4: 項目データ | G4: 販売量 | H4: 1台あたりの加工時使用電力・燃料 | J4: 電力・燃料の排出原単位 | N4: 排出原単位DB | P4: 備考 | R4: 排出量 | U4: 排出量合計 [t-CO2]
A5: 項目番号 | B5: 社名/事業名 | C5: 分類用1 | D5: 分類用2 | E5: 販売製品カテゴリ | F5: 販売製品名 | G5: 台数[台] | H5: 数値 | I5: 単位 | J5: 数値 | K5: 単位 | L5: CO2単位 (t, kg, gのいずれかを入力) | M5: 分母単位 | N5: 出典 | O5: 項目 | P5: 推測・シナリオの前提条件 | Q5: その他備考 | R5: 排出量 [t-CO2] | S5: 排出量 [kg-CO2]
K6: =L6&"-CO2/"&M6 -> t-CO2/ | L6: t | R6: =_xlfn.IFS(G6="", "", I6=M6, _xlfn.IFS(L6="t", G6*H6*J6, L6="kg", G6*H6*J6/1000, L6="g", G6*H6*J6/1000000, TRUE, "CO2の単位が間違っています"), TRUE, "単位があっていません") ->  | S6: =R6*1000 ->  | U6: =IFERROR(SUM(R6:R21),"エラーが発生しています") -> 0
K7: =L7&"-CO2/"&M7 -> t-CO2/ | L7: t | R7: =_xlfn.IFS(G7="", "", I7=M7, _xlfn.IFS(L7="t", G7*H7*J7, L7="kg", G7*H7*J7/1000, L7="g", G7*H7*J7/1000000, TRUE, "CO2の単位が間違っています"), TRUE, "単位があっていません") ->  | S7: =R7*1000 -> 
K8: t-CO2/ | L8: t | R8: =_xlfn.IFS(G8="", "", I8=M8, _xlfn.IFS(L8="t", G8*H8*J8, L8="kg", G8*H8*J8/1000, L8="g", G8*H8*J8/1000000, TRUE, "CO2の単位が間違っています"), TRUE, "単位があっていません") -> 
K9: t-CO2/ | L9: t | R9: =_xlfn.IFS(G9="", "", I9=M9, _xlfn.IFS(L9="t", G9*H9*J9, L9="kg", G9*H9*J9/1000, L9="g", G9*H9*J9/1000000, TRUE, "CO2の単位が間違っています"), TRUE, "単位があっていません") -> 
K10: t-CO2/ | L10: t | R10: =_xlfn.IFS(G10="", "", I10=M10, _xlfn.IFS(L10="t", G10*H10*J10, L10="kg", G10*H10*J10/1000, L10="g", G10*H10*J10/1000000, TRUE, "CO2の単位が間違っています"), TRUE, "単位があっていません") -> 
K11: t-CO2/ | L11: t | R11: =_xlfn.IFS(G11="", "", I11=M11, _xlfn.IFS(L11="t", G11*H11*J11, L11="kg", G11*H11*J11/1000, L11="g", G11*H11*J11/1000000, TRUE, "CO2の単位が間違っています"), TRUE, "単位があっていません") -> 
K12: t-CO2/ | L12: t | R12: =_xlfn.IFS(G12="", "", I12=M12, _xlfn.IFS(L12="t", G12*H12*J12, L12="kg", G12*H12*J12/1000, L12="g", G12*H12*J12/1000000, TRUE, "CO2の単位が間違っています"), TRUE, "単位があっていません") -> 
K13: t-CO2/ | L13: t | R13: =_xlfn.IFS(G13="", "", I13=M13, _xlfn.IFS(L13="t", G13*H13*J13, L13="kg", G13*H13*J13/1000, L13="g", G13*H13*J13/1000000, TRUE, "CO2の単位が間違っています"), TRUE, "単位があっていません") -> 
K14: =L14&"-CO2/"&M14 -> t-CO2/ | L14: t | R14: =_xlfn.IFS(G14="", "", I14=M14, _xlfn.IFS(L14="t", G14*H14*J14, L14="kg", G14*H14*J14/1000, L14="g", G14*H14*J14/1000000, TRUE, "CO2の単位が間違っています"), TRUE, "単位があっていません") ->  | S14: =R14*1000 -> 
K15: t-CO2/ | L15: t | R15: =_xlfn.IFS(G15="", "", I15=M15, _xlfn.IFS(L15="t", G15*H15*J15, L15="kg", G15*H15*J15/1000, L15="g", G15*H15*J15/1000000, TRUE, "CO2の単位が間違っています"), TRUE, "単位があっていません") -> 
K16: t-CO2/ | L16: t | R16: =_xlfn.IFS(G16="", "", I16=M16, _xlfn.IFS(L16="t", G16*H16*J16, L16="kg", G16*H16*J16/1000, L16="g", G16*H16*J16/1000000, TRUE, "CO2の単位が間違っています"), TRUE, "単位があっていません") -> 
K17: t-CO2/ | L17: t | R17: =_xlfn.IFS(G17="", "", I17=M17, _xlfn.IFS(L17="t", G17*H17*J17, L17="kg", G17*H17*J17/1000, L17="g", G17*H17*J17/1000000, TRUE, "CO2の単位が間違っています"), TRUE, "単位があっていません") -> 
K18: t-CO2/ | L18: t | R18: =_xlfn.IFS(G18="", "", I18=M18, _xlfn.IFS(L18="t", G18*H18*J18, L18="kg", G18*H18*J18/1000, L18="g", G18*H18*J18/1000000, TRUE, "CO2の単位が間違っています"), TRUE, "単位があっていません") -> 
K19: t-CO2/ | L19: t | R19: =_xlfn.IFS(G19="", "", I19=M19, _xlfn.IFS(L19="t", G19*H19*J19, L19="kg", G19*H19*J19/1000, L19="g", G19*H19*J19/1000000, TRUE, "CO2の単位が間違っています"), TRUE, "単位があっていません") -> 
K20: t-CO2/ | L20: t | R20: =_xlfn.IFS(G20="", "", I20=M20, _xlfn.IFS(L20="t", G20*H20*J20, L20="kg", G20*H20*J20/1000, L20="g", G20*H20*J20/1000000, TRUE, "CO2の単位が間違っています"), TRUE, "単位があっていません") -> 
K21: -CO2/ | R21: =_xlfn.IFS(G21="", "", I21=M21, _xlfn.IFS(L21="t", G21*H21*J21, L21="kg", G21*H21*J21/1000, L21="g", G21*H21*J21/1000000, TRUE, "CO2の単位が間違っています"), TRUE, "単位があっていません") -> 
Q23: ※活動量の単位と原単位の単位があっていない場合は「単位があっていません」と表示されます。また、CO2の単位にt, kg, g以外の文字を入力した場合は「CO2の単位があっていません」が表示されます。

Sheet カテゴリ11_製品の使用
A1: カテゴリ１１．販売した製品の使用
A4: 項目データ | G4: 販売量 | H4: 1台あたりの生涯使用電力・燃料 | J4: 電力・燃料の排出原単位 | N4: 排出原単位DB | P4: 備考 | R4: 排出量 | U4: 排出量合計 [t-CO2]
A5: 項目番号 | B5: 社名/事業名 | C5: 分類用1 | D5: 分類用2 | E5: 販売製品カテゴリ | F5: 販売製品名 | G5: 台数[台] | H5: 数値 | I5: 単位 | J5: 数値 | K5: 単位 | L5: CO2単位 (t, kg, gのいずれかを入力) | M5: 分母単位 | N5: 出典 | O5: 項目 | P5: 推測・シナリオの前提条件 | Q5: その他備考 | R5: 排出量 [t-CO2] | S5: 排出量 [kg-CO2]
K6: =L6&"-CO2/"&M6 -> t-CO2/ | L6: t | R6: =_xlfn.IFS(G6="", "", I6=M6, _xlfn.IFS(L6="t", G6*H6*J6, L6="kg", G6*H6*J6/1000, L6="g", G6*H6*J6/1000000, TRUE, "CO2の単位が間違っています"), TRUE, "単位があっていません") ->  | S6: =R6*1000 ->  | U6: =IFERROR(SUM(R6:R21),"エラーが発生しています") -> 0
K7: =L7&"-CO2/"&M7 -> t-CO2/ | L7: t | R7: =_xlfn.IFS(G7="", "", I7=M7, _xlfn.IFS(L7="t", G7*H7*J7, L7="kg", G7*H7*J7/1000, L7="g", G7*H7*J7/1000000, TRUE, "CO2の単位が間違っています"), TRUE, "単位があっていません") ->  | S7: =R7*1000 -> 
K8: t-CO2/ | L8: t | R8: =_xlfn.IFS(G8="", "", I8=M8, _xlfn.IFS(L8="t", G8*H8*J8, L8="kg", G8*H8*J8/1000, L8="g", G8*H8*J8/1000000, TRUE, "CO2の単位が間違っています"), TRUE, "単位があっていません") -> 
K9: =L9&"-CO2/"&M9 -> t-CO2/ | L9: t | R9: =_xlfn.IFS(G9="", "", I9=M9, _xlfn.IFS(L9="t", G9*H9*J9, L9="kg", G9*H9*J9/1000, L9="g", G9*H9*J9/1000000, TRUE, "CO2の単位が間違っています"), TRUE, "単位があっていません") ->  | S9: =R9*1000 -> 
K10: t-CO2/ | L10: t | R10: =_xlfn.IFS(G10="", "", I10=M10, _xlfn.IFS(L10="t", G10*H10*J10, L10="kg", G10*H10*J10/1000, L10="g", G10*H10*J10/1000000, TRUE, "CO2の単位が間違っています"), TRUE, "単位があっていません") -> 
K11: t-CO2/ | L11: t | R11: =_xlfn.IFS(G11="", "", I11=M11, _xlfn.IFS(L11="t", G11*H11*J11, L11="kg", G11*H11*J11/1000, L11="g", G11*H11*J11/1000000, TRUE, "CO2の単位が間違っています"), TRUE, "単位があっていません") -> 
K12: t-CO2/ | L12: t | R12: =_xlfn.IFS(G12="", "", I12=M12, _xlfn.IFS(L12="t", G12*H12*J12, L12="kg", G12*H12*J12/1000, L12="g", G12*H12*J12/1000000, TRUE, "CO2の単位が間違っています"), TRUE, "単位があっていません") -> 
K13: =L13&"-CO2/"&M13 -> t-CO2/ | L13: t | R13: =_xlfn.IFS(G13="", "", I13=M13, _xlfn.IFS(L13="t", G13*H13*J13, L13="kg", G13*H13*J13/1000, L13="g", G13*H13*J13/1000000, TRUE, "CO2の単位が間違っています"), TRUE, "単位があっていません") ->  | S13: =R13*1000 -> 
K14: t-CO2/ | L14: t | R14: =_xlfn.IFS(G14="", "", I14=M14, _xlfn.IFS(L14="t", G14*H14*J14, L14="kg", G14*H14*J14/1000, L14="g", G14*H14*J14/1000000, TRUE, "CO2の単位が間違っています"), TRUE, "単位があっていません") -> 
K15: t-CO2/ | L15: t | R15: =_xlfn.IFS(G15="", "", I15=M15, _xlfn.IFS(L15="t", G15*H15*J15, L15="kg", G15*H15*J15/1000, L15="g", G15*H15*J15/1000000, TRUE, "CO2の単位が間違っています"), TRUE, "単位があっていません") -> 
K16: t-CO2/ | L16: t | R16: =_xlfn.IFS(G16="", "", I16=M16, _xlfn.IFS(L16="t", G16*H16*J16, L16="kg", G16*H16*J16/1000, L16="g", G16*H16*J16/1000000, TRUE, "CO2の単位が間違っています"), TRUE, "単位があっていません") -> 
K17: =L17&"-CO2/"&M17 -> t-CO2/ | L17: t | R17: =_xlfn.IFS(G17="", "", I17=M17, _xlfn.IFS(L17="t", G17*H17*J17, L17="kg", G17*H17*J17/1000, L17="g", G17*H17*J17/1000000, TRUE, "CO2の単位が間違っています"), TRUE, "単位があっていません") ->  | S17: =R17*1000 -> 
K18: t-CO2/ | L18: t | R18: =_xlfn.IFS(G18="", "", I18=M18, _xlfn.IFS(L18="t", G18*H18*J18, L18="kg", G18*H18*J18/1000, L18="g", G18*H18*J18/1000000, TRUE, "CO2の単位が間違っています"), TRUE, "単位があっていません") -> 
K19: =L19&"-CO2/"&M19 -> t-CO2/ | L19: t | R19: =_xlfn.IFS(G19="", "", I19=M19, _xlfn.IFS(L19="t", G19*H19*J19, L19="kg", G19*H19*J19/1000, L19="g", G19*H19*J19/1000000, TRUE, "CO2の単位が間違っています"), TRUE, "単位があっていません") ->  | S19: =R19*1000 -> 
K20: t-CO2/ | L20: t | R20: =_xlfn.IFS(G20="", "", I20=M20, _xlfn.IFS(L20="t", G20*H20*J20, L20="kg", G20*H20*J20/1000, L20="g", G20*H20*J20/1000000, TRUE, "CO2の単位が間違っています"), TRUE, "単位があっていません") -> 
K21: -CO2/ | R21: =_xlfn.IFS(G21="", "", I21=M21, _xlfn.IFS(L21="t", G21*H21*J21, L21="kg", G21*H21*J21/1000, L21="g", G21*H21*J21/1000000, TRUE, "CO2の単位が間違っています"), TRUE, "単位があっていません") -> 
Q23: ※活動量の単位と原単位の単位があっていない場合は「単位があっていません」と表示されます。また、CO2の単位にt, kg, g以外の文字を入力した場合は「CO2の単位があっていません」が表示されます。
A25: 1台あたりの生涯使用電力・燃料
A26: 想定使用シナリオをもとに製品ごとの1台あたりの原単位を算出する
A28: 項目データ | G28: 想定シナリオ | K28: 生涯使用電力 [kWh]
A29: 項目番号 | B29: 社名/事業名 | C29: 分類用1 | D29: 分類用2 | E29: 販売製品カテゴリ | F29: 販売製品名 | G29: 耐用年数 [年] | H29: 1年あたりの使用回数 [回] | I29: 1回あたりの使用時間 [h] | J29: 1回あたりの使用電力 [W]
A30: 1 | B30: 本社 | E30: 製品A | F30: 製品A | G30: 10 | H30: 24 | I30: 2 | J30: 2000 | K30: =G30*H30*I30*J30/1000 -> 960
K31: =G31*H31*I31*J31/1000 -> 0
K32: 0
K33: 0
K34: 0
K35: 0
K36: 0
K37: =G37*H37*I37*J37/1000 -> 0
K38: 0
K39: 0
K40: 0
K41: 0
K42: 0
K43: =G43*H43*I43*J43/1000 -> 0
K44: 0
K45: 0
K46: =G46*H46*I46*J46/1000 -> 0
K47: 0
K48: 0
K49: 0
K50: 0

Sheet カテゴリ12_廃棄（使用）
A1: カテゴリ12．使用時の廃棄物
A4: 項目データ | I4: 物量・金額データ | K4: 排出原単位 | O4: 排出原単位DB | Q4: 備考 | S4: 排出量 | V4: 排出量合計 [t-CO2]
A5: 項目番号 | B5: 社名/事業名 | C5: 分類用1 | D5: 分類用2 | E5: 対応製品名 | F5: 廃棄物種類 | G5: 廃棄分類 （一般or産業） | H5: 処理方法 （焼却、埋立、リサイクル、不明） | I5: 数値 | J5: 単位 | K5: 数値 | L5: 単位 | M5: CO2単位 (t, kg, gのいずれかを入力) | N5: 分母単位 | O5: 出典 | P5: 項目 | Q5: 推測・シナリオの前提条件 | R5: その他備考 | S5: 排出量 [t-CO2] | T5: 排出量 [kg-CO2]
J6: t | K6: =IF(F6="","", IF(H6="リサイクル",VLOOKUP(TRIM(F6),$F$31:$H$55,3,FALSE),VLOOKUP(TRIM(F6),$F$31:$H$55,2,FALSE))) ->  | L6: =M6&"-CO2/"&N6 -> t-CO2/t | M6: t | N6: t | O6: =IF(H6="リサイクル", "環境省 SC-DB ver3.2 「8廃棄物【種類・処理方法別】」","環境省 SC-DB ver3.2 「9廃棄物【種類別】」") -> 環境省 SC-DB ver3.2 「9廃棄物【種類別】」 | P6: =F6 -> 0 | S6: =_xlfn.IFS(I6="", "", J6=N6, _xlfn.IFS(M6="t", I6*K6, M6="kg", I6*K6/1000, M6="g", I6*K6/1000000, TRUE, "CO2の単位が間違っています"), TRUE, "単位があっていません") ->  | T6: =S6*1000 ->  | V6: =IFERROR(SUM(S6:S21),"エラーが発生しています") -> 0
J7: t | K7: =IF(F7="","", IF(H7="リサイクル",VLOOKUP(TRIM(F7),$F$31:$H$55,3,FALSE),VLOOKUP(TRIM(F7),$F$31:$H$55,2,FALSE))) ->  | L7: t-CO2/t | M7: t | N7: t | O7: =IF(H7="リサイクル", "環境省 SC-DB ver3.2 「8廃棄物【種類・処理方法別】」","環境省 SC-DB ver3.2 「9廃棄物【種類別】」") -> 環境省 SC-DB ver3.2 「9廃棄物【種類別】」 | P7: =F7 -> 0 | S7: =_xlfn.IFS(I7="", "", J7=N7, _xlfn.IFS(M7="t", I7*K7, M7="kg", I7*K7/1000, M7="g", I7*K7/1000000, TRUE, "CO2の単位が間違っています"), TRUE, "単位があっていません") -> 
J8: t | K8: =IF(F8="","", IF(H8="リサイクル",VLOOKUP(TRIM(F8),$F$31:$H$55,3,FALSE),VLOOKUP(TRIM(F8),$F$31:$H$55,2,FALSE))) ->  | L8: t-CO2/t | M8: t | N8: t | O8: 環境省 SC-DB ver3.2 「9廃棄物【種類別】」 | P8: 0 | S8: =_xlfn.IFS(I8="", "", J8=N8, _xlfn.IFS(M8="t", I8*K8, M8="kg", I8*K8/1000, M8="g", I8*K8/1000000, TRUE, "CO2の単位が間違っています"), TRUE, "単位があっていません") -> 
J9: t | L9: t-CO2/t | M9: t | N9: t | O9: 環境省 SC-DB ver3.2 「9廃棄物【種類別】」 | P9: 0 | S9: =_xlfn.IFS(I9="", "", J9=N9, _xlfn.IFS(M9="t", I9*K9, M9="kg", I9*K9/1000, M9="g", I9*K9/1000000, TRUE, "CO2の単位が間違っています"), TRUE, "単位があっていません") -> 
J10: t | L10: t-CO2/t | M10: t | N10: t | O10: 環境省 SC-DB ver3.2 「9廃棄物【種類別】」 | P10: 0 | S10: =_xlfn.IFS(I10="", "", J10=N10, _xlfn.IFS(M10="t", I10*K10, M10="kg", I10*K10/1000, M10="g", I10*K10/1000000, TRUE, "CO2の単位が間違っています"), TRUE, "単位があっていません") -> 
J11: t | L11: t-CO2/t | M11: t | N11: t | O11: 環境省 SC-DB ver3.2 「9廃棄物【種類別】」 | P11: 0 | S11: =_xlfn.IFS(I11="", "", J11=N11, _xlfn.IFS(M11="t", I11*K11, M11="kg", I11*K11/1000, M11="g", I11*K11/1000000, TRUE, "CO2の単位が間違っています"), TRUE, "単位があっていません") -> 
J12: t | L12: t-CO2/t | M12: t | N12: t | O12: 環境省 SC-DB ver3.2 「9廃棄物【種類別】」 | P12: 0 | S12: =_xlfn.IFS(I12="", "", J12=N12, _xlfn.IFS(M12="t", I12*K12, M12="kg", I12*K12/1000, M12="g", I12*K12/1000000, TRUE, "CO2の単位が間違っています"), TRUE, "単位があっていません") -> 
J13: t | L13: t-CO2/t | M13: t | N13: t | O13: 環境省 SC-DB ver3.2 「9廃棄物【種類別】」 | P13: 0 | S13: =_xlfn.IFS(I13="", "", J13=N13, _xlfn.IFS(M13="t", I13*K13, M13="kg", I13*K13/1000, M13="g", I13*K13/1000000, TRUE, "CO2の単位が間違っています"), TRUE, "単位があっていません") -> 
J14: t | L14: t-CO2/t | M14: t | N14: t | O14: 環境省 SC-DB ver3.2 「9廃棄物【種類別】」 | P14: 0 | S14: =_xlfn.IFS(I14="", "", J14=N14, _xlfn.IFS(M14="t", I14*K14, M14="kg", I14*K14/1000, M14="g", I14*K14/1000000, TRUE, "CO2の単位が間違っています"), TRUE, "単位があっていません") -> 
J15: t | L15: t-CO2/t | M15: t | N15: t | O15: 環境省 SC-DB ver3.2 「9廃棄物【種類別】」 | P15: 0 | S15: =_xlfn.IFS(I15="", "", J15=N15, _xlfn.IFS(M15="t", I15*K15, M15="kg", I15*K15/1000, M15="g", I15*K15/1000000, TRUE, "CO2の単位が間違っています"), TRUE, "単位があっていません") -> 
J16: t | L16: t-CO2/t | M16: t | N16: t | O16: 環境省 SC-DB ver3.2 「9廃棄物【種類別】」 | P16: 0 | S16: =_xlfn.IFS(I16="", "", J16=N16, _xlfn.IFS(M16="t", I16*K16, M16="kg", I16*K16/1000, M16="g", I16*K16/1000000, TRUE, "CO2の単位が間違っています"), TRUE, "単位があっていません") -> 
J17: t | L17: t-CO2/t | M17: t | N17: t | O17: 環境省 SC-DB ver3.2 「9廃棄物【種類別】」 | P17: 0 | S17: =_xlfn.IFS(I17="", "", J17=N17, _xlfn.IFS(M17="t", I17*K17, M17="kg", I17*K17/1000, M17="g", I17*K17/1000000, TRUE, "CO2の単位が間違っています"), TRUE, "単位があっていません") -> 
J18: t | L18: t-CO2/t | M18: t | N18: t | O18: 環境省 SC-DB ver3.2 「9廃棄物【種類別】」 | P18: 0 | S18: =_xlfn.IFS(I18="", "", J18=N18, _xlfn.IFS(M18="t", I18*K18, M18="kg", I18*K18/1000, M18="g", I18*K18/1000000, TRUE, "CO2の単位が間違っています"), TRUE, "単位があっていません") -> 
J19: t | L19: t-CO2/t | M19: t | N19: t | O19: 環境省 SC-DB ver3.2 「9廃棄物【種類別】」 | P19: 0 | S19: =_xlfn.IFS(I19="", "", J19=N19, _xlfn.IFS(M19="t", I19*K19, M19="kg", I19*K19/1000, M19="g", I19*K19/1000000, TRUE, "CO2の単位が間違っています"), TRUE, "単位があっていません") -> 
J20: t | L20: t-CO2/t | M20: t | N20: t | O20: 環境省 SC-DB ver3.2 「9廃棄物【種類別】」 | P20: 0 | S20: =_xlfn.IFS(I20="", "", J20=N20, _xlfn.IFS(M20="t", I20*K20, M20="kg", I20*K20/1000, M20="g", I20*K20/1000000, TRUE, "CO2の単位が間違っています"), TRUE, "単位があっていません") -> 
J21: t | L21: t-CO2/t | M21: t | N21: t | O21: 環境省 SC-DB ver3.2 「9廃棄物【種類別】」 | P21: 0 | S21: =_xlfn.IFS(I21="", "", J21=N21, _xlfn.IFS(M21="t", I21*K21, M21="kg", I21*K21/1000, M21="g", I21*K21/1000000, TRUE, "CO2の単位が間違っています"), TRUE, "単位があっていません") -> 
S23: ※活動量の単位と原単位の単位があっていない場合は「単位があっていません」と表示されます。また、CO2の単位にt, kg, g以外の文字を入力した場合は「CO2の単位があっていません」が表示されます。
F29: (計算用) | G29: 対応表
F30: 廃棄物種類 | G30: 加重平均原単位[t-CO2/t] | H30: リサイクル原単位[t-CO2/t]
F31: 燃えがら | G31: 0.01222943357 | H31: 0
F32: 汚泥 | G32: 0.1721628052 | H32: 0
F33: 廃油 | G33: 1.781476429 | H33: 0
F34: 廃酸 | G34: 0.02541292176 | H34: 0.00638
F35: 廃アルカリ | G35: 0.02727223603 | H35: 0.00604
F36: 廃プラスチック類 | G36: 0.7927482727 | H36: 0.136
F37: 紙くず | G37: 0.1081768713 | H37: 0.011
F38: 木くず | G38: 0.09717676859 | H38: 0.008
F39: 繊維くず | G39: 0.287047895 | H39: 0
F40: 動植物性残渣（飼料化） | G40: 0.07275562901 | H40: 0.0284
F41: 動植物性残渣（肥料化） | G41: 0.07275562901 | H41: 0.134
F42: 動物系固形不要物 | G42: 0.13857867 | H42: 0.182
F43: ゴムくず | G43: 0.01487667175 | H43: 0
F44: 金属くず | G44: 0.001526487978 | H44: 0
F45: ガラス陶磁器くず | G45: 0.01173316714 | H45: 0.00107
F46: 鉱さい | G46: 0.003657484679 | H46: 0
F47: がれき類 | G47: 0.002701599676 | H47: 0.00107
F48: 動物のふん尿 | G48: 0.07760334786 | H48: 0.0795
F49: 動物の死体 | G49: 0.1165948821 | H49: 0.182
F50: ばいじん | G50: 0.01032944093 | H50: 0
F51: 液晶・プラズマテレビ | G51: 0.1458711372 | H51: 0.1458711372
F52: 冷蔵庫・冷凍庫 | G52: 0.09776266206 | H52: 0.09776266206
F53: 洗濯機・衣類乾燥機 | G53: 0.04938434929 | H53: 0.04938434929
F54: エアコン | G54: 0.05346153878 | H54: 0.05346153878
F55: パソコン・ディスプレイ | G55: 0.04762103704 | H55: 0.04762103704

Sheet カテゴリ13_リース資産下流
A1: カテゴリ１３．リース資産（下流）
A4: 項目データ | F4: 規模を表す指標 | H4: 排出原単位 | L4: 排出原単位DB | N4: 備考 | P4: 排出量 | S4: 排出量合計 [t-CO2]
A5: 項目番号 | B5: 社名/事業名 | C5: 分類用1 | D5: 分類用2 | E5: リース資産名 | F5: 数値 | G5: 単位 | H5: 数値 | I5: 単位 | J5: CO2単位 (t, kg, gのいずれかを入力) | K5: 分母単位 | L5: 出典 | M5: 項目 | N5: 推測・シナリオの前提条件 | O5: その他備考 | P5: 排出量 [t-CO2] | Q5: 排出量 [kg-CO2]
I6: =J6&"-CO2/"&K6 -> t-CO2/ | J6: t | P6: =_xlfn.IFS(F6="", "", G6=K6, _xlfn.IFS(J6="t", F6*H6, J6="kg", F6*H6/1000, J6="g", F6*H6/1000000, TRUE, "CO2の単位が間違っています"), TRUE, "単位があっていません") ->  | Q6: =P6*1000 ->  | S6: =IFERROR(SUM(P6:P21),"エラーが発生しています") -> 0
I7: =J7&"-CO2/"&K7 -> t-CO2/ | J7: t | P7: =_xlfn.IFS(F7="", "", G7=K7, _xlfn.IFS(J7="t", F7*H7, J7="kg", F7*H7/1000, J7="g", F7*H7/1000000, TRUE, "CO2の単位が間違っています"), TRUE, "単位があっていません") ->  | Q7: =P7*1000 -> 
I8: =J8&"-CO2/"&K8 -> t-CO2/ | J8: t | P8: =_xlfn.IFS(F8="", "", G8=K8, _xlfn.IFS(J8="t", F8*H8, J8="kg", F8*H8/1000, J8="g", F8*H8/1000000, TRUE, "CO2の単位が間違っています"), TRUE, "単位があっていません") ->  | Q8: =P8*1000 -> 
I9: t-CO2/ | J9: t | P9: =_xlfn.IFS(F9="", "", G9=K9, _xlfn.IFS(J9="t", F9*H9, J9="kg", F9*H9/1000, J9="g", F9*H9/1000000, TRUE, "CO2の単位が間違っています"), TRUE, "単位があっていません") -> 
I10: t-CO2/ | J10: t | P10: =_xlfn.IFS(F10="", "", G10=K10, _xlfn.IFS(J10="t", F10*H10, J10="kg", F10*H10/1000, J10="g", F10*H10/1000000, TRUE, "CO2の単位が間違っています"), TRUE, "単位があっていません") -> 
I11: t-CO2/ | J11: t | P11: =_xlfn.IFS(F11="", "", G11=K11, _xlfn.IFS(J11="t", F11*H11, J11="kg", F11*H11/1000, J11="g", F11*H11/1000000, TRUE, "CO2の単位が間違っています"), TRUE, "単位があっていません") -> 
I12: t-CO2/ | J12: t | P12: =_xlfn.IFS(F12="", "", G12=K12, _xlfn.IFS(J12="t", F12*H12, J12="kg", F12*H12/1000, J12="g", F12*H12/1000000, TRUE, "CO2の単位が間違っています"), TRUE, "単位があっていません") -> 
I13: t-CO2/ | J13: t | P13: =_xlfn.IFS(F13="", "", G13=K13, _xlfn.IFS(J13="t", F13*H13, J13="kg", F13*H13/1000, J13="g", F13*H13/1000000, TRUE, "CO2の単位が間違っています"), TRUE, "単位があっていません") -> 
I14: t-CO2/ | J14: t | P14: =_xlfn.IFS(F14="", "", G14=K14, _xlfn.IFS(J14="t", F14*H14, J14="kg", F14*H14/1000, J14="g", F14*H14/1000000, TRUE, "CO2の単位が間違っています"), TRUE, "単位があっていません") -> 
I15: t-CO2/ | J15: t | P15: =_xlfn.IFS(F15="", "", G15=K15, _xlfn.IFS(J15="t", F15*H15, J15="kg", F15*H15/1000, J15="g", F15*H15/1000000, TRUE, "CO2の単位が間違っています"), TRUE, "単位があっていません") -> 
I16: -CO2/ | P16: =_xlfn.IFS(F16="", "", G16=K16, _xlfn.IFS(J16="t", F16*H16, J16="kg", F16*H16/1000, J16="g", F16*H16/1000000, TRUE, "CO2の単位が間違っています"), TRUE, "単位があっていません") -> 
I17: =J17&"-CO2/"&K17 -> -CO2/ | P17: =_xlfn.IFS(F17="", "", G17=K17, _xlfn.IFS(J17="t", F17*H17, J17="kg", F17*H17/1000, J17="g", F17*H17/1000000, TRUE, "CO2の単位が間違っています"), TRUE, "単位があっていません") ->  | Q17: =P17*1000 -> 
I18: -CO2/ | P18: =_xlfn.IFS(F18="", "", G18=K18, _xlfn.IFS(J18="t", F18*H18, J18="kg", F18*H18/1000, J18="g", F18*H18/1000000, TRUE, "CO2の単位が間違っています"), TRUE, "単位があっていません") -> 
I19: -CO2/ | P19: =_xlfn.IFS(F19="", "", G19=K19, _xlfn.IFS(J19="t", F19*H19, J19="kg", F19*H19/1000, J19="g", F19*H19/1000000, TRUE, "CO2の単位が間違っています"), TRUE, "単位があっていません") -> 
I20: -CO2/ | P20: =_xlfn.IFS(F20="", "", G20=K20, _xlfn.IFS(J20="t", F20*H20, J20="kg", F20*H20/1000, J20="g", F20*H20/1000000, TRUE, "CO2の単位が間違っています"), TRUE, "単位があっていません") -> 
I21: -CO2/ | P21: =_xlfn.IFS(F21="", "", G21=K21, _xlfn.IFS(J21="t", F21*H21, J21="kg", F21*H21/1000, J21="g", F21*H21/1000000, TRUE, "CO2の単位が間違っています"), TRUE, "単位があっていません") -> 
P23: ※活動量の単位と原単位の単位があっていない場合は「単位があっていません」と表示されます。また、CO2の単位にt, kg, g以外の文字を入力した場合は「CO2の単位があっていません」が表示されます。

Sheet カテゴリ14_フランチャイズ
A1: カテゴリ１４．フランチャイズ
A2: ■フランチャイズにおけるCO2排出量
A5: 項目データ | F5: CO2排出量データ | H5: 備考 | J5: 排出量 | M5: 排出量合計 [t-CO2]
A6: 項目番号 | B6: 社名/事業名 | C6: 分類用1 | D6: 分類用2 | E6: フランチャイズ店名 | F6: 数値 | G6: 単位 | H6: 推測・シナリオの前提条件 | I6: その他備考 | J6: 排出量 [t-CO2] | K6: 排出量 [kg-CO2]
G7: t-CO2 | J7: =IF(F7="","",F7) ->  | K7: =J7*1000 ->  | M7: =IFERROR(SUM(J7:J22),"エラーが発生しています") -> 0
G8: t-CO2 | J8: =IF(F8="","",F8) ->  | K8: =J8*1000 -> 
G9: t-CO2 | J9: =IF(F9="","",F9) -> 
G10: t-CO2
G11: t-CO2
G12: t-CO2
G13: t-CO2
G14: t-CO2
G15: t-CO2 | K15: =J15*1000 -> 
G16: t-CO2
G17: t-CO2
G18: t-CO2
G19: t-CO2
G20: t-CO2
G21: t-CO2
G22: t-CO2

Sheet カテゴリ15_投資
A1: カテゴリ１５．投資
A4: 項目データ | F4: 投資先の株式数・プロジェクト資金データ | I4: 投資先CO2排出量データ | K4: 備考 | M4: 排出量 | P4: 排出量合計 [t-CO2]
A5: 項目番号 | B5: 社名/事業名 | C5: 分類用1 | D5: 分類用2 | E5: 投資先企業・プロジェクト名 | F5: 自社保有株式数・投資資金量 | G5: 総発行株式数・総資金量 | H5: 自社投資比率[%] | I5: 投資先企業 SCOPE1・2総排出量 | J5: 単位 | K5: 推測・シナリオの前提条件 | L5: その他備考 | M5: 排出量 [t-CO2] | N5: 排出量 [kg-CO2]
H6: =IF(G6="", "",F6/G6) ->  | J6: t-CO2 | M6: =IF(H6="","",I6*H6) ->  | N6: =M6*1000 ->  | P6: =IFERROR(SUM(M6:M21),"エラーが発生しています") -> 0
H7: =IF(G7="", "",F7/G7) ->  | J7: t-CO2 | M7: =IF(H7="","",I7*H7) ->  | N7: =M7*1000 -> 
J8: t-CO2 | M8: =IF(H8="","",I8*H8) -> 
J9: t-CO2
H10: =IF(G10="", "",F10/G10) ->  | J10: t-CO2 | N10: =M10*1000 -> 
J11: t-CO2
H12: =IF(G12="", "",F12/G12) ->  | J12: t-CO2 | N12: =M12*1000 -> 
J13: t-CO2
J14: t-CO2
H15: =IF(G15="", "",F15/G15) ->  | J15: t-CO2 | N15: =M15*1000 -> 
J16: t-CO2
J17: t-CO2
J18: t-CO2
J19: t-CO2
J20: t-CO2
J21: t-CO2

Sheet ←データ入力シート｜原単位等データシート→
A1: シート名称かページ番号をクリックすると該当のシートに飛びます。
A3: ページ番号 | B3: シート名称 | C3: シート内容
A4: 1 | B4: シートの見方 | C4: シート全体の見方の説明
A5: 2 | B5: データ入力方法 | C5: データ入力シートの入力方法
A6: 3 | B6: シート一覧 | C6: 各シート内容の一覧
A7: 4 | B7: 算定の前提条件 | C7: 算定の前提条件について
A8: 5 | B8: ←全体情報シート｜分析結果シート→ | C8: シートの区切り
A9: 6 | B9: 排出量まとめ_マーケット基準 | C9: スコープ1+2+3のサプライチェーン排出量のまとめとその分析結果を示しています（マーケット基準）
A10: 7 | B10: ←分析結果シート｜データ入力シート→ | C10: シートの区切り
A11: 8 | B11: SCOPE1 | C11: SCOPE1のデータ入力用シートです。
A12: 9 | B12: SCOPE2_マーケット基準 | C12: SCOPE2のデータ入力用シートです。（マーケット基準）
A13: 10 | B13: カテゴリ1_製品 | C13: カテゴリ1のデータ入力用シートです。 | D13: *ロックされていて入力できません。
A14: 11 | B14: カテゴリ2_資本財 | C14: カテゴリ2のデータ入力用シートです。 | D14: *ロックされていて入力できません。
A15: 12 | B15: カテゴリ3_エネルギー等の上流 | C15: カテゴリ3のデータ入力用シートです。 | D15: *ロックされていて入力できません。
A16: 13 | B16: カテゴリ4_輸送上流 | C16: カテゴリ4のデータ入力用シートです。 | D16: *ロックされていて入力できません。
A17: 14 | B17: カテゴリ5_廃棄（事業） | C17: カテゴリ5のデータ入力用シートです。 | D17: *ロックされていて入力できません。
A18: 15 | B18: カテゴリ6_出張 | C18: カテゴリ6のデータ入力用シートです。 | D18: *ロックされていて入力できません。
A19: 16 | B19: カテゴリ7_通勤 | C19: カテゴリ7のデータ入力用シートです。 | D19: *ロックされていて入力できません。
A20: 17 | B20: カテゴリ8_リース資産上流 | C20: カテゴリ8のデータ入力用シートです。 | D20: *ロックされていて入力できません。
A21: 18 | B21: カテゴリ9_輸送下流 | C21: カテゴリ9のデータ入力用シートです。 | D21: *ロックされていて入力できません。
A22: 19 | B22: カテゴリ10_製品の加工 | C22: カテゴリ10のデータ入力用シートです。 | D22: *ロックされていて入力できません。
A23: 20 | B23: カテゴリ11_製品の使用 | C23: カテゴリ11のデータ入力用シートです。 | D23: *ロックされていて入力できません。
A24: 21 | B24: カテゴリ12_廃棄（使用） | C24: カテゴリ12のデータ入力用シートです。 | D24: *ロックされていて入力できません。
A25: 22 | B25: カテゴリ13_リース資産下流 | C25: カテゴリ13のデータ入力用シートです。 | D25: *ロックされていて入力できません。
A26: 23 | B26: カテゴリ14_フランチャイズ | C26: カテゴリ14のデータ入力用シートです。 | D26: *ロックされていて入力できません。
A27: 24 | B27: カテゴリ15_投資 | C27: カテゴリ15のデータ入力用シートです。 | D27: *ロックされていて入力できません。
A28: 25 | B28: ←データ入力シート｜原単位等データシート→ | C28: シートの区切り
A29: 26 | B29: カテゴリ1計算用_原単位DB | C29: カテゴリ1計算時の参照用のデータベースです。
A30: 27 | B30: カテゴリ２計算用_原単位DB | C30: カテゴリ2計算時の参照用のデータベースです。
A31: 28 | B31: カテゴリ4&9計算用_国間距離DB | C31: カテゴリ4,9計算時の参照用のデータベースです。

Sheet カテゴリ1計算用_原単位DB
A1: [５]産業連関表ベースの排出原単位
A3: Scope1〇 Scope2〇
A4: Scope3(上流)：Cat01●｜Cat02〇｜Cat03〇｜Cat04●｜Cat05〇｜Cat06〇｜Cat07〇｜Cat08〇
A5: Scope3(下流)：Cat09●｜Cat10〇｜Cat11〇｜Cat12〇｜Cat13〇｜Cat14〇｜Cat15〇
A8: ＜排出原単位について＞
A9: カテゴリ1における排出量等の算定のための排出原単位としては、積み上げベースと産業連関表ベースの双方の排出原単位を用いることができます。
A11: なお、下表に示す通り、積み上げベースと産業連関表ベースの排出原単位には、それぞれメリット・デメリットがあるため、それらの性質を十分に理解した上で、下図に示すディシジョンツリーに基づき、これらを併用することが望ましいです。
B14: 積み上げベースと産業連関表ベースの排出原単位のメリット・デメリット(再掲)
C15: メリット | F15: デメリット
B16: 積み上げ ベース | C16: ◎ライフサイクルの各段階で投入した資源・エネルギー（インプット）と排出物（アウトプット）を詳細に収集・集計しているため、高精度。 | F16: ●ライフサイクルに含まれるプロセスは非常に複雑であり、積み上げ法により排出原単位を作成するには多大な労力が必要。
C17: ◎現実のプロセスに対応しており、データの代表性も高い。 | F17: ○網羅的な整備が難しいため必要な原単位が存在しない可能性あり。
B18: 産業連関表 ベース | C18: ◎社会に存在するすべての財・サービスの生産に伴う直接・間接的な排出量を把握することが可能。 | F18: ◎産業連関表では社会に存在するすべての財・サービスを400種類にまとめて分類しており、一つの部門に該当する商品やサービスは複数存在することが多く、原単位はそうした多種の製品の平均的な単位生産額あたりの排出量を示しており、詳細な分析は困難。
C19: ○社会に存在するすべての財・サービスの排出量を把握しているため必要な原単位を入手可能。
B20: ※ ●：原単位作成者の視点、○：原単位使用者の視点、◎：原単位作成者・使用者共通の視点
A41: 算定者が既に把握している活動量に合致する排出原単位が存在せず、産業連関表ベースの排出原単位を使用する場合には、日本標準商品分類等を参考に、排出原単位が存在する当該活動が含まれる上位項目を特定し、その上位項目の排出原単位を使用してください。
B44: （例１）産業連関表の品目別国内生産額表にて分類を確認する方法。
B45: 「液晶テレビ」に完全に一致する排出原単位は排出原単位データベースにない。そこで「グローバルサプライチェーンを考慮した環境負荷原単位」のもととなる「産業連関表による環境負荷原単位データブック（3EID）」の「（2）環境負荷原単位と品目別国内生産額との対応表（2005年度版）」（http://www.cger.nies.go.jp/publications/report/d031/jpn/page/document_file.htm）のエクセルの列「品目名」にて「液晶テレビ」をキーワード検索。検索結果の列「列部門名」の「ラジオ・テレビ受信機」の排出原単位を使用する。
B46: （例２）日本標準商品分類にて分類を確認する方法。
B47: 「ビタミン剤」に完全に一致する排出原単位は排出原単位データベースにはない。そこで「日本標準商品分類」（http://www.e-stat.go.jp/SG1/htoukeib/htoukeib.do）にて「ビタミン剤」をキーワード検索。検索結果「ビタミン剤」をクリックすると表示される詳細情報（日本標準商品分類 > 生活・文化用品 > 医薬品及び関連製品 > 代謝性医薬品 > ビタミン剤）の上位分類「医薬品及び関連製品」に近い「医薬品」の排出原単位を使用する。
A49: ①物量ベースの排出原単位＜事務局＞
A50: この排出原単位は、後述する②金額ベースの排出原単位（生産段階・卸小売段階の合算値）に対して、産業連関表の付帯表である「部門別品目別国内生産額表」における単価データを乗じ、物量換算しています。ただし、単価データの存在しない部門については、物量換算していません。この場合、②の原単位を適用してください。
A54: ②金額ベースの排出原単位＜事務局＞
A55: 国立環境研究所：産業連関表によるグローバルサプライチェーンを考慮した環境負荷原単位における購入者価格原単位より算出しています。この排出原単位は、「内生部門計（生産者）」、「内生部門計（卸売）」及び「内生部門計（小売）」の合算値を用いています。なお、時間的適合性の観点からは、デフレータ等に基づき物価変動の影響を軽減することも有効と考えられます。 また、カテゴリ4及びカテゴリ9の輸送に関する排出量等の算定のために、列コード「711101～717101」の排出原単位を使用することができます。 生産者価格ベースと購入者価格ベースには以下のような違いがあります。 ・生産者価格ベース：生産者が出荷する段階での販売価格。算定事業者が生産者から直接購入する場合に使用する。 ・購入者価格ベース：消費者が購入する段階での流通コストを含んだ価格。算定事業者が商社/小売等を介して購入する場合に使用する。
A62: 表5. 産業連関表ベースの排出原単位（GLIO：2005年表）
A63: No. | B63: 列コード | C63: 部門名 | E63: ①物量ベースの 排出原単位 | G63: ②金額ベースの排出原単位 | I63: （参考）単価
G64: 生産者価格ベース | H64: 購入者価格ベース | I64: （品目別生産額表2005より）
H65: （内生部門計：輸送除く）
E66: GHG排出原単位(I-A)-1 | G66: GHG排出原単位(I-A)-1 | H66: GHG排出原単位(I-A)-1
E67: t-CO2eq/○○ | G67: t-CO2eq/百万円 | H67: t-CO2eq/百万円 | I67: 百万円/○○
A68: 1 | B68: 11101 | C68: 米 | D68: =TRIM(C68) -> 米 | E68: - | G68: 6.259115083 | H68: 5.367890575 | I68: -
A69: 2 | B69: 11102 | C69: 麦類 | D69: =TRIM(C69) -> 麦類 | E69: - | G69: 6.035407811 | H69: 5.102459727 | I69: -
A70: 3 | B70: 11201 | C70: いも類 | D70: いも類 | E70: - | G70: 3.796373265 | H70: 2.854917853 | I70: -
A71: 4 | B71: 11202 | C71: 豆類 | D71: 豆類 | E71: - | G71: 5.51507825 | H71: 4.691785813 | I71: -
A72: 5 | B72: 11301 | C72: 野菜 | D72: 野菜 | E72: - | G72: 4.478860932 | H72: 3.284013208 | I72: -
A73: 6 | B73: 11401 | C73: 果実 | D73: 果実 | E73: - | G73: 3.644200492 | H73: 2.656198722 | I73: -
A74: 7 | B74: 11501 | C74: 砂糖原料作物 | D74: 砂糖原料作物 | E74: - | G74: 4.355321676 | H74: 3.980003349 | I74: -
A75: 8 | B75: 11502 | C75: 飲料用作物 | D75: 飲料用作物 | E75: - | G75: 12.75788492 | H75: 9.471548901 | I75: -
A76: 9 | B76: 11509 | C76: その他の食用耕種作物 | D76: その他の食用耕種作物 | E76: - | G76: 7.558976467 | H76: 6.060975421 | I76: -
A77: 10 | B77: 11601 | C77: 飼料作物 | D77: 飼料作物 | E77: - | G77: 10.02116519 | H77: 9.723417115 | I77: -
A78: 11 | B78: 11602 | C78: 種苗 | D78: 種苗 | E78: - | G78: 4.359368601 | H78: 3.550260249 | I78: -
A79: 12 | B79: 11603 | C79: 花き・花木類 | D79: 花き・花木類 | E79: - | G79: 8.084229429 | H79: 5.348190984 | I79: -
A80: 13 | B80: 11609 | C80: その他の非食用耕種作物 | D80: その他の非食用耕種作物 | E80: - | G80: 4.452627232 | H80: 3.987281941 | I80: -
A81: 14 | B81: 12101 | C81: 酪農 | D81: 酪農 | E81: - | G81: 12.18683198 | H81: 11.11146869 | I81: -
A82: 15 | B82: 12102 | C82: 鶏卵 | D82: 鶏卵 | E82: - | G82: 8.539923183 | H82: 7.091060348 | I82: -
A83: 16 | B83: 12103 | C83: 肉鶏 | D83: 肉鶏 | E83: - | G83: 10.14322139 | H83: 9.563484918 | I83: -
A84: 17 | B84: 12104 | C84: 豚 | D84: 豚 | E84: - | G84: 9.814049233 | H84: 8.851559566 | I84: -
A85: 18 | B85: 12105 | C85: 肉用牛 | D85: 肉用牛 | E85: - | G85: 15.42579879 | H85: 14.23795794 | I85: -
A86: 19 | B86: 12109 | C86: その他の畜産 | D86: その他の畜産 | E86: - | G86: 6.25017624 | H86: 4.255555489 | I86: -
A87: 20 | B87: 13101 | C87: 獣医業 | D87: 獣医業 | E87: - | G87: 1.586466183 | H87: 1.586466183 | I87: -
A88: 21 | B88: 13102 | C88: 農業サービス（除獣医業） | D88: 農業サービス（除獣医業） | E88: - | G88: 3.527649821 | H88: 3.527649821 | I88: -
A89: 22 | B89: 21101 | C89: 育林 | D89: 育林 | E89: - | G89: 0.495344169 | H89: 0.5026022139 | I89: -
A90: 23 | B90: 21201 | C90: 素材 | D90: 素材 | E90: - | G90: 1.982803055 | H90: 1.755766541 | I90: -
A91: 24 | B91: 21301 | C91: 特用林産物（含狩猟業） | D91: 特用林産物（含狩猟業） | E91: - | G91: 5.685633394 | H91: 4.369675355 | I91: -
A92: 25 | B92: 31101 | C92: 海面漁業 | D92: 海面漁業 | E92: - | G92: 9.680146207 | H92: 7.275616295 | I92: -
A93: 26 | B93: 31104 | C93: 海面養殖業 | D93: 海面養殖業 | E93: - | G93: 5.155845224 | H93: 3.966956942 | I93: -
A94: 27 | B94: 31201 | C94: 内水面漁業・養殖業 | D94: 内水面漁業・養殖業 | E94: - | G94: 6.156935388 | H94: 4.301260118 | I94: -
A95: 28 | B95: 61101 | C95: 金属鉱物 | D95: 金属鉱物 | E95: 0.5393847306 | F95: 含有量t | G95: 7.95140515 | H95: 7.13874721 | I95: 0.06717731619 | J95: 含有量t
A96: 29 | B96: 62101 | C96: 窯業原料鉱物 | D96: 窯業原料鉱物 | E96: 0.006526673471 | F96: t | G96: 8.065184265 | H96: 5.990181512 | I96: 0.0007983865185 | J96: t
A97: 30 | B97: 62201 | C97: 砂利・採石 | D97: 砂利・採石 | E97: 0.01181522406 | F97: t | G97: 5.862760585 | H97: 3.320873148 | I97: 0.001978202757 | J97: t
A98: 31 | B98: 62202 | C98: 砕石 | D98: 砕石 | E98: 6.691825427 | F98: 千t | G98: 5.69926937 | H98: 3.775743137 | I98: 1.151668978 | J98: 千t
A99: 32 | B99: 62909 | C99: その他の非金属鉱物 | D99: その他の非金属鉱物 | E99: 0.09680864669 | F99: t | G99: 9.891021364 | H99: 8.041264543 | I99: 0.009672491018 | J99: t
A100: 33 | B100: 71101 | C100: 石炭・原油・天然ガス | D100: 石炭・原油・天然ガス | E100: 0.1680387769 | F100: t | G100: 8.064310687 | H100: 7.561214321 | I100: 0.02075231459 | J100: t
A101: 34 | B101: 111101 | C101: と畜（含肉鶏処理） | D101: と畜（含肉鶏処理） | E101: 6.042055252 | F101: t | G101: 10.50878386 | H101: 7.752406872 | I101: 0.5366063052 | J101: t
A102: 35 | B102: 111201 | C102: 肉加工品 | D102: 肉加工品 | E102: 9.597886147 | F102: t | G102: 6.737700549 | H102: 5.380863217 | I102: 1.316720106 | J102: t
A103: 36 | B103: 111202 | C103: 畜産びん・かん詰 | D103: 畜産びん・かん詰 | E103: 3.460093773 | F103: t | G103: 4.247737798 | H103: 3.060182601 | I103: 0.6153108518 | J103: t
A104: 37 | B104: 111203 | C104: 酪農品 | D104: 酪農品 | E104: 1.706826231 | F104: kl | G104: 7.724207583 | H104: 6.175303316 | I104: 0.209016168 | J104: kl
A105: 38 | B105: 111301 | C105: 冷凍魚介類 | D105: 冷凍魚介類 | E105: 3.126605316 | F105: t | G105: 5.675964296 | H105: 4.552017724 | I105: 0.5051201821 | J105: t
A106: 39 | B106: 111302 | C106: 塩・干・くん製品 | D106: 塩・干・くん製品 | E106: 5.862503739 | F106: t | G106: 5.249878341 | H106: 3.772437802 | I106: 0.9174734317 | J106: t
A107: 40 | B107: 111303 | C107: 水産びん・かん詰 | D107: 水産びん・かん詰 | E107: 6.022495455 | F107: t | G107: 4.973793127 | H107: 3.525178142 | I107: 0.9739902993 | J107: t
A108: 41 | B108: 111304 | C108: ねり製品 | D108: ねり製品 | E108: 3.010611935 | F108: t | G108: 4.482837102 | H108: 3.694246718 | I108: 0.6019006457 | J108: t
A109: 42 | B109: 111309 | C109: その他の水産食品 | D109: その他の水産食品 | E109: 5.024325102 | F109: t | G109: 3.997226201 | H109: 3.273058389 | I109: 1.085124175 | J109: t
A110: 43 | B110: 111401 | C110: 精穀 | D110: 精穀 | E110: 1.732678809 | F110: t | G110: 5.112136716 | H110: 4.264489632 | I110: 0.3128231056 | J110: t
A111: 44 | B111: 111402 | C111: 製粉 | D111: 製粉 | E111: 0.9221911637 | F111: t | G111: 10.73212069 | H111: 8.522701584 | I111: 0.08360778936 | J111: t
A112: 45 | B112: 111501 | C112: めん類 | D112: めん類 | E112: 3.569537121 | F112: t | G112: 5.106248416 | H112: 4.125171114 | I112: 0.6280037428 | J112: t
A113: 46 | B113: 111502 | C113: パン類 | D113: パン類 | E113: 3.905447622 | F113: t | G113: 4.15199249 | H113: 3.540002745 | I113: 0.8327004233 | J113: t
A114: 47 | B114: 111503 | C114: 菓子類 | D114: 菓子類 | E114: 4.88665751 | F114: t | G114: 3.86083529 | H114: 3.262653313 | I114: 1.098267788 | J114: t
A115: 48 | B115: 111601 | C115: 農産びん・かん詰 | D115: 農産びん・かん詰 | E115: 2.107991109 | F115: t | G115: 4.621473855 | H115: 3.223453902 | I115: 0.3659726968 | J115: t
A116: 49 | B116: 111602 | C116: 農産保存食料品（除びん・かん詰） | D116: 農産保存食料品（除びん・かん詰） | E116: 1.779137497 | F116: t | G116: 3.333600482 | H116: 2.567914973 | I116: 0.3945565754 | J116: t
A117: 50 | B117: 111701 | C117: 砂糖 | D117: 砂糖 | E117: 1.102100455 | F117: t | G117: 8.192651955 | H117: 5.850372701 | I117: 0.125285815 | J117: t
A118: 51 | B118: 111702 | C118: でん粉 | D118: でん粉 | E118: 0.5139155005 | F118: t | G118: 11.86881268 | H118: 9.067909302 | I118: 0.04229272382 | J118: t
A119: 52 | B119: 111703 | C119: ぶどう糖・水あめ・異性化糖 | D119: ぶどう糖・水あめ・異性化糖 | E119: 0.747971747 | F119: t | G119: 11.49255819 | H119: 9.149050534 | I119: 0.0627161854 | J119: t
A120: 53 | B120: 111704 | C120: 植物油脂 | D120: 植物油脂 | E120: 0.9478294025 | F120: t | G120: 11.423389 | H120: 9.21914315 | I120: 0.08062119227 | J120: t
A121: 54 | B121: 111705 | C121: 動物油脂 | D121: 動物油脂 | E121: 0.7428009397 | F121: t | G121: 8.472861356 | H121: 7.313574001 | I121: 0.08544710849 | J121: t
A122: 55 | B122: 111706 | C122: 調味料 | D122: 調味料 | E122: 2.223510126 | F122: t | G122: 4.097078615 | H122: 3.394381752 | I122: 0.4881173948 | J122: t
A123: 56 | B123: 111901 | C123: 冷凍調理食品 | D123: 冷凍調理食品 | E123: 2.472961397 | F123: t | G123: 5.004007161 | H123: 3.902631212 | I123: 0.4158611796 | J123: t
A124: 57 | B124: 111902 | C124: レトルト食品 | D124: レトルト食品 | E124: 3.566698292 | F124: t | G124: 4.754758784 | H124: 3.833207074 | I124: 0.6697298079 | J124: t
A125: 58 | B125: 111903 | C125: そう菜・すし・弁当 | D125: そう菜・すし・弁当 | E125: - | G125: 4.350369027 | H125: 3.507926167 | I125: -
A126: 59 | B126: 111904 | C126: 学校給食（国公立）★★ | D126: 学校給食（国公立）★★ | E126: - | G126: 3.549858352 | H126: - | I126: -
A127: 60 | B127: 111905 | C127: 学校給食（私立）★ | D127: 学校給食（私立）★ | E127: - | G127: 3.589060596 | H127: - | I127: -
A128: 61 | B128: 111909 | C128: その他の食料品 | D128: その他の食料品 | E128: 1.755698855 | F128: t | G128: 5.423344994 | H128: 4.207776203 | I128: 0.2806698337 | J128: t
A129: 62 | B129: 112101 | C129: 清酒 | D129: 清酒 | E129: - | G129: 2.799153582 | H129: 2.243647768 | I129: -
A130: 63 | B130: 112102 | C130: ビール | D130: ビール | E130: - | G130: 1.825721008 | H130: 1.598704639 | I130: -
A131: 64 | B131: 112103 | C131: ウィスキー類 | D131: ウィスキー類 | E131: - | G131: 2.155329552 | H131: 1.846210815 | I131: -
A132: 65 | B132: 112109 | C132: その他の酒類 | D132: その他の酒類 | E132: - | G132: 2.601639676 | H132: 2.122156905 | I132: -
A133: 66 | B133: 112901 | C133: 茶・コーヒー | D133: =TRIM(C133) -> 茶・コーヒー | E133: 9.352927772 | F133: t | G133: 4.141188926 | H133: 3.515542758 | I133: 2.075471698 | J133: t
A134: 67 | B134: 112902 | C134: 清涼飲料 | D134: 清涼飲料 | E134: 0.7604071237 | F134: kl | G134: 3.197786395 | H134: 2.634294483 | I134: 0.2007111866 | J134: kl
A135: 68 | B135: 112903 | C135: 製氷 | D135: 製氷 | E135: 0.1181713358 | F135: t | G135: 4.953439657 | H135: 4.082185699 | I135: 0.0218302188 | J135: t
A136: 69 | B136: 113101 | C136: 飼料 | D136: 飼料 | E136: 0.4448164539 | F136: t | G136: 9.445944445 | H136: 7.761144921 | I136: 0.04623092793 | J136: t
A137: 70 | B137: 113102 | C137: 有機質肥料（除別掲） | D137: 有機質肥料（除別掲） | E137: 0.148762896 | F137: t | G137: 5.223605585 | H137: 4.148741704 | I137: 0.02779923216 | J137: t
A138: 71 | B138: 114101 | C138: たばこ | D138: たばこ | E138: - | G138: 0.891442289 | H138: 0.891442289 | I138: -
A139: 72 | B139: 151101 | C139: 紡績糸 | D139: 紡績糸 | E139: 4.000799227 | F139: t | G139: 6.34669801 | H139: 5.296861349 | I139: 0.6014075141 | J139: t
A140: 73 | B140: 151201 | C140: 綿・スフ織物（含合繊短繊維織物） | D140: 綿・スフ織物（含合繊短繊維織物） | E140: 1.541628808 | F140: 千m2 | G140: 7.359836278 | H140: 6.14189168 | I140: 0.2002212604 | J140: 千m2
A141: 74 | B141: 151202 | C141: 絹・人絹織物（含合繊長繊維織物） | D141: 絹・人絹織物（含合繊長繊維織物） | E141: 3.270195306 | F141: 千m2 | G141: 6.918947423 | H141: 5.565368386 | I141: 0.4438214355 | J141: 千m2
A142: 75 | B142: 151203 | C142: 毛織物・麻織物・その他の織物 | D142: 毛織物・麻織物・その他の織物 | E142: 7.425525097 | F142: 千m2 | G142: 6.659918122 | H142: 5.459966112 | I142: 1.050041879 | J142: 千m2
A143: 76 | B143: 151301 | C143: ニット生地 | D143: ニット生地 | E143: 4.765506439 | F143: t | G143: 5.33475389 | H143: 4.970066228 | I143: 0.879221167 | J143: t
A144: 77 | B144: 151401 | C144: 染色整理 | D144: 染色整理 | E144: - | G144: 9.465121643 | H144: 9.465121643 | I144: -
A145: 78 | B145: 151901 | C145: 綱・網 | D145: 綱・網 | E145: 4.220255194 | F145: t | G145: 5.536640135 | H145: 4.497415592 | I145: 0.6945834161 | J145: t
A146: 79 | B146: 151902 | C146: じゅうたん・床敷物 | D146: じゅうたん・床敷物 | E146: 5.862967599 | F146: 千m2 | G146: 6.061227232 | H146: 4.775775668 | I146: 0.890893232 | J146: 千m2
A147: 80 | B147: 151903 | C147: 繊維製衛生材料 | D147: 繊維製衛生材料 | E147: - | G147: 4.179086128 | H147: 3.552705414 | I147: -
A148: 81 | B148: 151909 | C148: その他の繊維工業製品 | D148: その他の繊維工業製品 | E148: 3.185935437 | F148: t | G148: 5.683545437 | H148: 5.125240574 | I148: 0.5452615734 | J148: t
A149: 82 | B149: 152101 | C149: 織物製衣服 | D149: 織物製衣服 | E149: 0.01197519106 | F149: 着 | G149: 4.005177219 | H149: 3.225424046 | I149: 0.002451072877 | J149: 着
A150: 83 | B150: 152102 | C150: ニット製衣服 | D150: ニット製衣服 | E150: 0.05230002247 | F150: デカ | G150: 4.635851955 | H150: 3.455683177 | I150: 0.009126992288 | J150: デカ
A151: 84 | B151: 152209 | C151: その他の衣服・身の回り品 | D151: その他の衣服・身の回り品 | E151: 0.6812977858 | F151: 千点 | G151: 4.583016719 | H151: 3.354326685 | I151: 0.1198959665 | J151: 千点
A152: 85 | B152: 152901 | C152: 寝具 | D152: 寝具 | E152: - | G152: 3.913564304 | H152: 3.129348295 | I152: -
A153: 86 | B153: 152909 | C153: その他の繊維既製品 | D153: その他の繊維既製品 | E153: - | G153: 3.873849283 | H153: 3.075476503 | I153: -
A154: 87 | B154: 161101 | C154: 製材 | D154: 製材 | E154: 137.5835735 | F154: 千m3 | G154: 3.743458203 | H154: 3.079551468 | I154: 34.09879992 | J154: 千m3
A155: 88 | B155: 161102 | C155: 合板 | D155: 合板 | E155: 0.5629606768 | F155: m3 | G155: 4.209176912 | H155: 3.462672463 | I155: 0.1251941537 | J155: m3
A156: 89 | B156: 161103 | C156: 木材チップ | D156: 木材チップ | E156: 23.0836617 | F156: 千m3 | G156: 2.636557818 | H156: 2.236082374 | I156: 7.884180481 | J156: 千m3
A157: 90 | B157: 161909 | C157: その他の木製品 | D157: その他の木製品 | E157: - | G157: 2.860854508 | H157: 2.401372509 | I157: -
A158: 91 | B158: 171101 | C158: 木製家具・装備品 | D158: 木製家具・装備品 | E158: - | G158: 3.157834603 | H158: 2.514472706 | I158: -
A159: 92 | B159: 171102 | C159: 木製建具 | D159: 木製建具 | E159: - | G159: 3.118277787 | H159: 2.369478538 | I159: -
A160: 93 | B160: 171103 | C160: 金属製家具・装備品 | D160: 金属製家具・装備品 | E160: - | G160: 5.158668768 | H160: 3.612597564 | I160: -
A161: 94 | B161: 181101 | C161: パルプ | D161: パルプ | E161: 1.019292684 | F161: t | G161: 19.39780843 | H161: 16.33323672 | I161: 0.0518985186 | J161: t
A162: 95 | B162: 181201 | C162: 洋紙・和紙 | D162: 洋紙・和紙 | E162: 1.82618813 | F162: t | G162: 15.44940176 | H162: 11.11599922 | I162: 0.1140003593 | J162: t
A163: 96 | B163: 181202 | C163: 板紙 | D163: 板紙 | E163: 0.8008769963 | F163: t | G163: 13.82552377 | H163: 9.990876698 | I163: 0.05575544255 | J163: t
A164: 97 | B164: 181301 | C164: 段ボール | D164: 段ボール | E164: 0.3824980319 | F164: 千m2 | G164: 7.815712574 | H164: 6.316012249 | I164: 0.04742259571 | J164: 千m2
A165: 98 | B165: 181302 | C165: 塗工紙・建設用加工紙 | D165: 塗工紙・建設用加工紙 | E165: - | G165: 6.053833764 | H165: 5.036584772 | I165: -
A166: 99 | B166: 182101 | C166: 段ボール箱 | D166: 段ボール箱 | E166: - | G166: 3.825215498 | H166: 3.216135563 | I166: -
A167: 100 | B167: 182109 | C167: その他の紙製容器 | D167: その他の紙製容器 | E167: 0.234344857 | F167: 千袋 | G167: 4.842244888 | H167: 3.965269096 | I167: 0.04604298833 | J167: 千袋
A168: 101 | B168: 182901 | C168: 紙製衛生材料・用品 | D168: 紙製衛生材料・用品 | E168: - | G168: 5.110364614 | H168: 3.945979612 | I168: -
A169: 102 | B169: 182909 | C169: その他のパルプ・紙・紙加工品 | D169: その他のパルプ・紙・紙加工品 | E169: 0.00148228564 | F169: m2 | G169: 4.624135653 | H169: 3.790143985 | I169: 0.0002971523095 | J169: m2
A170: 103 | B170: 191101 | C170: 印刷・製版・製本 | D170: 印刷・製版・製本 | E170: - | G170: 3.261848355 | H170: 3.042975217 | I170: -
A171: 104 | B171: 201101 | C171: 化学肥料 | D171: 化学肥料 | E171: 0.7188502569 | F171: t | G171: 17.36302599 | H171: 13.08370528 | I171: 0.04017036922 | J171: t
A172: 105 | B172: 202101 | C172: ソーダ工業製品 | D172: ソーダ工業製品 | E172: 0.829689476 | F172: t | G172: 21.22610419 | H172: 17.93337653 | I172: 0.03865178489 | J172: t
A173: 106 | B173: 202901 | C173: 無機顔料 | D173: 無機顔料 | E173: 1.857516166 | F173: t | G173: 9.748131539 | H173: 8.000206361 | I173: 0.183743003 | J173: t
A174: 107 | B174: 202902 | C174: 圧縮ガス・液化ガス | D174: 圧縮ガス・液化ガス | E174: 0.1071277304 | F174: 千m3 | G174: 11.38271522 | H174: 9.308286742 | I174: 0.009211003604 | J174: 千m3
A175: 108 | B175: 202903 | C175: 塩 | D175: 塩 | E175: - | G175: 14.2717822 | H175: 10.50822901 | I175: -
A176: 109 | B176: 202909 | C176: その他の無機化学工業製品 | D176: その他の無機化学工業製品 | E176: 0.3503095574 | F176: t | G176: 13.72506676 | H176: 11.44254076 | I176: 0.0250709921 | J176: t
A177: 110 | B177: 203101 | C177: 石油化学基礎製品 | D177: 石油化学基礎製品 | E177: 0.8628511052 | F177: t | G177: 10.4475775 | H177: 9.982532821 | I177: 0.08246294624 | J177: t
A178: 111 | B178: 203102 | C178: 石油化学系芳香族製品 | D178: 石油化学系芳香族製品 | E178: 0.5256523911 | F178: t | G178: 8.953470065 | H178: 8.394699976 | I178: 0.0584788689 | J178: t
A179: 112 | B179: 203201 | C179: 脂肪族中間物 | D179: 脂肪族中間物 | E179: 1.647403381 | F179: t | G179: 14.96333108 | H179: 12.96002263 | I179: 0.1087411989 | J179: t
A180: 113 | B180: 203202 | C180: 環式中間物 | D180: 環式中間物 | E180: 1.488237533 | F180: t | G180: 10.27421785 | H180: 9.838111797 | I180: 0.1445646429 | J180: t
A181: 114 | B181: 203301 | C181: 合成ゴム | D181: 合成ゴム | E181: 5.905075229 | F181: t | G181: 18.20962255 | H181: 15.87259339 | I181: 0.3211414571 | J181: t
A182: 115 | B182: 203901 | C182: メタン誘導品 | D182: メタン誘導品 | E182: 1.256582944 | F182: t | G182: 15.32959017 | H182: 12.97316077 | I182: 0.08071057996 | J182: t
A183: 116 | B183: 203902 | C183: 油脂加工製品 | D183: 油脂加工製品 | E183: 0.7753901946 | F183: t | G183: 6.214978407 | H183: 5.024526252 | I183: 0.1166018903 | J183: t
A184: 117 | B184: 203903 | C184: 可塑剤 | D184: 可塑剤 | E184: 1.612463107 | F184: t | G184: 10.18046045 | H184: 8.704020367 | I184: 0.1547318594 | J184: t
A185: 118 | B185: 203904 | C185: 合成染料 | D185: 合成染料 | E185: 14.19409072 | F185: t | G185: 13.63408562 | H185: 12.8732281 | I185: 1.036031546 | J185: t
A186: 119 | B186: 203909 | C186: その他の有機化学工業製品 | D186: その他の有機化学工業製品 | E186: 0.7421582404 | F186: t | G186: 9.70383425 | H186: 8.269956271 | I186: 0.07456269654 | J186: t
A187: 120 | B187: 204101 | C187: 熱硬化性樹脂 | D187: 熱硬化性樹脂 | E187: 3.655351872 | F187: t | G187: 7.979342773 | H187: 6.857436895 | I187: 0.4445074879 | J187: t
A188: 121 | B188: 204102 | C188: 熱可塑性樹脂 | D188: 熱可塑性樹脂 | E188: 1.288466916 | F188: t | G188: 8.97963145 | H188: 7.715364777 | I188: 0.1398445603 | J188: t
A189: 122 | B189: 204103 | C189: 高機能性樹脂 | D189: 高機能性樹脂 | E189: 2.44921062 | F189: t | G189: 7.883888605 | H189: 6.783008779 | I189: 0.3011733812 | J189: t
A190: 123 | B190: 204109 | C190: その他の合成樹脂 | D190: その他の合成樹脂 | E190: 2.804473109 | F190: t | G190: 8.96281156 | H190: 7.673709886 | I190: 0.3042994922 | J190: t
A191: 124 | B191: 205101 | C191: レーヨン・アセテート | D191: レーヨン・アセテート | E191: 7.758339055 | F191: t | G191: 16.62700451 | H191: 11.72746413 | I191: 0.4464396012 | J191: t
A192: 125 | B192: 205102 | C192: 合成繊維 | D192: 合成繊維 | E192: 4.044553248 | F192: t | G192: 11.67858511 | H192: 9.751543198 | I192: 0.3388740678 | J192: t
A193: 126 | B193: 206101 | C193: 医薬品 | D193: 医薬品 | E193: - | G193: 3.018412464 | H193: 2.559454629 | I193: -
A194: 127 | B194: 207101 | C194: 石けん・合成洗剤・界面活性剤 | D194: 石けん・合成洗剤・界面活性剤 | E194: 1.596167292 | F194: t | G194: 5.459774428 | H194: 4.653213209 | I194: 0.2754953302 | J194: t
A195: 128 | B195: 207102 | C195: 化粧品・歯磨 | D195: 化粧品・歯磨 | E195: 0.01950911343 | F195: kg | G195: 4.321388456 | H195: 3.503102314 | I195: 0.003999967143 | J195: kg
A196: 129 | B196: 207201 | C196: 塗料 | D196: 塗料 | E196: 2.301388454 | F196: t | G196: 6.284679579 | H196: 4.987880983 | I196: 0.3380508733 | J196: t
A197: 130 | B197: 207202 | C197: 印刷インキ | D197: =TRIM(C197) -> 印刷インキ | E197: 3.521605337 | F197: t | G197: 5.636492482 | H197: 4.882249063 | I197: 0.5988337422 | J197: t
A198: 131 | B198: 207301 | C198: 写真感光材料 | D198: 写真感光材料 | E198: 0.002349245388 | F198: m2 | G198: 6.550277059 | H198: 5.445518495 | I198: 0.0003401655203 | J198: m2
A199: 132 | B199: 207401 | C199: 農薬 | D199: 農薬 | E199: 11.32351307 | F199: t | G199: 7.561810046 | H199: 5.857083842 | I199: 1.331605825 | J199: t
A200: 133 | B200: 207901 | C200: ゼラチン・接着剤 | D200: ゼラチン・接着剤 | E200: 0.002234399466 | F200: kg | G200: 6.150941559 | H200: 5.14220978 | I200: 0.0003444359696 | J200: kg
A201: 134 | B201: 207909 | C201: その他の化学最終製品 | D201: その他の化学最終製品 | E201: 5.771303956 | F201: t | G201: 7.411690034 | H201: 6.358409503 | I201: 0.7532940934 | J201: t
A202: 135 | B202: 211101 | C202: 石油製品 | D202: 石油製品 | E202: 0.5727354696 | F202: kl | G202: 8.604276996 | H202: 7.133870491 | I202: 0.06359585698 | J202: kl
A203: 136 | B203: 212101 | C203: 石炭製品 | D203: 石炭製品 | E203: 0.3209606906 | F203: t | G203: 21.539012 | H203: 19.537883 | I203: 0.01481777078 | J203: t
A204: 137 | B204: 212102 | C204: 舗装材料 | D204: 舗装材料 | E204: - | G204: 4.245624237 | H204: 3.479174337 | I204: -
A205: 138 | B205: 221101 | C205: プラスチック製品 | D205: =TRIM(C205) -> プラスチック製品 | E205: 1.95086463 | F205: t | G205: 4.714600587 | H205: 4.004886818 | I205: 0.3878222184 | J205: t
A206: 139 | B206: 231101 | C206: タイヤ・チューブ | D206: タイヤ・チューブ | E206: - | G206: 7.137295992 | H206: 6.106006114 | I206: -
A207: 140 | B207: 231901 | C207: ゴム製履物 | D207: ゴム製履物 | E207: 4.939827588 | F207: 千足 | G207: 3.360076094 | H207: 2.724583347 | I207: 1.154722873 | J207: 千足
A208: 141 | B208: 231902 | C208: プラスチック製履物 | D208: プラスチック製履物 | E208: 5.04675832 | F208: 千足 | G208: 4.345562559 | H208: 3.369201425 | I208: 0.9443881296 | J208: 千足
A209: 142 | B209: 231909 | C209: その他のゴム製品 | D209: その他のゴム製品 | E209: 1.638076035 | F209: t | G209: 4.563761721 | H209: 3.955641039 | I209: 0.3415680807 | J209: t
A210: 143 | B210: 241101 | C210: 革製履物 | D210: 革製履物 | E210: 0.01798271591 | F210: 足 | G210: 3.137028198 | H210: 2.573180279 | I210: 0.004557935842 | J210: 足
A211: 144 | B211: 241201 | C211: 製革・毛皮 | D211: 製革・毛皮 | E211: 0.04838315951 | F211: 枚 | G211: 6.73306473 | H211: 5.355186445 | I211: 0.006738303789 | J211: 枚
A212: 145 | B212: 241202 | C212: かばん・袋物・その他の革製品 | D212: かばん・袋物・その他の革製品 | E212: 0.01266724742 | F212: 個 | G212: 3.199929873 | H212: 2.743660771 | I212: 0.00343717677 | J212: 個
A213: 146 | B213: 251101 | C213: 板ガラス・安全ガラス | D213: 板ガラス・安全ガラス | E213: 0.03221353686 | F213: m2 | G213: 5.807178542 | H213: 4.939909218 | I213: 0.005338391396 | J213: m2
A214: 147 | B214: 251201 | C214: ガラス繊維・同製品 | D214: ガラス繊維・同製品 | E214: 0.002691975243 | F214: kg | G214: 9.642060173 | H214: 7.996109628 | I214: 0.0002717267038 | J214: kg
A215: 148 | B215: 251909 | C215: その他のガラス製品 | D215: その他のガラス製品 | E215: 2.460047314 | F215: t | G215: 6.161182347 | H215: 5.385521912 | I215: 0.38943681 | J215: t
A216: 149 | B216: 252101 | C216: セメント | D216: セメント | E216: 0.7578589008 | F216: t | G216: 137.7069283 | H216: 101.6180789 | I216: 0.005491219652 | J216: t
A217: 150 | B217: 252201 | C217: 生コンクリート | D217: 生コンクリート | E217: 0.3163057733 | F217: m3 | G217: 27.29635636 | H217: 19.53037076 | I217: 0.011332 | J217: m3
A218: 151 | B218: 252301 | C218: セメント製品 | D218: セメント製品 | E218: 0.2315102764 | F218: t | G218: 10.45348379 | H218: 7.603502106 | I218: 0.02092333845 | J218: t
A219: 152 | B219: 253101 | C219: 陶磁器 | D219: 陶磁器 | E219: - | G219: 7.306040366 | H219: 5.782965374 | I219: -
A220: 153 | B220: 259901 | C220: 耐火物 | D220: 耐火物 | E220: 1.345831791 | F220: t | G220: 10.24003816 | H220: 7.921602016 | I220: 0.126381641 | J220: t
A221: 154 | B221: 259902 | C221: その他の建設用土石製品 | D221: その他の建設用土石製品 | E221: 0.2568907658 | F221: t | G221: 10.86890865 | H221: 7.713316762 | I221: 0.02222326787 | J221: t
A222: 155 | B222: 259903 | C222: 炭素・黒鉛製品 | D222: 炭素・黒鉛製品 | E222: - | G222: 8.451495315 | H222: 7.207266918 | I222: -
A223: 156 | B223: 259904 | C223: 研磨材 | D223: 研磨材 | E223: 6.924054513 | F223: t | G223: 6.245102347 | H223: 4.864408645 | I223: 1.050954992 | J223: t
A224: 157 | B224: 259909 | C224: その他の窯業・土石製品 | D224: その他の窯業・土石製品 | E224: 0.1116582774 | F224: t | G224: 7.149582802 | H224: 5.990279717 | I224: 0.01507517505 | J224: t
A225: 158 | B225: 261101 | C225: 銑鉄 | D225: 銑鉄 | E225: 1.882670371 | F225: t | G225: 72.58844311 | H225: 67.05651396 | I225: 0.02591557262 | J225: t
A226: 159 | B226: 261102 | C226: フェロアロイ | D226: フェロアロイ | E226: 5.129530009 | F226: t | G226: 19.19185281 | H226: 17.81136958 | I226: 0.2664591763 | J226: t
A227: 160 | B227: 261103 | C227: 粗鋼（転炉） | D227: 粗鋼（転炉） | E227: 2.039044325 | F227: t | G227: 45.49543602 | H227: 43.7413675 | I227: 0.04476687668 | J227: t
A228: 161 | B228: 261104 | C228: 粗鋼（電気炉） | D228: 粗鋼（電気炉） | E228: 0.711187853 | F228: t | G228: 14.32808404 | H228: 13.77953957 | I228: 0.04944318846 | J228: t
A229: 162 | B229: 2612011 | C229: 鉄屑 | D229: 鉄屑 | E229: - | G229: 0 | H229: - | I229: -
A230: 163 | B230: 262101 | C230: 熱間圧延鋼材 | D230: 熱間圧延鋼材 | E230: 1.895318485 | F230: t | G230: 26.79508209 | H230: 23.18325384 | I230: 0.07027922065 | J230: t
A231: 164 | B231: 262201 | C231: 鋼管 | D231: 鋼管 | E231: 2.403068738 | F231: t | G231: 17.96451023 | H231: 15.0574618 | I231: 0.1320342962 | J231: t
A232: 165 | B232: 262301 | C232: 冷間仕上鋼材 | D232: 冷間仕上鋼材 | E232: 2.131511638 | F232: t | G232: 20.43835132 | H232: 17.70113755 | I232: 0.1034012628 | J232: t
A233: 166 | B233: 262302 | C233: めっき鋼材 | D233: めっき鋼材 | E233: 1.423047415 | F233: t | G233: 15.50076826 | H233: 12.86223745 | I233: 0.09021290068 | J233: t
A234: 167 | B234: 263101 | C234: 鋳鍛鋼 | D234: 鋳鍛鋼 | E234: 4.655255521 | F234: t | G234: 11.9375691 | H234: 11.18247536 | I234: 0.3887063127 | J234: t
A235: 168 | B235: 263102 | C235: 鋳鉄管 | D235: 鋳鉄管 | E235: 3.399770751 | F235: t | G235: 12.79946464 | H235: 11.79893491 | I235: 0.2643529473 | J235: t
A236: 169 | B236: 263103 | C236: 鋳鉄品及び鍛工品（鉄） | D236: 鋳鉄品及び鍛工品（鉄） | E236: 3.493076406 | F236: t | G236: 16.97105633 | H236: 15.80461017 | I236: 0.2052699944 | J236: t
A237: 170 | B237: 264901 | C237: 鉄鋼シャースリット業 | D237: 鉄鋼シャースリット業 | E237: - | G237: 14.60967992 | H237: 13.46320171 | I237: -
A238: 171 | B238: 264909 | C238: その他の鉄鋼製品 | D238: その他の鉄鋼製品 | E238: - | G238: 9.941517611 | H238: 9.285104802 | I238: -
... 291 more rows

Sheet カテゴリ２計算用_原単位DB
A1: [６]資本財の価格当たり排出原単位＜事務局＞
A3: Scope1〇 Scope2〇
A4: Scope3(上流)：Cat01〇｜Cat02●｜Cat03〇｜Cat04〇｜Cat05〇｜Cat06〇｜Cat07〇｜Cat08〇
A5: Scope3(下流)：Cat09〇｜Cat10〇｜Cat11〇｜Cat12〇｜Cat13〇｜Cat14〇｜Cat15〇
A8: ＜排出原単位について＞
A9: 産業連関表（2005年表）における固定資本マトリックス（公的）及び固定資本マトリックス（民間）の資本形成部門（114部門）ごとの資本財部門別購入額を合算し、この合算値に対して、GLIO（国立環境研究所：産業連関表によるグローバルサプライチェーンを考慮した環境負荷原単位 CO2以外のGHGを含む2005年表原単位）の生産者価格基準原単位を乗じ、資本形成部門（114部門）ごとの資本財価格当たり排出原単位を整備しました。
A16: ＜使い方の例＞
A17: 「[6]資本財の価格当たり排出原単位」は、資本形成部門毎の資本財価格を乗算することでカテゴリ2排出量を算定することができます。ここで言う「資本形成部門」は、算定対象となる資本が形成された部門の業種のことです。したがって、例えば、半導体素子・集積回路メーカーが営業車両（自家用車）を購入し、100百万円支払った場合、同活動に関するカテゴリ2の排出量は、 100[百万円]×2.81[tCO2eq/百万円]＝281 [tCO2eq] 二重線の箇所に適用するのは、資本種類の原単位「乗用車」ではなく、算定事業者の業種と合致するもの「半導体素子・集積回路」を選択する。
B27: 15-0000 | D27: 電子部品 | F27: 2.72202497
C28: 15-0550 | E28: 半導体素子・集積回路 | F28: 2.812636471
C29: 15-0560 | E29: その他の電子部品 | F29: 2.461692798
B30: 16-0000 | D30: 輸送機械 | F30: 3.429566742
C31: 16-0570 | E31: 乗用車 | F31: 3.278667189
C32: 16-0580 | E32: その他の自動車 | F32: 3.665096759
C33: 16-0590 | E33: 自動車部品・同付属品 | F33: 3.439403975
C34: 16-0600 | E34: 船舶・同修理 | F34: 3.450911184
C35: 16-0610 | E35: その他の輸送機械・同修理 | F35: 3.49099962
C36: 16-0611 | E36: うち鉄道車両・同修理 | F36: 3.354958052
B40: 表6. 資本財価格当たり排出原単位
B41: 資本形成部門 | F41: 資本財価格当たり排出原単位
F42: (tCO2eq/百万円)
B43: 00-0000 | D43: 合計 | E43: =D43 -> 合計 | F43: 3.496802781
B44: 01-0000 | D44: 農林水産業 | E44: =D44 -> 農林水産業 | F44: 4.071129592
C45: 01-0010 | E45: 耕種農業 | F45: 3.559709815
C46: 01-0020 | E46: 畜産 | F46: 5.981725584
C47: 01-0030 | E47: 農業サービス | F47: 3.334112376
C48: 01-0040 | E48: 林業 | F48: 4.016846327
C49: 01-0050 | E49: 漁業 | F49: 4.098910779
B50: 02-0000 | D50: 鉱業 | E50: =D50 -> 鉱業 | F50: 3.711183868
C51: 02-0060 | E51: 金属鉱物 | F51: 3.819731176
C52: 02-0070 | E52: 非金属鉱物 | F52: 3.6869942
C53: 02-0080 | E53: 石炭・原油・天然ガス | F53: 3.754787338
B54: 03-0000 | D54: 食料品 | E54: =D54 -> 食料品 | F54: 3.148323513
C55: 03-0090 | E55: 食料品 | F55: 3.138879562
C56: 03-0100 | E56: 飲料 | F56: 3.121915263
C57: 03-0110 | E57: 飼料・有機質肥料（除別掲） | F57: 3.423376702
C58: 03-0120 | E58: たばこ | F58: 3.247443767
B59: 04-0000 | D59: 繊維製品 | E59: =D59 -> 繊維製品 | F59: 3.070403777
C60: 04-0130 | E60: 繊維工業製品 | F60: 3.138003077
C61: 04-0140 | E61: 衣服・その他の繊維既製品 | F61: 2.924201276
B62: 05-0000 | D62: パルプ・紙・木製品 | E62: =D62 -> パルプ・紙・木製品 | F62: 3.089884022
C63: 05-0150 | E63: 製材・木製品 | F63: 3.527798488
C64: 05-0160 | E64: 家具・装備品 | F64: 3.399022602
C65: 05-0170 | E65: パルプ・紙・板紙・加工紙 | F65: 2.739184008
C66: 05-0180 | E66: 紙加工品 | F66: 3.444950341
B67: 06-0000 | D67: 化学製品 | E67: =D67 -> 化学製品 | F67: 2.734304693
C68: 06-0200 | E68: 化学肥料 | F68: 2.674359852
C69: 06-0210 | E69: 無機化学工業製品 | F69: 2.76434821
C70: 06-0220 | E70: 石油化学基礎製品 | F70: 2.707727493
C71: 06-0230 | E71: 有機化学工業製品（除石油化学基礎製品） | F71: 2.849894954
C72: 06-0240 | E72: 合成樹脂 | F72: 2.71037786
C73: 06-0250 | E73: 化学繊維 | F73: 2.600288601
C74: 06-0260 | E74: 医薬品 | F74: 2.829604511
C75: 06-0270 | E75: 化学最終製品（除医薬品） | F75: 2.507930477
B76: 07-0000 | D76: 石油・石炭製品 | E76: =D76 -> 石油・石炭製品 | F76: 2.914334284
C77: 07-0280 | E77: 石油製品 | F77: 2.848508338
C78: 07-0290 | E78: 石炭製品 | F78: 3.41422179
B79: 08-0000 | D79: 窯業・土石製品 | E79: =D79 -> 窯業・土石製品 | F79: 3.24148206
C80: 08-0330 | E80: ガラス・ガラス製品 | F80: 3.463081991
C81: 08-0340 | E81: セメント・セメント製品 | F81: 2.919557315
C82: 08-0350 | E82: 陶磁器 | F82: 3.374922582
C83: 08-0360 | E83: その他の窯業・土石製品 | F83: 3.296172944
B84: 09-0000 | D84: 鉄鋼 | E84: =D84 -> 鉄鋼 | F84: 3.210598678
C85: 09-0370 | E85: 銑鉄・粗鋼 | F85: 3.583251656
C86: 09-0380 | E86: 鋼材 | F86: 3.048002043
C87: 09-0390 | E87: 鋳鍛造品 | F87: 3.668456003
C88: 09-0400 | E88: その他の鉄鋼製品 | F88: 3.577827936
B89: 10-0000 | D89: 非鉄金属 | E89: =D89 -> 非鉄金属 | F89: 3.499457806
C90: 10-0410 | E90: 非鉄金属製錬・精製 | F90: 3.467392459
C91: 10-0420 | E91: 非鉄金属加工製品 | F91: 3.513626487
B92: 11-0000 | D92: 金属製品 | E92: =D92 -> 金属製品 | F92: 3.245371207
C93: 11-0430 | E93: 建設・建築用金属製品 | F93: 3.282712577
C94: 11-0440 | E94: その他の金属製品 | F94: 3.226504665
B95: 12-0000 | D95: 一般機械 | E95: =D95 -> 一般機械 | F95: 3.345634697
C96: 12-0450 | E96: 一般産業機械 | F96: 3.435608232
C97: 12-0460 | E97: 特殊産業機械 | F97: 3.33044681
C98: 12-0470 | E98: その他の一般機械器具及び部品 | F98: 3.204855745
C99: 12-0480 | E99: 事務用・サービス用機器 | F99: 3.306725503
B100: 13-0000 | D100: 電気機械 | E100: =D100 -> 電気機械 | F100: 2.870853288
C101: 13-0490 | E101: 産業用電気機器 | F101: 3.008055182
C102: 13-0500 | E102: 電子応用装置・電子計測器 | F102: 2.304132861
C103: 13-0510 | E103: その他の電気機器 | F103: 2.737146906
C104: 13-0520 | E104: 民生用電気機器 | F104: 3.08682268
B105: 14-0000 | D105: 情報・通信機器 | E105: =D105 -> 情報・通信機器 | F105: 2.557564818
C106: 14-0530 | E106: 通信機械・同関連機器 | F106: 2.724556021
C107: 14-0540 | E107: 電子計算機・同付属装置 | F107: 2.268601384
B108: 15-0000 | D108: 電子部品 | E108: =D108 -> 電子部品 | F108: 2.72202497
C109: 15-0550 | E109: 半導体素子・集積回路 | F109: 2.812636471
C110: 15-0560 | E110: その他の電子部品 | F110: 2.461692798
B111: 16-0000 | D111: 輸送機械 | E111: =D111 -> 輸送機械 | F111: 3.429566742
C112: 16-0570 | E112: 乗用車 | F112: 3.278667189
C113: 16-0580 | E113: その他の自動車 | F113: 3.665096759
C114: 16-0590 | E114: 自動車部品・同付属品 | F114: 3.439403975
C115: 16-0600 | E115: 船舶・同修理 | F115: 3.450911184
C116: 16-0610 | E116: その他の輸送機械・同修理 | F116: 3.49099962
C117: 16-0611 | E117: うち鉄道車両・同修理 | F117: 3.354958052
B118: 17-0000 | D118: 精密機械 | E118: =D118 -> 精密機械 | F118: 2.960122105
C119: 17-0620 | E119: 精密機械 | F119: 2.960122105
B120: 18-0000 | D120: その他の製造工業製品 | E120: =D120 -> その他の製造工業製品 | F120: 3.142599542
C121: 18-0190 | E121: 印刷・製版・製本 | F121: 2.758001991
C122: 18-0300 | E122: プラスチック製品 | F122: 3.320122301
C123: 18-0310 | E123: ゴム製品 | F123: 3.18858526
C124: 18-0320 | E124: なめし革・毛皮・同製品 | F124: 3.221476334
C125: 18-0630 | E125: その他の製造工業製品 | F125: 3.200932475
C126: 18-0640 | E126: 再生資源回収・加工処理 | F126: 3.508311829
B127: 19-0000 | D127: 建設 | E127: =D127 -> 建設 | F127: 3.406448482
C128: 19-0650 | E128: 建築 | F128: 3.393237827
C129: 19-0660 | E129: 建設補修 | F129: 3.349902104
C130: 19-0680 | E130: 土木 | F130: 3.431305855
B131: 20-0000 | D131: 電力・ガス・熱供給 | E131: =D131 -> 電力・ガス・熱供給 | F131: 3.278222647
C132: 20-0690 | E132: 電力 | F132: 3.300856316
C133: 20-0700 | E133: ガス・熱供給 | F133: 3.154323058
B134: 21-0000 | D134: 水道・廃棄物処理 | E134: =D134 -> 水道・廃棄物処理 | F134: 4.01179651
C135: 21-0710 | E135: 水道 | F135: 4.12183579
C136: 21-0720 | E136: 廃棄物処理 | F136: 3.828506113
B137: 22-0000 | D137: 商業 | E137: =D137 -> 商業 | F137: 3.34635802
C138: 22-0731 | E138: 卸売 | F138: 3.279031308
C139: 22-0732 | E139: 小売 | F139: 3.394790241
B140: 23-0000 | D140: 金融・保険 | E140: =D140 -> 金融・保険 | F140: 1.844695875
C141: 23-0740 | E141: 金融・保険 | F141: 1.844695875
B142: 24-0000 | D142: 不動産 | E142: =D142 -> 不動産 | F142: 3.770168936
C143: 24-0750 | E143: 不動産仲介及び賃貸 | F143: 3.41873418
C144: 24-0760 | E144: 住宅賃貸料 | F144: 3.787749687
B145: 25-0000 | D145: 運輸 | E145: =D145 -> 運輸 | F145: 3.923555314
C146: 25-0780 | E146: 鉄道輸送 | F146: 4.203052445
C147: 25-0790 | E147: 道路輸送（除自家輸送） | F147: 3.282793724
C148: 25-0810 | E148: 水運 | F148: 4.486000632
C149: 25-0820 | E149: 航空輸送 | F149: 2.984911151
C150: 25-0830 | E150: 貨物利用運送 | F150: 3.740233087
C151: 25-0840 | E151: 倉庫 | F151: 3.380883815
C152: 25-0850 | E152: 運輸付帯サービス | F152: 4.311999604
C153: 25-0851 | E153: うち水運施設管理 | F153: 4.145700089
C154: 25-0852 | E154: うち航空施設管理 | F154: 4.100434802
B155: 26-0000 | D155: 情報通信 | E155: =D155 -> 情報通信 | F155: 3.121158349
C156: 26-0860 | E156: 通信 | F156: 3.30830132
C157: 26-0870 | E157: 放送 | F157: 3.464894323
C158: 26-0880 | E158: 情報サービス | F158: 2.275500632
C159: 26-0890 | E159: インターネット附随サービス | F159: 3.433374653
C160: 26-0900 | E160: 映像・文字情報制作 | F160: 3.018638509
B161: 27-0000 | D161: 公務 | E161: =D161 -> 公務 | F161: 3.434063857
C162: 27-0911 | E162: 公務（中央） | F162: 3.952545608
C163: 27-0912 | E163: 公務（地方） | F163: 3.132545559
B164: 28-0000 | D164: 教育・研究 | E164: =D164 -> 教育・研究 | F164: 3.77317648
C165: 28-0920 | E165: 教育 | F165: 3.855791815
C166: 28-0930 | E166: 研究 | F166: 3.608121357
B167: 29-0000 | D167: 医療・保健・社会保障・介護 | E167: =D167 -> 医療・保健・社会保障・介護 | F167: 3.336308029
C168: 29-0940 | E168: 医療・保健 | F168: 3.286382674
C169: 29-0950 | E169: 社会保障 | F169: 3.759508323
C170: 29-0960 | E170: 介護 | F170: 3.724001515
B171: 30-0000 | D171: その他公共サービス | E171: =D171 -> その他公共サービス | F171: 3.805835729
C172: 30-0970 | E172: その他の公共サービス | F172: 3.805835729
B173: 31-0000 | D173: 対事業所サービス | E173: =D173 -> 対事業所サービス | F173: 3.127394717
C174: 31-0980 | E174: 広告 | F174: 2.293460736
C175: 31-0990 | E175: 物品賃貸サービス | F175: 3.126986012
C176: 31-1000 | E176: 自動車・機械修理 | F176: 3.52144758
C177: 31-1010 | E177: その他の対事業所サービス | F177: 3.402676344
B178: 32-0000 | D178: 対個人サービス | E178: =D178 -> 対個人サービス | F178: 3.55976462
C179: 32-1020 | E179: 娯楽サービス | F179: 3.70738741
C180: 32-1030 | E180: 飲食店 | F180: 3.279780504
C181: 32-1040 | E181: 宿泊業 | F181: 3.679918967
C182: 32-1050 | E182: 洗濯・理容・美容・浴場業 | F182: 3.459546705
C183: 32-1060 | E183: その他の対個人サービス | F183: 3.454202869
B184: 34-0000 | D184: 分類不明 | E184: =D184 -> 分類不明 | F184: 3.020243122
C185: 34-1080 | E185: 分類不明 | F185: 3.020243122
B186: 35-0000 | D186: その他 | E186: =D186 -> その他 | F186: 3.961956613
C187: 35-0001 | E187: 道路 | F187: 4.640036513
C188: 35-0002 | E188: 住宅 | F188: 3.427216802
C189: 35-0003 | E189: 環境衛生 | F189: 4.449048198
C190: 35-0004 | E190: 国土保全 | F190: 4.45832345
C191: 35-0005 | E191: 土地造成 | F191: 4.43940596
B193: 出典： | D193: Keisuke Nansai, Yasushi Kondo, Shigemi Kagawa , Sangwon Suh , Kenichi Nakajima, Rokuta Inaba, and Susumu Tohno (2012), Estimates of Embodied Global Energy and Air-Emission Intensities of Japanese Products for Building a Japanese Input-Output Life Cycle Assessment Database with a Global System Boundary, Environmental Science & Technology, 46(16), 9146-9154.及び産業連関表（2005年表）固定資本マトリックス（公的、民間）より作成

Sheet カテゴリ4&9計算用_国間距離DB
C1: [単位:km]
A2: 所属地域（日本語） | B2: 港所在都市名称（日本語） | C2: 港所在都市名称（英語） | D2: 海運・運河経由 | E2: 海運・運河非経由 | F2: 空運 | H2: 海運（運河優先使用）
A3: 日本 | B3: 東京 | C3: Tokyo | D3: 0 | E3: 0 | F3: 0 | H3: =IF(D3="",E3,D3) -> 0
A4: アルバ | B4: ウィレムスタット | C4: Willemstad | D4: 16340.51594 | E4: 26433.62423 | F4: 13803.76406 | H4: =IF(D4="",E4,D4) -> 16340.51594
A5: アフガニスタン | B5: カラチ | C5: Karachi | E5: 11369.70961 | F5: 6260.192969 | H5: 11369.70961
A6: アンゴラ | B6: ルアンダ | C6: Luanda | D6: 25492.4001 | E6: 19093.21675 | F6: 13829.50281 | H6: 25492.4001
A7: アンギラ | B7: バリー | C7: Blowing Point | D7: 17081.35137 | E7: 26207.18476 | F7: 13549.88992 | H7: 17081.35137
A8: アルバニア | B8: ヴロラ | C8: Vlore | D8: 17029.47465 | E8: 27558.64166 | F8: 9478.030446 | H8: 17029.47465
A9: アンドラ | B9: バルセロナ | C9: Barcelona | D9: 18312.14256 | E9: 26231.58801 | F9: 10330.88588 | H9: 18312.14256
A10: アンティル（蘭領） | B10: ウィレムスタット | C10: Willemstad | D10: 16340.51594 | E10: 26433.62423 | F10: 13901.83196 | H10: 16340.51594
A11: アラブ首長国連邦 | B11: ドバイ | C11: Dubai | E11: 12386.84019 | F11: 8043.652043 | H11: 12386.84019
A12: アルゼンチン | B12: ブエノスアイレス | C12: Buenos Aires | D12: 24766.97326 | E12: 20502.36107 | F12: 18358.44846 | H12: 24766.97326
A13: アルメニア | B13: バトゥミ | C13: Batumi | D13: 17914.61334 | E13: 29454.9733 | F13: 7922.710718 | H13: 17914.61334
A14: アンティグア・バーブーダ | B14: セント ジョンズ | C14: ST JOHN'S | D14: 17196.16121 | E14: 26050.20599 | F14: 13712.92302 | H14: 17196.16121
A15: オーストラリア | B15: メルボルン | C15: Melbourne | E15: 9602.205418 | F15: 7951.39969 | H15: 9602.205418
A16: オーストリア | B16: ハンブルグ | C16: Hamburg | D16: 21835.75767 | E16: 27634.58605 | F16: 9120.580488 | H16: 21835.75767
A17: アゼルバイジャン | B17: カーグ島 | C17: Kharg Island | E17: 12925.42688 | F17: 7514.791016 | H17: 12925.42688
A18: ブルンジ | B18: ダルエスサラーム | C18: Dar Es Salaam | E18: 13560.74961 | F18: 12044.20171 | H18: 13560.74961
A19: ベルギー | B19: アントウェルペン | C19: Antwerp | D19: 21389.5947 | E19: 27205.99169 | F19: 9440.86392 | H19: 21389.5947
A20: ベナン | B20: コトヌー | C20: Cotonou | D20: 24113.95891 | E20: 20862.57773 | F20: 13516.32532 | H20: 24113.95891
A21: ブルキナファソ | B21: アクラ | C21: Accra | D21: 23839.52355 | E21: 20891.50288 | F21: 13285.4823 | H21: 23839.52355
A22: バングラディシュ | B22: チッタゴン | C22: Chittagong | E22: 8671.747285 | F22: 4882.131925 | H22: 8671.747285
A23: ブルガリア | B23: ブルガス | C23: Bourgas | D23: 17064.67855 | E23: 28669.46029 | F23: 9164.075879 | H23: 17064.67855
A24: バーレーン | B24: バーレーン | C24: Bahrain | E24: 12870.31525 | F24: 8262.635967 | H24: 12870.31525
A25: バハマ | B25: ナッソー | C25: Nassau | D25: 17220.22376 | E25: 27810.47876 | F25: 12213.32728 | H25: 17220.22376
A26: ボスニア・ヘルツェゴビナ | B26: ドブロブニク | C26: Dubrovnik | D26: 17270.1882 | E26: 27748.42454 | F26: 9359.910644 | H26: 17270.1882
A27: ベラルーシ | B27: サンクトペテルスブルク | C27: St Petersburg | D27: 23601.8532 | E27: 29330.61968 | F27: 8117.429172 | H27: 23601.8532
A28: ベリーズ | B28: ベリーズシティ | C28: Belize city | D28: 16539.52216 | E28: 28453.50382 | F28: 12220.56509 | H28: 16539.52216
A29: バミューダ諸島 | B29: ハミルトン | C29: Hamilton | D29: 18104.30107 | E29: 27185.21969 | F29: 10890.79856 | H29: 18104.30107
A30: ボリビア | B30: カヤオ | C30: Callao | E30: 16403.77826 | F30: 16525.51002 | H30: 16403.77826
A31: ブラジル | B31: サントス | C31: Santos | D31: 23153.84477 | E31: 21783.6537 | F31: 17667.75709 | H31: 23153.84477
A32: バルバドス | B32: ブリッジタウン | C32: Bridgetown | D32: 17346.03013 | E32: 25604.48654 | F32: 14215.61925 | H32: 17346.03013
A33: ブルネイ・ダルサラーム | B33: セリア | C33: Seria | E33: 4757.301384 | F33: 4249.124615 | H33: 4757.301384
A34: ブータン | B34: チッタゴン | C34: Chittagong | E34: 8671.747285 | F34: 4768.466169 | H34: 8671.747285
A35: ボツワナ | B35: ダーバン | C35: Durban | E35: 14865.47341 | F35: 13636.16765 | H35: 14865.47341
A36: 中央アフリカ | B36: ドゥアラ | C36: Douala | D36: 24872.58997 | E36: 20502.36107 | F36: 12440.135 | H36: 24872.58997
A37: カナダ | B37: バンクーバー | C37: Vancouver | E37: 8297.401272 | F37: 10316.41884 | H37: 8297.401272
A38: ココス諸島 | B38: ポート リフューズ | C38: Port Refuge | E38: 7607.081175 | F38: 6962.473329 | H38: 7607.081175
A39: スイス | B39: ハンブルグ | C39: Hamburg | D39: 21835.75767 | E39: 27634.58605 | F39: 9657.887487 | H39: 21835.75767
A40: チリ | B40: ヴァルパライソ | C40: Valparaiso | E40: 18008.56492 | F40: 17230.59525 | H40: 18008.56492
A41: 中国 | B41: シャンハイ | C41: Shanghai | E41: 2111.20418 | F41: 2088.184957 | H41: 2111.20418
A42: コートジボアール | B42: アビジャン | C42: Abidjan | D42: 23436.67581 | E42: 21048.68695 | F42: 14024.83025 | H42: 23436.67581
A43: カメルーン | B43: ドゥアラ | C43: Douala | D43: 24872.58997 | E43: 20502.36107 | F43: 13050.87383 | H43: 24872.58997
A44: コンゴ民主共和国 | B44: マタディ | C44: Matadi | D44: 25464.36472 | E44: 19504.1804 | F44: 13341.05365 | H44: 25464.36472
A45: コンゴ共和国 | B45: ポワントノワール | C45: Point-Noire | D45: 25245.14874 | E45: 19473.16785 | F45: 13339.52661 | H45: 25245.14874
A46: クック諸島 | B46: アピア | C46: Apia | E46: 8104.069231 | F46: 8971.736693 | H46: 8104.069231
A47: コロンビア | B47: ブエナベントゥラ | C47: Buenaventura | E47: 15261.25161 | F47: 14311.02114 | H47: 15261.25161
A48: コモロ | B48: モロニ | C48: Moroni | E48: 13244.33827 | F48: 11328.18893 | H48: 13244.33827
A49: カーボベルデ | B49: ミンデロ | C49: mindelo | D49: 21016.17947 | E49: 23303.3327 | F49: 14105.78528 | H49: 21016.17947
A50: コスタリカ | B50: カルデラ | C50: Caldera | E50: 14225.71146 | F50: 13170.87088 | H50: 14225.71146
A51: キューバ | B51: ハバナ | C51: Habana | D51: 16895.99994 | E51: 28139.24453 | F51: 12113.76859 | H51: 16895.99994
A52: クリスマス島 | B52: クリスマス島 | C52: Christmas Island | E52: 6900.311077 | F52: 6241.262982 | H52: 6900.311077
A53: ケイマン諸島 | B53: ジョージタウン | C53: Georgetown | D53: 16172.93682 | E53: 27827.7111 | F53: 12522.52109 | H53: 16172.93682
A54: キプロス | B54: ラルナカ | C54: Larnaca | D54: 15798.04763 | E54: 28660.8971 | F54: 9042.519944 | H54: 15798.04763
A55: チェコ | B55: ハンブルグ | C55: Hamburg | D55: 21835.75767 | E55: 27634.58605 | F55: 9062.346102 | H55: 21835.75767
A56: ドイツ | B56: ハンブルグ | C56: Hamburg | D56: 21835.75767 | E56: 27634.58605 | F56: 8907.787172 | H56: 21835.75767
A57: ジブチ | B57: ジブチ | C57: Djibouti | E57: 12991.91682 | F57: 9856.637063 | H57: 12991.91682
A58: ドミニカ国 | B58: ロゾー | C58: Roseau | D58: 17183.20295 | E58: 25893.05298 | F58: 13919.26502 | H58: 17183.20295
A59: デンマーク | B59: コペンハーゲン | C59: Copenhagen | D59: 22370.12271 | E59: 28147.84043 | F59: 8682.123489 | H59: 22370.12271
A60: ドミニカ共和国 | B60: サントドミンゴ | C60: Santo Domingo | D60: 16543.23956 | E60: 26779.54658 | F60: 13227.17942 | H60: 16543.23956
A61: アルジェリア | B61: アルジェ | C61: Algiers | D61: 18155.82722 | E61: 26051.95116 | F61: 10791.10631 | H61: 18155.82722
A62: エクアドル | B62: グアヤキル | C62: Guayaquil | E62: 15506.48982 | F62: 14435.82322 | H62: 15506.48982
A63: エジプト | B63: アレクサンドリア | C63: Alexandria | D63: 15657.94095 | E63: 28450.07319 | F63: 9552.186802 | H63: 15657.94095
A64: エリトリア | B64: マッサワ | C64: Massawa | E64: 13505.84698 | F64: 9946.348841 | H64: 13505.84698
A65: スペイン | B65: バルセロナ | C65: Barcelona | D65: 18312.14256 | E65: 26231.58801 | F65: 10753.30392 | H65: 18312.14256
A66: エストニア | B66: タリン | C66: Tallinn | D66: 23314.00461 | E66: 29054.24735 | F66: 7871.214691 | H66: 23314.00461
A67: エチオピア | B67: ジブチ | C67: Djibouti | E67: 12991.91682 | F67: 10384.20702 | H67: 12991.91682
A68: フィンランド | B68: ヘルシンキ | C68: Helsinki | D68: 23351.35016 | E68: 29090.10524 | F68: 7811.201931 | H68: =IF(D68="",E68,D68) -> 23351.35016
A69: フィジー | B69: スバ | C69: Suva | E69: 7859.66194 | F69: 7241.120373 | H69: 7859.66194
A70: フォークランド(マルビナス）諸島 | B70: スタンリー | C70: Stanley(Falkland Island) | D70: 25962.92028 | E70: 18829.62846 | F70: 17746.15498 | H70: 25962.92028
A71: フランス | B71: マルセイユ | C71: Marseilles | D71: 18172.38561 | E71: 26536.27297 | F71: 9704.076655 | H71: 18172.38561
A72: ミクロネシア | B72: ヤップ島 | C72: Yap Island | E72: 3170.126138 | F72: 3712.795536 | H72: 3170.126138
A73: ガボン | B73: リーブルヴィル | C73: Libreville | D73: 24879.62833 | E73: 20115.8586 | F73: 13483.75932 | H73: 24879.62833
A74: イギリス（英国） | B74: サウサンプトン | C74: Southampton | D74: 20983.66501 | E74: 26816.00125 | F74: 9551.589454 | H74: 20983.66501
A75: グルジア | B75: バトゥミ | C75: Batumi | D75: 17914.61334 | E75: 29454.9733 | F75: 7813.447104 | H75: 17914.61334
A76: ガーナ | B76: アクラ | C76: Accra | D76: 23839.52355 | E76: 20891.50288 | F76: 13795.58104 | H76: 23839.52355
A77: ジブラルタル | B77: ジブラルタル | C77: Gibraltar | D77: 18908.38557 | E77: 25338.13736 | F77: 11238.62086 | H77: 18908.38557
A78: ギニア | B78: コナクリ | C78: Conakry | D78: 22289.55247 | E78: 21981.19361 | F78: 14251.11408 | H78: 22289.55247
A79: ガンビア | B79: バンジュール | C79: Banjul | D79: 21780.05966 | E79: 22620.50711 | F79: 13997.17638 | H79: 21780.05966
A80: ギニアビサウ | B80: ビサウ | C80: Bissau | D80: 22042.19874 | E80: 22540.0724 | F80: 14112.89013 | H80: 22042.19874
A81: 赤道ギニア | B81: マラボ | C81: Malabo | D81: 24765.21232 | E81: 20473.36192 | F81: 13276.10021 | H81: 24765.21232
A82: ギリシア | B82: ピレウス | C82: Piraeus | D82: 16472.59429 | E82: 27905.22999 | F82: 9497.093435 | H82: 16472.59429
A83: グレナダ | B83: セントジョージズ | C83: St George's | D83: 17116.54382 | E83: 25746.21961 | F83: 14239.37121 | H83: 17116.54382
A84: グリーンランド | B84: ヌーク | C84: Nuuk | D84: 21821.38597 | E84: 28504.95301 | F84: 8859.246484 | H84: 21821.38597
A85: グアテマラ | B85: プエルトケツァール | C85: Puerto quetzal | E85: 13409.25018 | F85: 12319.92353 | H85: 13409.25018
A86: ガイアナ | B86: ジョージタウン | C86: Georgetown | D86: 17792.94588 | E86: 25174.92864 | F86: 14926.67734 | H86: 17792.94588
A87: 香港 | B87: ホンコン | C87: Hong Kong | E87: 3202.243413 | F87: 2867.914847 | H87: 3202.243413
A88: ホンジュラス | B88: ラセイバ | C88: La Ceiba | D88: 16377.73208 | E88: 28304.1917 | F88: 12597.3327 | H88: 16377.73208
A89: クロアチア | B89: リエカ | C89: Rijeka | D89: 17697.02067 | E89: 28123.77057 | F89: 9335.764409 | H89: 17697.02067
A90: ハイチ | B90: ポルトープランス | C90: Port au Prince | D90: 16480.0321 | E90: 27411.81297 | F90: 13099.91902 | H90: 16480.0321
A91: ハンガリー | B91: ハンブルグ | C91: Hamburg | D91: 21835.75767 | E91: 27634.58605 | F91: 9037.677144 | H91: 21835.75767
A92: インドネシア | B92: ジャカルタ | C92: Jakarta | E92: 6324.994166 | F92: 5778.692297 | H92: 6324.994166
A93: インド | B93: ムンバイ | C93: Mumbai | E93: 10493.03738 | F93: 5831.697653 | H93: 10493.03738
A94: アイルランド | B94: ダブリン | C94: Dublin | D94: 21082.99284 | E94: 26907.96372 | F94: 9577.844172 | H94: 21082.99284
A95: イラン | B95: カーグ島 | C95: Kharg Island | E95: 12925.42688 | F95: 7650.454081 | H95: 12925.42688
A96: イラク | B96: バスラ | C96: Basrah | E96: 13250.0276 | F96: 8334.641568 | H96: 13250.0276
A97: アイスランド | B97: レイキャヴィーク | C97: Reykjavik | D97: 22396.96978 | E97: 27958.60655 | F97: 8791.478795 | H97: 22396.96978
A98: イスラエル | B98: テルアビブ | C98: Tel-Aviv | D98: 15614.95066 | E98: 28804.68736 | F98: 9137.300179 | H98: 15614.95066
A99: イタリア | B99: ジェノヴァ | C99: Genoa | D99: 18001.19819 | E99: 26809.05824 | F99: 9845.98632 | H99: 18001.19819
A100: ジャマイカ | B100: キングストン | C100: Kingston | D100: 16087.21798 | E100: 27378.97119 | F100: 12911.07888 | H100: 16087.21798
A101: ヨルダン | B101: アカバ | C101: Akaba | E101: 15073.7984 | F101: 9072.333414 | H101: 15073.7984
A102: カザフスタン | B102: カーグ島 | C102: Kharg Island | E102: 12925.42688 | F102: 5549.324249 | H102: 12925.42688
A103: ケニア | B103: モンバサ | C103: Mombasa | E103: 13475.54812 | F103: 11239.42019 | H103: 13475.54812
A104: キルギス | B104: カーグ島 | C104: Kharg Island | E104: 12925.42688 | F104: 5513.356272 | H104: 12925.42688
A105: カンボジア | B105: サイゴン | C105: Saigon | E105: 4781.184884 | F105: 4396.570288 | H105: 4781.184884
A106: セントクリストファー・ネイビス | B106: バセテール | C106: Basseterre | D106: 17122.09981 | E106: 26126.97294 | F106: 13659.94909 | H106: 17122.09981
A107: 韓国 | B107: プサン | C107: Pusan | E107: 1269.514678 | F107: 1149.248131 | H107: 1269.514678
A108: クウェート | B108: シュワイク | C108: Shuwaikh | E108: 13151.38517 | F108: 8307.567386 | H108: 13151.38517
A109: レバノン | B109: ベイルート | C109: Beirut | D109: 15792.44569 | E109: 28802.97647 | F109: 8973.712036 | H109: 15792.44569
A110: リベリア | B110: モンロビア | C110: Monrovia | D110: 22638.37558 | E110: 21504.8602 | F110: 14407.87447 | H110: 22638.37558
A111: リビア | B111: トリポリ | C111: Tripoli | D111: 17203.56546 | E111: 27202.5299 | F111: 10566.27166 | H111: 17203.56546
A112: セントルシア | B112: カストリーズ | C112: Castries | D112: 17207.26746 | E112: 25800.42579 | F112: 14069.56332 | H112: 17207.26746
A113: スリランカ | B113: コロンボ | C113: Colombo | E113: 8827.490732 | F113: 6839.711018 | H113: 8827.490732
A114: レソト | B114: ダーバン | C114: Durban | E114: 14865.47341 | F114: 13728.61403 | H114: 14865.47341
A115: リトアニア | B115: クライペダ | C115: Klaipeda | D115: 22936.46101 | E115: 28691.72207 | F115: 8178.821962 | H115: 22936.46101
A116: ルクセンブルク | B116: ロッテルダム | C116: Rotterdam | D116: 21380.58588 | E116: 27197.33706 | F116: 9462.473721 | H116: 21380.58588
A117: ラトビア | B117: リガ | C117: Riga | D117: 23207.25074 | E117: 28951.74395 | F117: 8075.459145 | H117: 23207.25074
A118: マカオ | B118: ホンコン | C118: Hong Kong | E118: 3202.243413 | F118: 2933.326464 | H118: 3202.243413
A119: モロッコ | B119: カサブランカ | C119: Casablanca | D119: 19250.42477 | E119: 25016.80755 | F119: 11510.72673 | H119: 19250.42477
A120: モルドバ | B120: オデッサ | C120: Odessa | D120: 17464.34526 | E120: 29038.87678 | F120: 8519.526985 | H120: 17464.34526
A121: マダガスカル | B121: トアマシナ | C121: Toamasina | E121: 12862.71222 | F121: 11396.30138 | H121: 12862.71222
A122: モルディヴ | B122: ガン島 | C122: Gan Island | E122: 9629.326196 | F122: 7586.315967 | H122: 9629.326196
A123: メキシコ | B123: アカプルコ | C123: Acapulco | E123: 12350.61894 | F123: 11303.92181 | H123: 12350.61894
A124: マケドニア | B124: ヴロラ | C124: Vlore | D124: 17029.47465 | E124: 27558.64166 | F124: 9329.728744 | H124: 17029.47465
A125: マリ | B125: コナクリ | C125: Conakry | D125: 22289.55247 | E125: 21981.19361 | F125: 13644.63995 | H125: 22289.55247
A126: マルタ | B126: バレッタ | C126: Valletta | D126: 17110.98763 | E126: 27046.66055 | F126: 10232.96297 | H126: 17110.98763
A127: ミャンマー | B127: ヤンゴン | C127: Yangon | E127: 7908.570289 | F127: 4766.28709 | H127: 7908.570289
A128: モンゴル | B128: シャンハイ | C128: Shanghai | E128: 2111.20418 | F128: 3001.433911 | H128: 2111.20418
A129: モザンビーク | B129: マプト | C129: Maputo | E129: 14696.36668 | F129: 13114.91401 | H129: 14696.36668
A130: モーリタニア | B130: ヌアクショット | C130: Nouakchott | D130: 21295.87661 | E130: 23093.29459 | F130: 13498.85247 | H130: 21295.87661
A131: モントセラト | B131: セント ジョンズ | C131: St John's | D131: 17196.16121 | E131: 26050.20599 | F131: 13741.62797 | H131: 17196.16121
A132: モーリシャス | B132: ポートルイス | C132: Port Louis | E132: 12045.28983 | F132: 10618.99748 | H132: =IF(D132="",E132,D132) -> 12045.28983
A133: マラウイ | B133: ダルエスサラーム | C133: Dar Es Salaam | E133: 13560.74961 | F133: 12321.5734 | H133: 13560.74961
A134: マレーシア | B134: クラン港 | C134: Port Klang | E134: 6163.102693 | F134: 5310.996497 | H134: 6163.102693
A135: ナミビア | B135: ウォルビスベイ | C135: Walvis bay | D135: 25985.61974 | E135: 17444.01612 | F135: 14320.83477 | H135: 25985.61974
A136: ニューカレドニア | B136: ヌメア | C136: Noumea | E136: 7620.796294 | F136: 7032.918913 | H136: 7620.796294
A137: ニジェール | B137: ラゴス | C137: Lagos | D137: 24218.28559 | E137: 20846.30492 | F137: 12945.399 | H137: 24218.28559
A138: ノーフォーク島 | B138: キングストン | C138: Kingston | E138: 8560.696082 | F138: 7780.345057 | H138: 8560.696082
A139: ナイジェリア | B139: ラゴス | C139: Lagos | D139: 24218.28559 | E139: 20846.30492 | F139: 12959.65075 | H139: 24218.28559
A140: ニカラグア | B140: コリント | C140: Corinto | E140: 13834.99141 | F140: 12828.34174 | H140: 13834.99141
A141: オランダ | B141: ロッテルダム | C141: Rotterdam | D141: 21380.58588 | E141: 27197.33706 | F141: 9280.563375 | H141: 21380.58588
A142: ノルウェー | B142: オスロ | C142: Oslo | D142: 22287.76152 | E142: 28068.73793 | F142: 8398.481527 | H142: 22287.76152
A143: ネパール | B143: チッタゴン | C143: Chittagong | E143: 8671.747285 | F143: 5147.793404 | H143: 8671.747285
A144: ニュージーランド | B144: オークランド | C144: Auckland | E144: 9495.618683 | F144: 9275.005226 | H144: 9495.618683
A145: オマーン | B145: ミナカブース | C145: Mina Qaboos | E145: 11869.47621 | F145: 7729.046088 | H145: 11869.47621
A146: パキスタン | B146: カラチ | C146: Karachi | E146: 11369.70961 | F146: 5964.937668 | H146: 11369.70961
A147: パナマ | B147: コロンボ | C147: Colon | D147: 15049.41368 | E147: 27629.40935 | F147: 13564.82683 | H147: 15049.41368
A148: ペルー | B148: カヤオ | C148: Callao | E148: 16403.77826 | F148: 15487.97437 | H148: 16403.77826
A149: フィリピン | B149: マニラ | C149: Manila | E149: 3529.124314 | F149: 2990.272986 | H149: 3529.124314
A150: パラオ | B150: コロール | C150: Koror | E150: 4865.747366 | F150: 3192.884712 | H150: 4865.747366
A151: パプアニューギニア | B151: ポートモレスビー | C151: Port Moresby | E151: 6192.727797 | F151: 5080.968175 | H151: 6192.727797
A152: ポーランド | B152: グダンスク | C152: Gdansk | D152: 22845.49256 | E152: 28604.36653 | F152: 8569.681541 | H152: 22845.49256
A153: 北朝鮮 | B153: フンナム | C153: Hungnam | E153: 1818.249499 | F153: 1280.529715 | H153: 1818.249499
A154: ポルトガル | B154: リスボン | C154: Lisbon | D154: 19454.92226 | E154: 25397.75862 | F154: 11135.3215 | H154: 19454.92226
A155: パラグアイ | B155: ブエノスアイレス | C155: Buenos Aires | D155: 24766.97326 | E155: 20502.36107 | F155: 17989.35245 | H155: 24766.97326
A156: ポリネシア（仏領） | B156: パペーテ | C156: Papeete | E156: 10203.68061 | F156: 9496.418246 | H156: 10203.68061
A157: カタール | B157: ドーハ | C157: Doha | E157: 12727.70127 | F157: 8239.527525 | H157: 12727.70127
A158: ルーマニア | B158: コンスタンツア | C158: Constantza | D158: 17194.3101 | E158: 28789.28853 | F158: 8868.960322 | H158: 17194.3101
A159: ロシア シベリア | B159: ウラジオストック | C159: Vladivostok | E159: 1838.467791 | F159: 1469.353468 | H159: 1838.467791
A160: ロシア ヨーロッパ | B160: サンクトペテルスブルク | C160: St Petersburg | D160: 23601.8532 | E160: 29330.61968 | F160: 7471.013849 | H160: 23601.8532
A161: ルワンダ | B161: ダルエスサラーム | C161: Dar Es Salaam | E161: 13560.74961 | F161: 11887.20623 | H161: 13560.74961
A162: サウジアラビア | B162: ラスタヌラ | C162: Ras Tanura | E162: 12860.81141 | F162: 8682.460708 | H162: 12860.81141
A163: スーダン | B163: ポートスーダン | C163: Port Sudan | E163: 13980.43939 | F163: 10471.56206 | H163: 13980.43939
A164: セネガル | B164: ダカール | C164: Dakar | D164: 21627.23324 | E164: 22697.32625 | F164: 13907.72821 | H164: 21627.23324
A165: シンガポール | B165: シンガポール | C165: Singapore | E165: 5783.473862 | F165: 5311.134496 | H165: 5783.473862
A166: シエラレオネ | B166: フリータウン | C166: Freetown | D166: 22348.64157 | E166: 21905.8 | F166: 14331.14512 | H166: 22348.64157
A167: エルサルバドル | B167: アカフトラ | C167: Acajutla | E167: 13520.99434 | F167: 12489.78861 | H167: 13520.99434
A168: ソマリア | B168: モガジシオ | C168: Mogadishu | E168: 12725.79893 | F168: 10254.92098 | H168: 12725.79893
A169: サントメ・プリンシペ | B169: サントメ | C169: Sao Tome | D169: 24604.87723 | E169: 20115.8586 | F169: 13705.82826 | H169: 24604.87723
A170: スリナム | B170: パラマリボ | C170: Paramaribo | D170: 18093.25756 | E170: 24893.70401 | F170: 15136.71431 | H170: 18093.25756
A171: スロバキア | B171: ハンブルグ | C171: Hamburg | D171: 21835.75767 | E171: 27634.58605 | F171: 9085.455399 | H171: 21835.75767
A172: スロベニア | B172: コーペル | C172: Koper | D172: 17763.43663 | E172: 28185.65596 | F172: 9391.418879 | H172: 17763.43663
A173: スウェーデン | B173: ストックホルム | C173: Stockholm | D173: 23123.57279 | E173: 28871.39553 | F173: 8162.119898 | H173: 23123.57279
A174: スワジランド | B174: ダーバン | C174: Durban | E174: 14865.47341 | F174: 13258.63871 | H174: 14865.47341
A175: セイシェル | B175: ポート ビクトリア | C175: Port Victoria | E175: 11718.36052 | F175: 9778.973605 | H175: 11718.36052
A176: シリア | B176: ラタキア | C176: Latakia | D176: 15943.63022 | E176: 28799.55461 | F176: 8939.105683 | H176: 15943.63022
A177: タークス諸島・カイコス諸島 | B177: ナッソー | C177: Nassau | D177: 17220.22376 | E177: 27810.47876 | F177: 12873.14606 | H177: 17220.22376
A178: トーゴ | B178: ロメ | C178: Lome | D178: 24020.17787 | E178: 20889.69522 | F178: 13646.86801 | H178: 24020.17787
A179: タイ | B179: レムチャバン | C179: Laem Chabang | E179: 5813.160923 | F179: 4596.009483 | H179: 5813.160923
A180: タジキスタン | B180: カーグ島 | C180: Kharg Island | E180: 12925.42688 | F180: 6125.493808 | H180: 12925.42688
A181: トルクメニスタン | B181: カーグ島 | C181: Kharg Island | E181: 12925.42688 | F181: 6989.067966 | H181: 12925.42688
A182: トンガ | B182: ヌクアロファ | C182: Nukualofa | E182: 8513.916771 | F182: 7899.688013 | H182: 8513.916771
A183: トリニダード・トバゴ | B183: ポートオブスペイン | C183: Port of Spain | D183: 17173.94641 | E183: 25700.74043 | F183: 14394.93147 | H183: 17173.94641
A184: チュニジア | B184: チュニス | C184: Tunis | D184: 17523.46979 | E184: 26717.03078 | F184: 10407.39863 | H184: 17523.46979
A185: トルコ | B185: イスタンブール | C185: Istanbul | D185: 16831.07612 | E185: 28453.50382 | F185: 8754.745208 | H185: 16831.07612
A186: 台湾 | B186: カオシュン | C186: Kaohsiung | E186: 2687.706144 | F186: 2089.821616 | H186: 2687.706144
A187: タンザニア | B187: ダルエスサラーム | C187: Dar Es Salaam | E187: 13560.74961 | F187: 11377.46962 | H187: 13560.74961
A188: ウガンダ | B188: モンバサ | C188: Mombasa | E188: 13475.54812 | F188: 11512.74431 | H188: 13475.54812
A189: ウクライナ | B189: オデッサ | C189: Odessa | D189: 17464.34526 | E189: 29038.87678 | F189: 8192.337348 | H189: 17464.34526
A190: ウルグアイ | B190: モンテビデオ | C190: Montevideo | D190: 24596.06244 | E190: 20326.46923 | F190: 18567.18789 | H190: 24596.06244
A191: 米国 西海岸 | B191: ロサンゼルス | C191: Los Angeles | E191: 9621.577833 | F191: 8813.240083 | H191: 9621.577833
A192: 米国 東海岸 | B192: ニューヨーク | C192: New York | D192: 18706.83463 | E192: 28274.99675 | F192: 10900.78128 | H192: 18706.83463
A193: ウズベキスタン | B193: カーグ島 | C193: Kharg Island | E193: 12925.42688 | F193: 5983.361657 | H193: 12925.42688
A194: セントビンセントおよびグレナディーン諸島 | B194: キングストン | C194: Kingstown | D194: 17173.94641 | E194: 25746.21961 | F194: 14141.15522 | H194: 17173.94641
A195: ベネズエラ | B195: ラグアイラ | C195: La Guaira | D195: 16606.42215 | E195: 26226.3591 | F195: 14163.53264 | H195: 16606.42215
A196: バージン諸島（英領） | B196: シャーロットアマリ― | C196: Charlotte Amalie | D196: 16966.45883 | E196: 26363.98927 | F196: 13467.63658 | H196: =IF(D196="",E196,D196) -> 16966.45883
A197: ベトナム | B197: サイゴン | C197: Saigon | E197: 4781.184884 | F197: 3658.814653 | H197: 4781.184884
A198: バヌアツ | B198: ポートビラ | C198: Port Vila | E198: 7150.944345 | F198: 6660.030491 | H198: 7150.944345
A199: サモア | B199: アピア | C199: Apia | E199: 8104.069231 | F199: 7504.798772 | H199: 8104.069231
A200: イエメン | B200: アデン | C200: Aden | E200: 12779.05624 | F200: 9138.475092 | H200: 12779.05624
... 3 more rows
